{"text_format":"1","workbook":"xlsx","n_sheets":16,"sheets":["Pomocniczy","zadanie 11-12","Zadanie13","Załącznik 7 - F.O. Zad 6-10","Załącznik 8-F.O. dla Zadania 6","Załącznik 9-F.O. dla Zadania 7","Załącznik 10-F.O. dla Zadania 8","Załącznik 11-F.O. dla Zadania 9","Załącznik12-F.O. dla Zadania 10","zad1","zad2","zad3","zad4","zad5","zad6","zad7"],"not_rendered":{"charts":0,"images":6,"macros":1,"external_links":0,"defined_names":12,"comments":0,"pivot_tables":0},"unopened":[],"bounds":{"document_bytes":16777216,"sheet_cells":100000,"rows_first":2000,"rows_last":500,"rows_between":2000,"halvings":0,"cell_chars":16384,"cell_head_chars":4096},"cells_cut":0,"cells_raw":0,"read":"whole","date_system":"1900"}

{"sheet":"Pomocniczy","index":0,"n_rows":0,"n_cols":0,"rows_kept":0,"cut":false,"hidden":true,"merged":[]}

{"sheet":"zadanie 11-12","index":1,"n_rows":158,"n_cols":4,"rows_kept":158,"cut":false,"hidden":true,"merged":[]}
[1,"DIAMANT CUKIER BIAŁY KOSTKA 1KG","Cukier biały DIAMANT w kostkach, 1 kg","1 op. ( 1 kg.)"]
[2,"DIAMANT CUKIER BIAŁY W SASZET OPK100X5G","Cukier biały DIAMANT, saszetki 100 sztuk x 5 g","1 op. (100 sztuk)"]
[3,"DIAMANT CUKIER DRY DEMERARA SYPKI 0,5KG","Cukier trzcinowy DIAMANT Dry Demerara, sypki, 500 g","1 op. ( 500 g)"]
[4,"DIAMANT CUKIER KRYSZTAŁ BIAŁY 1KG","Cukier biały DIAMANT sypki, 1 kg","1 op.( 1 kg.)"]
[5,"AHMAD HERBATA EARL GREY OPK100","Herbata czarna AHMAD Earl Grey, 100 torebek","1 op. (100 torobek)"]
[6,"BIG-ACTIVE PURE CEYLON HERBATA OPK100","Herbata czarna BIG-ACTIVE Pure Ceylon, 100 torebek","1 op. (100 torobek)"]
[7,"DILMAH CEYLON GOLD HERBATA 200G OPK100","Herbata czarna DILMAH Ceylon Gold, 100 torebek","1 op. (100 torobek)"]
[8,"DILMAH EARL GREY HERBATA LIŚCIASTA 125G","Herbata czarna liściasta DILMAH Earl Grey, 125 g","1 op. ( 125 g)"]
[9,"HERBAPOL BREAKFAST HERB MIĘTOWA OPK20 ","Herbata miętowa HERBAPOL Breakfast, 20 kopert","1 op.(  20 torebek)"]
[10,"HERBAPOL HERBATA MALINOWA OPK20","Herbata owocowa HERBAPOL Herbaciany Ogród malinowa, 20 torebek","1 op.(  20 torebek)"]
[11,"HERBAPOL PROSTO Z LASU OPK20","Herbata owocowa HERBAPOL Herbaciany Ogród, Prosto z lasu, 20 torebek","1 op.(  20 torebek)"]
[12,"HERBAPOL ZIELONA HERBATA OPK20","Herbata zielona HERBAPOL, 20 torebek bez zawieszki","1 op.(  20 torebek)"]
[13,"Herbata zielona Lipton Piramidki","Herbata zielona LIPTON  20 torebek piramidek","1 op.(  20 torebek)"]
[14,"IRVING BIAŁ POZIOMK/MANDAR HERBATA OPK20","Harbata biała IRVING poziomkowa z mandarynką, 20 kopert","1 op.(  20 torebek)"]
[15,"IRVING HERBATA CLASSIC OPK100","Herbata czarna IRVING Classic, 100 torebek","1 op.(  100 torebek)"]
[16,"LIPTON EARL GREY HERBATA OPK100","Herbata czarna LIPTON Earl Grey, 100 torebek","1 op. (100 torebek)"]
[17,"LIPTON MELISA/WIŚNIA HERBATAOPK20","Herbata ziołowa LIPTON Melisa z wiśnią, 20 torebek","1 op. (20 torebek)"]
[18,"LIPTON PYRAMID CYTRYNOWA Z MELISĄ OPK20","Herbata czarna LIPTON cytrynowa z melisą, 20 torebek piramidek","1 op. (20 torebek)"]
[19,"LIPTON PYRAMID FOREST FRUIT","Herbata owocowa LIPTON owoce leśne, 20 torebek piramidek","1 op. (20 torebek)"]
[20,"LIPTON YELLOW LABEL HERBATA  OPK100","Herbata czarna LIPTON Yellow Label, 100 torebek","1 op. (100 torebek)"]
[21,"LIPTON YELLOW LABEL HERBATA  OPK50","Herbata czarna LIPTON Yellow Label, 50 torebek","1 op. (50 torebek)"]
[22,"LIPTON ZIELONA CITRUS HERBATA OPK25","Herbata zielona LIPTON cytrusowa, 25 torebek","1 op. (25 torebek)"]
[23,"LIPTON ZIELONA MIĘTOWA HERBATA OPK25 ","Herbata zielona LIPTON miętowa, 25 torebek","1 op. (25 torebek)"]
[24,"TEEKANNE BLACK CURRANT HERBATA OPK20","Herbata owocowa TEEKANNE World of Fruits, Black Currant, 20 kopert","1 op. (20 torebek)"]
[25,"TEEKANNE EARL GREY HERBATA  OPK100","Herbata czarna TEEKANNE Earl Grey, 100 torebek","1 op. (100 torebek)"]
[26,"TEEKANNE WORLD OF FRUITS ZESTAW OPK30","Zestaw herbat owocowych TEEKANNE World of Fruits, 30 kopert","1 op. (30 torebek)"]
[27,"TEEKANNE ZIELON OPUNCJA HERBATA OPK20 ","Herbata zielona TEEKANNE z opuncją, 20 kopert","1 op. (20 torebek)"]
[28,"VITAX HERBATA MELISA I POMARAŃCZA OPK20","Herbata owocowa VITAX Inspirations melisa & pomarańcza, 20 torebek","1 op. (20 torebek)"]
[29,"VITAX HERBATA ZIOŁOWA MELISA OPK20","Herbata ziołowa VITAX melisa, 20 okrągłych torebek bez zawieszki","1 op. (20 torebek)"]
[30,"VITAX HERBATA ZIOŁOWA MIĘTA OPK20","Herbata ziołowa VITAX mięta, 20 okrągłych torebek bez zawieszki","1 op. (20 torebek)"]
[31,"VITAX HERBATA ŻURAWINA I MALINA OPK20","Herbata owocowa VITAX Inspirations żurawina & malina, 20 torebek","1 op. (20 torebek)"]
[32,"VITAX NAPAR RUMIANEK OPK20","Herbata ziołowa VITAX rumianek, 20 kwadratowych torebek bez zawieszki","1 op. (20 torebek)"]
[33,"ASTRA ŁAGODNA TRADYCYJNA KAWA MIEL 250 G","Kawa ziarnista Astra Łagodna 250 g","1 op. (250 g)"]
[34,"ASTRA ŁAGODNA TRADYCYJNA KAWA ZIARN 1 KG","Kawa ziarnista Astra Łagodna 1 kg","1 op. (1 kg)"]
[35,"DUNI KUBEK PAPIER BIAŁY 210ML OPK50","Kubek papierowy do gorących i zminych napojów 210 ml","1 op. (50 szt.)"]
[36,"EDUSCHO CAFFE CREMA KAWA ZIARNISTA 1KG","Kawa ziarnista EDUSCHO Caffe Crema, 1 kg","1 op. ( 1 kg.)"]
[37,"ESPRESSO KARMELOWE OPK50 NNSA 8868","Kawa w kapsułkach NESPRESSO ESPRESSO CARAMEL, 50 szt. (box)","1 op. (50 szt.)"]
[38,"ESPRESSO WANILIOWE OPK50 NNSA 8869","Kawa w kapsułkach NESPRESSO ESPRESSO VANILLA, 50 szt. (box)","2 op. (50 szt.)"]
[39,"INKA KAWA ZBOŻOWA 200G","Kawa zbożowa INKA, puszka 200 g","1 op.( 200 g.)"]
[40,"JACOBS BARISTA AMERICANO KAWA ROZPU 155G","Kawa rozpuszczalna JACOBS Barista Americano 155 g","1 op. (słoik 155g)"]
[41,"JACOBS CRONAT GOLD KAWA MIELONA 500G","Kawa mielona JACOBS Cronat Gold, 500 g","1 op. (500 g.)"]
[42,"JACOBS CRONAT GOLD KAWA ROZPUSZCZ 200G","Kawa rozpuszczalna JACOBS Cronat Gold, 200 g","1 op.( 200 g.)"]
[43,"JACOBS GOLD CREMA KAWA ROZPUSZCZ 200G","Kawa rozpuszczalna JACOBS Crema Gold, 200 g","1 op.( 200 g.)"]
[44,"JACOBS KRONUNG KAWA MIELONA 250G","Kawa mielona JACOBS Kronung, 250 g","1 op. (250 g.)"]
[45,"JACOBS KRONUNG KAWA ROZPUSZCZALNA 200G","Kawa rozpuszczalna JACOBS Kronung, 200 g","1 op.( 200 g.)"]
[46,"KUBEK PAPIEROWY 110ML OPK50 ","Kubek papierowy do gorących napojów 110 ml","1 op. (50 szt.)"]
[47,"KUBEK PAPIEROWY 360ML OPK35","Kubek papierowy do gorących napojów 360 ml","1 op. (35 szt.)"]
[48,"KUBEK PLASTIK 200ML BIAŁE OPK100","Kubek plastikowy do zimnych napojów 200 ml Biały","1 op. (100 szt.)"]
[49,"LAVAZZA CREMA AROMA KAWA ZIARNISTA 1KG","Kawa ziarnista LAVAZZA Crema Aroma, 1 kg","1 op. (1 kg)"]
[50,"LAVAZZA PRONTOCREMA GRANDE AROMA ZIA 1KG","Kawa ziarnista LAVAZZA Pronto crema Grande Aroma 1 kg","1 op. (1 kg)"]
[51,"LAVAZZA QUALITA ORO KAWA MIELONA 250G","Kawa mielona LAVAZZA Qualita Oro, 250 g","1 op. (250 g)"]
[52,"LAVAZZA QUALITA ORO KAWA ZIARNISTA 1 KG","Kawa ziarnista LAVAZZA Qualita Oro, 1 kg","1 op. (1 kg)"]
[53,"LAVAZZA QUALITA ROSSA KAWA ZIARNISTA 1KG","Kawa ziarnista LAVAZZA Qualita Rossa, 1 kg","1 op. (1 kg)"]
[54,"NESCAFE SENSAZIONE CREME KAWA ROZP 200G","Kawa rozpuszczalna NESCAFÉ Sensazione Creme, 200 g","1 op.( 200 g.)"]
[55,"TCHIBO EXCLUSIVE KAWA MIELONA 250G","Kawa mielona TCHIBO Exclusive, 250 g","1 op. (250 g)"]
[56,"TCHIBO FAMILY KAWA MIELONA 250G","Kawa mielona TCHIBO Family, 250 g","1 op. (250 g)"]
[57,"TCHIBO FAMILY KAWA ROZPUSZCZALNA 200G","Kawa rozpuszczalna TCHIBO Family, 200 g","1 op. (200 g)"]
[58,"TCHIBO PROFESSIONAL CREMA ZIARNISTA 1KG","Kawa ziarnista TCHIBO Profesional  Crema  1 kg ","1 op. (1 kg)"]
[59,"GOSTYŃ MLEKO SKONDENS NIESŁODZONE 500G","Mleko zagęszczone GOSTYŃ 7,5% niesłodzone, 500 g","1 op. ( 1 karton 500 g)"]
[60,"ŁACIATA ŚMIETANKA UHT 12% 500ML","Śmietanka do kawy ŁACIATA 12%, 500 ml","1 op. (500 ml)"]
[61,"ŁACIATA ŚMIETANKA W KUBECZKACH OPK10X10G","Śmietanka do kawy ŁACIATA 10%, 10 kubeczków x 10 g","1 op. (10 kubeczków)"]
[62,"ŁACIATE MLEKO UHT 2% 0,5L","Mleko ŁACIATE UHT 2,0%, 0,5 l","1 op. (500 ml)"]
[63,"ŁACIATE MLEKO UHT 2% 1L","Mleko ŁACIATE UHT 2,0%, 1 l","1 op. (1 l)"]
[64,"ŁACIATE MLEKO UHT 3,2% 0,5L","Mleko ŁACIATE UHT 3,2%, 0,5 l","1 op. (500 ml)"]
[65,"ŁACIATE MLEKO UHT 3,2% 1L","Mleko ŁACIATE UHT 3,2%, 1 l","1 op. (1 l)"]
[66,"ŁACIATE MLEKO ZAGĘSZCZONE 7,5% 0,5L","Mleko zagęszczone ŁACIATE UHT 7,5%, 0,5 l","1 op. (500 ml)"]
[67,"MLEKOVITA BEZ LAKTOZY UHT WYDOJONE 1,5%","Mleko WYDOJONE UHT, bez laktozy 1,5%, 1 l","1 op. (1 l)"]
[68,"MLEKOVITA BEZ LAKTOZY UHT WYDOJONE 3,2%","Mleko WYDOJONE UHT, bez laktozy, 3,2%, 1 l","1 op. (1 l)"]
[69,"ZAMBROWSKIE MLEKO UHT 3,2% 1L","Mleko ZAMBROWSKIE UHT 3,2 %, 1 l","1 op. (1 l)"]
[70,"BAKALLAND BAKALIE STUDENCKI MIX 200G","Cukierki Mieszanka bakaliowa BAKALLAND Studencki Mix, 200 g","1 op (200 g)"]
[71,"BAKALLAND MIGDAŁY 300G","Migdały BAKALLAND, 300 g","1 op. (300 g)"]
[72,"BAKALLAND ORZECHY NERKOWCA 300G","Orzechy nerkowca BAKALLAND, 300 g","1 op. (300 g)"]
[73,"BELVITA CIASTKA KAKAOWE 300G","Ciastka BELVITA, kakaowe, 300 g, 24 ciasteczka","1 op. (300 g)"]
[74,"BELVITA CIASTKA MUSLI+OWOCE 300G","Ciastka BELVITA Musli z owocami, 24 ciasteczka pakowane po 4 sztuki, 300 g","1 op. (300 g)"]
[75,"CISOWIANKA WODA GAZOWANA 0,5L OPK12","Woda mineralna CISOWIANKA gazowana, zgrzewka 12 butelek x 0,5 l","1 op. (12 butelek)"]
[76,"DELICJE SZAMPAŃSKIE MALINA 147G","Ciastka DELICJE Szampańskie malinowe, 147 g","1 op. (147 g)"]
[77,"DELICJE SZAMPAŃSKIE POMARAŃCZA 147G","Ciastka DELICJE Szampańskie pomarańczowe, 147 g","1 op. (147 g)"]
[78,"DELICJE SZAMPAŃSKIE WIŚNIA 147G","Ciastka DELICJE Szampańskie wiśniowe, 147 g","1 op. (147 g)"]
[79,"DELICJE SZAMPAŃSKIE WIŚNIOWE 294G","Ciastka DELICJE Szampańskie wiśniowe, podwójne opakowanie, 294 g","1 op. ( 294 g)"]
[80,"FERRERO RAFAELLO 230 G","Praliny RAFFAELLO, 230 g","1 op.(  230 g.)"]
[81,"FERRERO RAFFAELLO PRALINY 230G","Praliny RAFFAELLO, 230 g","2 op.(  230 g.)"]
[82,"Ferrero Rocher Praliny 200g","Czekoladki FERRERO ROCHER, 200 g","3 op.(  200 g.)"]
[83,"GOPLANA TOFFINO CHOCO 1KG","Cukierki Goplana Toffino Choco Toffi mleczne z kremem czekoladowym 1 kg","1 op. ( 1 kg.)"]
[84,"HIT MARKIZY CZEKOLADOWE 220G","Ciastka BAHLSEN HIT czekoladowe, 220 g","1 op.(  220 g)"]
[85,"JUTRZENKA JEŻYKI CAFE CIASTKA 140G","Ciasta JEŻYKI Cafe, 140 g","1 op. (140 g)"]
[86,"JUTRZENKA JEŻYKI CIASTKA 140G","Ciasta JEŻYKI Classic, 140 g","1 op. (140 g)"]
[87,"JUTRZENKA WAFLE FAMILIJNE ŚMIET-KAK 180G","Wafle FAMILIJNE śmietankowo-kakaowe, 180 g","1 op. (180 g)"]
[88,"ŁAKOTKI DESEROWE Z CUKREM 168G","Ciastka SAN ŁAKOTKI deserowe z cukrem, 168 g","1 op. (168 g)"]
[89,"ŁAKOTKI KAKAOWE 168G","Ciastka SAN ŁAKOTKI kakaowe, 168 g","1 op. (168 g)"]
[90,"ŁAKOTKI KOKOSOWE 168G","Ciastka SAN ŁAKOTKI kokosowe, 168 g","1 op. (168 g)"]
[91,"MERCI CZEKOLADKI 400 G","Czekoladki MERCI, 400 g","1 op.(400 g.)"]
[92,"MILKA CHOCO GRAINS CIASTKA 126 G","Ciastka MILKA Chocograins, 126 g","1 op.(126 g.)"]
[93,"MILKA CHOCOWAFER CIASTKA 150G","Wafle MILKA ChocoWafer, 150 g","1 op.(150g.)"]
[94,"MILKA MOMENTS CZEKOL MIX 11X97G","Praliny MILKA Moments Mix, 11 czekoladek","1 op. (11 sztuk)"]
[95,"MILKA MOMENTS TOFF/ORZECH 11x97G","Praliny MILKA Moments Toffee Wholenut, 11 czekoladek","1 op. (11 sztuk)"]
[96,"MILKA PIEGUSKI CZEKOLADA ORZECHY 135G","Ciastka MILKA Pieguski, czekolada i orzechy, 135 g","1 op. (135 g)"]
[97,"MILKA SINGLES CZEKOLADKI 138G","Czekoladki MILKA Singles, 32 czekoladki pakowane osobno"," 1 op. (32 szt.)"]
[98,"NESPRESSO CZEKOLADKI BLOND 200G","Czekoladki NESPRESSO blond, 200 g","1 op ( 200 g.)"]
[99,"NESPRESSO CZEKOLADKI MILK 200G","Czekoladki NESPRESSO mleczne, 200 g","1 op  ( 200 g.)"]
[100,"PASTYLKI MIĘTOWEW CZEKOLADZIE WAWEL","Cukierki Pastylka miętowa WAWEL, 1 kg","1 op. (1 kg)"]
[101,"SOLIDARNOŚĆ ŚLIWKA NALECZOWSKA 1KG","CukierkiŚliwka Nałęczowska SOLIDARNOŚĆ, 1 kg","2 op. (1 kg)"]
[102,"TAGO CIASTECZKA KORZENNE 4,8G OPK125 ","Ciastka TAGO korzenne, 125 ciasteczek po 4,8 g","1 op. (125 szt.)"]
[103,"TAGO OWSIANE DE LUX CIASTECZKA 210G","Ciastka TAGO Owsiane de Lux, 210 g","1 op. (210 g)"]
[104,"TAGO PRECLE MAŚLANE 158 G","Francuskie precle z masłem TAGO, 158 g","1 op. ( 158 g)"]
[105,"WAWEL MICHAŁKI 1 KG","Cukierki WAWEL Michałki Klasyczne 300 g","1 op. (300 g)"]
[106,"WAWEL MICHAŁKI CLASSIC 300G","Cukierki WAWEL Michałki Klasyczne 300 g","1 op. (300 g)"]
[107,"WAWEL MIESZANKA KRAKOWSKA 1 KG","Cukierki Mieszanka krakowska WAWEL, 1 kg","1 op. (1 kg)"]
[108,"WAWEL TRUFLE 1 KG","Cukierki WAWEL Trufle","1 op. (1 kg)"]
[109,"WEDEL AMERYKANKI KLASYCZNE 125 G","Ciastka AMERYKANKI, klasyczne, 126 g","1 op. (126 g)"]
[110,"WEDEL MIESZANKA CUKIERKI DISPLAY 3KG","Cukierki MIESZANKA WEDLOWSKA Classic, 3 kg w formie dyspensera","1 op. (3 kg)"]
[111,"WEDEL PTASIE MLECZKO WANILIOWE 360G","Ptasie mleczko WEDEL, waniliowe, 360 g","1 op.( 360 g.)"]
[112,"WEDEL WAFLE TORCIKOWE MINI ORZECHOWE 160","Wafle Torcikowe WEDEL MINI orzechowe, 160 g","1 op. ( 160 g)"]
[113,"BAKALLAND MIGDAŁY SOLONE 90G","Migdały lekko solone BAKALLAND, 90 g","1 op. (90 g)"]
[114,"BAKALLAND ORZECHY LASKOWE 300G","Orzechy laskowe BAKALLAND, 300 g","1 op. (300 g)"]
[115,"BAKALLAND ORZECHY NERKOWCA SOLONE 70G","Orzechy nerkowca  solone BAKALLAND, 70 g","1 op. (70 g)"]
[116,"BAKALLAND ORZECHY WŁOSKIE 300G","Orzechy włoskie BAKALLAND, 300 g","1 op. (300 g)"]
[117,"LAJKONIK PALUSZKI 200G","Paluszki LAJKONIK solone, 200 g","1 op. (200 g)"]
[118,"CAPPY NEKTAR MULTIWIT PET 0,33L OPK12 ","Nektar multiwitamina CAPPY, 12 butelek x 0,33 l","1 op. (12 butelek)"]
[119,"CAPPY SOK POMARAŃCZOWY PET 0,33L OPK12","Sok pomarańczowy CAPPY, 12 butelek x 0,33 l","1 op. (12 butelek)"]
[120,"CHAMPION SOK CYTRYNOWY OPK10X7,5G","Zagęszczony sok cytrynowy CHAMPION, 10 kubeczków x 7,5 g","1 op. (10 kubeczków)"]
[121,"COCA-COLA BUTELKA PET 0,5L OPK18 ","Napój gazowany COCA-COLA, zgrzewka 18 butelek x 0,5 l","1 op. (18 butelek)"]
[122,"COCA-COLA PUSZKA 0,33L OPK24","Napój gazowany COCA-COLA, 24 puszki x 0,33 l","1 op. (24 puszki 0,33 l)"]
[123,"COCA-COLA ZERO BUTELKA PET 0,5L OPK12","Napój gazowany COCA-COLA Zero, 12 butelek x 0,5 l","1 op. (12 butelek)"]
[124,"FORTUNA NEKTAR CZ.PORZECZKA 0,3L OPK15","Nektar czarna porzeczka FORTUNA, 15 butelek x 0,3 l","1 op. (15 butelek)"]
[125,"FORTUNA SOK MULTIWITAMINA 0,3 L OPK15","Sok multiwitamina FORTUNA, 15 butelek x 0,3 l","1 op. (15 butelek)"]
[126,"FORTUNA SOK POMARAŃCZOWY 0,3L OPK15 ","Sok pomarańczowy FORTUNA, 15 butelek x 0,3 l","1 op. (15 butelek)"]
[127,"FORTUNA SOK POMIDOROWY 0,3L OPK15","Sok pomidorowy FORTUNA, 15 butelek x 0,3 l","1 op. (15 butelek)"]
[128,"TARCZYN NEKTAR CZ.PORZECZKA 0,3L OPK15","Nektar czarna porzeczka TARCZYN, 15 butelek x 0,3 l","1 op. (15 butelek)"]
[129,"TARCZYN NEKTAR GREJPFRUT 0,3L OPK15","Nektar czerwony grejpfrut TARCZYN, zgrzewka 15 butelek x 0,3 l","1 op. (15 butelek)"]
[130,"TARCZYN SOK JABŁKOWY 0,3L OPK15","Sok jabłkowy TARCZYN, 15 butelek x 0,3 l","1 op. (15 butelek)"]
[131,"TARCZYN SOK POMARAŃCZOWY 0,3L OPK15","Sok pomarańczowy TARCZYN, 15 butelek x 0,3 l","1 op. (15 butelek)"]
[132,"TARCZYN SOK POMIDOROWY 300ML OPK15 ","Sok pomidorowy TARCZYN, zgrzewka 15 butelek x 0,3 l","1 op. (15 butelek)"]
[133,"TYMBARK JABŁKO SOK 100% 300ML OPK12","Sok TYMBARK jabłko 100%, 12 butelek x 300 ml","1 op. (12 butelek)"]
[134,"TYMBARK POMARAŃCZ SOK 100% 300ML OPK12","Sok TYMBARK pomarańcza 100%, 12 butelek x 300 ml","1 op. (12 butelek)"]
[135,"TYMBARK POMIDOR SOK 100% 300ML OPK12","Sok TYMBARK pomidor 100%, 12 butelek x 300 ml","1 op. (12 butelek)"]
[136,"TYMBARK VITAMINI BAN/MAR/JAB 300ML OPK12","Sok TYMBARK Vitamini banan, marchewka, jabłko, 12 butelek x 300 ml","1 op. (12 butelek)"]
[137,"CISOWIANKA LEKKOGAZOWANA WODA 0,5L  OPK12 ","Woda mineralna CISOWIANKA lekko gazowana, zgrzewka 12 butelek x 0,5 l","1 op. (12 butelek)"]
[138,"CISOWIANKA PERLAGE GAZ SZKŁO 300ML  OPK24 ","Woda mineralna CISOWIANKA Perlage gazowana, zgrzewka 24 butelki x 300 ml","1 op. (24 butelki)"]
[139,"CISOWIANKA WODA GAZOWANA 1,5L OPK6","Woda mineralna CISOWIANKA gazowana, zgrzewka 6 butelek x 1,5 l","1 op. (6 butelek)"]
[140,"CISOWIANKA WODA NIEGAZ SZKŁO 300ML OPK24","Woda mineralna CISOWIANKA niegazowana szklane butelki x 300 ml","1 op. (24 butelki)"]
[141,"CISOWIANKA WODA NIEGAZOWANA 0,5L OPK12 ","Woda mineralna CISOWIANKA niegazowana, zgrzewka 12 butelek x 0,5 l","1 op. (12 butelek)"]
[142,"CISOWIANKA WODA NIEGAZOWANA 1,5L OPK6","Woda mineralna CISOWIANKA niegazowana, zgrzewka 6 butelek x 1,5 l","1 op. (6 butelek)"]
[143,"CISOWIANKA WODA SPORT NIEGAZ 0,7L OPK8","Woda mineralna CISOWIANKA Sport niegazowana, zgrzewka 8 butelek x 0,7 l","1 op. (8 butelek)"]
[144,"KINGA PIENINSKA WODA GAZOWANA 0,5L OPK12","Woda mineralna KINGA PIENIŃSKA gazowana 0,5 l","1 op. (12 butelek)"]
[145,"KINGA PIENINSKA WODA NIEGAZOW 0,5L OPK12","Woda mineralna KINGA PIENIŃSKA niegazowana, zgrzewka 12 butelek x 0,5 l","1 op. (12 butelek)"]
[146,"KROPLA BESKIDU WODA GAZ 0,5L OPK12","Woda mineralna KROPLA BESKIDU gazowana, zgrzewka 12 butelek x 0,5 l","1 op. (12 butelek)"]
[147,"KROPLA BESKIDU WODA GAZ 1,5L OPK6","Woda mineralna KROPLA BESKIDU gazowana, zgrzewka 6 butelek x 1,5 l","1 op. (6 butelek)"]
[148,"KROPLA BESKIDU WODA NIEGAZ 0,5L  OPK12","Woda mineralna KROPLA BESKIDU niegazowana, zgrzewka 12 butelek x 0,5 l","1 op. (12 butelek)"]
[149,"KROPLA BESKIDU WODA NIEGAZ 1,5L OPK6","Woda mineralna KROPLA BESKIDU niegazowana, zgrzewka 6 butelek x 1,5 l","1 op. (6 butelek)"]
[150,"NAŁĘCZOWIANKA WODA NIEGAZ 0,5L OPK12","Woda mineralna NAŁĘCZOWIANKA niegazowana, zgrzewka 12 butelek x 0,5 l","1 op. (12 butelek)"]
[151,"NAŁĘCZOWIANKA WODA NIEGAZ 1,5L OPK6","Woda mineralna NAŁĘCZOWIANKA niegazowana, zgrzewka 6 butelek x 1,5 l","1 op. (6 butelek)"]
[152,"NESTLE PURE LIFE WODA GAZ 1,5L OPK6","Woda źródlana NESTLÉ Pure Life gazowana, zgrzewka 6 butelek x 1,5 l","1 op. (6 butelek)"]
[153,"NESTLE PURE LIFE WODA NIEGAZ 0,5L OPK12","Woda źródlana NESTLÉ Pure Life niegazowana, zgrzewka 12 butelek x 0,5 l","1 op. (12 butelek)"]
[154,"NESTLE PURE LIFE WODA NIEGAZ 1,5L OPK6","Woda źródlana NESTLÉ Pure Life niegazowana, zgrzewka 6 butelek x 1,5 l","1 op. (6 butelek)"]
[155,"ŻYWIEC ZDRÓJ WODA GAZOWANA 0.5L OPK24","Woda źródlana ŻYWIOŁ od ŻYWIEC ZDRÓJ gazowana, 24 butelki x 0,5 l","1 op. (24 butelki)"]
[156,"ŻYWIEC ZDRÓJ WODA GAZOWANA 1,5L OPK6","Woda źródlana ŻYWIOŁ od ŻYWIEC ZDRÓJ gazowana, zgrzewka 6 butelek x 1,5 l","1 op. ( 6 butelek)"]
[157,"ŻYWIEC ZDRÓJ WODA NIEGAZOWANA 0.5L OPK24 ","Woda źródlana ŻYWIEC ZDRÓJ niegazowana, 24 butelki x 0,5 l","1 op. (24 butelki)"]
[158,"ŻYWIEC ZDRÓJ WODA NIEGAZOWANA 1,5L  OPK6 ","Woda źródlana ŻYWIEC ZDRÓJ niegazowana, zgrzewka 6 butelek x 1,5 l","1 op. (6 butelek)"]

{"sheet":"Zadanie13","index":2,"n_rows":148,"n_cols":4,"rows_kept":148,"cut":false,"hidden":true,"merged":[]}
[1,"DIAMANT CUKIER BIAŁY KOSTKA 1KG","Cukier biały DIAMANT w kostkach, 1 kg","1 op. ( 1 kg.)"]
[2,"DIAMANT CUKIER BIAŁY W SASZET OPK100X5G","Cukier biały DIAMANT, saszetki 100 sztuk x 5 g","1 op. (100 sztuk)"]
[3,"DIAMANT CUKIER DRY DEMERARA SYPKI 0,5KG","Cukier trzcinowy DIAMANT Dry Demerara, sypki, 500 g","1 op. ( 500 g)"]
[4,"DIAMANT CUKIER KRYSZTAŁ BIAŁY 1KG","Cukier biały DIAMANT sypki, 1 kg","1 op.( 1 kg.)"]
[5,"AHMAD HERBATA EARL GREY OPK100","Herbata czarna AHMAD Earl Grey, 100 torebek","1 op. (100 torobek)"]
[6,"BIG-ACTIVE PURE CEYLON HERBATA OPK100","Herbata czarna BIG-ACTIVE Pure Ceylon, 100 torebek","1 op. (100 torobek)"]
[7,"DILMAH CEYLON GOLD HERBATA 200G OPK100","Herbata czarna DILMAH Ceylon Gold, 100 torebek","1 op. (100 torobek)"]
[8,"DILMAH EARL GREY HERBATA LIŚCIASTA 125G","Herbata czarna liściasta DILMAH Earl Grey, 125 g","1 op. ( 125 g)"]
[9,"HERBAPOL BREAKFAST HERB MIĘTOWA OPK20 ","Herbata miętowa HERBAPOL Breakfast, 20 kopert","1 op.(  20 torebek)"]
[10,"HERBAPOL HERBATA MALINOWA OPK20","Herbata owocowa HERBAPOL Herbaciany Ogród malinowa, 20 torebek","1 op.(  20 torebek)"]
[11,"HERBAPOL PROSTO Z LASU OPK20","Herbata owocowa HERBAPOL Herbaciany Ogród, Prosto z lasu, 20 torebek","1 op.(  20 torebek)"]
[12,"HERBAPOL ZIELONA HERBATA OPK20","Herbata zielona HERBAPOL, 20 torebek bez zawieszki","1 op.(  20 torebek)"]
[13,"Herbata zielona Lipton Piramidki","Herbata zielona LIPTON  20 torebek piramidek","1 op.(  20 torebek)"]
[14,"IRVING BIAŁ POZIOMK/MANDAR HERBATA OPK20","Harbata biała IRVING poziomkowa z mandarynką, 20 kopert","1 op.(  20 torebek)"]
[15,"IRVING HERBATA CLASSIC OPK100","Herbata czarna IRVING Classic, 100 torebek","1 op.(  100 torebek)"]
[16,"LIPTON EARL GREY HERBATA OPK100","Herbata czarna LIPTON Earl Grey, 100 torebek","1 op. (100 torebek)"]
[17,"LIPTON MELISA/WIŚNIA HERBATAOPK20","Herbata ziołowa LIPTON Melisa z wiśnią, 20 torebek","1 op. (20 torebek)"]
[18,"LIPTON PYRAMID CYTRYNOWA Z MELISĄ OPK20","Herbata czarna LIPTON cytrynowa z melisą, 20 torebek piramidek","1 op. (20 torebek)"]
[19,"LIPTON PYRAMID FOREST FRUIT","Herbata owocowa LIPTON owoce leśne, 20 torebek piramidek","1 op. (20 torebek)"]
[20,"LIPTON YELLOW LABEL HERBATA  OPK100","Herbata czarna LIPTON Yellow Label, 100 torebek","1 op. (100 torebek)"]
[21,"LIPTON YELLOW LABEL HERBATA  OPK50","Herbata czarna LIPTON Yellow Label, 50 torebek","1 op. (50 torebek)"]
[22,"LIPTON ZIELONA CITRUS HERBATA OPK25","Herbata zielona LIPTON cytrusowa, 25 torebek","1 op. (25 torebek)"]
[23,"LIPTON ZIELONA MIĘTOWA HERBATA OPK25 ","Herbata zielona LIPTON miętowa, 25 torebek","1 op. (25 torebek)"]
[24,"TEEKANNE BLACK CURRANT HERBATA OPK20","Herbata owocowa TEEKANNE World of Fruits, Black Currant, 20 kopert","1 op. (20 torebek)"]
[25,"TEEKANNE EARL GREY HERBATA  OPK100","Herbata czarna TEEKANNE Earl Grey, 100 torebek","1 op. (100 torebek)"]
[26,"TEEKANNE WORLD OF FRUITS ZESTAW OPK30","Zestaw herbat owocowych TEEKANNE World of Fruits, 30 kopert","1 op. (30 torebek)"]
[27,"TEEKANNE ZIELON OPUNCJA HERBATA OPK20 ","Herbata zielona TEEKANNE z opuncją, 20 kopert","1 op. (20 torebek)"]
[28,"VITAX HERBATA MELISA I POMARAŃCZA OPK20","Herbata owocowa VITAX Inspirations melisa & pomarańcza, 20 torebek","1 op. (20 torebek)"]
[29,"VITAX HERBATA ZIOŁOWA MELISA OPK20","Herbata ziołowa VITAX melisa, 20 okrągłych torebek bez zawieszki","1 op. (20 torebek)"]
[30,"VITAX HERBATA ZIOŁOWA MIĘTA OPK20","Herbata ziołowa VITAX mięta, 20 okrągłych torebek bez zawieszki","1 op. (20 torebek)"]
[31,"VITAX HERBATA ŻURAWINA I MALINA OPK20","Herbata owocowa VITAX Inspirations żurawina & malina, 20 torebek","1 op. (20 torebek)"]
[32,"VITAX NAPAR RUMIANEK OPK20","Herbata ziołowa VITAX rumianek, 20 kwadratowych torebek bez zawieszki","1 op. (20 torebek)"]
[33,"ASTRA ŁAGODNA TRADYCYJNA KAWA ZIARN 1 KG","Kawa ziarnista Astra Łagodna 1 kg","1 op. (1 kg)"]
[34,"DUNI KUBEK PAPIER BIAŁY 210ML OPK50","Kubek papierowy do gorących i zminych napojów 210 ml","1 op. (50 szt.)"]
[35,"EDUSCHO CAFFE CREMA KAWA ZIARNISTA 1KG","Kawa ziarnista EDUSCHO Caffe Crema, 1 kg","1 op. ( 1 kg.)"]
[36,"JACOBS BARISTA AMERICANO KAWA ROZPU 155G","Kawa rozpuszczalna JACOBS Barista Americano 155 g","1 op. (słoik 155g)"]
[37,"JACOBS CRONAT GOLD KAWA MIELONA 500G","Kawa mielona JACOBS Cronat Gold, 500 g","1 op. (500 g.)"]
[38,"JACOBS CRONAT GOLD KAWA ROZPUSZCZ 200G","Kawa rozpuszczalna JACOBS Cronat Gold, 200 g","1 op.( 200 g.)"]
[39,"JACOBS GOLD CREMA KAWA ROZPUSZCZ 200G","Kawa rozpuszczalna JACOBS Crema Gold, 200 g","1 op.( 200 g.)"]
[40,"JACOBS KRONUNG KAWA MIELONA 250G","Kawa mielona JACOBS Kronung, 250 g","1 op. (250 g.)"]
[41,"JACOBS KRONUNG KAWA ROZPUSZCZALNA 200G","Kawa rozpuszczalna JACOBS Kronung, 200 g","1 op.( 200 g.)"]
[42,"KUBEK PLASTIK 200ML BIAŁE OPK100","Kubek plastikowy do zimnych napojów 200 ml Biały","1 op. (100 szt.)"]
[43,"LAVAZZA CREMA AROMA KAWA ZIARNISTA 1KG","Kawa ziarnista LAVAZZA Crema Aroma, 1 kg","1 op. (1 kg)"]
[44,"LAVAZZA PRONTOCREMA GRANDE AROMA ZIA 1KG","Kawa ziarnista LAVAZZA Pronto crema Grande Aroma 1 kg","1 op. (1 kg)"]
[45,"LAVAZZA QUALITA ORO KAWA MIELONA 250G","Kawa mielona LAVAZZA Qualita Oro, 250 g","1 op. (250 g)"]
[46,"LAVAZZA QUALITA ORO KAWA ZIARNISTA 1 KG","Kawa ziarnista LAVAZZA Qualita Oro, 1 kg","1 op. (1 kg)"]
[47,"LAVAZZA QUALITA ROSSA KAWA ZIARNISTA 1KG","Kawa ziarnista LAVAZZA Qualita Rossa, 1 kg","1 op. (1 kg)"]
[48,"NESCAFE SENSAZIONE CREME KAWA ROZP 200G","Kawa rozpuszczalna NESCAFÉ Sensazione Creme, 200 g","1 op.( 200 g.)"]
[49,"TCHIBO EXCLUSIVE KAWA MIELONA 250G","Kawa mielona TCHIBO Exclusive, 250 g","1 op. (250 g)"]
[50,"TCHIBO FAMILY KAWA MIELONA 250G","Kawa mielona TCHIBO Family, 250 g","1 op. (250 g)"]
[51,"TCHIBO FAMILY KAWA ROZPUSZCZALNA 200G","Kawa rozpuszczalna TCHIBO Family, 200 g","1 op. (200 g)"]
[52,"TCHIBO PROFESSIONAL CREMA ZIARNISTA 1KG","Kawa ziarnista TCHIBO Profesional  Crema  1 kg ","1 op. (1 kg)"]
[53,"GOSTYŃ MLEKO SKONDENS NIESŁODZONE 500G","Mleko zagęszczone GOSTYŃ 7,5% niesłodzone, 500 g","1 op. ( 1 karton 500 g)"]
[54,"ŁACIATA ŚMIETANKA UHT 12% 500ML","Śmietanka do kawy ŁACIATA 12%, 500 ml","1 op. (500 ml)"]
[55,"ŁACIATA ŚMIETANKA W KUBECZKACH OPK10X10G","Śmietanka do kawy ŁACIATA 10%, 10 kubeczków x 10 g","1 op. (10 kubeczków)"]
[56,"ŁACIATE MLEKO UHT 2% 0,5L","Mleko ŁACIATE UHT 2,0%, 0,5 l","1 op. (500 ml)"]
[57,"ŁACIATE MLEKO UHT 2% 1L","Mleko ŁACIATE UHT 2,0%, 1 l","1 op. (1 l)"]
[58,"ŁACIATE MLEKO UHT 3,2% 0,5L","Mleko ŁACIATE UHT 3,2%, 0,5 l","1 op. (500 ml)"]
[59,"ŁACIATE MLEKO UHT 3,2% 1L","Mleko ŁACIATE UHT 3,2%, 1 l","1 op. (1 l)"]
[60,"ŁACIATE MLEKO ZAGĘSZCZONE 7,5% 0,5L","Mleko zagęszczone ŁACIATE UHT 7,5%, 0,5 l","1 op. (500 ml)"]
[61,"ZAMBROWSKIE MLEKO UHT 3,2% 1L","Mleko ZAMBROWSKIE UHT 3,2 %, 1 l","1 op. (1 l)"]
[62,"BAKALLAND BAKALIE STUDENCKI MIX 200G","Cukierki Mieszanka bakaliowa BAKALLAND Studencki Mix, 200 g","1 op (200 g)"]
[63,"BAKALLAND MIGDAŁY 300G","Migdały BAKALLAND, 300 g","1 op. (300 g)"]
[64,"BAKALLAND ORZECHY NERKOWCA 300G","Orzechy nerkowca BAKALLAND, 300 g","1 op. (300 g)"]
[65,"BELVITA CIASTKA KAKAOWE 300G","Ciastka BELVITA, kakaowe, 300 g, 24 ciasteczka","1 op. (300 g)"]
[66,"BELVITA CIASTKA MUSLI+OWOCE 300G","Ciastka BELVITA Musli z owocami, 24 ciasteczka pakowane po 4 sztuki, 300 g","1 op. (300 g)"]
[67,"CISOWIANKA WODA GAZOWANA 0,5L OPK12","Woda mineralna CISOWIANKA gazowana, zgrzewka 12 butelek x 0,5 l","1 op. (12 butelek)"]
[68,"DELICJE SZAMPAŃSKIE MALINA 147G","Ciastka DELICJE Szampańskie malinowe, 147 g","1 op. (147 g)"]
[69,"DELICJE SZAMPAŃSKIE POMARAŃCZA 147G","Ciastka DELICJE Szampańskie pomarańczowe, 147 g","1 op. (147 g)"]
[70,"DELICJE SZAMPAŃSKIE WIŚNIA 147G","Ciastka DELICJE Szampańskie wiśniowe, 147 g","1 op. (147 g)"]
[71,"DELICJE SZAMPAŃSKIE WIŚNIOWE 294G","Ciastka DELICJE Szampańskie wiśniowe, podwójne opakowanie, 294 g","1 op. ( 294 g)"]
[72,"FERRERO RAFAELLO 230 G","Praliny RAFFAELLO, 230 g","1 op.(  230 g.)"]
[73,"FERRERO RAFFAELLO PRALINY 230G","Praliny RAFFAELLO, 230 g","2 op.(  230 g.)"]
[74,"Ferrero Rocher Praliny 200g","Czekoladki FERRERO ROCHER, 200 g","3 op.(  200 g.)"]
[75,"GOPLANA TOFFINO CHOCO 1KG","Cukierki Goplana Toffino Choco Toffi mleczne z kremem czekoladowym 1 kg","1 op. ( 1 kg.)"]
[76,"HIT MARKIZY CZEKOLADOWE 220G","Ciastka BAHLSEN HIT czekoladowe, 220 g","1 op.(  220 g)"]
[77,"JUTRZENKA JEŻYKI CAFE CIASTKA 140G","Ciasta JEŻYKI Cafe, 140 g","1 op. (140 g)"]
[78,"JUTRZENKA JEŻYKI CIASTKA 140G","Ciasta JEŻYKI Classic, 140 g","1 op. (140 g)"]
[79,"JUTRZENKA WAFLE FAMILIJNE ŚMIET-KAK 180G","Wafle FAMILIJNE śmietankowo-kakaowe, 180 g","1 op. (180 g)"]
[80,"ŁAKOTKI DESEROWE Z CUKREM 168G","Ciastka SAN ŁAKOTKI deserowe z cukrem, 168 g","1 op. (168 g)"]
[81,"ŁAKOTKI KAKAOWE 168G","Ciastka SAN ŁAKOTKI kakaowe, 168 g","1 op. (168 g)"]
[82,"ŁAKOTKI KOKOSOWE 168G","Ciastka SAN ŁAKOTKI kokosowe, 168 g","1 op. (168 g)"]
[83,"MERCI CZEKOLADKI 400 G","Czekoladki MERCI, 400 g","1 op.(400 g.)"]
[84,"MILKA CHOCO GRAINS CIASTKA 126 G","Ciastka MILKA Chocograins, 126 g","1 op.(126 g.)"]
[85,"MILKA CHOCOWAFER CIASTKA 150G","Wafle MILKA ChocoWafer, 150 g","1 op.(150g.)"]
[86,"MILKA MOMENTS CZEKOL MIX 11X97G","Praliny MILKA Moments Mix, 11 czekoladek","1 op. (11 sztuk)"]
[87,"MILKA MOMENTS TOFF/ORZECH 11x97G","Praliny MILKA Moments Toffee Wholenut, 11 czekoladek","1 op. (11 sztuk)"]
[88,"MILKA PIEGUSKI CZEKOLADA ORZECHY 135G","Ciastka MILKA Pieguski, czekolada i orzechy, 135 g","1 op. (135 g)"]
[89,"MILKA SINGLES CZEKOLADKI 138G","Czekoladki MILKA Singles, 32 czekoladki pakowane osobno"," 1 op. (32 szt.)"]
[90,"NESPRESSO CZEKOLADKI BLOND 200G","Czekoladki NESPRESSO blond, 200 g","1 op ( 200 g.)"]
[91,"NESPRESSO CZEKOLADKI MILK 200G","Czekoladki NESPRESSO mleczne, 200 g","1 op  ( 200 g.)"]
[92,"PASTYLKI MIĘTOWEW CZEKOLADZIE WAWEL","Cukierki Pastylka miętowa WAWEL, 1 kg","1 op. (1 kg)"]
[93,"SOLIDARNOŚĆ ŚLIWKA NALECZOWSKA 1KG","CukierkiŚliwka Nałęczowska SOLIDARNOŚĆ, 1 kg","2 op. (1 kg)"]
[94,"TAGO CIASTECZKA KORZENNE 4,8G OPK125 ","Ciastka TAGO korzenne, 125 ciasteczek po 4,8 g","1 op. (125 szt.)"]
[95,"TAGO OWSIANE DE LUX CIASTECZKA 210G","Ciastka TAGO Owsiane de Lux, 210 g","1 op. (210 g)"]
[96,"TAGO PRECLE MAŚLANE 158 G","Francuskie precle z masłem TAGO, 158 g","1 op. ( 158 g)"]
[97,"WAWEL MICHAŁKI 1 KG","Cukierki WAWEL Michałki Klasyczne 300 g","1 op. (300 g)"]
[98,"WAWEL MICHAŁKI CLASSIC 300G","Cukierki WAWEL Michałki Klasyczne 300 g","1 op. (300 g)"]
[99,"WAWEL MIESZANKA KRAKOWSKA 1 KG","Cukierki Mieszanka krakowska WAWEL, 1 kg","1 op. (1 kg)"]
[100,"WAWEL TRUFLE 1 KG","Cukierki WAWEL Trufle","1 op. (1 kg)"]
[101,"WEDEL AMERYKANKI KLASYCZNE 125 G","Ciastka AMERYKANKI, klasyczne, 126 g","1 op. (126 g)"]
[102,"WEDEL MIESZANKA CUKIERKI DISPLAY 3KG","Cukierki MIESZANKA WEDLOWSKA Classic, 3 kg w formie dyspensera","1 op. (3 kg)"]
[103,"WEDEL PTASIE MLECZKO WANILIOWE 360G","Ptasie mleczko WEDEL, waniliowe, 360 g","1 op.( 360 g.)"]
[104,"WEDEL WAFLE TORCIKOWE MINI ORZECHOWE 160","Wafle Torcikowe WEDEL MINI orzechowe, 160 g","1 op. ( 160 g)"]
[105,"BAKALLAND MIGDAŁY SOLONE 90G","Migdały lekko solone BAKALLAND, 90 g","1 op. (90 g)"]
[106,"BAKALLAND ORZECHY LASKOWE 300G","Orzechy laskowe BAKALLAND, 300 g","1 op. (300 g)"]
[107,"BAKALLAND ORZECHY NERKOWCA SOLONE 70G","Orzechy nerkowca  solone BAKALLAND, 70 g","1 op. (70 g)"]
[108,"BAKALLAND ORZECHY WŁOSKIE 300G","Orzechy włoskie BAKALLAND, 300 g","1 op. (300 g)"]
[109,"LAJKONIK PALUSZKI 200G","Paluszki LAJKONIK solone, 200 g","1 op. (200 g)"]
[110,"CAPPY NEKTAR MULTIWIT PET 0,33L OPK12 ","Nektar multiwitamina CAPPY, 12 butelek x 0,33 l","1 op. (12 butelek)"]
[111,"CAPPY SOK POMARAŃCZOWY PET 0,33L OPK12","Sok pomarańczowy CAPPY, 12 butelek x 0,33 l","1 op. (12 butelek)"]
[112,"CHAMPION SOK CYTRYNOWY OPK10X7,5G","Zagęszczony sok cytrynowy CHAMPION, 10 kubeczków x 7,5 g","1 op. (10 kubeczków)"]
[113,"COCA-COLA BUTELKA PET 0,5L OPK18 ","Napój gazowany COCA-COLA, zgrzewka 18 butelek x 0,5 l","1 op. (18 butelek)"]
[114,"COCA-COLA ZERO BUTELKA PET 0,5L OPK12","Napój gazowany COCA-COLA Zero, 12 butelek x 0,5 l","1 op. (12 butelek)"]
[115,"FORTUNA NEKTAR CZ.PORZECZKA 0,3L OPK15","Nektar czarna porzeczka FORTUNA, 15 butelek x 0,3 l","1 op. (15 butelek)"]
[116,"FORTUNA SOK MULTIWITAMINA 0,3 L OPK15","Sok multiwitamina FORTUNA, 15 butelek x 0,3 l","1 op. (15 butelek)"]
[117,"FORTUNA SOK POMARAŃCZOWY 0,3L OPK15 ","Sok pomarańczowy FORTUNA, 15 butelek x 0,3 l","1 op. (15 butelek)"]
[118,"FORTUNA SOK POMIDOROWY 0,3L OPK15","Sok pomidorowy FORTUNA, 15 butelek x 0,3 l","1 op. (15 butelek)"]
[119,"TARCZYN NEKTAR CZ.PORZECZKA 0,3L OPK15","Nektar czarna porzeczka TARCZYN, 15 butelek x 0,3 l","1 op. (15 butelek)"]
[120,"TARCZYN NEKTAR GREJPFRUT 0,3L OPK15","Nektar czerwony grejpfrut TARCZYN, zgrzewka 15 butelek x 0,3 l","1 op. (15 butelek)"]
[121,"TARCZYN SOK JABŁKOWY 0,3L OPK15","Sok jabłkowy TARCZYN, 15 butelek x 0,3 l","1 op. (15 butelek)"]
[122,"TARCZYN SOK POMARAŃCZOWY 0,3L OPK15","Sok pomarańczowy TARCZYN, 15 butelek x 0,3 l","1 op. (15 butelek)"]
[123,"TARCZYN SOK POMIDOROWY 300ML OPK15 ","Sok pomidorowy TARCZYN, zgrzewka 15 butelek x 0,3 l","1 op. (15 butelek)"]
[124,"TYMBARK JABŁKO SOK 100% 300ML OPK12","Sok TYMBARK jabłko 100%, 12 butelek x 300 ml","1 op. (12 butelek)"]
[125,"TYMBARK POMARAŃCZ SOK 100% 300ML OPK12","Sok TYMBARK pomarańcza 100%, 12 butelek x 300 ml","1 op. (12 butelek)"]
[126,"TYMBARK VITAMINI BAN/MAR/JAB 300ML OPK12","Sok TYMBARK Vitamini banan, marchewka, jabłko, 12 butelek x 300 ml","1 op. (12 butelek)"]
[127,"CISOWIANKA LEKKOGAZOWANA WODA 0,5L  OPK12 ","Woda mineralna CISOWIANKA lekko gazowana, zgrzewka 12 butelek x 0,5 l","1 op. (12 butelek)"]
[128,"CISOWIANKA PERLAGE GAZ SZKŁO 300ML  OPK24 ","Woda mineralna CISOWIANKA Perlage gazowana, zgrzewka 24 butelki x 300 ml","1 op. (24 butelki)"]
[129,"CISOWIANKA WODA GAZOWANA 1,5L OPK6","Woda mineralna CISOWIANKA gazowana, zgrzewka 6 butelek x 1,5 l","1 op. (6 butelek)"]
[130,"CISOWIANKA WODA NIEGAZ SZKŁO 300ML OPK24","Woda mineralna CISOWIANKA niegazowana szklane butelki x 300 ml","1 op. (24 butelki)"]
[131,"CISOWIANKA WODA NIEGAZOWANA 0,5L OPK12 ","Woda mineralna CISOWIANKA niegazowana, zgrzewka 12 butelek x 0,5 l","1 op. (12 butelek)"]
[132,"CISOWIANKA WODA NIEGAZOWANA 1,5L OPK6","Woda mineralna CISOWIANKA niegazowana, zgrzewka 6 butelek x 1,5 l","1 op. (6 butelek)"]
[133,"CISOWIANKA WODA SPORT NIEGAZ 0,7L OPK8","Woda mineralna CISOWIANKA Sport niegazowana, zgrzewka 8 butelek x 0,7 l","1 op. (8 butelek)"]
[134,"KINGA PIENINSKA WODA GAZOWANA 0,5L OPK12","Woda mineralna KINGA PIENIŃSKA gazowana 0,5 l","1 op. (12 butelek)"]
[135,"KINGA PIENINSKA WODA NIEGAZOW 0,5L OPK12","Woda mineralna KINGA PIENIŃSKA niegazowana, zgrzewka 12 butelek x 0,5 l","1 op. (12 butelek)"]
[136,"KROPLA BESKIDU WODA GAZ 0,5L OPK12","Woda mineralna KROPLA BESKIDU gazowana, zgrzewka 12 butelek x 0,5 l","1 op. (12 butelek)"]
[137,"KROPLA BESKIDU WODA GAZ 1,5L OPK6","Woda mineralna KROPLA BESKIDU gazowana, zgrzewka 6 butelek x 1,5 l","1 op. (6 butelek)"]
[138,"KROPLA BESKIDU WODA NIEGAZ 0,5L  OPK12","Woda mineralna KROPLA BESKIDU niegazowana, zgrzewka 12 butelek x 0,5 l","1 op. (12 butelek)"]
[139,"KROPLA BESKIDU WODA NIEGAZ 1,5L OPK6","Woda mineralna KROPLA BESKIDU niegazowana, zgrzewka 6 butelek x 1,5 l","1 op. (6 butelek)"]
[140,"NAŁĘCZOWIANKA WODA NIEGAZ 0,5L OPK12","Woda mineralna NAŁĘCZOWIANKA niegazowana, zgrzewka 12 butelek x 0,5 l","1 op. (12 butelek)"]
[141,"NAŁĘCZOWIANKA WODA NIEGAZ 1,5L OPK6","Woda mineralna NAŁĘCZOWIANKA niegazowana, zgrzewka 6 butelek x 1,5 l","1 op. (6 butelek)"]
[142,"NESTLE PURE LIFE WODA GAZ 1,5L OPK6","Woda źródlana NESTLÉ Pure Life gazowana, zgrzewka 6 butelek x 1,5 l","1 op. (6 butelek)"]
[143,"NESTLE PURE LIFE WODA NIEGAZ 0,5L OPK12","Woda źródlana NESTLÉ Pure Life niegazowana, zgrzewka 12 butelek x 0,5 l","1 op. (12 butelek)"]
[144,"NESTLE PURE LIFE WODA NIEGAZ 1,5L OPK6","Woda źródlana NESTLÉ Pure Life niegazowana, zgrzewka 6 butelek x 1,5 l","1 op. (6 butelek)"]
[145,"ŻYWIEC ZDRÓJ WODA GAZOWANA 0.5L OPK24","Woda źródlana ŻYWIOŁ od ŻYWIEC ZDRÓJ gazowana, 24 butelki x 0,5 l","1 op. (24 butelki)"]
[146,"ŻYWIEC ZDRÓJ WODA GAZOWANA 1,5L OPK6","Woda źródlana ŻYWIOŁ od ŻYWIEC ZDRÓJ gazowana, zgrzewka 6 butelek x 1,5 l","1 op. ( 6 butelek)"]
[147,"ŻYWIEC ZDRÓJ WODA NIEGAZOWANA 0.5L OPK24 ","Woda źródlana ŻYWIEC ZDRÓJ niegazowana, 24 butelki x 0,5 l","1 op. (24 butelki)"]
[148,"ŻYWIEC ZDRÓJ WODA NIEGAZOWANA 1,5L  OPK6 ","Woda źródlana ŻYWIEC ZDRÓJ niegazowana, zgrzewka 6 butelek x 1,5 l","1 op. (6 butelek)"]

{"sheet":"Załącznik 7 - F.O. Zad 6-10","index":3,"n_rows":214,"n_cols":22,"rows_kept":214,"cut":false,"hidden":false,"merged":[[2,2,2,6],[4,2,4,6],[8,2,8,6],[11,2,11,6],[14,2,14,6],[41,2,41,6],[18,3,18,6],[19,3,19,6],[21,3,21,6],[22,3,22,6],[212,1,212,2],[213,1,213,2],[213,3,213,4],[53,9,53,10],[24,3,24,6],[40,2,40,6],[36,3,36,6],[37,3,37,6],[33,3,33,6],[34,3,34,6],[25,3,25,6],[27,3,27,6],[28,3,28,6],[30,3,30,6],[31,3,31,6],[42,2,44,6]]}
[null,null,"Oznaczenie sprawy:  1400/DW00/ZU/KZ/2021/0000074365"]
[]
[null,null,"ZAŁĄCZNIK NR 7 - FORMULARZ OFERTY DLA ZADAŃ: OD 6 DO 10"]
[]
[]
[null,null,null,"(pieczęć wykonawcy)"]
[]
[null,null,"Ja, niżej podpisany (My niżej podpisani):"]
[]
[]
[null,null,"działając w imieniu i na rzecz:"]
[]
[]
[null,null,"Składam(y) ofertę na wykonanie zamówienia, którego przedmiotem jest:"]
[null,null,"Dostawa artykułów biurowych, spożywczych i higienicznych dla spółek GK ENEA"]
[]
[null,null,"Oferujemy wykonanie zamówienia zgodnie z opisem przedmiotu zamówienia:"]
[]
[null,null,"ŁĄCZNA CENA NETTO OFERTY DLA ZADANIA 6",{"$f":"IF(V55=TRUE,K55,\"Wykonawca nie składa oferty\")","v":"Wykonawca nie składa oferty"}]
[null,null,"CENA NETTO SŁOWNIE: ",{"$f":"IF(V55=TRUE,zad1!E13,\"\")","v":""}]
[]
[null,null,"ŁĄCZNA CENA NETTO OFERTY DLA ZADANIA 7",{"$f":"IF(V56=TRUE,K56,\"Wykonawca nie składa oferty\")","v":"Wykonawca nie składa oferty"}]
[null,null,"CENA NETTO SŁOWNIE: ",{"$f":"IF(V56=TRUE,zad2!E13,\"\")","v":""}]
[]
[null,null,"ŁĄCZNA CENA NETTO OFERTY DLA ZADANIA 8",{"$f":"IF(V57=TRUE,K57,\"Wykonawca nie składa oferty\")","v":"Wykonawca nie składa oferty"}]
[null,null,"CENA NETTO SŁOWNIE: ",{"$f":"IF(V57=TRUE,zad3!E13,\"\")","v":""}]
[]
[null,null,"ŁĄCZNA CENA NETTO OFERTY DLA ZADANIA 9",{"$f":"IF(V58=TRUE,K58,\"Wykonawca nie składa oferty\")","v":"Wykonawca nie składa oferty"}]
[null,null,"CENA NETTO SŁOWNIE: ",{"$f":"IF(V58=TRUE,zad4!E13,\"\")","v":""}]
[]
[null,null,"ŁĄCZNA CENA NETTO OFERTY DLA ZADANIA 10",{"$f":"IF(V59=TRUE,K59,\"Wykonawca nie składa oferty\")","v":"Wykonawca nie składa oferty"}]
[null,null,"CENA NETTO SŁOWNIE: ",{"$f":"IF(V59=TRUE,zad5!E13,\"\")","v":""}]
[]
[]
[]
[]
[]
[]
[]
[]
[null,null,"INSTRUKCJA DLA WYKONAWCY: \n1. Wykonawca wybiera w załączniku \"FORMULARZ OFERTY DLA ZADAŃ: OD 6 DO 10\" Zadania, na które składa ofertę  (Zadania od 6 do 10) w kolumnie \"J\" a następnie (uruchamia makro ograniczające listę produktów) wciskając przycisk \"Wykonaj\".\n2.Wykonawca w załączniku \"FORMULARZ OFERTY DLA ZADAŃ: OD 6 DO 10\" uzupełnia ceny jednostkowe netto oraz stawki vat dla wszystkich produktów (kolumna \"F\" i \"G\" Wiersze od 53).  \n3. Ceny jednostkowe netto wpisane w arkuszu \"FORMULARZ OFERTY DLA ZADAŃ: OD 6 DO 10\" zaciągają się do kolejnych arkuszy Zadań i wyliczają wartość oferty.\n4. Cena netto Oferty dla danego Zadania (łącznie z cenami jednostkowymi netto) musi być podana w złotych polskich, z dokładnością do dwóch miejsc po przecinku poprzez zastosowanie w arkuszu kalkulacyjnym excel funkcji zaokrąglenia. tj. ZAOKR (=ZAOKR(A1;2), gdzie A1 oznacza liczbę). \n5. Cena Oferty netto dla danego Zadania, w tym ceny jednostkowe netto, muszą być wyższe niż  0,00 PLN.\nUwaga! Ponowne uruchomienie makra (przycisk Wykonaj), dostosowującego listę produktów wg wybranych Zadań, po wpisaniu cen spowoduje wykasowanie wcześniej wprowadzonych cen."]
[null,null,"Uwaga: na niebiesko zostały zaznaczone pola do uzupełnienia przez Wykonawców (załączniki: \"FORMULARZ OFERTY DLA ZADAŃ: OD 6 DO 10\" oraz Załączniki dla Zadania od 6 do 10). "]
[null,null,"W celu złożenia oferty Wykonawca zobowiązany jest do uzupełnienia i podpisania arkusza: \"FORMULARZ OFERTY DLA ZADAŃ: OD 6 DO 10\" oraz uzupełnienia i podpisania załączników dla wszystkich Zadań, na które składa Ofertę, np. Wykonawca składając ofertę dla Zadania 6 i Zadania 10 powinien złożyć wypełniony i podpisany załącznik: \"FORMULARZ OFERTY DLA ZADAŃ: OD 6 DO 10\" (wypełniony zgodnie z powyższa instrukcją) oraz Załącznik nr 8 dla Zadanie 6 i Załącznik nr 12 dla Zadanie 10 (należy wypełnić tylko pola oznaczone na niebiesko)."]
[]
[]
[]
[]
[]
[]
[]
[]
[null,"lp","Opis","Opis szczegółowy","Jednostka ","Stawka VAT","Cena jednostkowa netto"]
[null,1,"DIAMANT CUKIER BIAŁY KOSTKA 1KG","Cukier biały DIAMANT w kostkach, 1 kg","1 op. ( 1 kg.)",null,null,null,null,"Wartość łączna oferty netto",{"$f":"SUM(K55:K61)","v":0}]
[null,2,"DIAMANT CUKIER BIAŁY W SASZET OPK100X5G","Cukier biały DIAMANT, saszetki 100 sztuk x 5 g","1 op. (100 sztuk)",null,null,null,null,"Zaznacz zadanie/zadania na które składana jest oferta:"]
[null,3,"DIAMANT CUKIER DRY DEMERARA SYPKI 0,5KG","Cukier trzcinowy DIAMANT Dry Demerara, sypki, 500 g","1 op. ( 500 g)",null,null,null,null,null,{"$f":"IF(V55=TRUE,'Załącznik 8-F.O. dla Zadania 6'!D19,0)","v":0},null,null,null,null,null,null,null,null,null,null,false]
[null,4,"DIAMANT CUKIER KRYSZTAŁ BIAŁY 1KG","Cukier biały DIAMANT sypki, 1 kg","1 op.( 1 kg.)",null,null,null,null,null,{"$f":"IF(V56=TRUE,'Załącznik 9-F.O. dla Zadania 7'!D19,0)","v":0},null,null,null,null,null,null,null,null,null,null,false]
[null,5,"AHMAD HERBATA EARL GREY OPK100","Herbata czarna AHMAD Earl Grey, 100 torebek","1 op. (100 torobek)",null,null,null,null,null,{"$f":"IF(V57=TRUE,'Załącznik 10-F.O. dla Zadania 8'!D19,0)","v":0},null,null,null,null,null,null,null,null,null,null,false]
[null,6,"BIG-ACTIVE PURE CEYLON HERBATA OPK100","Herbata czarna BIG-ACTIVE Pure Ceylon, 100 torebek","1 op. (100 torobek)",null,null,null,null,null,{"$f":"IF(V58=TRUE,'Załącznik 11-F.O. dla Zadania 9'!D19,0)","v":0},null,null,null,null,null,null,null,null,null,null,false]
[null,7,"DILMAH CEYLON GOLD HERBATA 200G OPK100","Herbata czarna DILMAH Ceylon Gold, 100 torebek","1 op. (100 torobek)",null,null,null,null,null,{"$f":"IF(V59=TRUE,'Załącznik12-F.O. dla Zadania 10'!D19,0)","v":0},null,null,null,null,null,null,null,null,null,null,false]
[null,8,"DILMAH EARL GREY HERBATA LIŚCIASTA 125G","Herbata czarna liściasta DILMAH Earl Grey, 125 g","1 op. ( 125 g)"]
[null,9,"HERBAPOL BREAKFAST HERB MIĘTOWA OPK20 ","Herbata miętowa HERBAPOL Breakfast, 20 kopert","1 op.(  20 torebek)"]
[null,10,"HERBAPOL HERBATA MALINOWA OPK20","Herbata owocowa HERBAPOL Herbaciany Ogród malinowa, 20 torebek","1 op.(  20 torebek)"]
[null,11,"HERBAPOL PROSTO Z LASU OPK20","Herbata owocowa HERBAPOL Herbaciany Ogród, Prosto z lasu, 20 torebek","1 op.(  20 torebek)"]
[null,12,"HERBAPOL ZIELONA HERBATA OPK20","Herbata zielona HERBAPOL, 20 torebek bez zawieszki","1 op.(  20 torebek)"]
[null,13,"Herbata zielona Lipton Piramidki","Herbata zielona LIPTON  20 torebek piramidek","1 op.(  20 torebek)"]
[null,14,"IRVING BIAŁ POZIOMK/MANDAR HERBATA OPK20","Harbata biała IRVING poziomkowa z mandarynką, 20 kopert","1 op.(  20 torebek)"]
[null,15,"IRVING HERBATA CLASSIC OPK100","Herbata czarna IRVING Classic, 100 torebek","1 op.(  100 torebek)"]
[null,16,"LIPTON EARL GREY HERBATA OPK100","Herbata czarna LIPTON Earl Grey, 100 torebek","1 op. (100 torebek)"]
[null,17,"LIPTON MELISA/WIŚNIA HERBATAOPK20","Herbata ziołowa LIPTON Melisa z wiśnią, 20 torebek","1 op. (20 torebek)"]
[null,18,"LIPTON PYRAMID CYTRYNOWA Z MELISĄ OPK20","Herbata czarna LIPTON cytrynowa z melisą, 20 torebek piramidek","1 op. (20 torebek)"]
[null,19,"LIPTON PYRAMID FOREST FRUIT","Herbata owocowa LIPTON owoce leśne, 20 torebek piramidek","1 op. (20 torebek)"]
[null,20,"LIPTON YELLOW LABEL HERBATA  OPK100","Herbata czarna LIPTON Yellow Label, 100 torebek","1 op. (100 torebek)"]
[null,21,"LIPTON YELLOW LABEL HERBATA  OPK50","Herbata czarna LIPTON Yellow Label, 50 torebek","1 op. (50 torebek)"]
[null,22,"LIPTON ZIELONA CITRUS HERBATA OPK25","Herbata zielona LIPTON cytrusowa, 25 torebek","1 op. (25 torebek)"]
[null,23,"LIPTON ZIELONA MIĘTOWA HERBATA OPK25 ","Herbata zielona LIPTON miętowa, 25 torebek","1 op. (25 torebek)"]
[null,24,"TEEKANNE BLACK CURRANT HERBATA OPK20","Herbata owocowa TEEKANNE World of Fruits, Black Currant, 20 kopert","1 op. (20 torebek)"]
[null,25,"TEEKANNE EARL GREY HERBATA  OPK100","Herbata czarna TEEKANNE Earl Grey, 100 torebek","1 op. (100 torebek)"]
[null,26,"TEEKANNE WORLD OF FRUITS ZESTAW OPK30","Zestaw herbat owocowych TEEKANNE World of Fruits, 30 kopert","1 op. (30 torebek)"]
[null,27,"TEEKANNE ZIELON OPUNCJA HERBATA OPK20 ","Herbata zielona TEEKANNE z opuncją, 20 kopert","1 op. (20 torebek)"]
[null,28,"VITAX HERBATA MELISA I POMARAŃCZA OPK20","Herbata owocowa VITAX Inspirations melisa & pomarańcza, 20 torebek","1 op. (20 torebek)"]
[null,29,"VITAX HERBATA ZIOŁOWA MELISA OPK20","Herbata ziołowa VITAX melisa, 20 okrągłych torebek bez zawieszki","1 op. (20 torebek)"]
[null,30,"VITAX HERBATA ZIOŁOWA MIĘTA OPK20","Herbata ziołowa VITAX mięta, 20 okrągłych torebek bez zawieszki","1 op. (20 torebek)"]
[null,31,"VITAX HERBATA ŻURAWINA I MALINA OPK20","Herbata owocowa VITAX Inspirations żurawina & malina, 20 torebek","1 op. (20 torebek)"]
[null,32,"VITAX NAPAR RUMIANEK OPK20","Herbata ziołowa VITAX rumianek, 20 kwadratowych torebek bez zawieszki","1 op. (20 torebek)"]
[null,33,"ASTRA ŁAGODNA TRADYCYJNA KAWA MIEL 250 G","Kawa ziarnista Astra Łagodna 250 g","1 op. (250 g)"]
[null,34,"ASTRA ŁAGODNA TRADYCYJNA KAWA ZIARN 1 KG","Kawa ziarnista Astra Łagodna 1 kg","1 op. (1 kg)"]
[null,35,"DUNI KUBEK PAPIER BIAŁY 210ML OPK50","Kubek papierowy do gorących i zminych napojów 210 ml","1 op. (50 szt.)"]
[null,36,"EDUSCHO CAFFE CREMA KAWA ZIARNISTA 1KG","Kawa ziarnista EDUSCHO Caffe Crema, 1 kg","1 op. ( 1 kg.)"]
[null,37,"ESPRESSO KARMELOWE OPK50 NNSA 8868","Kawa w kapsułkach NESPRESSO ESPRESSO CARAMEL, 50 szt. (box)","1 op. (50 szt.)"]
[null,38,"ESPRESSO WANILIOWE OPK50 NNSA 8869","Kawa w kapsułkach NESPRESSO ESPRESSO VANILLA, 50 szt. (box)","2 op. (50 szt.)"]
[null,39,"INKA KAWA ZBOŻOWA 200G","Kawa zbożowa INKA, puszka 200 g","1 op.( 200 g.)"]
[null,40,"JACOBS BARISTA AMERICANO KAWA ROZPU 155G","Kawa rozpuszczalna JACOBS Barista Americano 155 g","1 op. (słoik 155g)"]
[null,41,"JACOBS CRONAT GOLD KAWA MIELONA 500G","Kawa mielona JACOBS Cronat Gold, 500 g","1 op. (500 g.)"]
[null,42,"JACOBS CRONAT GOLD KAWA ROZPUSZCZ 200G","Kawa rozpuszczalna JACOBS Cronat Gold, 200 g","1 op.( 200 g.)"]
[null,43,"JACOBS GOLD CREMA KAWA ROZPUSZCZ 200G","Kawa rozpuszczalna JACOBS Crema Gold, 200 g","1 op.( 200 g.)"]
[null,44,"JACOBS KRONUNG KAWA MIELONA 250G","Kawa mielona JACOBS Kronung, 250 g","1 op. (250 g.)"]
[null,45,"JACOBS KRONUNG KAWA ROZPUSZCZALNA 200G","Kawa rozpuszczalna JACOBS Kronung, 200 g","1 op.( 200 g.)"]
[null,46,"KUBEK PAPIEROWY 110ML OPK50 ","Kubek papierowy do gorących napojów 110 ml","1 op. (50 szt.)"]
[null,47,"KUBEK PAPIEROWY 360ML OPK35","Kubek papierowy do gorących napojów 360 ml","1 op. (35 szt.)"]
[null,48,"KUBEK PLASTIK 200ML BIAŁE OPK100","Kubek plastikowy do zimnych napojów 200 ml Biały","1 op. (100 szt.)"]
[null,49,"LAVAZZA CREMA AROMA KAWA ZIARNISTA 1KG","Kawa ziarnista LAVAZZA Crema Aroma, 1 kg","1 op. (1 kg)"]
[null,50,"LAVAZZA PRONTOCREMA GRANDE AROMA ZIA 1KG","Kawa ziarnista LAVAZZA Pronto crema Grande Aroma 1 kg","1 op. (1 kg)"]
[null,51,"LAVAZZA QUALITA ORO KAWA MIELONA 250G","Kawa mielona LAVAZZA Qualita Oro, 250 g","1 op. (250 g)"]
[null,52,"LAVAZZA QUALITA ORO KAWA ZIARNISTA 1 KG","Kawa ziarnista LAVAZZA Qualita Oro, 1 kg","1 op. (1 kg)"]
[null,53,"LAVAZZA QUALITA ROSSA KAWA ZIARNISTA 1KG","Kawa ziarnista LAVAZZA Qualita Rossa, 1 kg","1 op. (1 kg)"]
[null,54,"NESCAFE SENSAZIONE CREME KAWA ROZP 200G","Kawa rozpuszczalna NESCAFÉ Sensazione Creme, 200 g","1 op.( 200 g.)"]
[null,55,"TCHIBO EXCLUSIVE KAWA MIELONA 250G","Kawa mielona TCHIBO Exclusive, 250 g","1 op. (250 g)"]
[null,56,"TCHIBO FAMILY KAWA MIELONA 250G","Kawa mielona TCHIBO Family, 250 g","1 op. (250 g)"]
[null,57,"TCHIBO FAMILY KAWA ROZPUSZCZALNA 200G","Kawa rozpuszczalna TCHIBO Family, 200 g","1 op. (200 g)"]
[null,58,"TCHIBO PROFESSIONAL CREMA ZIARNISTA 1KG","Kawa ziarnista TCHIBO Profesional  Crema  1 kg ","1 op. (1 kg)"]
[null,59,"GOSTYŃ MLEKO SKONDENS NIESŁODZONE 500G","Mleko zagęszczone GOSTYŃ 7,5% niesłodzone, 500 g","1 op. ( 1 karton 500 g)"]
[null,60,"ŁACIATA ŚMIETANKA UHT 12% 500ML","Śmietanka do kawy ŁACIATA 12%, 500 ml","1 op. (500 ml)"]
[null,61,"ŁACIATA ŚMIETANKA W KUBECZKACH OPK10X10G","Śmietanka do kawy ŁACIATA 10%, 10 kubeczków x 10 g","1 op. (10 kubeczków)"]
[null,62,"ŁACIATE MLEKO UHT 2% 0,5L","Mleko ŁACIATE UHT 2,0%, 0,5 l","1 op. (500 ml)"]
[null,63,"ŁACIATE MLEKO UHT 2% 1L","Mleko ŁACIATE UHT 2,0%, 1 l","1 op. (1 l)"]
[null,64,"ŁACIATE MLEKO UHT 3,2% 0,5L","Mleko ŁACIATE UHT 3,2%, 0,5 l","1 op. (500 ml)"]
[null,65,"ŁACIATE MLEKO UHT 3,2% 1L","Mleko ŁACIATE UHT 3,2%, 1 l","1 op. (1 l)"]
[null,66,"ŁACIATE MLEKO ZAGĘSZCZONE 7,5% 0,5L","Mleko zagęszczone ŁACIATE UHT 7,5%, 0,5 l","1 op. (500 ml)"]
[null,67,"MLEKOVITA BEZ LAKTOZY UHT WYDOJONE 1,5%","Mleko WYDOJONE UHT, bez laktozy 1,5%, 1 l","1 op. (1 l)"]
[null,68,"MLEKOVITA BEZ LAKTOZY UHT WYDOJONE 3,2%","Mleko WYDOJONE UHT, bez laktozy, 3,2%, 1 l","1 op. (1 l)"]
[null,69,"ZAMBROWSKIE MLEKO UHT 3,2% 1L","Mleko ZAMBROWSKIE UHT 3,2 %, 1 l","1 op. (1 l)"]
[null,70,"BAKALLAND BAKALIE STUDENCKI MIX 200G","Cukierki Mieszanka bakaliowa BAKALLAND Studencki Mix, 200 g","1 op (200 g)"]
[null,71,"BAKALLAND MIGDAŁY 300G","Migdały BAKALLAND, 300 g","1 op. (300 g)"]
[null,72,"BAKALLAND ORZECHY NERKOWCA 300G","Orzechy nerkowca BAKALLAND, 300 g","1 op. (300 g)"]
[null,73,"BELVITA CIASTKA KAKAOWE 300G","Ciastka BELVITA, kakaowe, 300 g, 24 ciasteczka","1 op. (300 g)"]
[null,74,"BELVITA CIASTKA MUSLI+OWOCE 300G","Ciastka BELVITA Musli z owocami, 24 ciasteczka pakowane po 4 sztuki, 300 g","1 op. (300 g)"]
[null,75,"CISOWIANKA WODA GAZOWANA 0,5L OPK12","Woda mineralna CISOWIANKA gazowana, zgrzewka 12 butelek x 0,5 l","1 op. (12 butelek)"]
[null,76,"DELICJE SZAMPAŃSKIE MALINA 147G","Ciastka DELICJE Szampańskie malinowe, 147 g","1 op. (147 g)"]
[null,77,"DELICJE SZAMPAŃSKIE POMARAŃCZA 147G","Ciastka DELICJE Szampańskie pomarańczowe, 147 g","1 op. (147 g)"]
[null,78,"DELICJE SZAMPAŃSKIE WIŚNIA 147G","Ciastka DELICJE Szampańskie wiśniowe, 147 g","1 op. (147 g)"]
[null,79,"DELICJE SZAMPAŃSKIE WIŚNIOWE 294G","Ciastka DELICJE Szampańskie wiśniowe, podwójne opakowanie, 294 g","1 op. ( 294 g)"]
[null,80,"FERRERO RAFAELLO 230 G","Praliny RAFFAELLO, 230 g","1 op.(  230 g.)"]
[null,81,"FERRERO RAFFAELLO PRALINY 230G","Praliny RAFFAELLO, 230 g","2 op.(  230 g.)"]
[null,82,"Ferrero Rocher Praliny 200g","Czekoladki FERRERO ROCHER, 200 g","3 op.(  200 g.)"]
[null,83,"GOPLANA TOFFINO CHOCO 1KG","Cukierki Goplana Toffino Choco Toffi mleczne z kremem czekoladowym 1 kg","1 op. ( 1 kg.)"]
[null,84,"HIT MARKIZY CZEKOLADOWE 220G","Ciastka BAHLSEN HIT czekoladowe, 220 g","1 op.(  220 g)"]
[null,85,"JUTRZENKA JEŻYKI CAFE CIASTKA 140G","Ciasta JEŻYKI Cafe, 140 g","1 op. (140 g)"]
[null,86,"JUTRZENKA JEŻYKI CIASTKA 140G","Ciasta JEŻYKI Classic, 140 g","1 op. (140 g)"]
[null,87,"JUTRZENKA WAFLE FAMILIJNE ŚMIET-KAK 180G","Wafle FAMILIJNE śmietankowo-kakaowe, 180 g","1 op. (180 g)"]
[null,88,"ŁAKOTKI DESEROWE Z CUKREM 168G","Ciastka SAN ŁAKOTKI deserowe z cukrem, 168 g","1 op. (168 g)"]
[null,89,"ŁAKOTKI KAKAOWE 168G","Ciastka SAN ŁAKOTKI kakaowe, 168 g","1 op. (168 g)"]
[null,90,"ŁAKOTKI KOKOSOWE 168G","Ciastka SAN ŁAKOTKI kokosowe, 168 g","1 op. (168 g)"]
[null,91,"MERCI CZEKOLADKI 400 G","Czekoladki MERCI, 400 g","1 op.(400 g.)"]
[null,92,"MILKA CHOCO GRAINS CIASTKA 126 G","Ciastka MILKA Chocograins, 126 g","1 op.(126 g.)"]
[null,93,"MILKA CHOCOWAFER CIASTKA 150G","Wafle MILKA ChocoWafer, 150 g","1 op.(150g.)"]
[null,94,"MILKA MOMENTS CZEKOL MIX 11X97G","Praliny MILKA Moments Mix, 11 czekoladek","1 op. (11 sztuk)"]
[null,95,"MILKA MOMENTS TOFF/ORZECH 11x97G","Praliny MILKA Moments Toffee Wholenut, 11 czekoladek","1 op. (11 sztuk)"]
[null,96,"MILKA PIEGUSKI CZEKOLADA ORZECHY 135G","Ciastka MILKA Pieguski, czekolada i orzechy, 135 g","1 op. (135 g)"]
[null,97,"MILKA SINGLES CZEKOLADKI 138G","Czekoladki MILKA Singles, 32 czekoladki pakowane osobno"," 1 op. (32 szt.)"]
[null,98,"NESPRESSO CZEKOLADKI BLOND 200G","Czekoladki NESPRESSO blond, 200 g","1 op ( 200 g.)"]
[null,99,"NESPRESSO CZEKOLADKI MILK 200G","Czekoladki NESPRESSO mleczne, 200 g","1 op  ( 200 g.)"]
[null,100,"PASTYLKI MIĘTOWEW CZEKOLADZIE WAWEL","Cukierki Pastylka miętowa WAWEL, 1 kg","1 op. (1 kg)"]
[null,101,"SOLIDARNOŚĆ ŚLIWKA NALECZOWSKA 1KG","CukierkiŚliwka Nałęczowska SOLIDARNOŚĆ, 1 kg","2 op. (1 kg)"]
[null,102,"TAGO CIASTECZKA KORZENNE 4,8G OPK125 ","Ciastka TAGO korzenne, 125 ciasteczek po 4,8 g","1 op. (125 szt.)"]
[null,103,"TAGO OWSIANE DE LUX CIASTECZKA 210G","Ciastka TAGO Owsiane de Lux, 210 g","1 op. (210 g)"]
[null,104,"TAGO PRECLE MAŚLANE 158 G","Francuskie precle z masłem TAGO, 158 g","1 op. ( 158 g)"]
[null,105,"WAWEL MICHAŁKI 1 KG","Cukierki WAWEL Michałki Klasyczne 300 g","1 op. (300 g)"]
[null,106,"WAWEL MICHAŁKI CLASSIC 300G","Cukierki WAWEL Michałki Klasyczne 300 g","1 op. (300 g)"]
[null,107,"WAWEL MIESZANKA KRAKOWSKA 1 KG","Cukierki Mieszanka krakowska WAWEL, 1 kg","1 op. (1 kg)"]
[null,108,"WAWEL TRUFLE 1 KG","Cukierki WAWEL Trufle","1 op. (1 kg)"]
[null,109,"WEDEL AMERYKANKI KLASYCZNE 125 G","Ciastka AMERYKANKI, klasyczne, 126 g","1 op. (126 g)"]
[null,110,"WEDEL MIESZANKA CUKIERKI DISPLAY 3KG","Cukierki MIESZANKA WEDLOWSKA Classic, 3 kg w formie dyspensera","1 op. (3 kg)"]
[null,111,"WEDEL PTASIE MLECZKO WANILIOWE 360G","Ptasie mleczko WEDEL, waniliowe, 360 g","1 op.( 360 g.)"]
[null,112,"WEDEL WAFLE TORCIKOWE MINI ORZECHOWE 160","Wafle Torcikowe WEDEL MINI orzechowe, 160 g","1 op. ( 160 g)"]
[null,113,"BAKALLAND MIGDAŁY SOLONE 90G","Migdały lekko solone BAKALLAND, 90 g","1 op. (90 g)"]
[null,114,"BAKALLAND ORZECHY LASKOWE 300G","Orzechy laskowe BAKALLAND, 300 g","1 op. (300 g)"]
[null,115,"BAKALLAND ORZECHY NERKOWCA SOLONE 70G","Orzechy nerkowca  solone BAKALLAND, 70 g","1 op. (70 g)"]
[null,116,"BAKALLAND ORZECHY WŁOSKIE 300G","Orzechy włoskie BAKALLAND, 300 g","1 op. (300 g)"]
[null,117,"LAJKONIK PALUSZKI 200G","Paluszki LAJKONIK solone, 200 g","1 op. (200 g)"]
[null,118,"CAPPY NEKTAR MULTIWIT PET 0,33L OPK12 ","Nektar multiwitamina CAPPY, 12 butelek x 0,33 l","1 op. (12 butelek)"]
[null,119,"CAPPY SOK POMARAŃCZOWY PET 0,33L OPK12","Sok pomarańczowy CAPPY, 12 butelek x 0,33 l","1 op. (12 butelek)"]
[null,120,"CHAMPION SOK CYTRYNOWY OPK10X7,5G","Zagęszczony sok cytrynowy CHAMPION, 10 kubeczków x 7,5 g","1 op. (10 kubeczków)"]
[null,121,"COCA-COLA BUTELKA PET 0,5L OPK18 ","Napój gazowany COCA-COLA, zgrzewka 18 butelek x 0,5 l","1 op. (18 butelek)"]
[null,122,"COCA-COLA PUSZKA 0,33L OPK24","Napój gazowany COCA-COLA, 24 puszki x 0,33 l","1 op. (24 puszki 0,33 l)"]
[null,123,"COCA-COLA ZERO BUTELKA PET 0,5L OPK12","Napój gazowany COCA-COLA Zero, 12 butelek x 0,5 l","1 op. (12 butelek)"]
[null,124,"FORTUNA NEKTAR CZ.PORZECZKA 0,3L OPK15","Nektar czarna porzeczka FORTUNA, 15 butelek x 0,3 l","1 op. (15 butelek)"]
[null,125,"FORTUNA SOK MULTIWITAMINA 0,3 L OPK15","Sok multiwitamina FORTUNA, 15 butelek x 0,3 l","1 op. (15 butelek)"]
[null,126,"FORTUNA SOK POMARAŃCZOWY 0,3L OPK15 ","Sok pomarańczowy FORTUNA, 15 butelek x 0,3 l","1 op. (15 butelek)"]
[null,127,"FORTUNA SOK POMIDOROWY 0,3L OPK15","Sok pomidorowy FORTUNA, 15 butelek x 0,3 l","1 op. (15 butelek)"]
[null,128,"TARCZYN NEKTAR CZ.PORZECZKA 0,3L OPK15","Nektar czarna porzeczka TARCZYN, 15 butelek x 0,3 l","1 op. (15 butelek)"]
[null,129,"TARCZYN NEKTAR GREJPFRUT 0,3L OPK15","Nektar czerwony grejpfrut TARCZYN, zgrzewka 15 butelek x 0,3 l","1 op. (15 butelek)"]
[null,130,"TARCZYN SOK JABŁKOWY 0,3L OPK15","Sok jabłkowy TARCZYN, 15 butelek x 0,3 l","1 op. (15 butelek)"]
[null,131,"TARCZYN SOK POMARAŃCZOWY 0,3L OPK15","Sok pomarańczowy TARCZYN, 15 butelek x 0,3 l","1 op. (15 butelek)"]
[null,132,"TARCZYN SOK POMIDOROWY 300ML OPK15 ","Sok pomidorowy TARCZYN, zgrzewka 15 butelek x 0,3 l","1 op. (15 butelek)"]
[null,133,"TYMBARK JABŁKO SOK 100% 300ML OPK12","Sok TYMBARK jabłko 100%, 12 butelek x 300 ml","1 op. (12 butelek)"]
[null,134,"TYMBARK POMARAŃCZ SOK 100% 300ML OPK12","Sok TYMBARK pomarańcza 100%, 12 butelek x 300 ml","1 op. (12 butelek)"]
[null,135,"TYMBARK POMIDOR SOK 100% 300ML OPK12","Sok TYMBARK pomidor 100%, 12 butelek x 300 ml","1 op. (12 butelek)"]
[null,136,"TYMBARK VITAMINI BAN/MAR/JAB 300ML OPK12","Sok TYMBARK Vitamini banan, marchewka, jabłko, 12 butelek x 300 ml","1 op. (12 butelek)"]
[null,137,"CISOWIANKA LEKKOGAZOWANA WODA 0,5L  OPK12 ","Woda mineralna CISOWIANKA lekko gazowana, zgrzewka 12 butelek x 0,5 l","1 op. (12 butelek)"]
[null,138,"CISOWIANKA PERLAGE GAZ SZKŁO 300ML  OPK24 ","Woda mineralna CISOWIANKA Perlage gazowana, zgrzewka 24 butelki x 300 ml","1 op. (24 butelki)"]
[null,139,"CISOWIANKA WODA GAZOWANA 1,5L OPK6","Woda mineralna CISOWIANKA gazowana, zgrzewka 6 butelek x 1,5 l","1 op. (6 butelek)"]
[null,140,"CISOWIANKA WODA NIEGAZ SZKŁO 300ML OPK24","Woda mineralna CISOWIANKA niegazowana szklane butelki x 300 ml","1 op. (24 butelki)"]
[null,141,"CISOWIANKA WODA NIEGAZOWANA 0,5L OPK12 ","Woda mineralna CISOWIANKA niegazowana, zgrzewka 12 butelek x 0,5 l","1 op. (12 butelek)"]
[null,142,"CISOWIANKA WODA NIEGAZOWANA 1,5L OPK6","Woda mineralna CISOWIANKA niegazowana, zgrzewka 6 butelek x 1,5 l","1 op. (6 butelek)"]
[null,143,"CISOWIANKA WODA SPORT NIEGAZ 0,7L OPK8","Woda mineralna CISOWIANKA Sport niegazowana, zgrzewka 8 butelek x 0,7 l","1 op. (8 butelek)"]
[null,144,"KINGA PIENINSKA WODA GAZOWANA 0,5L OPK12","Woda mineralna KINGA PIENIŃSKA gazowana 0,5 l","1 op. (12 butelek)"]
[null,145,"KINGA PIENINSKA WODA NIEGAZOW 0,5L OPK12","Woda mineralna KINGA PIENIŃSKA niegazowana, zgrzewka 12 butelek x 0,5 l","1 op. (12 butelek)"]
[null,146,"KROPLA BESKIDU WODA GAZ 0,5L OPK12","Woda mineralna KROPLA BESKIDU gazowana, zgrzewka 12 butelek x 0,5 l","1 op. (12 butelek)"]
[null,147,"KROPLA BESKIDU WODA GAZ 1,5L OPK6","Woda mineralna KROPLA BESKIDU gazowana, zgrzewka 6 butelek x 1,5 l","1 op. (6 butelek)"]
[null,148,"KROPLA BESKIDU WODA NIEGAZ 0,5L  OPK12","Woda mineralna KROPLA BESKIDU niegazowana, zgrzewka 12 butelek x 0,5 l","1 op. (12 butelek)"]
[null,149,"KROPLA BESKIDU WODA NIEGAZ 1,5L OPK6","Woda mineralna KROPLA BESKIDU niegazowana, zgrzewka 6 butelek x 1,5 l","1 op. (6 butelek)"]
[null,150,"NAŁĘCZOWIANKA WODA NIEGAZ 0,5L OPK12","Woda mineralna NAŁĘCZOWIANKA niegazowana, zgrzewka 12 butelek x 0,5 l","1 op. (12 butelek)"]
[null,151,"NAŁĘCZOWIANKA WODA NIEGAZ 1,5L OPK6","Woda mineralna NAŁĘCZOWIANKA niegazowana, zgrzewka 6 butelek x 1,5 l","1 op. (6 butelek)"]
[null,152,"NESTLE PURE LIFE WODA GAZ 1,5L OPK6","Woda źródlana NESTLÉ Pure Life gazowana, zgrzewka 6 butelek x 1,5 l","1 op. (6 butelek)"]
[null,153,"NESTLE PURE LIFE WODA NIEGAZ 0,5L OPK12","Woda źródlana NESTLÉ Pure Life niegazowana, zgrzewka 12 butelek x 0,5 l","1 op. (12 butelek)"]
[null,154,"NESTLE PURE LIFE WODA NIEGAZ 1,5L OPK6","Woda źródlana NESTLÉ Pure Life niegazowana, zgrzewka 6 butelek x 1,5 l","1 op. (6 butelek)"]
[null,155,"ŻYWIEC ZDRÓJ WODA GAZOWANA 0.5L OPK24","Woda źródlana ŻYWIOŁ od ŻYWIEC ZDRÓJ gazowana, 24 butelki x 0,5 l","1 op. (24 butelki)"]
[null,156,"ŻYWIEC ZDRÓJ WODA GAZOWANA 1,5L OPK6","Woda źródlana ŻYWIOŁ od ŻYWIEC ZDRÓJ gazowana, zgrzewka 6 butelek x 1,5 l","1 op. ( 6 butelek)"]
[null,157,"ŻYWIEC ZDRÓJ WODA NIEGAZOWANA 0.5L OPK24 ","Woda źródlana ŻYWIEC ZDRÓJ niegazowana, 24 butelki x 0,5 l","1 op. (24 butelki)"]
[null,158,"ŻYWIEC ZDRÓJ WODA NIEGAZOWANA 1,5L  OPK6 ","Woda źródlana ŻYWIEC ZDRÓJ niegazowana, zgrzewka 6 butelek x 1,5 l","1 op. (6 butelek)"]
[]
[]
[]
[null,"miejscowość i data",null,"Pieczęć imienna i podpis przedstawiciela(i) Wykonawcy"]

{"sheet":"Załącznik 8-F.O. dla Zadania 6","index":4,"n_rows":186,"n_cols":26,"rows_kept":186,"cut":false,"hidden":false,"merged":[[18,1,18,2],[184,2,184,3],[184,4,184,7],[185,5,185,7],[2,1,2,7],[4,1,4,7],[8,1,8,7],[11,1,11,7],[14,1,14,7],[16,1,16,7]]}
[null,"Oznaczenie sprawy:  1400/DW00/ZU/KZ/2021/0000074365"]
[]
[null,"ZAŁĄCZNIK NR 8 - FORMULARZ OFERTY DLA ZADANIA 6 - DOSTAWA ARTYKUŁÓW SPOŻYWCZYCH  POZNAŃ+ WOJ. WIELKOPOLSKIE;  BYDGOSZCZ+ WOJ. KUJAWSKO-POMORSKIE; CHOJNICE + WOJ. POMORSKIE."]
[]
[]
[null,null,"(pieczęć wykonawcy)"]
[]
[null,"Ja, niżej podpisany (My niżej podpisani):"]
[]
[]
[null,"działając w imieniu i na rzecz:"]
[]
[]
[null,"Składam(y) ofertę na wykonanie zamówienia, którego przedmiotem jest:"]
[null,"Dostawa artykułów biurowych, spożywczych i higienicznych dla spółek GK ENEA"]
[]
[null,"ZADANIE 6 - Dostawa artykułów spożywczych  Poznań+ woj. Wielkopolskie;  Bydgoszcz+ woj. Kujawsko-Pomorskie; Chojnice + woj. Pomorskie"]
[]
[null,"ŁĄCZNA CENA NETTO OFERTY DLA ZADANIA 6:",null,{"$f":"SUM(H22:H179)","v":0}]
[]
[null,"LP","Nazwa produktu","Opis szczegółowy","Jednostka ","cena jednostkowa netto","Ilość","Wartość","ENEA Enea Centrum Sp. z o.o. - Szacowana ilość","ŁĄCZNA CENA NETTO DLA ENEA Centrum Sp. z o.o. ","ENEA Logistyka sp. z o.o. - Szacowana ilość","ŁĄCZNA CENA NETTO DLA ENEA Logistyka sp. z o.o. ","ENEA Nowa Eenergia Sp. z o.o. - Szacowana ilość","ŁĄCZNA CENA NETTO DLA ENEA Nowa Eenegia  Sp. z o.o. ","ENEA Operator Sp. z o.o. - Szacowana ilość","ŁĄCZNA CENA NETTO DLA ENEA Operator Sp. z o.o. ","ENEA oświetlenie Sp. z o.o. - Szacowana ilość","ŁĄCZNA CENA NETTO DLA ENEA Oświetlenie Sp. z o.o. ","ENEA Pomiary Sp. z o.o. - Szacowana ilość","ŁĄCZNA CENA NETTO DLA ENEA Pomiary  Sp. z o.o. ","ENEA Serwis Sp. z o.o. - Szacowana ilość","ŁĄCZNA CENA NETTO DLA ENEA Serwis Sp. z o.o. ","ENEA S.A. - Szacowana ilość","ŁĄCZNA CENA NETTO DLA ENEA S.A.","ENEA Trading sp. z o.o. - Szacowana ilość","ŁĄCZNA CENA NETTO DLA ENEA Trading Sp. z o.o."]
[null,1,"DIAMANT CUKIER BIAŁY KOSTKA 1KG","Cukier biały DIAMANT w kostkach, 1 kg","1 op. ( 1 kg.)",{"$f":"IF('Załącznik 7 - F.O. Zad 6-10'!$V$55,VLOOKUP(C22,'Załącznik 7 - F.O. Zad 6-10'!$C$52:$G$210,5,0),0)","v":0},{"$f":"I22+K22+M22+O22+Q22+S22+U22+W22+Y22","v":71},{"$f":"G22*F22","v":0},1,{"$f":"I22*F22","v":0},5,{"$f":"K22*F22","v":0},null,null,7,{"$f":"O22*F22","v":0},null,null,40,{"$f":"S22*F22","v":0},6,{"$f":"U22*F22","v":0},2,{"$f":"W22*F22","v":0},10,{"$f":"Y22*H22","v":0}]
[null,2,"DIAMANT CUKIER BIAŁY W SASZET OPK100X5G","Cukier biały DIAMANT, saszetki 100 sztuk x 5 g","1 op. (100 sztuk)",{"$f":"IF('Załącznik 7 - F.O. Zad 6-10'!$V$55,VLOOKUP(C23,'Załącznik 7 - F.O. Zad 6-10'!$C$52:$G$210,5,0),0)","v":0},{"$f":"I23+K23+M23+O23+Q23+S23+U23+W23+Y23","v":79},{"$f":"G23*F23","v":0},13,{"$f":"I23*F23","v":0},4,{"$f":"K23*F23","v":0},null,null,19,{"$f":"O23*F23","v":0},20,{"$f":"Q23*F23","v":0},7,{"$f":"S23*F23","v":0},6,{"$f":"U23*F23","v":0},null,null,10,{"$f":"Y23*H23","v":0}]
[null,3,"DIAMANT CUKIER DRY DEMERARA SYPKI 0,5KG","Cukier trzcinowy DIAMANT Dry Demerara, sypki, 500 g","1 op. ( 500 g)",{"$f":"IF('Załącznik 7 - F.O. Zad 6-10'!$V$55,VLOOKUP(C24,'Załącznik 7 - F.O. Zad 6-10'!$C$52:$G$210,5,0),0)","v":0},132,0,3,0,1,0,null,null,27,0,null,null,93,0,6,{"$f":"U24*F24","v":0},2,{"$f":"W24*F24","v":0}]
[null,4,"DIAMANT CUKIER KRYSZTAŁ BIAŁY 1KG","Cukier biały DIAMANT sypki, 1 kg","1 op.( 1 kg.)",{"$f":"IF('Załącznik 7 - F.O. Zad 6-10'!$V$55,VLOOKUP(C25,'Załącznik 7 - F.O. Zad 6-10'!$C$52:$G$210,5,0),0)","v":0},503,0,240,0,15,0,10,{"$f":"M25*F25","v":0},34,0,12,0,166,0,6,0,null,null,20,{"$f":"Y25*H25","v":0}]
[null,5,"AHMAD HERBATA EARL GREY OPK100","Herbata czarna AHMAD Earl Grey, 100 torebek","1 op. (100 torobek)",{"$f":"IF('Załącznik 7 - F.O. Zad 6-10'!$V$55,VLOOKUP(C26,'Załącznik 7 - F.O. Zad 6-10'!$C$52:$G$210,5,0),0)","v":0},34,0,10,0,null,null,2,0,4,0,6,0,6,0,6,0]
[null,6,"BIG-ACTIVE PURE CEYLON HERBATA OPK100","Herbata czarna BIG-ACTIVE Pure Ceylon, 100 torebek","1 op. (100 torobek)",{"$f":"IF('Załącznik 7 - F.O. Zad 6-10'!$V$55,VLOOKUP(C27,'Załącznik 7 - F.O. Zad 6-10'!$C$52:$G$210,5,0),0)","v":0},28,0,10,0,1,0,2,0,7,0,null,null,null,null,6,0,2,0]
[null,7,"DILMAH CEYLON GOLD HERBATA 200G OPK100","Herbata czarna DILMAH Ceylon Gold, 100 torebek","1 op. (100 torobek)",{"$f":"IF('Załącznik 7 - F.O. Zad 6-10'!$V$55,VLOOKUP(C28,'Załącznik 7 - F.O. Zad 6-10'!$C$52:$G$210,5,0),0)","v":0},140,0,5,0,101,0,null,null,6,0,6,0,6,0,6,0,10,0]
[null,8,"DILMAH EARL GREY HERBATA LIŚCIASTA 125G","Herbata czarna liściasta DILMAH Earl Grey, 125 g","1 op. ( 125 g)",{"$f":"IF('Załącznik 7 - F.O. Zad 6-10'!$V$55,VLOOKUP(C29,'Załącznik 7 - F.O. Zad 6-10'!$C$52:$G$210,5,0),0)","v":0},18,0,3,0,2,0,null,null,7,0,null,null,null,null,6,0]
[null,9,"HERBAPOL BREAKFAST HERB MIĘTOWA OPK20 ","Herbata miętowa HERBAPOL Breakfast, 20 kopert","1 op.(  20 torebek)",{"$f":"IF('Załącznik 7 - F.O. Zad 6-10'!$V$55,VLOOKUP(C30,'Załącznik 7 - F.O. Zad 6-10'!$C$52:$G$210,5,0),0)","v":0},24,0,5,0,2,0,null,null,7,0,null,null,null,null,6,0,4,0]
[null,10,"HERBAPOL HERBATA MALINOWA OPK20","Herbata owocowa HERBAPOL Herbaciany Ogród malinowa, 20 torebek","1 op.(  20 torebek)",{"$f":"IF('Załącznik 7 - F.O. Zad 6-10'!$V$55,VLOOKUP(C31,'Załącznik 7 - F.O. Zad 6-10'!$C$52:$G$210,5,0),0)","v":0},71,0,15,0,4,0,2,0,23,0,4,0,13,0,6,0,4,0]
[null,11,"HERBAPOL PROSTO Z LASU OPK20","Herbata owocowa HERBAPOL Herbaciany Ogród, Prosto z lasu, 20 torebek","1 op.(  20 torebek)",{"$f":"IF('Załącznik 7 - F.O. Zad 6-10'!$V$55,VLOOKUP(C32,'Załącznik 7 - F.O. Zad 6-10'!$C$52:$G$210,5,0),0)","v":0},23,0,4,0,null,null,null,null,7,0,2,0,null,null,6,0,4,0]
[null,12,"HERBAPOL ZIELONA HERBATA OPK20","Herbata zielona HERBAPOL, 20 torebek bez zawieszki","1 op.(  20 torebek)",{"$f":"IF('Załącznik 7 - F.O. Zad 6-10'!$V$55,VLOOKUP(C33,'Załącznik 7 - F.O. Zad 6-10'!$C$52:$G$210,5,0),0)","v":0},203,0,35,0,1,0,null,null,12,0,9,0,136,0,6,0,4,0]
[null,13,"Herbata zielona Lipton Piramidki","Herbata zielona LIPTON  20 torebek piramidek","1 op.(  20 torebek)",{"$f":"IF('Załącznik 7 - F.O. Zad 6-10'!$V$55,VLOOKUP(C34,'Załącznik 7 - F.O. Zad 6-10'!$C$52:$G$210,5,0),0)","v":0},26,0,6,0,null,null,3,0,7,0,null,null,null,null,6,0,4,0]
[null,14,"IRVING BIAŁ POZIOMK/MANDAR HERBATA OPK20","Harbata biała IRVING poziomkowa z mandarynką, 20 kopert","1 op.(  20 torebek)",{"$f":"IF('Załącznik 7 - F.O. Zad 6-10'!$V$55,VLOOKUP(C35,'Załącznik 7 - F.O. Zad 6-10'!$C$52:$G$210,5,0),0)","v":0},20,0,5,0,null,null,2,0,7,0,null,null,null,null,6,0]
[null,15,"IRVING HERBATA CLASSIC OPK100","Herbata czarna IRVING Classic, 100 torebek","1 op.(  100 torebek)",{"$f":"IF('Załącznik 7 - F.O. Zad 6-10'!$V$55,VLOOKUP(C36,'Załącznik 7 - F.O. Zad 6-10'!$C$52:$G$210,5,0),0)","v":0},175,0,10,0,null,null,null,null,2,0,151,0,6,0,6,0]
[null,16,"LIPTON EARL GREY HERBATA OPK100","Herbata czarna LIPTON Earl Grey, 100 torebek","1 op. (100 torebek)",{"$f":"IF('Załącznik 7 - F.O. Zad 6-10'!$V$55,VLOOKUP(C37,'Załącznik 7 - F.O. Zad 6-10'!$C$52:$G$210,5,0),0)","v":0},495,0,125,0,10,0,null,null,10,0,71,0,253,0,6,0,null,null,20,0]
[null,17,"LIPTON MELISA/WIŚNIA HERBATAOPK20","Herbata ziołowa LIPTON Melisa z wiśnią, 20 torebek","1 op. (20 torebek)",{"$f":"IF('Załącznik 7 - F.O. Zad 6-10'!$V$55,VLOOKUP(C38,'Załącznik 7 - F.O. Zad 6-10'!$C$52:$G$210,5,0),0)","v":0},49,0,10,0,null,null,null,null,7,0,null,null,null,null,6,0,6,0,20,0]
[null,18,"LIPTON PYRAMID CYTRYNOWA Z MELISĄ OPK20","Herbata czarna LIPTON cytrynowa z melisą, 20 torebek piramidek","1 op. (20 torebek)",{"$f":"IF('Załącznik 7 - F.O. Zad 6-10'!$V$55,VLOOKUP(C39,'Załącznik 7 - F.O. Zad 6-10'!$C$52:$G$210,5,0),0)","v":0},52,0,10,0,null,null,null,null,11,0,3,0,null,null,6,0,2,0,20,0]
[null,19,"LIPTON PYRAMID FOREST FRUIT","Herbata owocowa LIPTON owoce leśne, 20 torebek piramidek","1 op. (20 torebek)",{"$f":"IF('Załącznik 7 - F.O. Zad 6-10'!$V$55,VLOOKUP(C40,'Załącznik 7 - F.O. Zad 6-10'!$C$52:$G$210,5,0),0)","v":0},51,0,10,0,null,null,null,null,7,0,null,null,null,null,8,0,6,0,20,0]
[null,20,"LIPTON YELLOW LABEL HERBATA  OPK100","Herbata czarna LIPTON Yellow Label, 100 torebek","1 op. (100 torebek)",{"$f":"IF('Załącznik 7 - F.O. Zad 6-10'!$V$55,VLOOKUP(C41,'Załącznik 7 - F.O. Zad 6-10'!$C$52:$G$210,5,0),0)","v":0},997,0,85,0,218,0,5,0,26,0,null,null,633,0,6,0,4,0,20,0]
[null,21,"LIPTON YELLOW LABEL HERBATA  OPK50","Herbata czarna LIPTON Yellow Label, 50 torebek","1 op. (50 torebek)",{"$f":"IF('Załącznik 7 - F.O. Zad 6-10'!$V$55,VLOOKUP(C42,'Załącznik 7 - F.O. Zad 6-10'!$C$52:$G$210,5,0),0)","v":0},42,0,10,0,null,null,null,null,26,0,null,null,null,null,6,0]
[null,22,"LIPTON ZIELONA CITRUS HERBATA OPK25","Herbata zielona LIPTON cytrusowa, 25 torebek","1 op. (25 torebek)",{"$f":"IF('Załącznik 7 - F.O. Zad 6-10'!$V$55,VLOOKUP(C43,'Załącznik 7 - F.O. Zad 6-10'!$C$52:$G$210,5,0),0)","v":0},71,0,9,0,null,null,null,null,23,0,3,0,6,0,6,0,4,0,20,0]
[null,23,"LIPTON ZIELONA MIĘTOWA HERBATA OPK25 ","Herbata zielona LIPTON miętowa, 25 torebek","1 op. (25 torebek)",{"$f":"IF('Załącznik 7 - F.O. Zad 6-10'!$V$55,VLOOKUP(C44,'Załącznik 7 - F.O. Zad 6-10'!$C$52:$G$210,5,0),0)","v":0},66,0,5,0,2,0,null,null,24,0,null,null,6,0,6,0,3,0,20,0]
[null,24,"TEEKANNE BLACK CURRANT HERBATA OPK20","Herbata owocowa TEEKANNE World of Fruits, Black Currant, 20 kopert","1 op. (20 torebek)",{"$f":"IF('Załącznik 7 - F.O. Zad 6-10'!$V$55,VLOOKUP(C45,'Załącznik 7 - F.O. Zad 6-10'!$C$52:$G$210,5,0),0)","v":0},38,0,2,0,3,0,null,null,7,0,null,null,null,null,6,0,null,null,20,0]
[null,25,"TEEKANNE EARL GREY HERBATA  OPK100","Herbata czarna TEEKANNE Earl Grey, 100 torebek","1 op. (100 torebek)",{"$f":"IF('Załącznik 7 - F.O. Zad 6-10'!$V$55,VLOOKUP(C46,'Załącznik 7 - F.O. Zad 6-10'!$C$52:$G$210,5,0),0)","v":0},320,0,5,0,122,0,null,null,10,0,151,0,6,0,6,0,null,null,20,0]
[null,26,"TEEKANNE WORLD OF FRUITS ZESTAW OPK30","Zestaw herbat owocowych TEEKANNE World of Fruits, 30 kopert","1 op. (30 torebek)",{"$f":"IF('Załącznik 7 - F.O. Zad 6-10'!$V$55,VLOOKUP(C47,'Załącznik 7 - F.O. Zad 6-10'!$C$52:$G$210,5,0),0)","v":0},50,0,2,0,null,null,2,0,10,0,10,0,null,null,6,0,null,null,20,0]
[null,27,"TEEKANNE ZIELON OPUNCJA HERBATA OPK20 ","Herbata zielona TEEKANNE z opuncją, 20 kopert","1 op. (20 torebek)",{"$f":"IF('Załącznik 7 - F.O. Zad 6-10'!$V$55,VLOOKUP(C48,'Załącznik 7 - F.O. Zad 6-10'!$C$52:$G$210,5,0),0)","v":0},82,0,5,0,null,null,null,null,28,0,null,null,13,0,6,0,null,null,30,0]
[null,28,"VITAX HERBATA MELISA I POMARAŃCZA OPK20","Herbata owocowa VITAX Inspirations melisa & pomarańcza, 20 torebek","1 op. (20 torebek)",{"$f":"IF('Załącznik 7 - F.O. Zad 6-10'!$V$55,VLOOKUP(C49,'Załącznik 7 - F.O. Zad 6-10'!$C$52:$G$210,5,0),0)","v":0},89,0,45,0,null,null,null,null,20,0,2,0,6,0,6,0,null,null,10,0]
[null,29,"VITAX HERBATA ZIOŁOWA MELISA OPK20","Herbata ziołowa VITAX melisa, 20 okrągłych torebek bez zawieszki","1 op. (20 torebek)",{"$f":"IF('Załącznik 7 - F.O. Zad 6-10'!$V$55,VLOOKUP(C50,'Załącznik 7 - F.O. Zad 6-10'!$C$52:$G$210,5,0),0)","v":0},43,0,4,0,null,null,null,null,3,0,10,0,6,0,6,0,4,0,10,0]
[null,30,"VITAX HERBATA ZIOŁOWA MIĘTA OPK20","Herbata ziołowa VITAX mięta, 20 okrągłych torebek bez zawieszki","1 op. (20 torebek)",{"$f":"IF('Załącznik 7 - F.O. Zad 6-10'!$V$55,VLOOKUP(C51,'Załącznik 7 - F.O. Zad 6-10'!$C$52:$G$210,5,0),0)","v":0},135,0,50,0,4,0,null,null,12,0,10,0,33,0,6,0,null,null,20,0]
[null,31,"VITAX HERBATA ŻURAWINA I MALINA OPK20","Herbata owocowa VITAX Inspirations żurawina & malina, 20 torebek","1 op. (20 torebek)",{"$f":"IF('Załącznik 7 - F.O. Zad 6-10'!$V$55,VLOOKUP(C52,'Załącznik 7 - F.O. Zad 6-10'!$C$52:$G$210,5,0),0)","v":0},82,0,6,0,7,0,null,null,24,0,9,0,6,0,6,0,4,0,20,0]
[null,32,"VITAX NAPAR RUMIANEK OPK20","Herbata ziołowa VITAX rumianek, 20 kwadratowych torebek bez zawieszki","1 op. (20 torebek)",{"$f":"IF('Załącznik 7 - F.O. Zad 6-10'!$V$55,VLOOKUP(C53,'Załącznik 7 - F.O. Zad 6-10'!$C$52:$G$210,5,0),0)","v":0},28,0,2,0,null,null,null,null,5,0,null,null,null,null,6,0,null,null,15,0]
[null,33,"ASTRA ŁAGODNA TRADYCYJNA KAWA MIEL 250 G","Kawa ziarnista Astra Łagodna 250 g","1 op. (250 g)",{"$f":"IF('Załącznik 7 - F.O. Zad 6-10'!$V$55,VLOOKUP(C54,'Załącznik 7 - F.O. Zad 6-10'!$C$52:$G$210,5,0),0)","v":0},28,0,null,null,null,null,null,null,22,0,null,null,null,null,6,0]
[null,34,"ASTRA ŁAGODNA TRADYCYJNA KAWA ZIARN 1 KG","Kawa ziarnista Astra Łagodna 1 kg","1 op. (1 kg)",{"$f":"IF('Załącznik 7 - F.O. Zad 6-10'!$V$55,VLOOKUP(C55,'Załącznik 7 - F.O. Zad 6-10'!$C$52:$G$210,5,0),0)","v":0},84,0,10,0,29,0,null,null,39,0,null,null,null,null,6,0]
[null,35,"DUNI KUBEK PAPIER BIAŁY 210ML OPK50","Kubek papierowy do gorących i zminych napojów 210 ml","1 op. (50 szt.)",{"$f":"IF('Załącznik 7 - F.O. Zad 6-10'!$V$55,VLOOKUP(C56,'Załącznik 7 - F.O. Zad 6-10'!$C$52:$G$210,5,0),0)","v":0},14,0,1,0,null,null,null,null,7,0,null,null,null,null,6,0]
[null,36,"EDUSCHO CAFFE CREMA KAWA ZIARNISTA 1KG","Kawa ziarnista EDUSCHO Caffe Crema, 1 kg","1 op. ( 1 kg.)",{"$f":"IF('Załącznik 7 - F.O. Zad 6-10'!$V$55,VLOOKUP(C57,'Załącznik 7 - F.O. Zad 6-10'!$C$52:$G$210,5,0),0)","v":0},320,0,10,0,32,0,null,null,27,0,15,0,200,0,6,0,null,null,30,0]
[null,37,"ESPRESSO KARMELOWE OPK50 NNSA 8868","Kawa w kapsułkach NESPRESSO ESPRESSO CARAMEL, 50 szt. (box)","1 op. (50 szt.)",{"$f":"IF('Załącznik 7 - F.O. Zad 6-10'!$V$55,VLOOKUP(C58,'Załącznik 7 - F.O. Zad 6-10'!$C$52:$G$210,5,0),0)","v":0},13,0,null,null,null,null,null,null,7,0,null,null,null,null,6,0]
[null,38,"ESPRESSO WANILIOWE OPK50 NNSA 8869","Kawa w kapsułkach NESPRESSO ESPRESSO VANILLA, 50 szt. (box)","2 op. (50 szt.)",{"$f":"IF('Załącznik 7 - F.O. Zad 6-10'!$V$55,VLOOKUP(C59,'Załącznik 7 - F.O. Zad 6-10'!$C$52:$G$210,5,0),0)","v":0},13,0,null,null,null,null,null,null,7,0,null,null,null,null,6,0]
[null,39,"INKA KAWA ZBOŻOWA 200G","Kawa zbożowa INKA, puszka 200 g","1 op.( 200 g.)",{"$f":"IF('Załącznik 7 - F.O. Zad 6-10'!$V$55,VLOOKUP(C60,'Załącznik 7 - F.O. Zad 6-10'!$C$52:$G$210,5,0),0)","v":0},36,0,23,0,3,0,null,null,4,0,null,null,null,null,6,0]
[null,40,"JACOBS BARISTA AMERICANO KAWA ROZPU 155G","Kawa rozpuszczalna JACOBS Barista Americano 155 g","1 op. (słoik 155g)",{"$f":"IF('Załącznik 7 - F.O. Zad 6-10'!$V$55,VLOOKUP(C61,'Załącznik 7 - F.O. Zad 6-10'!$C$52:$G$210,5,0),0)","v":0},15,0,2,0,null,null,null,null,7,0,null,null,null,null,6,0]
[null,41,"JACOBS CRONAT GOLD KAWA MIELONA 500G","Kawa mielona JACOBS Cronat Gold, 500 g","1 op. (500 g.)",{"$f":"IF('Załącznik 7 - F.O. Zad 6-10'!$V$55,VLOOKUP(C62,'Załącznik 7 - F.O. Zad 6-10'!$C$52:$G$210,5,0),0)","v":0},40,0,5,0,10,0,null,null,15,0,null,null,null,null,6,0,4,0]
[null,42,"JACOBS CRONAT GOLD KAWA ROZPUSZCZ 200G","Kawa rozpuszczalna JACOBS Cronat Gold, 200 g","1 op.( 200 g.)",{"$f":"IF('Załącznik 7 - F.O. Zad 6-10'!$V$55,VLOOKUP(C63,'Załącznik 7 - F.O. Zad 6-10'!$C$52:$G$210,5,0),0)","v":0},168,0,20,0,6,0,null,null,3,0,null,null,133,0,6,0]
[null,43,"JACOBS GOLD CREMA KAWA ROZPUSZCZ 200G","Kawa rozpuszczalna JACOBS Crema Gold, 200 g","1 op.( 200 g.)",{"$f":"IF('Załącznik 7 - F.O. Zad 6-10'!$V$55,VLOOKUP(C64,'Załącznik 7 - F.O. Zad 6-10'!$C$52:$G$210,5,0),0)","v":0},168,0,5,0,null,null,10,0,10,0,4,0,133,0,6,0]
[null,44,"JACOBS KRONUNG KAWA MIELONA 250G","Kawa mielona JACOBS Kronung, 250 g","1 op. (250 g.)",{"$f":"IF('Załącznik 7 - F.O. Zad 6-10'!$V$55,VLOOKUP(C65,'Załącznik 7 - F.O. Zad 6-10'!$C$52:$G$210,5,0),0)","v":0},254,0,26,0,17,0,12,0,40,0,20,0,133,0,6,0]
[null,45,"JACOBS KRONUNG KAWA ROZPUSZCZALNA 200G","Kawa rozpuszczalna JACOBS Kronung, 200 g","1 op.( 200 g.)",{"$f":"IF('Załącznik 7 - F.O. Zad 6-10'!$V$55,VLOOKUP(C66,'Załącznik 7 - F.O. Zad 6-10'!$C$52:$G$210,5,0),0)","v":0},470,0,14,0,null,null,null,null,14,0,null,null,433,0,6,0,3,0]
[null,46,"KUBEK PAPIEROWY 110ML OPK50 ","Kubek papierowy do gorących napojów 110 ml","1 op. (50 szt.)",{"$f":"IF('Załącznik 7 - F.O. Zad 6-10'!$V$55,VLOOKUP(C67,'Załącznik 7 - F.O. Zad 6-10'!$C$52:$G$210,5,0),0)","v":0},14,0,1,0,null,null,null,null,7,0,null,null,null,null,6,0]
[null,47,"KUBEK PAPIEROWY 360ML OPK35","Kubek papierowy do gorących napojów 360 ml","1 op. (35 szt.)",{"$f":"IF('Załącznik 7 - F.O. Zad 6-10'!$V$55,VLOOKUP(C68,'Załącznik 7 - F.O. Zad 6-10'!$C$52:$G$210,5,0),0)","v":0},14,0,1,0,null,null,null,null,7,0,null,null,null,null,6,0]
[null,48,"KUBEK PLASTIK 200ML BIAŁE OPK100","Kubek plastikowy do zimnych napojów 200 ml Biały","1 op. (100 szt.)",{"$f":"IF('Załącznik 7 - F.O. Zad 6-10'!$V$55,VLOOKUP(C69,'Załącznik 7 - F.O. Zad 6-10'!$C$52:$G$210,5,0),0)","v":0},14,0,1,0,null,null,null,null,7,0,null,null,null,null,6,0]
[null,49,"LAVAZZA CREMA AROMA KAWA ZIARNISTA 1KG","Kawa ziarnista LAVAZZA Crema Aroma, 1 kg","1 op. (1 kg)",{"$f":"IF('Załącznik 7 - F.O. Zad 6-10'!$V$55,VLOOKUP(C70,'Załącznik 7 - F.O. Zad 6-10'!$C$52:$G$210,5,0),0)","v":0},354,0,48,0,33,0,null,null,122,0,12,0,133,0,6,0]
[null,50,"LAVAZZA PRONTOCREMA GRANDE AROMA ZIA 1KG","Kawa ziarnista LAVAZZA Pronto crema Grande Aroma 1 kg","1 op. (1 kg)",{"$f":"IF('Załącznik 7 - F.O. Zad 6-10'!$V$55,VLOOKUP(C71,'Załącznik 7 - F.O. Zad 6-10'!$C$52:$G$210,5,0),0)","v":0},80,0,null,null,1,0,null,null,7,0,null,null,66,0,6,0]
[null,51,"LAVAZZA QUALITA ORO KAWA MIELONA 250G","Kawa mielona LAVAZZA Qualita Oro, 250 g","1 op. (250 g)",{"$f":"IF('Załącznik 7 - F.O. Zad 6-10'!$V$55,VLOOKUP(C72,'Załącznik 7 - F.O. Zad 6-10'!$C$52:$G$210,5,0),0)","v":0},152,0,120,0,null,null,null,null,16,0,7,0,null,null,6,0,3,0]
[null,52,"LAVAZZA QUALITA ORO KAWA ZIARNISTA 1 KG","Kawa ziarnista LAVAZZA Qualita Oro, 1 kg","1 op. (1 kg)",{"$f":"IF('Załącznik 7 - F.O. Zad 6-10'!$V$55,VLOOKUP(C73,'Załącznik 7 - F.O. Zad 6-10'!$C$52:$G$210,5,0),0)","v":0},114,0,20,0,6,0,null,null,76,0,null,null,6,0,6,0]
[null,53,"LAVAZZA QUALITA ROSSA KAWA ZIARNISTA 1KG","Kawa ziarnista LAVAZZA Qualita Rossa, 1 kg","1 op. (1 kg)",{"$f":"IF('Załącznik 7 - F.O. Zad 6-10'!$V$55,VLOOKUP(C74,'Załącznik 7 - F.O. Zad 6-10'!$C$52:$G$210,5,0),0)","v":0},171,0,55,0,19,0,25,0,51,0,6,0,6,0,6,0,3,0]
[null,54,"NESCAFE SENSAZIONE CREME KAWA ROZP 200G","Kawa rozpuszczalna NESCAFÉ Sensazione Creme, 200 g","1 op.( 200 g.)",{"$f":"IF('Załącznik 7 - F.O. Zad 6-10'!$V$55,VLOOKUP(C75,'Załącznik 7 - F.O. Zad 6-10'!$C$52:$G$210,5,0),0)","v":0},912,0,130,0,20,0,10,0,11,0,null,null,733,0,6,0,2,0]
[null,55,"TCHIBO EXCLUSIVE KAWA MIELONA 250G","Kawa mielona TCHIBO Exclusive, 250 g","1 op. (250 g)",{"$f":"IF('Załącznik 7 - F.O. Zad 6-10'!$V$55,VLOOKUP(C76,'Załącznik 7 - F.O. Zad 6-10'!$C$52:$G$210,5,0),0)","v":0},121,0,20,0,71,0,null,null,16,0,null,null,6,0,6,0,2,0]
[null,56,"TCHIBO FAMILY KAWA MIELONA 250G","Kawa mielona TCHIBO Family, 250 g","1 op. (250 g)",{"$f":"IF('Załącznik 7 - F.O. Zad 6-10'!$V$55,VLOOKUP(C77,'Załącznik 7 - F.O. Zad 6-10'!$C$52:$G$210,5,0),0)","v":0},609,0,100,0,null,null,null,null,3,0,null,null,500,0,6,0]
[null,57,"TCHIBO FAMILY KAWA ROZPUSZCZALNA 200G","Kawa rozpuszczalna TCHIBO Family, 200 g","1 op. (200 g)",{"$f":"IF('Załącznik 7 - F.O. Zad 6-10'!$V$55,VLOOKUP(C78,'Załącznik 7 - F.O. Zad 6-10'!$C$52:$G$210,5,0),0)","v":0},30,0,15,0,null,null,null,null,2,0,null,null,null,null,6,0,2,0,5,0]
[null,58,"TCHIBO PROFESSIONAL CREMA ZIARNISTA 1KG","Kawa ziarnista TCHIBO Profesional  Crema  1 kg ","1 op. (1 kg)",{"$f":"IF('Załącznik 7 - F.O. Zad 6-10'!$V$55,VLOOKUP(C79,'Załącznik 7 - F.O. Zad 6-10'!$C$52:$G$210,5,0),0)","v":0},35,0,null,null,2,0,null,null,7,0,null,null,null,null,6,0,null,null,20,0]
[null,59,"GOSTYŃ MLEKO SKONDENS NIESŁODZONE 500G","Mleko zagęszczone GOSTYŃ 7,5% niesłodzone, 500 g","1 op. ( 1 karton 500 g)",{"$f":"IF('Załącznik 7 - F.O. Zad 6-10'!$V$55,VLOOKUP(C80,'Załącznik 7 - F.O. Zad 6-10'!$C$52:$G$210,5,0),0)","v":0},80,0,1,0,null,null,60,0,7,0,null,null,6,0,6,0]
[null,60,"ŁACIATA ŚMIETANKA UHT 12% 500ML","Śmietanka do kawy ŁACIATA 12%, 500 ml","1 op. (500 ml)",{"$f":"IF('Załącznik 7 - F.O. Zad 6-10'!$V$55,VLOOKUP(C81,'Załącznik 7 - F.O. Zad 6-10'!$C$52:$G$210,5,0),0)","v":0},30,0,1,0,null,null,10,0,4,0,null,null,6,0,6,0,3,0]
[null,61,"ŁACIATA ŚMIETANKA W KUBECZKACH OPK10X10G","Śmietanka do kawy ŁACIATA 10%, 10 kubeczków x 10 g","1 op. (10 kubeczków)",{"$f":"IF('Załącznik 7 - F.O. Zad 6-10'!$V$55,VLOOKUP(C82,'Załącznik 7 - F.O. Zad 6-10'!$C$52:$G$210,5,0),0)","v":0},156,0,10,0,null,null,null,null,50,0,65,0,18,0,7,0,6,0]
[null,62,"ŁACIATE MLEKO UHT 2% 0,5L","Mleko ŁACIATE UHT 2,0%, 0,5 l","1 op. (500 ml)",{"$f":"IF('Załącznik 7 - F.O. Zad 6-10'!$V$55,VLOOKUP(C83,'Załącznik 7 - F.O. Zad 6-10'!$C$52:$G$210,5,0),0)","v":0},143,0,80,0,null,null,null,null,38,0,null,null,7,0,6,0,12,0]
[null,63,"ŁACIATE MLEKO UHT 2% 1L","Mleko ŁACIATE UHT 2,0%, 1 l","1 op. (1 l)",{"$f":"IF('Załącznik 7 - F.O. Zad 6-10'!$V$55,VLOOKUP(C84,'Załącznik 7 - F.O. Zad 6-10'!$C$52:$G$210,5,0),0)","v":0},2474,0,790,0,11,0,null,null,36,0,140,0,1433,0,7,0,37,0,20,0]
[null,64,"ŁACIATE MLEKO UHT 3,2% 0,5L","Mleko ŁACIATE UHT 3,2%, 0,5 l","1 op. (500 ml)",{"$f":"IF('Załącznik 7 - F.O. Zad 6-10'!$V$55,VLOOKUP(C85,'Załącznik 7 - F.O. Zad 6-10'!$C$52:$G$210,5,0),0)","v":0},291,0,95,0,104,0,null,null,28,0,12,0,6,0,6,0,20,0,20,0]
[null,65,"ŁACIATE MLEKO UHT 3,2% 1L","Mleko ŁACIATE UHT 3,2%, 1 l","1 op. (1 l)",{"$f":"IF('Załącznik 7 - F.O. Zad 6-10'!$V$55,VLOOKUP(C86,'Załącznik 7 - F.O. Zad 6-10'!$C$52:$G$210,5,0),0)","v":0},1467,0,1200,0,13,0,null,null,33,0,180,0,6,0,5,0,10,0,20,0]
[null,66,"ŁACIATE MLEKO ZAGĘSZCZONE 7,5% 0,5L","Mleko zagęszczone ŁACIATE UHT 7,5%, 0,5 l","1 op. (500 ml)",{"$f":"IF('Załącznik 7 - F.O. Zad 6-10'!$V$55,VLOOKUP(C87,'Załącznik 7 - F.O. Zad 6-10'!$C$52:$G$210,5,0),0)","v":0},{"$f":"I87+K87+M87+O87+Q87+S87+U87+W87+Y87","v":44},{"$f":"G87*F87","v":0},1,0,null,null,null,null,4,{"$f":"O87*F87","v":0},null,null,13,{"$f":"S87*F87","v":0},6,0,null,null,20,0]
[null,67,"MLEKOVITA BEZ LAKTOZY UHT WYDOJONE 1,5%","Mleko WYDOJONE UHT, bez laktozy 1,5%, 1 l","1 op. (1 l)",{"$f":"IF('Załącznik 7 - F.O. Zad 6-10'!$V$55,VLOOKUP(C88,'Załącznik 7 - F.O. Zad 6-10'!$C$52:$G$210,5,0),0)","v":0},33,0,20,0,null,null,null,null,7,0,null,null,null,null,6,{"$f":"U88*F88","v":0}]
[null,68,"MLEKOVITA BEZ LAKTOZY UHT WYDOJONE 3,2%","Mleko WYDOJONE UHT, bez laktozy, 3,2%, 1 l","1 op. (1 l)",{"$f":"IF('Załącznik 7 - F.O. Zad 6-10'!$V$55,VLOOKUP(C89,'Załącznik 7 - F.O. Zad 6-10'!$C$52:$G$210,5,0),0)","v":0},228,0,125,0,72,{"$f":"K89*F89","v":0},null,null,19,0,null,null,6,0,6,0]
[null,69,"ZAMBROWSKIE MLEKO UHT 3,2% 1L","Mleko ZAMBROWSKIE UHT 3,2 %, 1 l","1 op. (1 l)",{"$f":"IF('Załącznik 7 - F.O. Zad 6-10'!$V$55,VLOOKUP(C90,'Załącznik 7 - F.O. Zad 6-10'!$C$52:$G$210,5,0),0)","v":0},424,0,200,0,190,0,null,null,7,0,null,null,null,null,7,0,null,null,20,{"$f":"Y90*H90","v":0}]
[null,70,"BAKALLAND BAKALIE STUDENCKI MIX 200G","Cukierki Mieszanka bakaliowa BAKALLAND Studencki Mix, 200 g","1 op (200 g)",{"$f":"IF('Załącznik 7 - F.O. Zad 6-10'!$V$55,VLOOKUP(C91,'Załącznik 7 - F.O. Zad 6-10'!$C$52:$G$210,5,0),0)","v":0},75,0,12,0,null,null,5,0,20,0,10,0,10,0,6,0,12,{"$f":"W91*F91","v":0}]
[null,71,"BAKALLAND MIGDAŁY 300G","Migdały BAKALLAND, 300 g","1 op. (300 g)",{"$f":"IF('Załącznik 7 - F.O. Zad 6-10'!$V$55,VLOOKUP(C92,'Załącznik 7 - F.O. Zad 6-10'!$C$52:$G$210,5,0),0)","v":0},39,0,3,0,null,null,null,null,13,0,null,null,10,0,6,0,7,0]
[null,72,"BAKALLAND ORZECHY NERKOWCA 300G","Orzechy nerkowca BAKALLAND, 300 g","1 op. (300 g)",{"$f":"IF('Załącznik 7 - F.O. Zad 6-10'!$V$55,VLOOKUP(C93,'Załącznik 7 - F.O. Zad 6-10'!$C$52:$G$210,5,0),0)","v":0},44,0,null,null,null,null,null,null,20,0,null,null,10,0,6,0,8,0]
[null,73,"BELVITA CIASTKA KAKAOWE 300G","Ciastka BELVITA, kakaowe, 300 g, 24 ciasteczka","1 op. (300 g)",{"$f":"IF('Załącznik 7 - F.O. Zad 6-10'!$V$55,VLOOKUP(C94,'Załącznik 7 - F.O. Zad 6-10'!$C$52:$G$210,5,0),0)","v":0},53,0,10,0,null,null,2,0,11,0,20,0,1,0,6,0,3,0]
[null,74,"BELVITA CIASTKA MUSLI+OWOCE 300G","Ciastka BELVITA Musli z owocami, 24 ciasteczka pakowane po 4 sztuki, 300 g","1 op. (300 g)",{"$f":"IF('Załącznik 7 - F.O. Zad 6-10'!$V$55,VLOOKUP(C95,'Załącznik 7 - F.O. Zad 6-10'!$C$52:$G$210,5,0),0)","v":0},51,0,5,0,null,null,null,null,7,0,30,0,null,null,6,0,3,0]
[null,75,"CISOWIANKA WODA GAZOWANA 0,5L OPK12","Woda mineralna CISOWIANKA gazowana, zgrzewka 12 butelek x 0,5 l","1 op. (12 butelek)",{"$f":"IF('Załącznik 7 - F.O. Zad 6-10'!$V$55,VLOOKUP(C96,'Załącznik 7 - F.O. Zad 6-10'!$C$52:$G$210,5,0),0)","v":0},212,0,140,0,null,null,null,null,null,null,4,0,2,0,6,0,40,0,20,0]
[null,76,"DELICJE SZAMPAŃSKIE MALINA 147G","Ciastka DELICJE Szampańskie malinowe, 147 g","1 op. (147 g)",{"$f":"IF('Załącznik 7 - F.O. Zad 6-10'!$V$55,VLOOKUP(C97,'Załącznik 7 - F.O. Zad 6-10'!$C$52:$G$210,5,0),0)","v":0},124,0,15,0,9,0,15,0,38,0,11,0,2,0,6,0,8,0,20,0]
[null,77,"DELICJE SZAMPAŃSKIE POMARAŃCZA 147G","Ciastka DELICJE Szampańskie pomarańczowe, 147 g","1 op. (147 g)",{"$f":"IF('Załącznik 7 - F.O. Zad 6-10'!$V$55,VLOOKUP(C98,'Załącznik 7 - F.O. Zad 6-10'!$C$52:$G$210,5,0),0)","v":0},128,0,30,0,3,0,10,0,40,0,11,0,2,0,6,0,6,0,20,0]
[null,78,"DELICJE SZAMPAŃSKIE WIŚNIA 147G","Ciastka DELICJE Szampańskie wiśniowe, 147 g","1 op. (147 g)",{"$f":"IF('Załącznik 7 - F.O. Zad 6-10'!$V$55,VLOOKUP(C99,'Załącznik 7 - F.O. Zad 6-10'!$C$52:$G$210,5,0),0)","v":0},104,0,15,0,2,0,15,0,26,0,11,0,3,0,6,0,6,0,20,0]
[null,79,"DELICJE SZAMPAŃSKIE WIŚNIOWE 294G","Ciastka DELICJE Szampańskie wiśniowe, podwójne opakowanie, 294 g","1 op. ( 294 g)",{"$f":"IF('Załącznik 7 - F.O. Zad 6-10'!$V$55,VLOOKUP(C100,'Załącznik 7 - F.O. Zad 6-10'!$C$52:$G$210,5,0),0)","v":0},46,0,5,0,null,null,6,0,7,0,null,null,2,0,6,0,null,null,20,0]
[null,80,"FERRERO RAFAELLO 230 G","Praliny RAFFAELLO, 230 g","1 op.(  230 g.)",{"$f":"IF('Załącznik 7 - F.O. Zad 6-10'!$V$55,VLOOKUP(C101,'Załącznik 7 - F.O. Zad 6-10'!$C$52:$G$210,5,0),0)","v":0},113,0,1,0,5,0,5,0,21,0,5,0,66,0,6,0,4,0]
[null,81,"FERRERO RAFFAELLO PRALINY 230G","Praliny RAFFAELLO, 230 g","2 op.(  230 g.)",{"$f":"IF('Załącznik 7 - F.O. Zad 6-10'!$V$55,VLOOKUP(C102,'Załącznik 7 - F.O. Zad 6-10'!$C$52:$G$210,5,0),0)","v":0},8,0,null,null,null,null,null,null,null,null,null,null,null,null,6,0,2,0]
[null,82,"Ferrero Rocher Praliny 200g","Czekoladki FERRERO ROCHER, 200 g","3 op.(  200 g.)",{"$f":"IF('Załącznik 7 - F.O. Zad 6-10'!$V$55,VLOOKUP(C103,'Załącznik 7 - F.O. Zad 6-10'!$C$52:$G$210,5,0),0)","v":0},17,0,1,0,null,null,null,null,7,0,null,null,null,null,6,0,3,0]
[null,83,"GOPLANA TOFFINO CHOCO 1KG","Cukierki Goplana Toffino Choco Toffi mleczne z kremem czekoladowym 1 kg","1 op. ( 1 kg.)",{"$f":"IF('Załącznik 7 - F.O. Zad 6-10'!$V$55,VLOOKUP(C104,'Załącznik 7 - F.O. Zad 6-10'!$C$52:$G$210,5,0),0)","v":0},16,0,1,0,null,null,null,null,7,0,null,null,null,null,6,0,2,0]
[null,84,"HIT MARKIZY CZEKOLADOWE 220G","Ciastka BAHLSEN HIT czekoladowe, 220 g","1 op.(  220 g)",{"$f":"IF('Załącznik 7 - F.O. Zad 6-10'!$V$55,VLOOKUP(C105,'Załącznik 7 - F.O. Zad 6-10'!$C$52:$G$210,5,0),0)","v":0},47,0,1,0,null,null,null,null,17,0,20,0,1,0,6,0,2,0]
[null,85,"JUTRZENKA JEŻYKI CAFE CIASTKA 140G","Ciasta JEŻYKI Cafe, 140 g","1 op. (140 g)",{"$f":"IF('Załącznik 7 - F.O. Zad 6-10'!$V$55,VLOOKUP(C106,'Załącznik 7 - F.O. Zad 6-10'!$C$52:$G$210,5,0),0)","v":0},66,0,1,0,null,null,15,0,19,0,19,0,1,0,6,0,5,0]
[null,86,"JUTRZENKA JEŻYKI CIASTKA 140G","Ciasta JEŻYKI Classic, 140 g","1 op. (140 g)",{"$f":"IF('Załącznik 7 - F.O. Zad 6-10'!$V$55,VLOOKUP(C107,'Załącznik 7 - F.O. Zad 6-10'!$C$52:$G$210,5,0),0)","v":0},119,0,25,0,null,null,15,0,50,0,15,0,3,0,6,0,5,0]
[null,87,"JUTRZENKA WAFLE FAMILIJNE ŚMIET-KAK 180G","Wafle FAMILIJNE śmietankowo-kakaowe, 180 g","1 op. (180 g)",{"$f":"IF('Załącznik 7 - F.O. Zad 6-10'!$V$55,VLOOKUP(C108,'Załącznik 7 - F.O. Zad 6-10'!$C$52:$G$210,5,0),0)","v":0},40,0,10,0,null,null,10,0,10,0,3,0,1,0,6,0]
[null,88,"ŁAKOTKI DESEROWE Z CUKREM 168G","Ciastka SAN ŁAKOTKI deserowe z cukrem, 168 g","1 op. (168 g)",{"$f":"IF('Załącznik 7 - F.O. Zad 6-10'!$V$55,VLOOKUP(C109,'Załącznik 7 - F.O. Zad 6-10'!$C$52:$G$210,5,0),0)","v":0},73,0,5,0,9,0,10,0,34,0,5,0,1,0,6,0,3,0]
[null,89,"ŁAKOTKI KAKAOWE 168G","Ciastka SAN ŁAKOTKI kakaowe, 168 g","1 op. (168 g)",{"$f":"IF('Załącznik 7 - F.O. Zad 6-10'!$V$55,VLOOKUP(C110,'Załącznik 7 - F.O. Zad 6-10'!$C$52:$G$210,5,0),0)","v":0},36,0,4,0,5,0,10,0,7,0,null,null,1,0,6,0,3,0]
[null,90,"ŁAKOTKI KOKOSOWE 168G","Ciastka SAN ŁAKOTKI kokosowe, 168 g","1 op. (168 g)",{"$f":"IF('Załącznik 7 - F.O. Zad 6-10'!$V$55,VLOOKUP(C111,'Załącznik 7 - F.O. Zad 6-10'!$C$52:$G$210,5,0),0)","v":0},72,0,5,0,9,0,10,0,29,0,9,0,1,0,6,0,3,0]
[null,91,"MERCI CZEKOLADKI 400 G","Czekoladki MERCI, 400 g","1 op.(400 g.)",{"$f":"IF('Załącznik 7 - F.O. Zad 6-10'!$V$55,VLOOKUP(C112,'Załącznik 7 - F.O. Zad 6-10'!$C$52:$G$210,5,0),0)","v":0},35,0,2,0,5,0,4,0,15,0,null,null,null,null,6,0,3,0]
[null,92,"MILKA CHOCO GRAINS CIASTKA 126 G","Ciastka MILKA Chocograins, 126 g","1 op.(126 g.)",{"$f":"IF('Załącznik 7 - F.O. Zad 6-10'!$V$55,VLOOKUP(C113,'Załącznik 7 - F.O. Zad 6-10'!$C$52:$G$210,5,0),0)","v":0},95,0,60,0,null,null,10,0,14,0,null,null,3,0,6,0,2,0]
[null,93,"MILKA CHOCOWAFER CIASTKA 150G","Wafle MILKA ChocoWafer, 150 g","1 op.(150g.)",{"$f":"IF('Załącznik 7 - F.O. Zad 6-10'!$V$55,VLOOKUP(C114,'Załącznik 7 - F.O. Zad 6-10'!$C$52:$G$210,5,0),0)","v":0},34,0,3,0,16,0,null,null,7,0,null,null,null,null,6,0,2,0]
[null,94,"MILKA MOMENTS CZEKOL MIX 11X97G","Praliny MILKA Moments Mix, 11 czekoladek","1 op. (11 sztuk)",{"$f":"IF('Załącznik 7 - F.O. Zad 6-10'!$V$55,VLOOKUP(C115,'Załącznik 7 - F.O. Zad 6-10'!$C$52:$G$210,5,0),0)","v":0},21,0,1,0,5,0,null,null,7,0,null,null,null,null,6,0,2,0]
[null,95,"MILKA MOMENTS TOFF/ORZECH 11x97G","Praliny MILKA Moments Toffee Wholenut, 11 czekoladek","1 op. (11 sztuk)",{"$f":"IF('Załącznik 7 - F.O. Zad 6-10'!$V$55,VLOOKUP(C116,'Załącznik 7 - F.O. Zad 6-10'!$C$52:$G$210,5,0),0)","v":0},19,0,1,0,3,0,null,null,7,0,null,null,null,null,6,0,2,0]
[null,96,"MILKA PIEGUSKI CZEKOLADA ORZECHY 135G","Ciastka MILKA Pieguski, czekolada i orzechy, 135 g","1 op. (135 g)",{"$f":"IF('Załącznik 7 - F.O. Zad 6-10'!$V$55,VLOOKUP(C117,'Załącznik 7 - F.O. Zad 6-10'!$C$52:$G$210,5,0),0)","v":0},102,0,27,0,null,null,25,0,35,0,4,0,3,0,6,0,2,0]
[null,97,"MILKA SINGLES CZEKOLADKI 138G","Czekoladki MILKA Singles, 32 czekoladki pakowane osobno"," 1 op. (32 szt.)",{"$f":"IF('Załącznik 7 - F.O. Zad 6-10'!$V$55,VLOOKUP(C118,'Załącznik 7 - F.O. Zad 6-10'!$C$52:$G$210,5,0),0)","v":0},42,0,10,0,null,null,null,null,20,0,5,0,1,0,6,0]
[null,98,"NESPRESSO CZEKOLADKI BLOND 200G","Czekoladki NESPRESSO blond, 200 g","1 op ( 200 g.)",{"$f":"IF('Załącznik 7 - F.O. Zad 6-10'!$V$55,VLOOKUP(C119,'Załącznik 7 - F.O. Zad 6-10'!$C$52:$G$210,5,0),0)","v":0},16,0,null,null,1,0,null,null,7,0,null,null,null,null,6,0,2,0]
[null,99,"NESPRESSO CZEKOLADKI MILK 200G","Czekoladki NESPRESSO mleczne, 200 g","1 op  ( 200 g.)",{"$f":"IF('Załącznik 7 - F.O. Zad 6-10'!$V$55,VLOOKUP(C120,'Załącznik 7 - F.O. Zad 6-10'!$C$52:$G$210,5,0),0)","v":0},16,0,null,null,1,0,null,null,7,0,null,null,null,null,6,0,2,0]
[null,100,"PASTYLKI MIĘTOWEW CZEKOLADZIE WAWEL","Cukierki Pastylka miętowa WAWEL, 1 kg","1 op. (1 kg)",{"$f":"IF('Załącznik 7 - F.O. Zad 6-10'!$V$55,VLOOKUP(C121,'Załącznik 7 - F.O. Zad 6-10'!$C$52:$G$210,5,0),0)","v":0},17,0,4,0,null,null,null,null,7,0,null,null,null,null,6,0]
[null,101,"SOLIDARNOŚĆ ŚLIWKA NALECZOWSKA 1KG","CukierkiŚliwka Nałęczowska SOLIDARNOŚĆ, 1 kg","2 op. (1 kg)",{"$f":"IF('Załącznik 7 - F.O. Zad 6-10'!$V$55,VLOOKUP(C122,'Załącznik 7 - F.O. Zad 6-10'!$C$52:$G$210,5,0),0)","v":0},122,0,4,0,null,null,null,null,30,0,null,null,66,0,6,0,6,0,10,0]
[null,102,"TAGO CIASTECZKA KORZENNE 4,8G OPK125 ","Ciastka TAGO korzenne, 125 ciasteczek po 4,8 g","1 op. (125 szt.)",{"$f":"IF('Załącznik 7 - F.O. Zad 6-10'!$V$55,VLOOKUP(C123,'Załącznik 7 - F.O. Zad 6-10'!$C$52:$G$210,5,0),0)","v":0},19,0,2,0,1,0,null,null,7,0,null,null,null,null,6,0,3,0]
[null,103,"TAGO OWSIANE DE LUX CIASTECZKA 210G","Ciastka TAGO Owsiane de Lux, 210 g","1 op. (210 g)",{"$f":"IF('Załącznik 7 - F.O. Zad 6-10'!$V$55,VLOOKUP(C124,'Załącznik 7 - F.O. Zad 6-10'!$C$52:$G$210,5,0),0)","v":0},73,0,2,0,null,null,10,0,14,0,15,0,3,0,6,0,3,0,20,0]
[null,104,"TAGO PRECLE MAŚLANE 158 G","Francuskie precle z masłem TAGO, 158 g","1 op. ( 158 g)",{"$f":"IF('Załącznik 7 - F.O. Zad 6-10'!$V$55,VLOOKUP(C125,'Załącznik 7 - F.O. Zad 6-10'!$C$52:$G$210,5,0),0)","v":0},44,0,10,0,null,null,null,null,17,0,10,0,1,0,6,0]
[null,105,"WAWEL MICHAŁKI 1 KG","Cukierki WAWEL Michałki Klasyczne 300 g","1 op. (300 g)",{"$f":"IF('Załącznik 7 - F.O. Zad 6-10'!$V$55,VLOOKUP(C126,'Załącznik 7 - F.O. Zad 6-10'!$C$52:$G$210,5,0),0)","v":0},38,0,10,0,2,0,null,null,7,0,null,null,6,0,6,0,7,0]
[null,106,"WAWEL MICHAŁKI CLASSIC 300G","Cukierki WAWEL Michałki Klasyczne 300 g","1 op. (300 g)",{"$f":"IF('Załącznik 7 - F.O. Zad 6-10'!$V$55,VLOOKUP(C127,'Załącznik 7 - F.O. Zad 6-10'!$C$52:$G$210,5,0),0)","v":0},6,0,null,null,null,null,null,null,null,null,null,null,null,null,6,0]
[null,107,"WAWEL MIESZANKA KRAKOWSKA 1 KG","Cukierki Mieszanka krakowska WAWEL, 1 kg","1 op. (1 kg)",{"$f":"IF('Załącznik 7 - F.O. Zad 6-10'!$V$55,VLOOKUP(C128,'Załącznik 7 - F.O. Zad 6-10'!$C$52:$G$210,5,0),0)","v":0},29,0,5,0,3,0,2,0,7,0,null,null,4,0,6,0,2,0]
[null,108,"WAWEL TRUFLE 1 KG","Cukierki WAWEL Trufle","1 op. (1 kg)",{"$f":"IF('Załącznik 7 - F.O. Zad 6-10'!$V$55,VLOOKUP(C129,'Załącznik 7 - F.O. Zad 6-10'!$C$52:$G$210,5,0),0)","v":0},133,0,5,0,1,0,2,0,53,0,null,null,66,0,6,0]
[null,109,"WEDEL AMERYKANKI KLASYCZNE 125 G","Ciastka AMERYKANKI, klasyczne, 126 g","1 op. (126 g)",{"$f":"IF('Załącznik 7 - F.O. Zad 6-10'!$V$55,VLOOKUP(C130,'Załącznik 7 - F.O. Zad 6-10'!$C$52:$G$210,5,0),0)","v":0},83,0,5,0,null,null,5,0,14,0,30,0,3,0,6,0,null,null,20,0]
[null,110,"WEDEL MIESZANKA CUKIERKI DISPLAY 3KG","Cukierki MIESZANKA WEDLOWSKA Classic, 3 kg w formie dyspensera","1 op. (3 kg)",{"$f":"IF('Załącznik 7 - F.O. Zad 6-10'!$V$55,VLOOKUP(C131,'Załącznik 7 - F.O. Zad 6-10'!$C$52:$G$210,5,0),0)","v":0},55,0,4,0,null,null,null,null,29,0,4,0,10,0,6,0,2,0]
[null,111,"WEDEL PTASIE MLECZKO WANILIOWE 360G","Ptasie mleczko WEDEL, waniliowe, 360 g","1 op.( 360 g.)",{"$f":"IF('Załącznik 7 - F.O. Zad 6-10'!$V$55,VLOOKUP(C132,'Załącznik 7 - F.O. Zad 6-10'!$C$52:$G$210,5,0),0)","v":0},35,0,3,0,null,null,4,0,19,0,null,null,3,0,6,0]
[null,112,"WEDEL WAFLE TORCIKOWE MINI ORZECHOWE 160","Wafle Torcikowe WEDEL MINI orzechowe, 160 g","1 op. ( 160 g)",{"$f":"IF('Załącznik 7 - F.O. Zad 6-10'!$V$55,VLOOKUP(C133,'Załącznik 7 - F.O. Zad 6-10'!$C$52:$G$210,5,0),0)","v":0},33,0,6,0,null,null,null,null,18,0,3,0,null,null,6,0]
[null,113,"BAKALLAND MIGDAŁY SOLONE 90G","Migdały lekko solone BAKALLAND, 90 g","1 op. (90 g)",{"$f":"IF('Załącznik 7 - F.O. Zad 6-10'!$V$55,VLOOKUP(C134,'Załącznik 7 - F.O. Zad 6-10'!$C$52:$G$210,5,0),0)","v":0},19,0,2,0,null,null,null,null,7,0,null,null,null,null,6,0,4,0]
[null,114,"BAKALLAND ORZECHY LASKOWE 300G","Orzechy laskowe BAKALLAND, 300 g","1 op. (300 g)",{"$f":"IF('Załącznik 7 - F.O. Zad 6-10'!$V$55,VLOOKUP(C135,'Załącznik 7 - F.O. Zad 6-10'!$C$52:$G$210,5,0),0)","v":0},30,0,null,null,null,null,null,null,10,0,null,null,10,0,6,0,4,0]
[null,115,"BAKALLAND ORZECHY NERKOWCA SOLONE 70G","Orzechy nerkowca  solone BAKALLAND, 70 g","1 op. (70 g)",{"$f":"IF('Załącznik 7 - F.O. Zad 6-10'!$V$55,VLOOKUP(C136,'Załącznik 7 - F.O. Zad 6-10'!$C$52:$G$210,5,0),0)","v":0},17,0,null,null,null,null,null,null,7,0,null,null,null,null,6,0,4,0]
[null,116,"BAKALLAND ORZECHY WŁOSKIE 300G","Orzechy włoskie BAKALLAND, 300 g","1 op. (300 g)",{"$f":"IF('Załącznik 7 - F.O. Zad 6-10'!$V$55,VLOOKUP(C137,'Załącznik 7 - F.O. Zad 6-10'!$C$52:$G$210,5,0),0)","v":0},26,0,null,null,null,null,null,null,7,0,null,null,10,0,6,0,3,0]
[null,117,"LAJKONIK PALUSZKI 200G","Paluszki LAJKONIK solone, 200 g","1 op. (200 g)",{"$f":"IF('Załącznik 7 - F.O. Zad 6-10'!$V$55,VLOOKUP(C138,'Załącznik 7 - F.O. Zad 6-10'!$C$52:$G$210,5,0),0)","v":0},126,0,7,0,null,null,10,0,30,0,50,0,1,0,5,0,3,0,20,0]
[null,118,"CAPPY NEKTAR MULTIWIT PET 0,33L OPK12 ","Nektar multiwitamina CAPPY, 12 butelek x 0,33 l","1 op. (12 butelek)",{"$f":"IF('Załącznik 7 - F.O. Zad 6-10'!$V$55,VLOOKUP(C139,'Załącznik 7 - F.O. Zad 6-10'!$C$52:$G$210,5,0),0)","v":0},20,0,3,0,null,null,null,null,6,0,2,0,1,0,6,0,2,0]
[null,119,"CAPPY SOK POMARAŃCZOWY PET 0,33L OPK12","Sok pomarańczowy CAPPY, 12 butelek x 0,33 l","1 op. (12 butelek)",{"$f":"IF('Załącznik 7 - F.O. Zad 6-10'!$V$55,VLOOKUP(C140,'Załącznik 7 - F.O. Zad 6-10'!$C$52:$G$210,5,0),0)","v":0},82,0,10,0,null,null,null,null,37,0,2,0,22,0,6,0,5,0]
[null,120,"CHAMPION SOK CYTRYNOWY OPK10X7,5G","Zagęszczony sok cytrynowy CHAMPION, 10 kubeczków x 7,5 g","1 op. (10 kubeczków)",{"$f":"IF('Załącznik 7 - F.O. Zad 6-10'!$V$55,VLOOKUP(C141,'Załącznik 7 - F.O. Zad 6-10'!$C$52:$G$210,5,0),0)","v":0},65,0,2,0,null,null,null,null,5,0,30,0,22,0,6,0]
[null,121,"COCA-COLA BUTELKA PET 0,5L OPK18 ","Napój gazowany COCA-COLA, zgrzewka 18 butelek x 0,5 l","1 op. (18 butelek)",{"$f":"IF('Załącznik 7 - F.O. Zad 6-10'!$V$55,VLOOKUP(C142,'Załącznik 7 - F.O. Zad 6-10'!$C$52:$G$210,5,0),0)","v":0},17,0,3,0,null,null,null,null,7,0,null,null,null,null,6,0,1,0]
[null,122,"COCA-COLA PUSZKA 0,33L OPK24","Napój gazowany COCA-COLA, 24 puszki x 0,33 l","1 op. (24 puszki 0,33 l)",{"$f":"IF('Załącznik 7 - F.O. Zad 6-10'!$V$55,VLOOKUP(C143,'Załącznik 7 - F.O. Zad 6-10'!$C$52:$G$210,5,0),0)","v":0},20,0,4,0,null,null,null,null,9,0,null,null,null,null,6,0,1,0]
[null,123,"COCA-COLA ZERO BUTELKA PET 0,5L OPK12","Napój gazowany COCA-COLA Zero, 12 butelek x 0,5 l","1 op. (12 butelek)",{"$f":"IF('Załącznik 7 - F.O. Zad 6-10'!$V$55,VLOOKUP(C144,'Załącznik 7 - F.O. Zad 6-10'!$C$52:$G$210,5,0),0)","v":0},15,0,2,0,null,null,null,null,7,0,null,null,null,null,6,0]
[null,124,"FORTUNA NEKTAR CZ.PORZECZKA 0,3L OPK15","Nektar czarna porzeczka FORTUNA, 15 butelek x 0,3 l","1 op. (15 butelek)",{"$f":"IF('Załącznik 7 - F.O. Zad 6-10'!$V$55,VLOOKUP(C145,'Załącznik 7 - F.O. Zad 6-10'!$C$52:$G$210,5,0),0)","v":0},33,0,15,0,2,0,3,0,7,0,null,null,null,null,6,0]
[null,125,"FORTUNA SOK MULTIWITAMINA 0,3 L OPK15","Sok multiwitamina FORTUNA, 15 butelek x 0,3 l","1 op. (15 butelek)",{"$f":"IF('Załącznik 7 - F.O. Zad 6-10'!$V$55,VLOOKUP(C146,'Załącznik 7 - F.O. Zad 6-10'!$C$52:$G$210,5,0),0)","v":0},70,0,10,0,6,0,null,null,19,0,null,null,23,0,6,0,6,0]
[null,126,"FORTUNA SOK POMARAŃCZOWY 0,3L OPK15 ","Sok pomarańczowy FORTUNA, 15 butelek x 0,3 l","1 op. (15 butelek)",{"$f":"IF('Załącznik 7 - F.O. Zad 6-10'!$V$55,VLOOKUP(C147,'Załącznik 7 - F.O. Zad 6-10'!$C$52:$G$210,5,0),0)","v":0},40,0,10,0,6,0,5,0,7,0,null,null,null,null,6,0,6,0]
[null,127,"FORTUNA SOK POMIDOROWY 0,3L OPK15","Sok pomidorowy FORTUNA, 15 butelek x 0,3 l","1 op. (15 butelek)",{"$f":"IF('Załącznik 7 - F.O. Zad 6-10'!$V$55,VLOOKUP(C148,'Załącznik 7 - F.O. Zad 6-10'!$C$52:$G$210,5,0),0)","v":0},92,0,10,0,null,null,3,0,30,0,5,0,23,0,6,0,15,0]
[null,128,"TARCZYN NEKTAR CZ.PORZECZKA 0,3L OPK15","Nektar czarna porzeczka TARCZYN, 15 butelek x 0,3 l","1 op. (15 butelek)",{"$f":"IF('Załącznik 7 - F.O. Zad 6-10'!$V$55,VLOOKUP(C149,'Załącznik 7 - F.O. Zad 6-10'!$C$52:$G$210,5,0),0)","v":0},37,0,3,0,1,0,null,null,7,0,null,null,null,null,6,0,5,0,15,0]
[null,129,"TARCZYN NEKTAR GREJPFRUT 0,3L OPK15","Nektar czerwony grejpfrut TARCZYN, zgrzewka 15 butelek x 0,3 l","1 op. (15 butelek)",{"$f":"IF('Załącznik 7 - F.O. Zad 6-10'!$V$55,VLOOKUP(C150,'Załącznik 7 - F.O. Zad 6-10'!$C$52:$G$210,5,0),0)","v":0},34,0,3,0,null,null,null,null,7,0,null,null,null,null,6,0,6,0,12,0]
[null,130,"TARCZYN SOK JABŁKOWY 0,3L OPK15","Sok jabłkowy TARCZYN, 15 butelek x 0,3 l","1 op. (15 butelek)",{"$f":"IF('Załącznik 7 - F.O. Zad 6-10'!$V$55,VLOOKUP(C151,'Załącznik 7 - F.O. Zad 6-10'!$C$52:$G$210,5,0),0)","v":0},{"$f":"I151+K151+M151+O151+Q151+S151+U151+W151+Y151","v":136},{"$f":"G151*F151","v":0},15,0,6,{"$f":"K151*F151","v":0},null,null,30,{"$f":"O151*F151","v":0},32,0,23,{"$f":"S151*F151","v":0},6,0,14,0,10,0]
[null,131,"TARCZYN SOK POMARAŃCZOWY 0,3L OPK15","Sok pomarańczowy TARCZYN, 15 butelek x 0,3 l","1 op. (15 butelek)",{"$f":"IF('Załącznik 7 - F.O. Zad 6-10'!$V$55,VLOOKUP(C152,'Załącznik 7 - F.O. Zad 6-10'!$C$52:$G$210,5,0),0)","v":0},40,0,7,0,null,null,null,null,7,0,null,null,null,null,6,{"$f":"U152*F152","v":0},10,{"$f":"W152*F152","v":0},10,{"$f":"Y152*H152","v":0}]
[null,132,"TARCZYN SOK POMIDOROWY 300ML OPK15 ","Sok pomidorowy TARCZYN, zgrzewka 15 butelek x 0,3 l","1 op. (15 butelek)",{"$f":"IF('Załącznik 7 - F.O. Zad 6-10'!$V$55,VLOOKUP(C153,'Załącznik 7 - F.O. Zad 6-10'!$C$52:$G$210,5,0),0)","v":0},69,0,4,0,null,null,null,null,7,0,null,null,23,0,6,0,9,0,20,0]
[null,133,"TYMBARK JABŁKO SOK 100% 300ML OPK12","Sok TYMBARK jabłko 100%, 12 butelek x 300 ml","1 op. (12 butelek)",{"$f":"IF('Załącznik 7 - F.O. Zad 6-10'!$V$55,VLOOKUP(C154,'Załącznik 7 - F.O. Zad 6-10'!$C$52:$G$210,5,0),0)","v":0},47,0,4,0,null,null,5,0,7,0,null,null,null,null,6,0,5,0,20,0]
[null,134,"TYMBARK POMARAŃCZ SOK 100% 300ML OPK12","Sok TYMBARK pomarańcza 100%, 12 butelek x 300 ml","1 op. (12 butelek)",{"$f":"IF('Załącznik 7 - F.O. Zad 6-10'!$V$55,VLOOKUP(C155,'Załącznik 7 - F.O. Zad 6-10'!$C$52:$G$210,5,0),0)","v":0},47,0,4,0,null,null,4,0,7,0,null,null,null,null,6,0,6,0,20,0]
[null,135,"TYMBARK POMIDOR SOK 100% 300ML OPK12","Sok TYMBARK pomidor 100%, 12 butelek x 300 ml","1 op. (12 butelek)",{"$f":"IF('Załącznik 7 - F.O. Zad 6-10'!$V$55,VLOOKUP(C156,'Załącznik 7 - F.O. Zad 6-10'!$C$52:$G$210,5,0),0)","v":0},44,0,4,0,null,null,null,null,7,0,null,null,null,null,6,0,7,0,20,0]
[null,136,"TYMBARK VITAMINI BAN/MAR/JAB 300ML OPK12","Sok TYMBARK Vitamini banan, marchewka, jabłko, 12 butelek x 300 ml","1 op. (12 butelek)",{"$f":"IF('Załącznik 7 - F.O. Zad 6-10'!$V$55,VLOOKUP(C157,'Załącznik 7 - F.O. Zad 6-10'!$C$52:$G$210,5,0),0)","v":0},40,0,6,0,null,null,null,null,7,0,null,null,1,0,6,0,null,null,20,0]
[null,137,"CISOWIANKA LEKKOGAZOWANA WODA 0,5L  OPK12 ","Woda mineralna CISOWIANKA lekko gazowana, zgrzewka 12 butelek x 0,5 l","1 op. (12 butelek)",{"$f":"IF('Załącznik 7 - F.O. Zad 6-10'!$V$55,VLOOKUP(C158,'Załącznik 7 - F.O. Zad 6-10'!$C$52:$G$210,5,0),0)","v":0},149,0,100,0,null,null,null,null,27,0,5,0,1,0,6,0,10,0]
[null,138,"CISOWIANKA PERLAGE GAZ SZKŁO 300ML  OPK24 ","Woda mineralna CISOWIANKA Perlage gazowana, zgrzewka 24 butelki x 300 ml","1 op. (24 butelki)",{"$f":"IF('Załącznik 7 - F.O. Zad 6-10'!$V$55,VLOOKUP(C159,'Załącznik 7 - F.O. Zad 6-10'!$C$52:$G$210,5,0),0)","v":0},114,0,20,0,null,null,null,null,17,0,null,null,66,0,6,0,5,0]
[null,139,"CISOWIANKA WODA GAZOWANA 1,5L OPK6","Woda mineralna CISOWIANKA gazowana, zgrzewka 6 butelek x 1,5 l","1 op. (6 butelek)",{"$f":"IF('Załącznik 7 - F.O. Zad 6-10'!$V$55,VLOOKUP(C160,'Załącznik 7 - F.O. Zad 6-10'!$C$52:$G$210,5,0),0)","v":0},1007,0,120,0,null,null,null,null,10,0,5,0,866,0,6,0]
[null,140,"CISOWIANKA WODA NIEGAZ SZKŁO 300ML OPK24","Woda mineralna CISOWIANKA niegazowana szklane butelki x 300 ml","1 op. (24 butelki)",{"$f":"IF('Załącznik 7 - F.O. Zad 6-10'!$V$55,VLOOKUP(C161,'Załącznik 7 - F.O. Zad 6-10'!$C$52:$G$210,5,0),0)","v":0},34,0,10,0,null,null,null,null,7,0,null,null,1,0,6,0,10,0]
[null,141,"CISOWIANKA WODA NIEGAZOWANA 0,5L OPK12 ","Woda mineralna CISOWIANKA niegazowana, zgrzewka 12 butelek x 0,5 l","1 op. (12 butelek)",{"$f":"IF('Załącznik 7 - F.O. Zad 6-10'!$V$55,VLOOKUP(C162,'Załącznik 7 - F.O. Zad 6-10'!$C$52:$G$210,5,0),0)","v":0},307,0,220,0,null,null,null,null,50,0,5,0,1,0,7,0,24,0]
[null,142,"CISOWIANKA WODA NIEGAZOWANA 1,5L OPK6","Woda mineralna CISOWIANKA niegazowana, zgrzewka 6 butelek x 1,5 l","1 op. (6 butelek)",{"$f":"IF('Załącznik 7 - F.O. Zad 6-10'!$V$55,VLOOKUP(C163,'Załącznik 7 - F.O. Zad 6-10'!$C$52:$G$210,5,0),0)","v":0},1177,0,280,0,null,null,null,null,14,0,5,0,866,0,6,0,6,0]
[null,143,"CISOWIANKA WODA SPORT NIEGAZ 0,7L OPK8","Woda mineralna CISOWIANKA Sport niegazowana, zgrzewka 8 butelek x 0,7 l","1 op. (8 butelek)",{"$f":"IF('Załącznik 7 - F.O. Zad 6-10'!$V$55,VLOOKUP(C164,'Załącznik 7 - F.O. Zad 6-10'!$C$52:$G$210,5,0),0)","v":0},33,0,20,0,null,null,null,null,7,0,null,null,null,null,6,0]
[null,144,"KINGA PIENINSKA WODA GAZOWANA 0,5L OPK12","Woda mineralna KINGA PIENIŃSKA gazowana 0,5 l","1 op. (12 butelek)",{"$f":"IF('Załącznik 7 - F.O. Zad 6-10'!$V$55,VLOOKUP(C165,'Załącznik 7 - F.O. Zad 6-10'!$C$52:$G$210,5,0),0)","v":0},76,0,25,0,24,0,null,null,20,0,null,null,1,0,6,0]
[null,145,"KINGA PIENINSKA WODA NIEGAZOW 0,5L OPK12","Woda mineralna KINGA PIENIŃSKA niegazowana, zgrzewka 12 butelek x 0,5 l","1 op. (12 butelek)",{"$f":"IF('Załącznik 7 - F.O. Zad 6-10'!$V$55,VLOOKUP(C166,'Załącznik 7 - F.O. Zad 6-10'!$C$52:$G$210,5,0),0)","v":0},101,0,60,0,26,0,null,null,7,0,null,null,1,0,7,0]
[null,146,"KROPLA BESKIDU WODA GAZ 0,5L OPK12","Woda mineralna KROPLA BESKIDU gazowana, zgrzewka 12 butelek x 0,5 l","1 op. (12 butelek)",{"$f":"IF('Załącznik 7 - F.O. Zad 6-10'!$V$55,VLOOKUP(C167,'Załącznik 7 - F.O. Zad 6-10'!$C$52:$G$210,5,0),0)","v":0},787,0,100,0,8,0,null,null,6,0,14,0,633,0,6,0,20,0]
[null,147,"KROPLA BESKIDU WODA GAZ 1,5L OPK6","Woda mineralna KROPLA BESKIDU gazowana, zgrzewka 6 butelek x 1,5 l","1 op. (6 butelek)",{"$f":"IF('Załącznik 7 - F.O. Zad 6-10'!$V$55,VLOOKUP(C168,'Załącznik 7 - F.O. Zad 6-10'!$C$52:$G$210,5,0),0)","v":0},167,0,60,0,null,null,null,null,7,0,92,0,2,0,6,0]
[null,148,"KROPLA BESKIDU WODA NIEGAZ 0,5L  OPK12","Woda mineralna KROPLA BESKIDU niegazowana, zgrzewka 12 butelek x 0,5 l","1 op. (12 butelek)",{"$f":"IF('Załącznik 7 - F.O. Zad 6-10'!$V$55,VLOOKUP(C169,'Załącznik 7 - F.O. Zad 6-10'!$C$52:$G$210,5,0),0)","v":0},406,0,130,0,null,null,null,null,11,0,35,0,200,0,6,0,24,0]
[null,149,"KROPLA BESKIDU WODA NIEGAZ 1,5L OPK6","Woda mineralna KROPLA BESKIDU niegazowana, zgrzewka 6 butelek x 1,5 l","1 op. (6 butelek)",{"$f":"IF('Załącznik 7 - F.O. Zad 6-10'!$V$55,VLOOKUP(C170,'Załącznik 7 - F.O. Zad 6-10'!$C$52:$G$210,5,0),0)","v":0},366,0,90,0,null,null,null,null,7,0,90,0,173,0,6,0]
[null,150,"NAŁĘCZOWIANKA WODA NIEGAZ 0,5L OPK12","Woda mineralna NAŁĘCZOWIANKA niegazowana, zgrzewka 12 butelek x 0,5 l","1 op. (12 butelek)",{"$f":"IF('Załącznik 7 - F.O. Zad 6-10'!$V$55,VLOOKUP(C171,'Załącznik 7 - F.O. Zad 6-10'!$C$52:$G$210,5,0),0)","v":0},229,0,165,0,null,null,null,null,22,0,35,0,1,0,6,0]
[null,151,"NAŁĘCZOWIANKA WODA NIEGAZ 1,5L OPK6","Woda mineralna NAŁĘCZOWIANKA niegazowana, zgrzewka 6 butelek x 1,5 l","1 op. (6 butelek)",{"$f":"IF('Załącznik 7 - F.O. Zad 6-10'!$V$55,VLOOKUP(C172,'Załącznik 7 - F.O. Zad 6-10'!$C$52:$G$210,5,0),0)","v":0},189,0,60,0,null,null,null,null,9,0,null,null,113,0,7,0]
[null,152,"NESTLE PURE LIFE WODA GAZ 1,5L OPK6","Woda źródlana NESTLÉ Pure Life gazowana, zgrzewka 6 butelek x 1,5 l","1 op. (6 butelek)",{"$f":"IF('Załącznik 7 - F.O. Zad 6-10'!$V$55,VLOOKUP(C173,'Załącznik 7 - F.O. Zad 6-10'!$C$52:$G$210,5,0),0)","v":0},70,0,60,0,null,null,null,null,2,0,null,null,2,0,6,0]
[null,153,"NESTLE PURE LIFE WODA NIEGAZ 0,5L OPK12","Woda źródlana NESTLÉ Pure Life niegazowana, zgrzewka 12 butelek x 0,5 l","1 op. (12 butelek)",{"$f":"IF('Załącznik 7 - F.O. Zad 6-10'!$V$55,VLOOKUP(C174,'Załącznik 7 - F.O. Zad 6-10'!$C$52:$G$210,5,0),0)","v":0},83,0,60,0,null,null,null,null,6,0,10,0,1,0,6,0]
[null,154,"NESTLE PURE LIFE WODA NIEGAZ 1,5L OPK6","Woda źródlana NESTLÉ Pure Life niegazowana, zgrzewka 6 butelek x 1,5 l","1 op. (6 butelek)",{"$f":"IF('Załącznik 7 - F.O. Zad 6-10'!$V$55,VLOOKUP(C175,'Załącznik 7 - F.O. Zad 6-10'!$C$52:$G$210,5,0),0)","v":0},215,0,195,0,null,null,null,null,2,0,10,0,2,0,6,0]
[null,155,"ŻYWIEC ZDRÓJ WODA GAZOWANA 0.5L OPK24","Woda źródlana ŻYWIOŁ od ŻYWIEC ZDRÓJ gazowana, 24 butelki x 0,5 l","1 op. (24 butelki)",{"$f":"IF('Załącznik 7 - F.O. Zad 6-10'!$V$55,VLOOKUP(C176,'Załącznik 7 - F.O. Zad 6-10'!$C$52:$G$210,5,0),0)","v":0},21,0,10,0,1,0,null,null,3,0,null,null,1,0,6,0]
[null,156,"ŻYWIEC ZDRÓJ WODA GAZOWANA 1,5L OPK6","Woda źródlana ŻYWIOŁ od ŻYWIEC ZDRÓJ gazowana, zgrzewka 6 butelek x 1,5 l","1 op. ( 6 butelek)",{"$f":"IF('Załącznik 7 - F.O. Zad 6-10'!$V$55,VLOOKUP(C177,'Załącznik 7 - F.O. Zad 6-10'!$C$52:$G$210,5,0),0)","v":0},188,0,30,0,null,null,null,null,3,0,30,0,100,0,5,0,null,null,20,0]
[null,157,"ŻYWIEC ZDRÓJ WODA NIEGAZOWANA 0.5L OPK24 ","Woda źródlana ŻYWIEC ZDRÓJ niegazowana, 24 butelki x 0,5 l","1 op. (24 butelki)",{"$f":"IF('Załącznik 7 - F.O. Zad 6-10'!$V$55,VLOOKUP(C178,'Załącznik 7 - F.O. Zad 6-10'!$C$52:$G$210,5,0),0)","v":0},162,0,55,0,null,null,null,null,19,0,50,0,2,0,6,0,10,0,20,0]
[null,158,"ŻYWIEC ZDRÓJ WODA NIEGAZOWANA 1,5L  OPK6 ","Woda źródlana ŻYWIEC ZDRÓJ niegazowana, zgrzewka 6 butelek x 1,5 l","1 op. (6 butelek)",{"$f":"IF('Załącznik 7 - F.O. Zad 6-10'!$V$55,VLOOKUP(C179,'Załącznik 7 - F.O. Zad 6-10'!$C$52:$G$210,5,0),0)","v":0},155,0,50,{"$f":"I179*F179","v":0},25,0,null,null,7,0,10,{"$f":"Q179*F179","v":0},56,0,7,0]
[null,null,null,null,null,null,{"$f":"SUM(G22:G179)","v":23602},null,{"$f":"SUM(I22:I179)","v":6401},null,{"$f":"SUM(K22:K179)","v":1326},null,{"$f":"SUM(M22:M179)","v":375},null,{"$f":"SUM(O22:O179)","v":2464},null,{"$f":"SUM(Q22:Q179)","v":1701},null,{"$f":"SUM(S22:S179)","v":8958},null,{"$f":"SUM(U22:U179)","v":954},null,{"$f":"SUM(W22:W179)","v":566},null,{"$f":"SUM(Y22:Y179)","v":857}]
[null,null,null,null,null,null,null,null,"ŁĄCZNA CENA NETTO DLA ENEA Centrum Sp. z o.o. ",{"$f":"SUM(J22:J179)","v":0},"ŁĄCZNA CENA NETTO DLA ENEA Logistyka sp. z o.o.",{"$f":"SUM(L22:L179)","v":0},"ŁĄCZNA CENA NETTO DLA ENEA Nowa Energia sp. z.o.o.",{"$f":"SUM(N22:N179)","v":0},"ŁĄCZNA CENA NETTO DLA ENEA Operator Sp. z o.o.",{"$f":"SUM(P22:P179)","v":0},"ŁĄCZNA CENA NETTO DLA ENEA Oświetlenie sp. z.o.o.",{"$f":"SUM(R22:R179)","v":0},"ŁĄCZNA CENA NETTO DLA ENEA Pomiary Sp. z o.o.",{"$f":"SUM(T22:T179)","v":0},"ŁĄCZNA CENA NETTO DLA ENEA Serwis sp. z.o.o.",{"$f":"SUM(V22:V179)","v":0},"ŁĄCZNA CENA NETTO DLA ENEA S.A.",{"$f":"SUM(X22:X179)","v":0},"ŁĄCZNA CENA NETTO DLA ENEA Trading Sp. z o.o.",{"$f":"SUM(Z22:Z179)","v":0}]
[]
[]
[]
[]
[null,null,"miejscowość i data",null,null,"Pieczęć imienna i podpis przedstawiciela(i) Wykonawcy"]

{"sheet":"Załącznik 9-F.O. dla Zadania 7","index":5,"n_rows":186,"n_cols":22,"rows_kept":186,"cut":false,"hidden":false,"merged":[[18,1,18,2],[184,2,184,3],[184,4,184,7],[185,5,185,7],[2,1,2,7],[4,1,4,7],[8,1,8,7],[11,1,11,7],[14,1,14,7],[16,1,16,7]]}
[null,"Oznaczenie sprawy:  1400/DW00/ZU/KZ/2021/0000074365"]
[]
[null,"ZAŁĄCZNIK NR 9 - FORMULARZ OFERTY DLA ZADANIA 7 - DOSTAWA ARTYKUŁÓW SPOŻYWCZYCH:  ZIELONA GÓRA;  GORZÓW WLKP. + WOJ. LUBUSKIE; SZCZECIN + WOJ. ZACHODNIOPOMORSKIE"]
[]
[]
[null,null,"(pieczęć wykonawcy)"]
[]
[null,"Ja, niżej podpisany (My niżej podpisani):"]
[]
[]
[null,"działając w imieniu i na rzecz:"]
[]
[]
[null,"Składam(y) ofertę na wykonanie zamówienia, którego przedmiotem jest:"]
[null,"Dostawa artykułów biurowych, spożywczych i higienicznych dla spółek GK ENEA"]
[]
[null,"ZADANIE 7 - Dostawa artykułów spożywczych:  Zielona Góra;  Gorzów Wlkp. + woj. Lubuskie; Szczecin + woj. Zachodniopomorskie"]
[]
[null,"ŁĄCZNA CENA NETTO OFERTY DLA ZADANIA 7:",null,{"$f":"SUM(H22:H179)","v":0}]
[]
[null,"LP","Nazwa produktu","Opis szczegółowy","Jednostka ","cena jednostkowa netto","Ilość","Wartość","ENEA Enea Centrum Sp. z o.o. - Szacowana ilość","ŁĄCZNA CENA NETTO DLA ENEA Centrum Sp. z o.o. ","ENEA Logistyka sp. z o.o. - Szacowana ilość","ŁĄCZNA CENA NETTO DLA ENEA Logistyka sp. z o.o. ","ENEA Operator Sp. z o.o. - Szacowana ilość","ŁĄCZNA CENA NETTO DLA ENEA Operator Sp. z o.o. ","ENEA oświetlenie Sp. z o.o. - Szacowana ilość","ŁĄCZNA CENA NETTO DLA ENEA Oświetlenie Sp. z o.o. ","ENEA Pomiary Sp. z o.o. - Szacowana ilość","ŁĄCZNA CENA NETTO DLA ENEA Pomiary  Sp. z o.o. ","ENEA Serwis Sp. z o.o. - Szacowana ilość","ŁĄCZNA CENA NETTO DLA ENEA Serwis Sp. z o.o. ","ENEA S.A. - Szacowana ilość","ŁĄCZNA CENA NETTO DLA ENEA S.A."]
[null,1,"DIAMANT CUKIER BIAŁY KOSTKA 1KG","Cukier biały DIAMANT w kostkach, 1 kg","1 op. ( 1 kg.)",{"$f":"IF('Załącznik 7 - F.O. Zad 6-10'!$V$56,VLOOKUP(C22,'Załącznik 7 - F.O. Zad 6-10'!$C$52:$G$210,5,0),0)","v":0},{"$f":"I22+K22+M22+O22+Q22+S22+U22","v":33},{"$f":"G22*F22","v":0},1,{"$f":"I22*F22","v":0},null,null,6,{"$f":"M22*F22","v":0},null,null,20,{"$f":"Q22*F22","v":0},6,{"$f":"S22*F22","v":0}]
[null,2,"DIAMANT CUKIER BIAŁY W SASZET OPK100X5G","Cukier biały DIAMANT, saszetki 100 sztuk x 5 g","1 op. (100 sztuk)",{"$f":"IF('Załącznik 7 - F.O. Zad 6-10'!$V$56,VLOOKUP(C23,'Załącznik 7 - F.O. Zad 6-10'!$C$52:$G$210,5,0),0)","v":0},{"$f":"I23+K23+M23+O23+Q23+S23+U23","v":44},{"$f":"G23*F23","v":0},2,{"$f":"I23*F23","v":0},7,{"$f":"K23*F23","v":0},15,0,5,{"$f":"O23*F23","v":0},4,0,6,0,5,{"$f":"U23*F23","v":0}]
[null,3,"DIAMANT CUKIER DRY DEMERARA SYPKI 0,5KG","Cukier trzcinowy DIAMANT Dry Demerara, sypki, 500 g","1 op. ( 500 g)",{"$f":"IF('Załącznik 7 - F.O. Zad 6-10'!$V$56,VLOOKUP(C24,'Załącznik 7 - F.O. Zad 6-10'!$C$52:$G$210,5,0),0)","v":0},81,0,2,0,null,null,21,0,null,null,47,0,6,0,5,0]
[null,4,"DIAMANT CUKIER KRYSZTAŁ BIAŁY 1KG","Cukier biały DIAMANT sypki, 1 kg","1 op.( 1 kg.)",{"$f":"IF('Załącznik 7 - F.O. Zad 6-10'!$V$56,VLOOKUP(C25,'Załącznik 7 - F.O. Zad 6-10'!$C$52:$G$210,5,0),0)","v":0},191,0,22,0,6,0,25,0,48,0,84,0,6,0]
[null,5,"AHMAD HERBATA EARL GREY OPK100","Herbata czarna AHMAD Earl Grey, 100 torebek","1 op. (100 torobek)",{"$f":"IF('Załącznik 7 - F.O. Zad 6-10'!$V$56,VLOOKUP(C26,'Załącznik 7 - F.O. Zad 6-10'!$C$52:$G$210,5,0),0)","v":0},37,0,10,0,14,0,3,0,null,null,4,0,6,0]
[null,6,"BIG-ACTIVE PURE CEYLON HERBATA OPK100","Herbata czarna BIG-ACTIVE Pure Ceylon, 100 torebek","1 op. (100 torobek)",{"$f":"IF('Załącznik 7 - F.O. Zad 6-10'!$V$56,VLOOKUP(C27,'Załącznik 7 - F.O. Zad 6-10'!$C$52:$G$210,5,0),0)","v":0},20,0,5,0,null,null,6,0,null,null,null,null,6,0,3,0]
[null,7,"DILMAH CEYLON GOLD HERBATA 200G OPK100","Herbata czarna DILMAH Ceylon Gold, 100 torebek","1 op. (100 torobek)",{"$f":"IF('Załącznik 7 - F.O. Zad 6-10'!$V$56,VLOOKUP(C28,'Załącznik 7 - F.O. Zad 6-10'!$C$52:$G$210,5,0),0)","v":0},39,0,5,0,16,0,4,0,1,0,4,0,6,0,3,0]
[null,8,"DILMAH EARL GREY HERBATA LIŚCIASTA 125G","Herbata czarna liściasta DILMAH Earl Grey, 125 g","1 op. ( 125 g)",{"$f":"IF('Załącznik 7 - F.O. Zad 6-10'!$V$56,VLOOKUP(C29,'Załącznik 7 - F.O. Zad 6-10'!$C$52:$G$210,5,0),0)","v":0},13,0,null,null,1,0,6,0,null,null,null,null,6,0]
[null,9,"HERBAPOL BREAKFAST HERB MIĘTOWA OPK20 ","Herbata miętowa HERBAPOL Breakfast, 20 kopert","1 op.(  20 torebek)",{"$f":"IF('Załącznik 7 - F.O. Zad 6-10'!$V$56,VLOOKUP(C30,'Załącznik 7 - F.O. Zad 6-10'!$C$52:$G$210,5,0),0)","v":0},23,0,3,0,null,null,6,0,2,0,null,null,6,0,6,0]
[null,10,"HERBAPOL HERBATA MALINOWA OPK20","Herbata owocowa HERBAPOL Herbaciany Ogród malinowa, 20 torebek","1 op.(  20 torebek)",{"$f":"IF('Załącznik 7 - F.O. Zad 6-10'!$V$56,VLOOKUP(C31,'Załącznik 7 - F.O. Zad 6-10'!$C$52:$G$210,5,0),0)","v":0},61,0,5,0,12,0,18,0,7,0,7,0,6,0,6,0]
[null,11,"HERBAPOL PROSTO Z LASU OPK20","Herbata owocowa HERBAPOL Herbaciany Ogród, Prosto z lasu, 20 torebek","1 op.(  20 torebek)",{"$f":"IF('Załącznik 7 - F.O. Zad 6-10'!$V$56,VLOOKUP(C32,'Załącznik 7 - F.O. Zad 6-10'!$C$52:$G$210,5,0),0)","v":0},21,0,2,0,1,0,6,0,null,null,null,null,6,0,6,0]
[null,12,"HERBAPOL ZIELONA HERBATA OPK20","Herbata zielona HERBAPOL, 20 torebek bez zawieszki","1 op.(  20 torebek)",{"$f":"IF('Załącznik 7 - F.O. Zad 6-10'!$V$56,VLOOKUP(C33,'Załącznik 7 - F.O. Zad 6-10'!$C$52:$G$210,5,0),0)","v":0},112,0,15,0,null,null,9,0,7,0,69,0,6,0,6,0]
[null,13,"Herbata zielona Lipton Piramidki","Herbata zielona LIPTON  20 torebek piramidek","1 op.(  20 torebek)",{"$f":"IF('Załącznik 7 - F.O. Zad 6-10'!$V$56,VLOOKUP(C34,'Załącznik 7 - F.O. Zad 6-10'!$C$52:$G$210,5,0),0)","v":0},18,0,null,null,null,null,6,0,null,null,null,null,6,0,6,0]
[null,14,"IRVING BIAŁ POZIOMK/MANDAR HERBATA OPK20","Harbata biała IRVING poziomkowa z mandarynką, 20 kopert","1 op.(  20 torebek)",{"$f":"IF('Załącznik 7 - F.O. Zad 6-10'!$V$56,VLOOKUP(C35,'Załącznik 7 - F.O. Zad 6-10'!$C$52:$G$210,5,0),0)","v":0},15,0,2,0,1,0,6,0,null,null,null,null,6,0]
[null,15,"IRVING HERBATA CLASSIC OPK100","Herbata czarna IRVING Classic, 100 torebek","1 op.(  100 torebek)",{"$f":"IF('Załącznik 7 - F.O. Zad 6-10'!$V$56,VLOOKUP(C36,'Załącznik 7 - F.O. Zad 6-10'!$C$52:$G$210,5,0),0)","v":0},19,0,8,0,null,null,1,0,null,null,4,0,6,0]
[null,16,"LIPTON EARL GREY HERBATA OPK100","Herbata czarna LIPTON Earl Grey, 100 torebek","1 op. (100 torebek)",{"$f":"IF('Załącznik 7 - F.O. Zad 6-10'!$V$56,VLOOKUP(C37,'Załącznik 7 - F.O. Zad 6-10'!$C$52:$G$210,5,0),0)","v":0},204,0,10,0,48,0,8,0,5,0,127,0,6,0]
[null,17,"LIPTON MELISA/WIŚNIA HERBATAOPK20","Herbata ziołowa LIPTON Melisa z wiśnią, 20 torebek","1 op. (20 torebek)",{"$f":"IF('Załącznik 7 - F.O. Zad 6-10'!$V$56,VLOOKUP(C38,'Załącznik 7 - F.O. Zad 6-10'!$C$52:$G$210,5,0),0)","v":0},23,0,5,0,null,null,6,0,null,null,null,null,6,0,6,0]
[null,18,"LIPTON PYRAMID CYTRYNOWA Z MELISĄ OPK20","Herbata czarna LIPTON cytrynowa z melisą, 20 torebek piramidek","1 op. (20 torebek)",{"$f":"IF('Załącznik 7 - F.O. Zad 6-10'!$V$56,VLOOKUP(C39,'Załącznik 7 - F.O. Zad 6-10'!$C$52:$G$210,5,0),0)","v":0},24,0,7,0,null,null,8,0,3,0,null,null,6,0]
[null,19,"LIPTON PYRAMID FOREST FRUIT","Herbata owocowa LIPTON owoce leśne, 20 torebek piramidek","1 op. (20 torebek)",{"$f":"IF('Załącznik 7 - F.O. Zad 6-10'!$V$56,VLOOKUP(C40,'Załącznik 7 - F.O. Zad 6-10'!$C$52:$G$210,5,0),0)","v":0},20,0,null,null,null,null,6,0,null,null,null,null,8,0,6,0]
[null,20,"LIPTON YELLOW LABEL HERBATA  OPK100","Herbata czarna LIPTON Yellow Label, 100 torebek","1 op. (100 torebek)",{"$f":"IF('Załącznik 7 - F.O. Zad 6-10'!$V$56,VLOOKUP(C41,'Załącznik 7 - F.O. Zad 6-10'!$C$52:$G$210,5,0),0)","v":0},768,0,10,0,87,0,20,0,324,0,317,0,6,0,4,0]
[null,21,"LIPTON YELLOW LABEL HERBATA  OPK50","Herbata czarna LIPTON Yellow Label, 50 torebek","1 op. (50 torebek)",{"$f":"IF('Załącznik 7 - F.O. Zad 6-10'!$V$56,VLOOKUP(C42,'Załącznik 7 - F.O. Zad 6-10'!$C$52:$G$210,5,0),0)","v":0},111,0,10,0,75,0,20,0,null,null,null,null,6,0]
[null,22,"LIPTON ZIELONA CITRUS HERBATA OPK25","Herbata zielona LIPTON cytrusowa, 25 torebek","1 op. (25 torebek)",{"$f":"IF('Załącznik 7 - F.O. Zad 6-10'!$V$56,VLOOKUP(C43,'Załącznik 7 - F.O. Zad 6-10'!$C$52:$G$210,5,0),0)","v":0},45,0,5,0,3,0,18,0,5,0,4,0,6,0,4,0]
[null,23,"LIPTON ZIELONA MIĘTOWA HERBATA OPK25 ","Herbata zielona LIPTON miętowa, 25 torebek","1 op. (25 torebek)",{"$f":"IF('Załącznik 7 - F.O. Zad 6-10'!$V$56,VLOOKUP(C44,'Załącznik 7 - F.O. Zad 6-10'!$C$52:$G$210,5,0),0)","v":0},38,0,5,0,null,null,18,0,2,0,4,0,6,0,3,0]
[null,24,"TEEKANNE BLACK CURRANT HERBATA OPK20","Herbata owocowa TEEKANNE World of Fruits, Black Currant, 20 kopert","1 op. (20 torebek)",{"$f":"IF('Załącznik 7 - F.O. Zad 6-10'!$V$56,VLOOKUP(C45,'Załącznik 7 - F.O. Zad 6-10'!$C$52:$G$210,5,0),0)","v":0},14,0,2,0,null,null,6,0,null,null,null,null,6,0]
[null,25,"TEEKANNE EARL GREY HERBATA  OPK100","Herbata czarna TEEKANNE Earl Grey, 100 torebek","1 op. (100 torebek)",{"$f":"IF('Załącznik 7 - F.O. Zad 6-10'!$V$56,VLOOKUP(C46,'Załącznik 7 - F.O. Zad 6-10'!$C$52:$G$210,5,0),0)","v":0},27,0,6,0,3,0,8,0,null,null,4,0,6,0]
[null,26,"TEEKANNE WORLD OF FRUITS ZESTAW OPK30","Zestaw herbat owocowych TEEKANNE World of Fruits, 30 kopert","1 op. (30 torebek)",{"$f":"IF('Załącznik 7 - F.O. Zad 6-10'!$V$56,VLOOKUP(C47,'Załącznik 7 - F.O. Zad 6-10'!$C$52:$G$210,5,0),0)","v":0},17,0,2,0,null,null,8,0,1,0,null,null,6,0]
[null,27,"TEEKANNE ZIELON OPUNCJA HERBATA OPK20 ","Herbata zielona TEEKANNE z opuncją, 20 kopert","1 op. (20 torebek)",{"$f":"IF('Załącznik 7 - F.O. Zad 6-10'!$V$56,VLOOKUP(C48,'Załącznik 7 - F.O. Zad 6-10'!$C$52:$G$210,5,0),0)","v":0},44,0,5,0,5,0,21,0,null,null,7,0,6,0]
[null,28,"VITAX HERBATA MELISA I POMARAŃCZA OPK20","Herbata owocowa VITAX Inspirations melisa & pomarańcza, 20 torebek","1 op. (20 torebek)",{"$f":"IF('Załącznik 7 - F.O. Zad 6-10'!$V$56,VLOOKUP(C49,'Załącznik 7 - F.O. Zad 6-10'!$C$52:$G$210,5,0),0)","v":0},34,0,8,0,null,null,16,0,null,null,4,0,6,0]
[null,29,"VITAX HERBATA ZIOŁOWA MELISA OPK20","Herbata ziołowa VITAX melisa, 20 okrągłych torebek bez zawieszki","1 op. (20 torebek)",{"$f":"IF('Załącznik 7 - F.O. Zad 6-10'!$V$56,VLOOKUP(C50,'Załącznik 7 - F.O. Zad 6-10'!$C$52:$G$210,5,0),0)","v":0},23,0,6,0,null,null,3,0,null,null,4,0,6,0,4,0]
[null,30,"VITAX HERBATA ZIOŁOWA MIĘTA OPK20","Herbata ziołowa VITAX mięta, 20 okrągłych torebek bez zawieszki","1 op. (20 torebek)",{"$f":"IF('Załącznik 7 - F.O. Zad 6-10'!$V$56,VLOOKUP(C51,'Załącznik 7 - F.O. Zad 6-10'!$C$52:$G$210,5,0),0)","v":0},43,0,10,0,null,null,10,0,null,null,17,0,6,0]
[null,31,"VITAX HERBATA ŻURAWINA I MALINA OPK20","Herbata owocowa VITAX Inspirations żurawina & malina, 20 torebek","1 op. (20 torebek)",{"$f":"IF('Załącznik 7 - F.O. Zad 6-10'!$V$56,VLOOKUP(C52,'Załącznik 7 - F.O. Zad 6-10'!$C$52:$G$210,5,0),0)","v":0},36,0,2,0,null,null,19,0,1,0,4,0,6,0,4,0]
[null,32,"VITAX NAPAR RUMIANEK OPK20","Herbata ziołowa VITAX rumianek, 20 kwadratowych torebek bez zawieszki","1 op. (20 torebek)",{"$f":"IF('Załącznik 7 - F.O. Zad 6-10'!$V$56,VLOOKUP(C53,'Załącznik 7 - F.O. Zad 6-10'!$C$52:$G$210,5,0),0)","v":0},15,0,5,0,null,null,4,0,null,null,null,null,6,0]
[null,33,"ASTRA ŁAGODNA TRADYCYJNA KAWA MIEL 250 G","Kawa ziarnista Astra Łagodna 250 g","1 op. (250 g)",{"$f":"IF('Załącznik 7 - F.O. Zad 6-10'!$V$56,VLOOKUP(C54,'Załącznik 7 - F.O. Zad 6-10'!$C$52:$G$210,5,0),0)","v":0},23,0,null,null,null,null,17,0,null,null,null,null,6,0]
[null,34,"ASTRA ŁAGODNA TRADYCYJNA KAWA ZIARN 1 KG","Kawa ziarnista Astra Łagodna 1 kg","1 op. (1 kg)",{"$f":"IF('Załącznik 7 - F.O. Zad 6-10'!$V$56,VLOOKUP(C55,'Załącznik 7 - F.O. Zad 6-10'!$C$52:$G$210,5,0),0)","v":0},57,0,null,null,21,0,30,0,null,null,null,null,6,0]
[null,35,"DUNI KUBEK PAPIER BIAŁY 210ML OPK50","Kubek papierowy do gorących i zminych napojów 210 ml","1 op. (50 szt.)",{"$f":"IF('Załącznik 7 - F.O. Zad 6-10'!$V$56,VLOOKUP(C56,'Załącznik 7 - F.O. Zad 6-10'!$C$52:$G$210,5,0),0)","v":0},15,0,1,0,1,0,6,0,1,0,null,null,6,0]
[null,36,"EDUSCHO CAFFE CREMA KAWA ZIARNISTA 1KG","Kawa ziarnista EDUSCHO Caffe Crema, 1 kg","1 op. ( 1 kg.)",{"$f":"IF('Załącznik 7 - F.O. Zad 6-10'!$V$56,VLOOKUP(C57,'Załącznik 7 - F.O. Zad 6-10'!$C$52:$G$210,5,0),0)","v":0},163,0,null,null,null,null,21,0,36,0,100,0,6,0]
[null,37,"ESPRESSO KARMELOWE OPK50 NNSA 8868","Kawa w kapsułkach NESPRESSO ESPRESSO CARAMEL, 50 szt. (box)","1 op. (50 szt.)",{"$f":"IF('Załącznik 7 - F.O. Zad 6-10'!$V$56,VLOOKUP(C58,'Załącznik 7 - F.O. Zad 6-10'!$C$52:$G$210,5,0),0)","v":0},12,0,null,null,null,null,6,0,null,null,null,null,6,0]
[null,38,"ESPRESSO WANILIOWE OPK50 NNSA 8869","Kawa w kapsułkach NESPRESSO ESPRESSO VANILLA, 50 szt. (box)","2 op. (50 szt.)",{"$f":"IF('Załącznik 7 - F.O. Zad 6-10'!$V$56,VLOOKUP(C59,'Załącznik 7 - F.O. Zad 6-10'!$C$52:$G$210,5,0),0)","v":0},12,0,null,null,null,null,6,0,null,null,null,null,6,0]
[null,39,"INKA KAWA ZBOŻOWA 200G","Kawa zbożowa INKA, puszka 200 g","1 op.( 200 g.)",{"$f":"IF('Załącznik 7 - F.O. Zad 6-10'!$V$56,VLOOKUP(C60,'Załącznik 7 - F.O. Zad 6-10'!$C$52:$G$210,5,0),0)","v":0},12,0,3,0,null,null,3,0,null,null,null,null,6,0]
[null,40,"JACOBS BARISTA AMERICANO KAWA ROZPU 155G","Kawa rozpuszczalna JACOBS Barista Americano 155 g","1 op. (słoik 155g)",{"$f":"IF('Załącznik 7 - F.O. Zad 6-10'!$V$56,VLOOKUP(C61,'Załącznik 7 - F.O. Zad 6-10'!$C$52:$G$210,5,0),0)","v":0},13,0,null,null,1,0,6,0,null,null,null,null,6,0]
[null,41,"JACOBS CRONAT GOLD KAWA MIELONA 500G","Kawa mielona JACOBS Cronat Gold, 500 g","1 op. (500 g.)",{"$f":"IF('Załącznik 7 - F.O. Zad 6-10'!$V$56,VLOOKUP(C62,'Załącznik 7 - F.O. Zad 6-10'!$C$52:$G$210,5,0),0)","v":0},27,0,5,0,null,null,12,0,null,null,null,null,6,0,4,0]
[null,42,"JACOBS CRONAT GOLD KAWA ROZPUSZCZ 200G","Kawa rozpuszczalna JACOBS Cronat Gold, 200 g","1 op.( 200 g.)",{"$f":"IF('Załącznik 7 - F.O. Zad 6-10'!$V$56,VLOOKUP(C63,'Załącznik 7 - F.O. Zad 6-10'!$C$52:$G$210,5,0),0)","v":0},80,0,4,0,null,null,3,0,null,null,67,0,6,0]
[null,43,"JACOBS GOLD CREMA KAWA ROZPUSZCZ 200G","Kawa rozpuszczalna JACOBS Crema Gold, 200 g","1 op.( 200 g.)",{"$f":"IF('Załącznik 7 - F.O. Zad 6-10'!$V$56,VLOOKUP(C64,'Załącznik 7 - F.O. Zad 6-10'!$C$52:$G$210,5,0),0)","v":0},89,0,5,0,null,null,8,0,3,0,67,0,6,0]
[null,44,"JACOBS KRONUNG KAWA MIELONA 250G","Kawa mielona JACOBS Kronung, 250 g","1 op. (250 g.)",{"$f":"IF('Załącznik 7 - F.O. Zad 6-10'!$V$56,VLOOKUP(C65,'Załącznik 7 - F.O. Zad 6-10'!$C$52:$G$210,5,0),0)","v":0},115,0,6,0,3,0,30,0,3,0,67,0,6,0]
[null,45,"JACOBS KRONUNG KAWA ROZPUSZCZALNA 200G","Kawa rozpuszczalna JACOBS Kronung, 200 g","1 op.( 200 g.)",{"$f":"IF('Załącznik 7 - F.O. Zad 6-10'!$V$56,VLOOKUP(C66,'Załącznik 7 - F.O. Zad 6-10'!$C$52:$G$210,5,0),0)","v":0},243,0,4,0,null,null,11,0,2,0,217,0,6,0,3,0]
[null,46,"KUBEK PAPIEROWY 110ML OPK50 ","Kubek papierowy do gorących napojów 110 ml","1 op. (50 szt.)",{"$f":"IF('Załącznik 7 - F.O. Zad 6-10'!$V$56,VLOOKUP(C67,'Załącznik 7 - F.O. Zad 6-10'!$C$52:$G$210,5,0),0)","v":0},15,0,1,0,2,0,6,0,null,null,null,null,6,0]
[null,47,"KUBEK PAPIEROWY 360ML OPK35","Kubek papierowy do gorących napojów 360 ml","1 op. (35 szt.)",{"$f":"IF('Załącznik 7 - F.O. Zad 6-10'!$V$56,VLOOKUP(C68,'Załącznik 7 - F.O. Zad 6-10'!$C$52:$G$210,5,0),0)","v":0},15,0,1,0,2,0,6,0,null,null,null,null,6,0]
[null,48,"KUBEK PLASTIK 200ML BIAŁE OPK100","Kubek plastikowy do zimnych napojów 200 ml Biały","1 op. (100 szt.)",{"$f":"IF('Załącznik 7 - F.O. Zad 6-10'!$V$56,VLOOKUP(C69,'Załącznik 7 - F.O. Zad 6-10'!$C$52:$G$210,5,0),0)","v":0},14,0,1,0,1,0,6,0,null,null,null,null,6,0]
[null,49,"LAVAZZA CREMA AROMA KAWA ZIARNISTA 1KG","Kawa ziarnista LAVAZZA Crema Aroma, 1 kg","1 op. (1 kg)",{"$f":"IF('Załącznik 7 - F.O. Zad 6-10'!$V$56,VLOOKUP(C70,'Załącznik 7 - F.O. Zad 6-10'!$C$52:$G$210,5,0),0)","v":0},196,0,30,0,1,0,92,0,null,null,67,0,6,0]
[null,50,"LAVAZZA PRONTOCREMA GRANDE AROMA ZIA 1KG","Kawa ziarnista LAVAZZA Pronto crema Grande Aroma 1 kg","1 op. (1 kg)",{"$f":"IF('Załącznik 7 - F.O. Zad 6-10'!$V$56,VLOOKUP(C71,'Załącznik 7 - F.O. Zad 6-10'!$C$52:$G$210,5,0),0)","v":0},46,0,null,null,null,null,6,0,null,null,34,0,6,0]
[null,51,"LAVAZZA QUALITA ORO KAWA MIELONA 250G","Kawa mielona LAVAZZA Qualita Oro, 250 g","1 op. (250 g)",{"$f":"IF('Załącznik 7 - F.O. Zad 6-10'!$V$56,VLOOKUP(C72,'Załącznik 7 - F.O. Zad 6-10'!$C$52:$G$210,5,0),0)","v":0},43,0,10,0,null,null,12,0,12,0,null,null,6,0,3,0]
[null,52,"LAVAZZA QUALITA ORO KAWA ZIARNISTA 1 KG","Kawa ziarnista LAVAZZA Qualita Oro, 1 kg","1 op. (1 kg)",{"$f":"IF('Załącznik 7 - F.O. Zad 6-10'!$V$56,VLOOKUP(C73,'Załącznik 7 - F.O. Zad 6-10'!$C$52:$G$210,5,0),0)","v":0},107,0,40,0,null,null,57,0,null,null,4,0,6,0]
[null,53,"LAVAZZA QUALITA ROSSA KAWA ZIARNISTA 1KG","Kawa ziarnista LAVAZZA Qualita Rossa, 1 kg","1 op. (1 kg)",{"$f":"IF('Załącznik 7 - F.O. Zad 6-10'!$V$56,VLOOKUP(C74,'Załącznik 7 - F.O. Zad 6-10'!$C$52:$G$210,5,0),0)","v":0},63,0,15,0,null,null,38,0,null,null,4,0,6,0]
[null,54,"NESCAFE SENSAZIONE CREME KAWA ROZP 200G","Kawa rozpuszczalna NESCAFÉ Sensazione Creme, 200 g","1 op.( 200 g.)",{"$f":"IF('Załącznik 7 - F.O. Zad 6-10'!$V$56,VLOOKUP(C75,'Załącznik 7 - F.O. Zad 6-10'!$C$52:$G$210,5,0),0)","v":0},408,0,25,0,null,null,8,0,null,null,367,0,6,0,2,0]
[null,55,"TCHIBO EXCLUSIVE KAWA MIELONA 250G","Kawa mielona TCHIBO Exclusive, 250 g","1 op. (250 g)",{"$f":"IF('Załącznik 7 - F.O. Zad 6-10'!$V$56,VLOOKUP(C76,'Załącznik 7 - F.O. Zad 6-10'!$C$52:$G$210,5,0),0)","v":0},39,0,15,0,null,null,12,0,null,null,4,0,6,0,2,0]
[null,56,"TCHIBO FAMILY KAWA MIELONA 250G","Kawa mielona TCHIBO Family, 250 g","1 op. (250 g)",{"$f":"IF('Załącznik 7 - F.O. Zad 6-10'!$V$56,VLOOKUP(C77,'Załącznik 7 - F.O. Zad 6-10'!$C$52:$G$210,5,0),0)","v":0},259,0,null,null,1,0,2,0,null,null,250,0,6,0]
[null,57,"TCHIBO FAMILY KAWA ROZPUSZCZALNA 200G","Kawa rozpuszczalna TCHIBO Family, 200 g","1 op. (200 g)",{"$f":"IF('Załącznik 7 - F.O. Zad 6-10'!$V$56,VLOOKUP(C78,'Załącznik 7 - F.O. Zad 6-10'!$C$52:$G$210,5,0),0)","v":0},29,0,20,0,null,null,1,0,null,null,null,null,6,0,2,0]
[null,58,"TCHIBO PROFESSIONAL CREMA ZIARNISTA 1KG","Kawa ziarnista TCHIBO Profesional  Crema  1 kg ","1 op. (1 kg)",{"$f":"IF('Załącznik 7 - F.O. Zad 6-10'!$V$56,VLOOKUP(C79,'Załącznik 7 - F.O. Zad 6-10'!$C$52:$G$210,5,0),0)","v":0},13,0,1,0,null,null,6,0,null,null,null,null,6,0]
[null,59,"GOSTYŃ MLEKO SKONDENS NIESŁODZONE 500G","Mleko zagęszczone GOSTYŃ 7,5% niesłodzone, 500 g","1 op. ( 1 karton 500 g)",{"$f":"IF('Załącznik 7 - F.O. Zad 6-10'!$V$56,VLOOKUP(C80,'Załącznik 7 - F.O. Zad 6-10'!$C$52:$G$210,5,0),0)","v":0},19,0,1,0,2,0,6,0,null,null,4,0,6,0]
[null,60,"ŁACIATA ŚMIETANKA UHT 12% 500ML","Śmietanka do kawy ŁACIATA 12%, 500 ml","1 op. (500 ml)",{"$f":"IF('Załącznik 7 - F.O. Zad 6-10'!$V$56,VLOOKUP(C81,'Załącznik 7 - F.O. Zad 6-10'!$C$52:$G$210,5,0),0)","v":0},17,0,1,0,null,null,3,0,null,null,4,0,6,0,3,0]
[null,61,"ŁACIATA ŚMIETANKA W KUBECZKACH OPK10X10G","Śmietanka do kawy ŁACIATA 10%, 10 kubeczków x 10 g","1 op. (10 kubeczków)",{"$f":"IF('Załącznik 7 - F.O. Zad 6-10'!$V$56,VLOOKUP(C82,'Załącznik 7 - F.O. Zad 6-10'!$C$52:$G$210,5,0),0)","v":0},70,0,2,0,7,0,38,0,null,null,10,0,7,0,6,0]
[null,62,"ŁACIATE MLEKO UHT 2% 0,5L","Mleko ŁACIATE UHT 2,0%, 0,5 l","1 op. (500 ml)",{"$f":"IF('Załącznik 7 - F.O. Zad 6-10'!$V$56,VLOOKUP(C83,'Załącznik 7 - F.O. Zad 6-10'!$C$52:$G$210,5,0),0)","v":0},124,0,10,0,1,0,29,0,60,0,4,0,6,0,14,0]
[null,63,"ŁACIATE MLEKO UHT 2% 1L","Mleko ŁACIATE UHT 2,0%, 1 l","1 op. (1 l)",{"$f":"IF('Załącznik 7 - F.O. Zad 6-10'!$V$56,VLOOKUP(C84,'Załącznik 7 - F.O. Zad 6-10'!$C$52:$G$210,5,0),0)","v":0},1494,0,500,0,2,0,28,0,220,0,717,0,7,0,20,0]
[null,64,"ŁACIATE MLEKO UHT 3,2% 0,5L","Mleko ŁACIATE UHT 3,2%, 0,5 l","1 op. (500 ml)",{"$f":"IF('Załącznik 7 - F.O. Zad 6-10'!$V$56,VLOOKUP(C85,'Załącznik 7 - F.O. Zad 6-10'!$C$52:$G$210,5,0),0)","v":0},157,0,20,0,1,0,21,0,80,0,4,0,6,0,25,0]
[null,65,"ŁACIATE MLEKO UHT 3,2% 1L","Mleko ŁACIATE UHT 3,2%, 1 l","1 op. (1 l)",{"$f":"IF('Załącznik 7 - F.O. Zad 6-10'!$V$56,VLOOKUP(C86,'Załącznik 7 - F.O. Zad 6-10'!$C$52:$G$210,5,0),0)","v":0},193,0,100,0,37,0,25,{"$f":"M86*F86","v":0},12,{"$f":"O86*F86","v":0},4,{"$f":"Q86*F86","v":0},5,{"$f":"S86*F86","v":0},10,{"$f":"U86*F86","v":0}]
[null,66,"ŁACIATE MLEKO ZAGĘSZCZONE 7,5% 0,5L","Mleko zagęszczone ŁACIATE UHT 7,5%, 0,5 l","1 op. (500 ml)",{"$f":"IF('Załącznik 7 - F.O. Zad 6-10'!$V$56,VLOOKUP(C87,'Załącznik 7 - F.O. Zad 6-10'!$C$52:$G$210,5,0),0)","v":0},{"$f":"I87+K87+M87+O87+Q87+S87+U87","v":57},{"$f":"G87*F87","v":0},1,0,null,null,3,0,40,0,7,0,6,0]
[null,67,"MLEKOVITA BEZ LAKTOZY UHT WYDOJONE 1,5%","Mleko WYDOJONE UHT, bez laktozy 1,5%, 1 l","1 op. (1 l)",{"$f":"IF('Załącznik 7 - F.O. Zad 6-10'!$V$56,VLOOKUP(C88,'Załącznik 7 - F.O. Zad 6-10'!$C$52:$G$210,5,0),0)","v":0},19,0,5,0,2,{"$f":"K88*F88","v":0},6,0,null,null,null,null,6,0]
[null,68,"MLEKOVITA BEZ LAKTOZY UHT WYDOJONE 3,2%","Mleko WYDOJONE UHT, bez laktozy, 3,2%, 1 l","1 op. (1 l)",{"$f":"IF('Załącznik 7 - F.O. Zad 6-10'!$V$56,VLOOKUP(C89,'Załącznik 7 - F.O. Zad 6-10'!$C$52:$G$210,5,0),0)","v":0},75,0,50,0,1,0,14,0,null,null,4,0,6,0]
[null,69,"ZAMBROWSKIE MLEKO UHT 3,2% 1L","Mleko ZAMBROWSKIE UHT 3,2 %, 1 l","1 op. (1 l)",{"$f":"IF('Załącznik 7 - F.O. Zad 6-10'!$V$56,VLOOKUP(C90,'Załącznik 7 - F.O. Zad 6-10'!$C$52:$G$210,5,0),0)","v":0},34,0,15,0,null,null,6,0,6,0,null,null,7,0]
[null,70,"BAKALLAND BAKALIE STUDENCKI MIX 200G","Cukierki Mieszanka bakaliowa BAKALLAND Studencki Mix, 200 g","1 op (200 g)",{"$f":"IF('Załącznik 7 - F.O. Zad 6-10'!$V$56,VLOOKUP(C91,'Załącznik 7 - F.O. Zad 6-10'!$C$52:$G$210,5,0),0)","v":0},50,0,null,null,null,null,16,0,10,0,5,0,6,0,13,0]
[null,71,"BAKALLAND MIGDAŁY 300G","Migdały BAKALLAND, 300 g","1 op. (300 g)",{"$f":"IF('Załącznik 7 - F.O. Zad 6-10'!$V$56,VLOOKUP(C92,'Załącznik 7 - F.O. Zad 6-10'!$C$52:$G$210,5,0),0)","v":0},27,0,null,null,null,null,10,0,null,null,5,0,6,0,6,0]
[null,72,"BAKALLAND ORZECHY NERKOWCA 300G","Orzechy nerkowca BAKALLAND, 300 g","1 op. (300 g)",{"$f":"IF('Załącznik 7 - F.O. Zad 6-10'!$V$56,VLOOKUP(C93,'Załącznik 7 - F.O. Zad 6-10'!$C$52:$G$210,5,0),0)","v":0},30,0,null,null,null,null,15,0,null,null,5,0,6,0,4,0]
[null,73,"BELVITA CIASTKA KAKAOWE 300G","Ciastka BELVITA, kakaowe, 300 g, 24 ciasteczka","1 op. (300 g)",{"$f":"IF('Załącznik 7 - F.O. Zad 6-10'!$V$56,VLOOKUP(C94,'Załącznik 7 - F.O. Zad 6-10'!$C$52:$G$210,5,0),0)","v":0},14,0,null,null,null,null,8,0,null,null,null,null,6,0]
[null,74,"BELVITA CIASTKA MUSLI+OWOCE 300G","Ciastka BELVITA Musli z owocami, 24 ciasteczka pakowane po 4 sztuki, 300 g","1 op. (300 g)",{"$f":"IF('Załącznik 7 - F.O. Zad 6-10'!$V$56,VLOOKUP(C95,'Załącznik 7 - F.O. Zad 6-10'!$C$52:$G$210,5,0),0)","v":0},12,0,null,null,null,null,6,0,null,null,null,null,6,0]
[null,75,"CISOWIANKA WODA GAZOWANA 0,5L OPK12","Woda mineralna CISOWIANKA gazowana, zgrzewka 12 butelek x 0,5 l","1 op. (12 butelek)",{"$f":"IF('Załącznik 7 - F.O. Zad 6-10'!$V$56,VLOOKUP(C96,'Załącznik 7 - F.O. Zad 6-10'!$C$52:$G$210,5,0),0)","v":0},140,0,65,0,null,null,null,null,18,0,1,0,6,0,50,0]
[null,76,"DELICJE SZAMPAŃSKIE MALINA 147G","Ciastka DELICJE Szampańskie malinowe, 147 g","1 op. (147 g)",{"$f":"IF('Załącznik 7 - F.O. Zad 6-10'!$V$56,VLOOKUP(C97,'Załącznik 7 - F.O. Zad 6-10'!$C$52:$G$210,5,0),0)","v":0},72,0,3,0,null,null,28,0,26,0,1,0,6,0,8,0]
[null,77,"DELICJE SZAMPAŃSKIE POMARAŃCZA 147G","Ciastka DELICJE Szampańskie pomarańczowe, 147 g","1 op. (147 g)",{"$f":"IF('Załącznik 7 - F.O. Zad 6-10'!$V$56,VLOOKUP(C98,'Załącznik 7 - F.O. Zad 6-10'!$C$52:$G$210,5,0),0)","v":0},72,0,3,0,null,null,30,0,26,0,1,0,6,0,6,0]
[null,78,"DELICJE SZAMPAŃSKIE WIŚNIA 147G","Ciastka DELICJE Szampańskie wiśniowe, 147 g","1 op. (147 g)",{"$f":"IF('Załącznik 7 - F.O. Zad 6-10'!$V$56,VLOOKUP(C99,'Załącznik 7 - F.O. Zad 6-10'!$C$52:$G$210,5,0),0)","v":0},60,0,3,0,null,null,19,0,25,0,1,0,6,0,6,0]
[null,79,"DELICJE SZAMPAŃSKIE WIŚNIOWE 294G","Ciastka DELICJE Szampańskie wiśniowe, podwójne opakowanie, 294 g","1 op. ( 294 g)",{"$f":"IF('Załącznik 7 - F.O. Zad 6-10'!$V$56,VLOOKUP(C100,'Załącznik 7 - F.O. Zad 6-10'!$C$52:$G$210,5,0),0)","v":0},13,0,null,null,null,null,6,0,null,null,1,0,6,0]
[null,80,"FERRERO RAFAELLO 230 G","Praliny RAFFAELLO, 230 g","1 op.(  230 g.)",{"$f":"IF('Załącznik 7 - F.O. Zad 6-10'!$V$56,VLOOKUP(C101,'Załącznik 7 - F.O. Zad 6-10'!$C$52:$G$210,5,0),0)","v":0},84,0,null,null,null,null,16,0,24,0,34,0,6,0,4,0]
[null,81,"FERRERO RAFFAELLO PRALINY 230G","Praliny RAFFAELLO, 230 g","2 op.(  230 g.)",{"$f":"IF('Załącznik 7 - F.O. Zad 6-10'!$V$56,VLOOKUP(C102,'Załącznik 7 - F.O. Zad 6-10'!$C$52:$G$210,5,0),0)","v":0},8,0,null,null,null,null,null,null,null,null,null,null,6,0,2,0]
[null,82,"Ferrero Rocher Praliny 200g","Czekoladki FERRERO ROCHER, 200 g","3 op.(  200 g.)",{"$f":"IF('Załącznik 7 - F.O. Zad 6-10'!$V$56,VLOOKUP(C103,'Załącznik 7 - F.O. Zad 6-10'!$C$52:$G$210,5,0),0)","v":0},15,0,null,null,null,null,6,0,null,null,null,null,6,0,3,0]
[null,83,"GOPLANA TOFFINO CHOCO 1KG","Cukierki Goplana Toffino Choco Toffi mleczne z kremem czekoladowym 1 kg","1 op. ( 1 kg.)",{"$f":"IF('Załącznik 7 - F.O. Zad 6-10'!$V$56,VLOOKUP(C104,'Załącznik 7 - F.O. Zad 6-10'!$C$52:$G$210,5,0),0)","v":0},14,0,null,null,null,null,6,0,null,null,null,null,6,0,2,0]
[null,84,"HIT MARKIZY CZEKOLADOWE 220G","Ciastka BAHLSEN HIT czekoladowe, 220 g","1 op.(  220 g)",{"$f":"IF('Załącznik 7 - F.O. Zad 6-10'!$V$56,VLOOKUP(C105,'Załącznik 7 - F.O. Zad 6-10'!$C$52:$G$210,5,0),0)","v":0},27,0,null,null,null,null,13,0,6,0,null,null,6,0,2,0]
[null,85,"JUTRZENKA JEŻYKI CAFE CIASTKA 140G","Ciasta JEŻYKI Cafe, 140 g","1 op. (140 g)",{"$f":"IF('Załącznik 7 - F.O. Zad 6-10'!$V$56,VLOOKUP(C106,'Załącznik 7 - F.O. Zad 6-10'!$C$52:$G$210,5,0),0)","v":0},37,0,null,null,null,null,15,0,10,0,1,0,6,0,5,0]
[null,86,"JUTRZENKA JEŻYKI CIASTKA 140G","Ciasta JEŻYKI Classic, 140 g","1 op. (140 g)",{"$f":"IF('Załącznik 7 - F.O. Zad 6-10'!$V$56,VLOOKUP(C107,'Załącznik 7 - F.O. Zad 6-10'!$C$52:$G$210,5,0),0)","v":0},64,0,4,0,null,null,37,0,10,0,2,0,6,0,5,0]
[null,87,"JUTRZENKA WAFLE FAMILIJNE ŚMIET-KAK 180G","Wafle FAMILIJNE śmietankowo-kakaowe, 180 g","1 op. (180 g)",{"$f":"IF('Załącznik 7 - F.O. Zad 6-10'!$V$56,VLOOKUP(C108,'Załącznik 7 - F.O. Zad 6-10'!$C$52:$G$210,5,0),0)","v":0},43,0,null,null,null,null,7,0,30,0,null,null,6,0]
[null,88,"ŁAKOTKI DESEROWE Z CUKREM 168G","Ciastka SAN ŁAKOTKI deserowe z cukrem, 168 g","1 op. (168 g)",{"$f":"IF('Załącznik 7 - F.O. Zad 6-10'!$V$56,VLOOKUP(C109,'Załącznik 7 - F.O. Zad 6-10'!$C$52:$G$210,5,0),0)","v":0},44,0,null,null,null,null,25,0,10,0,null,null,6,0,3,0]
[null,89,"ŁAKOTKI KAKAOWE 168G","Ciastka SAN ŁAKOTKI kakaowe, 168 g","1 op. (168 g)",{"$f":"IF('Załącznik 7 - F.O. Zad 6-10'!$V$56,VLOOKUP(C110,'Załącznik 7 - F.O. Zad 6-10'!$C$52:$G$210,5,0),0)","v":0},15,0,null,null,null,null,6,0,null,null,null,null,6,0,3,0]
[null,90,"ŁAKOTKI KOKOSOWE 168G","Ciastka SAN ŁAKOTKI kokosowe, 168 g","1 op. (168 g)",{"$f":"IF('Załącznik 7 - F.O. Zad 6-10'!$V$56,VLOOKUP(C111,'Załącznik 7 - F.O. Zad 6-10'!$C$52:$G$210,5,0),0)","v":0},41,0,null,null,null,null,22,0,10,0,null,null,6,0,3,0]
[null,91,"MERCI CZEKOLADKI 400 G","Czekoladki MERCI, 400 g","1 op.(400 g.)",{"$f":"IF('Załącznik 7 - F.O. Zad 6-10'!$V$56,VLOOKUP(C112,'Załącznik 7 - F.O. Zad 6-10'!$C$52:$G$210,5,0),0)","v":0},23,0,null,null,null,null,12,0,2,0,null,null,6,0,3,0]
[null,92,"MILKA CHOCO GRAINS CIASTKA 126 G","Ciastka MILKA Chocograins, 126 g","1 op.(126 g.)",{"$f":"IF('Załącznik 7 - F.O. Zad 6-10'!$V$56,VLOOKUP(C113,'Załącznik 7 - F.O. Zad 6-10'!$C$52:$G$210,5,0),0)","v":0},37,0,4,0,null,null,10,0,10,0,1,0,6,0,6,0]
[null,93,"MILKA CHOCOWAFER CIASTKA 150G","Wafle MILKA ChocoWafer, 150 g","1 op.(150g.)",{"$f":"IF('Załącznik 7 - F.O. Zad 6-10'!$V$56,VLOOKUP(C114,'Załącznik 7 - F.O. Zad 6-10'!$C$52:$G$210,5,0),0)","v":0},15,0,null,null,null,null,6,0,null,null,null,null,6,0,3,0]
[null,94,"MILKA MOMENTS CZEKOL MIX 11X97G","Praliny MILKA Moments Mix, 11 czekoladek","1 op. (11 sztuk)",{"$f":"IF('Załącznik 7 - F.O. Zad 6-10'!$V$56,VLOOKUP(C115,'Załącznik 7 - F.O. Zad 6-10'!$C$52:$G$210,5,0),0)","v":0},19,0,null,null,null,null,6,0,4,0,null,null,6,0,3,0]
[null,95,"MILKA MOMENTS TOFF/ORZECH 11x97G","Praliny MILKA Moments Toffee Wholenut, 11 czekoladek","1 op. (11 sztuk)",{"$f":"IF('Załącznik 7 - F.O. Zad 6-10'!$V$56,VLOOKUP(C116,'Załącznik 7 - F.O. Zad 6-10'!$C$52:$G$210,5,0),0)","v":0},15,0,null,null,null,null,6,0,null,null,null,null,6,0,3,0]
[null,96,"MILKA PIEGUSKI CZEKOLADA ORZECHY 135G","Ciastka MILKA Pieguski, czekolada i orzechy, 135 g","1 op. (135 g)",{"$f":"IF('Załącznik 7 - F.O. Zad 6-10'!$V$56,VLOOKUP(C117,'Załącznik 7 - F.O. Zad 6-10'!$C$52:$G$210,5,0),0)","v":0},51,0,4,0,1,0,26,0,10,0,1,0,6,0,3,0]
[null,97,"MILKA SINGLES CZEKOLADKI 138G","Czekoladki MILKA Singles, 32 czekoladki pakowane osobno"," 1 op. (32 szt.)",{"$f":"IF('Załącznik 7 - F.O. Zad 6-10'!$V$56,VLOOKUP(C118,'Załącznik 7 - F.O. Zad 6-10'!$C$52:$G$210,5,0),0)","v":0},33,0,null,null,null,null,15,0,12,0,null,null,6,0]
[null,98,"NESPRESSO CZEKOLADKI BLOND 200G","Czekoladki NESPRESSO blond, 200 g","1 op ( 200 g.)",{"$f":"IF('Załącznik 7 - F.O. Zad 6-10'!$V$56,VLOOKUP(C119,'Załącznik 7 - F.O. Zad 6-10'!$C$52:$G$210,5,0),0)","v":0},14,0,null,null,null,null,6,0,null,null,null,null,6,0,2,0]
[null,99,"NESPRESSO CZEKOLADKI MILK 200G","Czekoladki NESPRESSO mleczne, 200 g","1 op  ( 200 g.)",{"$f":"IF('Załącznik 7 - F.O. Zad 6-10'!$V$56,VLOOKUP(C120,'Załącznik 7 - F.O. Zad 6-10'!$C$52:$G$210,5,0),0)","v":0},14,0,null,null,null,null,6,0,null,null,null,null,6,0,2,0]
[null,100,"PASTYLKI MIĘTOWEW CZEKOLADZIE WAWEL","Cukierki Pastylka miętowa WAWEL, 1 kg","1 op. (1 kg)",{"$f":"IF('Załącznik 7 - F.O. Zad 6-10'!$V$56,VLOOKUP(C121,'Załącznik 7 - F.O. Zad 6-10'!$C$52:$G$210,5,0),0)","v":0},12,0,null,null,null,null,6,0,null,null,null,null,6,0]
[null,101,"SOLIDARNOŚĆ ŚLIWKA NALECZOWSKA 1KG","CukierkiŚliwka Nałęczowska SOLIDARNOŚĆ, 1 kg","2 op. (1 kg)",{"$f":"IF('Załącznik 7 - F.O. Zad 6-10'!$V$56,VLOOKUP(C122,'Załącznik 7 - F.O. Zad 6-10'!$C$52:$G$210,5,0),0)","v":0},68,0,null,null,null,null,22,0,null,null,34,0,6,0,6,0]
[null,102,"TAGO CIASTECZKA KORZENNE 4,8G OPK125 ","Ciastka TAGO korzenne, 125 ciasteczek po 4,8 g","1 op. (125 szt.)",{"$f":"IF('Załącznik 7 - F.O. Zad 6-10'!$V$56,VLOOKUP(C123,'Załącznik 7 - F.O. Zad 6-10'!$C$52:$G$210,5,0),0)","v":0},15,0,null,null,null,null,6,0,null,null,null,null,6,0,3,0]
[null,103,"TAGO OWSIANE DE LUX CIASTECZKA 210G","Ciastka TAGO Owsiane de Lux, 210 g","1 op. (210 g)",{"$f":"IF('Załącznik 7 - F.O. Zad 6-10'!$V$56,VLOOKUP(C124,'Załącznik 7 - F.O. Zad 6-10'!$C$52:$G$210,5,0),0)","v":0},36,0,null,null,1,0,11,0,14,0,1,0,6,0,3,0]
[null,104,"TAGO PRECLE MAŚLANE 158 G","Francuskie precle z masłem TAGO, 158 g","1 op. ( 158 g)",{"$f":"IF('Załącznik 7 - F.O. Zad 6-10'!$V$56,VLOOKUP(C125,'Załącznik 7 - F.O. Zad 6-10'!$C$52:$G$210,5,0),0)","v":0},19,0,null,null,null,null,13,0,null,null,null,null,6,0]
[null,105,"WAWEL MICHAŁKI 1 KG","Cukierki WAWEL Michałki Klasyczne 300 g","1 op. (300 g)",{"$f":"IF('Załącznik 7 - F.O. Zad 6-10'!$V$56,VLOOKUP(C126,'Załącznik 7 - F.O. Zad 6-10'!$C$52:$G$210,5,0),0)","v":0},28,0,null,null,null,null,6,0,12,0,4,0,6,0]
[null,106,"WAWEL MICHAŁKI CLASSIC 300G","Cukierki WAWEL Michałki Klasyczne 300 g","1 op. (300 g)",{"$f":"IF('Załącznik 7 - F.O. Zad 6-10'!$V$56,VLOOKUP(C127,'Załącznik 7 - F.O. Zad 6-10'!$C$52:$G$210,5,0),0)","v":0},6,0,null,null,null,null,null,null,null,null,null,null,6,0]
[null,107,"WAWEL MIESZANKA KRAKOWSKA 1 KG","Cukierki Mieszanka krakowska WAWEL, 1 kg","1 op. (1 kg)",{"$f":"IF('Załącznik 7 - F.O. Zad 6-10'!$V$56,VLOOKUP(C128,'Załącznik 7 - F.O. Zad 6-10'!$C$52:$G$210,5,0),0)","v":0},20,0,null,null,null,null,6,0,3,0,3,0,6,0,2,0]
[null,108,"WAWEL TRUFLE 1 KG","Cukierki WAWEL Trufle","1 op. (1 kg)",{"$f":"IF('Załącznik 7 - F.O. Zad 6-10'!$V$56,VLOOKUP(C129,'Załącznik 7 - F.O. Zad 6-10'!$C$52:$G$210,5,0),0)","v":0},94,0,null,null,null,null,40,0,14,0,34,0,6,0]
[null,109,"WEDEL AMERYKANKI KLASYCZNE 125 G","Ciastka AMERYKANKI, klasyczne, 126 g","1 op. (126 g)",{"$f":"IF('Załącznik 7 - F.O. Zad 6-10'!$V$56,VLOOKUP(C130,'Załącznik 7 - F.O. Zad 6-10'!$C$52:$G$210,5,0),0)","v":0},34,0,4,0,null,null,11,0,12,0,1,0,6,0]
[null,110,"WEDEL MIESZANKA CUKIERKI DISPLAY 3KG","Cukierki MIESZANKA WEDLOWSKA Classic, 3 kg w formie dyspensera","1 op. (3 kg)",{"$f":"IF('Załącznik 7 - F.O. Zad 6-10'!$V$56,VLOOKUP(C131,'Załącznik 7 - F.O. Zad 6-10'!$C$52:$G$210,5,0),0)","v":0},42,0,null,null,null,null,22,0,7,0,5,0,6,0,2,0]
[null,111,"WEDEL PTASIE MLECZKO WANILIOWE 360G","Ptasie mleczko WEDEL, waniliowe, 360 g","1 op.( 360 g.)",{"$f":"IF('Załącznik 7 - F.O. Zad 6-10'!$V$56,VLOOKUP(C132,'Załącznik 7 - F.O. Zad 6-10'!$C$52:$G$210,5,0),0)","v":0},21,0,null,null,null,null,14,0,null,null,1,0,6,0]
[null,112,"WEDEL WAFLE TORCIKOWE MINI ORZECHOWE 160","Wafle Torcikowe WEDEL MINI orzechowe, 160 g","1 op. ( 160 g)",{"$f":"IF('Załącznik 7 - F.O. Zad 6-10'!$V$56,VLOOKUP(C133,'Załącznik 7 - F.O. Zad 6-10'!$C$52:$G$210,5,0),0)","v":0},24,0,null,null,null,null,13,0,5,0,null,null,6,0]
[null,113,"BAKALLAND MIGDAŁY SOLONE 90G","Migdały lekko solone BAKALLAND, 90 g","1 op. (90 g)",{"$f":"IF('Załącznik 7 - F.O. Zad 6-10'!$V$56,VLOOKUP(C134,'Załącznik 7 - F.O. Zad 6-10'!$C$52:$G$210,5,0),0)","v":0},15,0,null,null,null,null,6,0,null,null,null,null,6,0,3,0]
[null,114,"BAKALLAND ORZECHY LASKOWE 300G","Orzechy laskowe BAKALLAND, 300 g","1 op. (300 g)",{"$f":"IF('Załącznik 7 - F.O. Zad 6-10'!$V$56,VLOOKUP(C135,'Załącznik 7 - F.O. Zad 6-10'!$C$52:$G$210,5,0),0)","v":0},21,0,null,null,null,null,7,0,null,null,5,0,6,0,3,0]
[null,115,"BAKALLAND ORZECHY NERKOWCA SOLONE 70G","Orzechy nerkowca  solone BAKALLAND, 70 g","1 op. (70 g)",{"$f":"IF('Załącznik 7 - F.O. Zad 6-10'!$V$56,VLOOKUP(C136,'Załącznik 7 - F.O. Zad 6-10'!$C$52:$G$210,5,0),0)","v":0},15,0,null,null,null,null,6,0,null,null,null,null,6,0,3,0]
[null,116,"BAKALLAND ORZECHY WŁOSKIE 300G","Orzechy włoskie BAKALLAND, 300 g","1 op. (300 g)",{"$f":"IF('Załącznik 7 - F.O. Zad 6-10'!$V$56,VLOOKUP(C137,'Załącznik 7 - F.O. Zad 6-10'!$C$52:$G$210,5,0),0)","v":0},18,0,null,null,null,null,5,0,null,null,5,0,6,0,2,0]
[null,117,"LAJKONIK PALUSZKI 200G","Paluszki LAJKONIK solone, 200 g","1 op. (200 g)",{"$f":"IF('Załącznik 7 - F.O. Zad 6-10'!$V$56,VLOOKUP(C138,'Załącznik 7 - F.O. Zad 6-10'!$C$52:$G$210,5,0),0)","v":0},77,0,5,0,null,null,22,0,42,0,null,null,5,0,3,0]
[null,118,"CAPPY NEKTAR MULTIWIT PET 0,33L OPK12 ","Nektar multiwitamina CAPPY, 12 butelek x 0,33 l","1 op. (12 butelek)",{"$f":"IF('Załącznik 7 - F.O. Zad 6-10'!$V$56,VLOOKUP(C139,'Załącznik 7 - F.O. Zad 6-10'!$C$52:$G$210,5,0),0)","v":0},14,0,3,0,null,null,5,0,null,null,null,null,6,0]
[null,119,"CAPPY SOK POMARAŃCZOWY PET 0,33L OPK12","Sok pomarańczowy CAPPY, 12 butelek x 0,33 l","1 op. (12 butelek)",{"$f":"IF('Załącznik 7 - F.O. Zad 6-10'!$V$56,VLOOKUP(C140,'Załącznik 7 - F.O. Zad 6-10'!$C$52:$G$210,5,0),0)","v":0},84,0,4,0,null,null,28,0,35,0,11,0,6,0]
[null,120,"CHAMPION SOK CYTRYNOWY OPK10X7,5G","Zagęszczony sok cytrynowy CHAMPION, 10 kubeczków x 7,5 g","1 op. (10 kubeczków)",{"$f":"IF('Załącznik 7 - F.O. Zad 6-10'!$V$56,VLOOKUP(C141,'Załącznik 7 - F.O. Zad 6-10'!$C$52:$G$210,5,0),0)","v":0},21,0,null,null,null,null,4,0,null,null,11,0,6,0]
[null,121,"COCA-COLA BUTELKA PET 0,5L OPK18 ","Napój gazowany COCA-COLA, zgrzewka 18 butelek x 0,5 l","1 op. (18 butelek)",{"$f":"IF('Załącznik 7 - F.O. Zad 6-10'!$V$56,VLOOKUP(C142,'Załącznik 7 - F.O. Zad 6-10'!$C$52:$G$210,5,0),0)","v":0},16,0,null,null,null,null,6,0,3,0,null,null,6,0,1,0]
[null,122,"COCA-COLA PUSZKA 0,33L OPK24","Napój gazowany COCA-COLA, 24 puszki x 0,33 l","1 op. (24 puszki 0,33 l)",{"$f":"IF('Załącznik 7 - F.O. Zad 6-10'!$V$56,VLOOKUP(C143,'Załącznik 7 - F.O. Zad 6-10'!$C$52:$G$210,5,0),0)","v":0},17,0,4,0,null,null,7,0,null,null,null,null,6,0]
[null,123,"COCA-COLA ZERO BUTELKA PET 0,5L OPK12","Napój gazowany COCA-COLA Zero, 12 butelek x 0,5 l","1 op. (12 butelek)",{"$f":"IF('Załącznik 7 - F.O. Zad 6-10'!$V$56,VLOOKUP(C144,'Załącznik 7 - F.O. Zad 6-10'!$C$52:$G$210,5,0),0)","v":0},15,0,1,0,null,null,6,0,2,0,null,null,6,0]
[null,124,"FORTUNA NEKTAR CZ.PORZECZKA 0,3L OPK15","Nektar czarna porzeczka FORTUNA, 15 butelek x 0,3 l","1 op. (15 butelek)",{"$f":"IF('Załącznik 7 - F.O. Zad 6-10'!$V$56,VLOOKUP(C145,'Załącznik 7 - F.O. Zad 6-10'!$C$52:$G$210,5,0),0)","v":0},32,0,5,0,null,null,6,0,15,0,null,null,6,0]
[null,125,"FORTUNA SOK MULTIWITAMINA 0,3 L OPK15","Sok multiwitamina FORTUNA, 15 butelek x 0,3 l","1 op. (15 butelek)",{"$f":"IF('Załącznik 7 - F.O. Zad 6-10'!$V$56,VLOOKUP(C146,'Załącznik 7 - F.O. Zad 6-10'!$C$52:$G$210,5,0),0)","v":0},84,0,null,null,null,null,14,0,45,0,12,0,6,0,7,0]
[null,126,"FORTUNA SOK POMARAŃCZOWY 0,3L OPK15 ","Sok pomarańczowy FORTUNA, 15 butelek x 0,3 l","1 op. (15 butelek)",{"$f":"IF('Załącznik 7 - F.O. Zad 6-10'!$V$56,VLOOKUP(C147,'Załącznik 7 - F.O. Zad 6-10'!$C$52:$G$210,5,0),0)","v":0},21,0,3,0,null,null,6,0,null,null,null,null,6,0,6,0]
[null,127,"FORTUNA SOK POMIDOROWY 0,3L OPK15","Sok pomidorowy FORTUNA, 15 butelek x 0,3 l","1 op. (15 butelek)",{"$f":"IF('Załącznik 7 - F.O. Zad 6-10'!$V$56,VLOOKUP(C148,'Załącznik 7 - F.O. Zad 6-10'!$C$52:$G$210,5,0),0)","v":0},121,0,5,0,null,null,23,0,65,0,12,0,6,0,10,0]
[null,128,"TARCZYN NEKTAR CZ.PORZECZKA 0,3L OPK15","Nektar czarna porzeczka TARCZYN, 15 butelek x 0,3 l","1 op. (15 butelek)",{"$f":"IF('Załącznik 7 - F.O. Zad 6-10'!$V$56,VLOOKUP(C149,'Załącznik 7 - F.O. Zad 6-10'!$C$52:$G$210,5,0),0)","v":0},17,0,null,null,null,null,6,0,null,null,null,null,6,0,5,0]
[null,129,"TARCZYN NEKTAR GREJPFRUT 0,3L OPK15","Nektar czerwony grejpfrut TARCZYN, zgrzewka 15 butelek x 0,3 l","1 op. (15 butelek)",{"$f":"IF('Załącznik 7 - F.O. Zad 6-10'!$V$56,VLOOKUP(C150,'Załącznik 7 - F.O. Zad 6-10'!$C$52:$G$210,5,0),0)","v":0},19,0,1,0,null,null,6,{"$f":"M150*F150","v":0},null,null,null,null,6,{"$f":"S150*F150","v":0},6,{"$f":"U150*F150","v":0}]
[null,130,"TARCZYN SOK JABŁKOWY 0,3L OPK15","Sok jabłkowy TARCZYN, 15 butelek x 0,3 l","1 op. (15 butelek)",{"$f":"IF('Załącznik 7 - F.O. Zad 6-10'!$V$56,VLOOKUP(C151,'Załącznik 7 - F.O. Zad 6-10'!$C$52:$G$210,5,0),0)","v":0},{"$f":"I151+K151+M151+O151+Q151+S151+U151","v":116},{"$f":"G151*F151","v":0},4,0,null,null,23,0,60,{"$f":"O151*F151","v":0},12,{"$f":"Q151*F151","v":0},6,0,11,0]
[null,131,"TARCZYN SOK POMARAŃCZOWY 0,3L OPK15","Sok pomarańczowy TARCZYN, 15 butelek x 0,3 l","1 op. (15 butelek)",{"$f":"IF('Załącznik 7 - F.O. Zad 6-10'!$V$56,VLOOKUP(C152,'Załącznik 7 - F.O. Zad 6-10'!$C$52:$G$210,5,0),0)","v":0},27,0,3,0,null,null,6,0,null,null,null,null,6,0,12,0]
[null,132,"TARCZYN SOK POMIDOROWY 300ML OPK15 ","Sok pomidorowy TARCZYN, zgrzewka 15 butelek x 0,3 l","1 op. (15 butelek)",{"$f":"IF('Załącznik 7 - F.O. Zad 6-10'!$V$56,VLOOKUP(C153,'Załącznik 7 - F.O. Zad 6-10'!$C$52:$G$210,5,0),0)","v":0},33,0,1,0,null,null,6,0,null,null,12,0,6,0,8,0]
[null,133,"TYMBARK JABŁKO SOK 100% 300ML OPK12","Sok TYMBARK jabłko 100%, 12 butelek x 300 ml","1 op. (12 butelek)",{"$f":"IF('Załącznik 7 - F.O. Zad 6-10'!$V$56,VLOOKUP(C154,'Załącznik 7 - F.O. Zad 6-10'!$C$52:$G$210,5,0),0)","v":0},19,0,1,0,null,null,6,0,null,null,null,null,6,0,6,0]
[null,134,"TYMBARK POMARAŃCZ SOK 100% 300ML OPK12","Sok TYMBARK pomarańcza 100%, 12 butelek x 300 ml","1 op. (12 butelek)",{"$f":"IF('Załącznik 7 - F.O. Zad 6-10'!$V$56,VLOOKUP(C155,'Załącznik 7 - F.O. Zad 6-10'!$C$52:$G$210,5,0),0)","v":0},20,0,1,0,null,null,6,0,null,null,null,null,6,0,7,0]
[null,135,"TYMBARK POMIDOR SOK 100% 300ML OPK12","Sok TYMBARK pomidor 100%, 12 butelek x 300 ml","1 op. (12 butelek)",{"$f":"IF('Załącznik 7 - F.O. Zad 6-10'!$V$56,VLOOKUP(C156,'Załącznik 7 - F.O. Zad 6-10'!$C$52:$G$210,5,0),0)","v":0},22,0,1,0,null,null,6,0,null,null,null,null,6,0,9,0]
[null,136,"TYMBARK VITAMINI BAN/MAR/JAB 300ML OPK12","Sok TYMBARK Vitamini banan, marchewka, jabłko, 12 butelek x 300 ml","1 op. (12 butelek)",{"$f":"IF('Załącznik 7 - F.O. Zad 6-10'!$V$56,VLOOKUP(C157,'Załącznik 7 - F.O. Zad 6-10'!$C$52:$G$210,5,0),0)","v":0},13,0,1,0,null,null,6,0,null,null,null,null,6,0]
[null,137,"CISOWIANKA LEKKOGAZOWANA WODA 0,5L  OPK12 ","Woda mineralna CISOWIANKA lekko gazowana, zgrzewka 12 butelek x 0,5 l","1 op. (12 butelek)",{"$f":"IF('Załącznik 7 - F.O. Zad 6-10'!$V$56,VLOOKUP(C158,'Załącznik 7 - F.O. Zad 6-10'!$C$52:$G$210,5,0),0)","v":0},109,0,70,0,null,null,21,0,2,0,null,null,6,0,10,0]
[null,138,"CISOWIANKA PERLAGE GAZ SZKŁO 300ML  OPK24 ","Woda mineralna CISOWIANKA Perlage gazowana, zgrzewka 24 butelki x 300 ml","1 op. (24 butelki)",{"$f":"IF('Załącznik 7 - F.O. Zad 6-10'!$V$56,VLOOKUP(C159,'Załącznik 7 - F.O. Zad 6-10'!$C$52:$G$210,5,0),0)","v":0},67,0,4,0,1,{"$f":"K159*F159","v":0},13,0,5,0,34,0,6,0,4,0]
[null,139,"CISOWIANKA WODA GAZOWANA 1,5L OPK6","Woda mineralna CISOWIANKA gazowana, zgrzewka 6 butelek x 1,5 l","1 op. (6 butelek)",{"$f":"IF('Załącznik 7 - F.O. Zad 6-10'!$V$56,VLOOKUP(C160,'Załącznik 7 - F.O. Zad 6-10'!$C$52:$G$210,5,0),0)","v":0},741,0,100,0,4,0,7,0,190,0,434,0,6,0]
[null,140,"CISOWIANKA WODA NIEGAZ SZKŁO 300ML OPK24","Woda mineralna CISOWIANKA niegazowana szklane butelki x 300 ml","1 op. (24 butelki)",{"$f":"IF('Załącznik 7 - F.O. Zad 6-10'!$V$56,VLOOKUP(C161,'Załącznik 7 - F.O. Zad 6-10'!$C$52:$G$210,5,0),0)","v":0},17,0,3,0,null,null,6,0,2,0,null,null,6,0]
[null,141,"CISOWIANKA WODA NIEGAZOWANA 0,5L OPK12 ","Woda mineralna CISOWIANKA niegazowana, zgrzewka 12 butelek x 0,5 l","1 op. (12 butelek)",{"$f":"IF('Załącznik 7 - F.O. Zad 6-10'!$V$56,VLOOKUP(C162,'Załącznik 7 - F.O. Zad 6-10'!$C$52:$G$210,5,0),0)","v":0},194,0,90,0,1,0,38,0,30,0,null,null,7,0,28,0]
[null,142,"CISOWIANKA WODA NIEGAZOWANA 1,5L OPK6","Woda mineralna CISOWIANKA niegazowana, zgrzewka 6 butelek x 1,5 l","1 op. (6 butelek)",{"$f":"IF('Załącznik 7 - F.O. Zad 6-10'!$V$56,VLOOKUP(C163,'Załącznik 7 - F.O. Zad 6-10'!$C$52:$G$210,5,0),0)","v":0},828,0,270,0,2,0,11,0,100,0,434,0,6,0,5,0]
[null,143,"CISOWIANKA WODA SPORT NIEGAZ 0,7L OPK8","Woda mineralna CISOWIANKA Sport niegazowana, zgrzewka 8 butelek x 0,7 l","1 op. (8 butelek)",{"$f":"IF('Załącznik 7 - F.O. Zad 6-10'!$V$56,VLOOKUP(C164,'Załącznik 7 - F.O. Zad 6-10'!$C$52:$G$210,5,0),0)","v":0},34,0,20,0,2,0,6,0,null,null,null,null,6,0]
[null,144,"KINGA PIENINSKA WODA GAZOWANA 0,5L OPK12","Woda mineralna KINGA PIENIŃSKA gazowana 0,5 l","1 op. (12 butelek)",{"$f":"IF('Załącznik 7 - F.O. Zad 6-10'!$V$56,VLOOKUP(C165,'Załącznik 7 - F.O. Zad 6-10'!$C$52:$G$210,5,0),0)","v":0},27,0,6,0,null,null,15,0,null,null,null,null,6,0]
[null,145,"KINGA PIENINSKA WODA NIEGAZOW 0,5L OPK12","Woda mineralna KINGA PIENIŃSKA niegazowana, zgrzewka 12 butelek x 0,5 l","1 op. (12 butelek)",{"$f":"IF('Załącznik 7 - F.O. Zad 6-10'!$V$56,VLOOKUP(C166,'Załącznik 7 - F.O. Zad 6-10'!$C$52:$G$210,5,0),0)","v":0},27,0,15,0,null,null,5,0,null,null,null,null,7,0]
[null,146,"KROPLA BESKIDU WODA GAZ 0,5L OPK12","Woda mineralna KROPLA BESKIDU gazowana, zgrzewka 12 butelek x 0,5 l","1 op. (12 butelek)",{"$f":"IF('Załącznik 7 - F.O. Zad 6-10'!$V$56,VLOOKUP(C167,'Załącznik 7 - F.O. Zad 6-10'!$C$52:$G$210,5,0),0)","v":0},466,0,20,0,null,null,4,0,90,0,317,0,6,0,29,0]
[null,147,"KROPLA BESKIDU WODA GAZ 1,5L OPK6","Woda mineralna KROPLA BESKIDU gazowana, zgrzewka 6 butelek x 1,5 l","1 op. (6 butelek)",{"$f":"IF('Załącznik 7 - F.O. Zad 6-10'!$V$56,VLOOKUP(C168,'Załącznik 7 - F.O. Zad 6-10'!$C$52:$G$210,5,0),0)","v":0},34,0,20,0,null,null,6,0,null,null,2,0,6,0]
[null,148,"KROPLA BESKIDU WODA NIEGAZ 0,5L  OPK12","Woda mineralna KROPLA BESKIDU niegazowana, zgrzewka 12 butelek x 0,5 l","1 op. (12 butelek)",{"$f":"IF('Załącznik 7 - F.O. Zad 6-10'!$V$56,VLOOKUP(C169,'Załącznik 7 - F.O. Zad 6-10'!$C$52:$G$210,5,0),0)","v":0},245,0,35,0,3,0,8,0,70,0,100,0,6,0,23,0]
[null,149,"KROPLA BESKIDU WODA NIEGAZ 1,5L OPK6","Woda mineralna KROPLA BESKIDU niegazowana, zgrzewka 6 butelek x 1,5 l","1 op. (6 butelek)",{"$f":"IF('Załącznik 7 - F.O. Zad 6-10'!$V$56,VLOOKUP(C170,'Załącznik 7 - F.O. Zad 6-10'!$C$52:$G$210,5,0),0)","v":0},157,0,55,0,3,0,6,0,null,null,87,0,6,0]
[null,150,"NAŁĘCZOWIANKA WODA NIEGAZ 0,5L OPK12","Woda mineralna NAŁĘCZOWIANKA niegazowana, zgrzewka 12 butelek x 0,5 l","1 op. (12 butelek)",{"$f":"IF('Załącznik 7 - F.O. Zad 6-10'!$V$56,VLOOKUP(C171,'Załącznik 7 - F.O. Zad 6-10'!$C$52:$G$210,5,0),0)","v":0},99,0,75,0,null,null,17,0,null,null,1,0,6,0]
[null,151,"NAŁĘCZOWIANKA WODA NIEGAZ 1,5L OPK6","Woda mineralna NAŁĘCZOWIANKA niegazowana, zgrzewka 6 butelek x 1,5 l","1 op. (6 butelek)",{"$f":"IF('Załącznik 7 - F.O. Zad 6-10'!$V$56,VLOOKUP(C172,'Załącznik 7 - F.O. Zad 6-10'!$C$52:$G$210,5,0),0)","v":0},156,0,85,0,null,null,7,0,null,null,57,0,7,0]
[null,152,"NESTLE PURE LIFE WODA GAZ 1,5L OPK6","Woda źródlana NESTLÉ Pure Life gazowana, zgrzewka 6 butelek x 1,5 l","1 op. (6 butelek)",{"$f":"IF('Załącznik 7 - F.O. Zad 6-10'!$V$56,VLOOKUP(C173,'Załącznik 7 - F.O. Zad 6-10'!$C$52:$G$210,5,0),0)","v":0},14,0,5,0,null,null,1,0,null,null,2,0,6,0]
[null,153,"NESTLE PURE LIFE WODA NIEGAZ 0,5L OPK12","Woda źródlana NESTLÉ Pure Life niegazowana, zgrzewka 12 butelek x 0,5 l","1 op. (12 butelek)",{"$f":"IF('Załącznik 7 - F.O. Zad 6-10'!$V$56,VLOOKUP(C174,'Załącznik 7 - F.O. Zad 6-10'!$C$52:$G$210,5,0),0)","v":0},15,0,5,0,null,null,4,0,null,null,null,null,6,0]
[null,154,"NESTLE PURE LIFE WODA NIEGAZ 1,5L OPK6","Woda źródlana NESTLÉ Pure Life niegazowana, zgrzewka 6 butelek x 1,5 l","1 op. (6 butelek)",{"$f":"IF('Załącznik 7 - F.O. Zad 6-10'!$V$56,VLOOKUP(C175,'Załącznik 7 - F.O. Zad 6-10'!$C$52:$G$210,5,0),0)","v":0},134,0,125,0,null,null,1,0,null,null,2,0,6,0]
[null,155,"ŻYWIEC ZDRÓJ WODA GAZOWANA 0.5L OPK24","Woda źródlana ŻYWIOŁ od ŻYWIEC ZDRÓJ gazowana, 24 butelki x 0,5 l","1 op. (24 butelki)",{"$f":"IF('Załącznik 7 - F.O. Zad 6-10'!$V$56,VLOOKUP(C176,'Załącznik 7 - F.O. Zad 6-10'!$C$52:$G$210,5,0),0)","v":0},36,0,15,0,2,0,2,0,10,0,1,0,6,0]
[null,156,"ŻYWIEC ZDRÓJ WODA GAZOWANA 1,5L OPK6","Woda źródlana ŻYWIOŁ od ŻYWIEC ZDRÓJ gazowana, zgrzewka 6 butelek x 1,5 l","1 op. ( 6 butelek)",{"$f":"IF('Załącznik 7 - F.O. Zad 6-10'!$V$56,VLOOKUP(C177,'Załącznik 7 - F.O. Zad 6-10'!$C$52:$G$210,5,0),0)","v":0},88,0,30,0,null,null,3,0,null,null,50,0,5,0]
[null,157,"ŻYWIEC ZDRÓJ WODA NIEGAZOWANA 0.5L OPK24 ","Woda źródlana ŻYWIEC ZDRÓJ niegazowana, 24 butelki x 0,5 l","1 op. (24 butelki)",{"$f":"IF('Załącznik 7 - F.O. Zad 6-10'!$V$56,VLOOKUP(C178,'Załącznik 7 - F.O. Zad 6-10'!$C$52:$G$210,5,0),0)","v":0},83,0,40,0,null,null,15,0,10,0,2,0,6,0,10,0]
[null,158,"ŻYWIEC ZDRÓJ WODA NIEGAZOWANA 1,5L  OPK6 ","Woda źródlana ŻYWIEC ZDRÓJ niegazowana, zgrzewka 6 butelek x 1,5 l","1 op. (6 butelek)",{"$f":"IF('Załącznik 7 - F.O. Zad 6-10'!$V$56,VLOOKUP(C179,'Załącznik 7 - F.O. Zad 6-10'!$C$52:$G$210,5,0),0)","v":0},121,0,80,{"$f":"I179*F179","v":0},null,null,5,0,null,null,29,0,7,0]
[null,null,null,null,null,null,{"$f":"SUM(G22:G179)","v":12651},null,{"$f":"SUM(I22:I179)","v":2373},null,{"$f":"SUM(K22:K179)","v":385},null,{"$f":"SUM(M22:M179)","v":1904},null,{"$f":"SUM(O22:O179)","v":1972},null,{"$f":"SUM(Q22:Q179)","v":4515},null,{"$f":"SUM(S22:S179)","v":954},null,{"$f":"SUM(U22:U179)","v":548}]
[null,null,null,null,null,null,null,null,"ŁĄCZNA CENA NETTO DLA ENEA Centrum Sp. z o.o. ",{"$f":"SUM(J22:J179)","v":0},"ŁĄCZNA CENA NETTO DLA ENEA Logistyka sp. z o.o.",{"$f":"SUM(L22:L179)","v":0},"ŁĄCZNA CENA NETTO DLA ENEA Operator Sp. z o.o.",{"$f":"SUM(N22:N179)","v":0},"ŁĄCZNA CENA NETTO DLA ENEA Oświetlenie sp. z.o.o.",{"$f":"SUM(P22:P179)","v":0},"ŁĄCZNA CENA NETTO DLA ENEA Pomiary Sp. z o.o.",{"$f":"SUM(R22:R179)","v":0},"ŁĄCZNA CENA NETTO DLA ENEA Serwis sp. z.o.o.",{"$f":"SUM(T22:T179)","v":0},"ŁĄCZNA CENA NETTO DLA ENEA S.A.",{"$f":"SUM(V22:V179)","v":0}]
[]
[]
[]
[]
[null,null,"miejscowość i data",null,null,"Pieczęć imienna i podpis przedstawiciela(i) Wykonawcy"]

{"sheet":"Załącznik 10-F.O. dla Zadania 8","index":6,"n_rows":176,"n_cols":18,"rows_kept":176,"cut":false,"hidden":false,"merged":[[18,1,18,2],[174,2,174,3],[174,4,174,7],[175,5,175,7],[2,1,2,7],[4,1,4,7],[8,1,8,7],[11,1,11,7],[14,1,14,7],[16,1,16,7]]}
[null,"Oznaczenie sprawy:  1400/DW00/ZU/KZ/2021/0000074365"]
[]
[null,"ZAŁĄCZNIK NR 10 - FORMULARZ OFERTY DLA ZADANIA 8 - DOSTAWA ARTYKUŁÓW SPOŻYWCZYCH:  BIAŁYSTOK"]
[]
[]
[null,null,"(pieczęć wykonawcy)"]
[]
[null,"Ja, niżej podpisany (My niżej podpisani):"]
[]
[]
[null,"działając w imieniu i na rzecz:"]
[]
[]
[null,"Składam(y) ofertę na wykonanie zamówienia, którego przedmiotem jest:"]
[null,"Dostawa artykułów biurowych, spożywczych i higienicznych dla spółek GK ENEA"]
[]
[null,"ZADANIE 8  -Dostawa artykułów spożywczych:  Białystok "]
[]
[null,"ŁĄCZNA CENA NETTO OFERTY DLA ZADANIA 8:",null,{"$f":"SUM(H22:H169)","v":0}]
[]
[null,"LP","Nazwa produktu","Opis szczegółowy","Jednostka ","cena jednostkowa netto","Ilość","Wartość","ENEA Enea Centrum Sp. z o.o. - Szacowana ilość","ŁĄCZNA CENA NETTO DLA ENEA Centrum Sp. z o.o. ","ENEA Ciepło  sp. z o.o. (Centrala) - Szacowana ilość","ŁĄCZNA CENA NETTO DLA ENEA Ciepło sp. z o.o.  (Centrala)","ENEA Ciepło Sp. z o.o. (Oddział) - Szacowana ilość","ŁĄCZNA CENA NETTO DLA ENEA Ciepłor Sp. z o.o. (Oddział)","ENEA Logistyka Sp. z o.o. - Szacowana ilość","ŁĄCZNA CENA NETTO DLA ENEA Logistyka Sp. z o.o. ","ENEA Trading  Sp. z o.o. - Szacowana ilość","ŁĄCZNA CENA NETTO DLA ENEA Trading  Sp. z o.o. "]
[null,1,"DIAMANT CUKIER BIAŁY KOSTKA 1KG","Cukier biały DIAMANT w kostkach, 1 kg","1 op. ( 1 kg.)",{"$f":"IF('Załącznik 7 - F.O. Zad 6-10'!$V$57,VLOOKUP(C22,'Załącznik 7 - F.O. Zad 6-10'!$C$52:$G$210,5,0),0)","v":0},{"$f":"I22+K22+M22+O22+Q22","v":18},{"$f":"G22*F22","v":0},null,null,12,{"$f":"K22*F22","v":0},5,{"$f":"M22*F22","v":0},null,null,1,{"$f":"Q22*F22","v":0}]
[null,2,"DIAMANT CUKIER BIAŁY W SASZET OPK100X5G","Cukier biały DIAMANT, saszetki 100 sztuk x 5 g","1 op. (100 sztuk)",{"$f":"IF('Załącznik 7 - F.O. Zad 6-10'!$V$57,VLOOKUP(C23,'Załącznik 7 - F.O. Zad 6-10'!$C$52:$G$210,5,0),0)","v":0},{"$f":"I23+K23+M23+O23+Q23","v":7},{"$f":"G23*F23","v":0},null,null,6,{"$f":"K23*F23","v":0},null,null,null,null,1,0]
[null,3,"DIAMANT CUKIER DRY DEMERARA SYPKI 0,5KG","Cukier trzcinowy DIAMANT Dry Demerara, sypki, 500 g","1 op. ( 500 g)",{"$f":"IF('Załącznik 7 - F.O. Zad 6-10'!$V$57,VLOOKUP(C24,'Załącznik 7 - F.O. Zad 6-10'!$C$52:$G$210,5,0),0)","v":0},4,0,null,null,4,0]
[null,4,"DIAMANT CUKIER KRYSZTAŁ BIAŁY 1KG","Cukier biały DIAMANT sypki, 1 kg","1 op.( 1 kg.)",{"$f":"IF('Załącznik 7 - F.O. Zad 6-10'!$V$57,VLOOKUP(C25,'Załącznik 7 - F.O. Zad 6-10'!$C$52:$G$210,5,0),0)","v":0},51,0,3,{"$f":"I25*F25","v":0},12,0,34,0,null,null,2,0]
[null,5,"AHMAD HERBATA EARL GREY OPK100","Herbata czarna AHMAD Earl Grey, 100 torebek","1 op. (100 torobek)",{"$f":"IF('Załącznik 7 - F.O. Zad 6-10'!$V$57,VLOOKUP(C26,'Załącznik 7 - F.O. Zad 6-10'!$C$52:$G$210,5,0),0)","v":0},9,0,3,0,6,0]
[null,6,"BIG-ACTIVE PURE CEYLON HERBATA OPK100","Herbata czarna BIG-ACTIVE Pure Ceylon, 100 torebek","1 op. (100 torobek)",{"$f":"IF('Załącznik 7 - F.O. Zad 6-10'!$V$57,VLOOKUP(C27,'Załącznik 7 - F.O. Zad 6-10'!$C$52:$G$210,5,0),0)","v":0},7,0,3,0,4,0]
[null,7,"DILMAH CEYLON GOLD HERBATA 200G OPK100","Herbata czarna DILMAH Ceylon Gold, 100 torebek","1 op. (100 torobek)",{"$f":"IF('Załącznik 7 - F.O. Zad 6-10'!$V$57,VLOOKUP(C28,'Załącznik 7 - F.O. Zad 6-10'!$C$52:$G$210,5,0),0)","v":0},17,0,1,0,8,0,8,0]
[null,8,"DILMAH EARL GREY HERBATA LIŚCIASTA 125G","Herbata czarna liściasta DILMAH Earl Grey, 125 g","1 op. ( 125 g)",{"$f":"IF('Załącznik 7 - F.O. Zad 6-10'!$V$57,VLOOKUP(C29,'Załącznik 7 - F.O. Zad 6-10'!$C$52:$G$210,5,0),0)","v":0},2,0,null,null,2,0]
[null,9,"HERBAPOL BREAKFAST HERB MIĘTOWA OPK20 ","Herbata miętowa HERBAPOL Breakfast, 20 kopert","1 op.(  20 torebek)",{"$f":"IF('Załącznik 7 - F.O. Zad 6-10'!$V$57,VLOOKUP(C30,'Załącznik 7 - F.O. Zad 6-10'!$C$52:$G$210,5,0),0)","v":0},4,0,null,null,4,0]
[null,10,"HERBAPOL HERBATA MALINOWA OPK20","Herbata owocowa HERBAPOL Herbaciany Ogród malinowa, 20 torebek","1 op.(  20 torebek)",{"$f":"IF('Załącznik 7 - F.O. Zad 6-10'!$V$57,VLOOKUP(C31,'Załącznik 7 - F.O. Zad 6-10'!$C$52:$G$210,5,0),0)","v":0},43,0,null,null,10,0,33,0]
[null,11,"HERBAPOL PROSTO Z LASU OPK20","Herbata owocowa HERBAPOL Herbaciany Ogród, Prosto z lasu, 20 torebek","1 op.(  20 torebek)",{"$f":"IF('Załącznik 7 - F.O. Zad 6-10'!$V$57,VLOOKUP(C32,'Załącznik 7 - F.O. Zad 6-10'!$C$52:$G$210,5,0),0)","v":0},10,0,null,null,10,0]
[null,12,"HERBAPOL ZIELONA HERBATA OPK20","Herbata zielona HERBAPOL, 20 torebek bez zawieszki","1 op.(  20 torebek)",{"$f":"IF('Załącznik 7 - F.O. Zad 6-10'!$V$57,VLOOKUP(C33,'Załącznik 7 - F.O. Zad 6-10'!$C$52:$G$210,5,0),0)","v":0},9,0,null,null,2,0,7,0]
[null,13,"Herbata zielona Lipton Piramidki","Herbata zielona LIPTON  20 torebek piramidek","1 op.(  20 torebek)",{"$f":"IF('Załącznik 7 - F.O. Zad 6-10'!$V$57,VLOOKUP(C34,'Załącznik 7 - F.O. Zad 6-10'!$C$52:$G$210,5,0),0)","v":0},20,0,null,null,6,0,14,0]
[null,14,"IRVING BIAŁ POZIOMK/MANDAR HERBATA OPK20","Harbata biała IRVING poziomkowa z mandarynką, 20 kopert","1 op.(  20 torebek)",{"$f":"IF('Załącznik 7 - F.O. Zad 6-10'!$V$57,VLOOKUP(C35,'Załącznik 7 - F.O. Zad 6-10'!$C$52:$G$210,5,0),0)","v":0},10,0,null,null,10,0]
[null,15,"IRVING HERBATA CLASSIC OPK100","Herbata czarna IRVING Classic, 100 torebek","1 op.(  100 torebek)",{"$f":"IF('Załącznik 7 - F.O. Zad 6-10'!$V$57,VLOOKUP(C36,'Załącznik 7 - F.O. Zad 6-10'!$C$52:$G$210,5,0),0)","v":0},7,0,2,0,5,0]
[null,16,"LIPTON EARL GREY HERBATA OPK100","Herbata czarna LIPTON Earl Grey, 100 torebek","1 op. (100 torebek)",{"$f":"IF('Załącznik 7 - F.O. Zad 6-10'!$V$57,VLOOKUP(C37,'Załącznik 7 - F.O. Zad 6-10'!$C$52:$G$210,5,0),0)","v":0},27,0,null,null,5,0,21,0,null,null,1,0]
[null,17,"LIPTON MELISA/WIŚNIA HERBATAOPK20","Herbata ziołowa LIPTON Melisa z wiśnią, 20 torebek","1 op. (20 torebek)",{"$f":"IF('Załącznik 7 - F.O. Zad 6-10'!$V$57,VLOOKUP(C38,'Załącznik 7 - F.O. Zad 6-10'!$C$52:$G$210,5,0),0)","v":0},3,0,null,null,2,0,null,null,null,null,1,0]
[null,18,"LIPTON PYRAMID CYTRYNOWA Z MELISĄ OPK20","Herbata czarna LIPTON cytrynowa z melisą, 20 torebek piramidek","1 op. (20 torebek)",{"$f":"IF('Załącznik 7 - F.O. Zad 6-10'!$V$57,VLOOKUP(C39,'Załącznik 7 - F.O. Zad 6-10'!$C$52:$G$210,5,0),0)","v":0},3,0,null,null,2,0,null,null,null,null,1,0]
[null,19,"LIPTON PYRAMID FOREST FRUIT","Herbata owocowa LIPTON owoce leśne, 20 torebek piramidek","1 op. (20 torebek)",{"$f":"IF('Załącznik 7 - F.O. Zad 6-10'!$V$57,VLOOKUP(C40,'Załącznik 7 - F.O. Zad 6-10'!$C$52:$G$210,5,0),0)","v":0},14,0,null,null,11,0,2,0,null,null,1,0]
[null,20,"LIPTON YELLOW LABEL HERBATA  OPK100","Herbata czarna LIPTON Yellow Label, 100 torebek","1 op. (100 torebek)",{"$f":"IF('Załącznik 7 - F.O. Zad 6-10'!$V$57,VLOOKUP(C41,'Załącznik 7 - F.O. Zad 6-10'!$C$52:$G$210,5,0),0)","v":0},37,0,null,null,10,0,26,0,null,null,1,0]
[null,21,"LIPTON YELLOW LABEL HERBATA  OPK50","Herbata czarna LIPTON Yellow Label, 50 torebek","1 op. (50 torebek)",{"$f":"IF('Załącznik 7 - F.O. Zad 6-10'!$V$57,VLOOKUP(C42,'Załącznik 7 - F.O. Zad 6-10'!$C$52:$G$210,5,0),0)","v":0},5,0,null,null,5,0]
[null,22,"LIPTON ZIELONA CITRUS HERBATA OPK25","Herbata zielona LIPTON cytrusowa, 25 torebek","1 op. (25 torebek)",{"$f":"IF('Załącznik 7 - F.O. Zad 6-10'!$V$57,VLOOKUP(C43,'Załącznik 7 - F.O. Zad 6-10'!$C$52:$G$210,5,0),0)","v":0},22,0,null,null,11,0,10,0,null,null,1,0]
[null,23,"LIPTON ZIELONA MIĘTOWA HERBATA OPK25 ","Herbata zielona LIPTON miętowa, 25 torebek","1 op. (25 torebek)",{"$f":"IF('Załącznik 7 - F.O. Zad 6-10'!$V$57,VLOOKUP(C44,'Załącznik 7 - F.O. Zad 6-10'!$C$52:$G$210,5,0),0)","v":0},23,0,null,null,7,0,15,0,null,null,1,0]
[null,24,"TEEKANNE BLACK CURRANT HERBATA OPK20","Herbata owocowa TEEKANNE World of Fruits, Black Currant, 20 kopert","1 op. (20 torebek)",{"$f":"IF('Załącznik 7 - F.O. Zad 6-10'!$V$57,VLOOKUP(C45,'Załącznik 7 - F.O. Zad 6-10'!$C$52:$G$210,5,0),0)","v":0},12,0,null,null,11,0,null,null,null,null,1,0]
[null,25,"TEEKANNE EARL GREY HERBATA  OPK100","Herbata czarna TEEKANNE Earl Grey, 100 torebek","1 op. (100 torebek)",{"$f":"IF('Załącznik 7 - F.O. Zad 6-10'!$V$57,VLOOKUP(C46,'Załącznik 7 - F.O. Zad 6-10'!$C$52:$G$210,5,0),0)","v":0},3,0,null,null,2,0,null,null,null,null,1,0]
[null,26,"TEEKANNE WORLD OF FRUITS ZESTAW OPK30","Zestaw herbat owocowych TEEKANNE World of Fruits, 30 kopert","1 op. (30 torebek)",{"$f":"IF('Załącznik 7 - F.O. Zad 6-10'!$V$57,VLOOKUP(C47,'Załącznik 7 - F.O. Zad 6-10'!$C$52:$G$210,5,0),0)","v":0},13,0,null,null,12,0,null,null,null,null,1,0]
[null,27,"TEEKANNE ZIELON OPUNCJA HERBATA OPK20 ","Herbata zielona TEEKANNE z opuncją, 20 kopert","1 op. (20 torebek)",{"$f":"IF('Załącznik 7 - F.O. Zad 6-10'!$V$57,VLOOKUP(C48,'Załącznik 7 - F.O. Zad 6-10'!$C$52:$G$210,5,0),0)","v":0},14,0,null,null,12,0,null,null,null,null,2,0]
[null,28,"VITAX HERBATA MELISA I POMARAŃCZA OPK20","Herbata owocowa VITAX Inspirations melisa & pomarańcza, 20 torebek","1 op. (20 torebek)",{"$f":"IF('Załącznik 7 - F.O. Zad 6-10'!$V$57,VLOOKUP(C49,'Załącznik 7 - F.O. Zad 6-10'!$C$52:$G$210,5,0),0)","v":0},13,0,null,null,12,0,null,null,null,null,1,0]
[null,29,"VITAX HERBATA ZIOŁOWA MELISA OPK20","Herbata ziołowa VITAX melisa, 20 okrągłych torebek bez zawieszki","1 op. (20 torebek)",{"$f":"IF('Załącznik 7 - F.O. Zad 6-10'!$V$57,VLOOKUP(C50,'Załącznik 7 - F.O. Zad 6-10'!$C$52:$G$210,5,0),0)","v":0},1,0,null,null,null,null,null,null,null,null,1,0]
[null,30,"VITAX HERBATA ZIOŁOWA MIĘTA OPK20","Herbata ziołowa VITAX mięta, 20 okrągłych torebek bez zawieszki","1 op. (20 torebek)",{"$f":"IF('Załącznik 7 - F.O. Zad 6-10'!$V$57,VLOOKUP(C51,'Załącznik 7 - F.O. Zad 6-10'!$C$52:$G$210,5,0),0)","v":0},2,0,null,null,null,null,null,null,null,null,2,0]
[null,31,"VITAX HERBATA ŻURAWINA I MALINA OPK20","Herbata owocowa VITAX Inspirations żurawina & malina, 20 torebek","1 op. (20 torebek)",{"$f":"IF('Załącznik 7 - F.O. Zad 6-10'!$V$57,VLOOKUP(C52,'Załącznik 7 - F.O. Zad 6-10'!$C$52:$G$210,5,0),0)","v":0},48,0,null,null,12,0,34,0,null,null,2,0]
[null,32,"VITAX NAPAR RUMIANEK OPK20","Herbata ziołowa VITAX rumianek, 20 kwadratowych torebek bez zawieszki","1 op. (20 torebek)",{"$f":"IF('Załącznik 7 - F.O. Zad 6-10'!$V$57,VLOOKUP(C53,'Załącznik 7 - F.O. Zad 6-10'!$C$52:$G$210,5,0),0)","v":0},3,0,1,0,null,null,null,null,null,null,2,0]
[null,33,"ASTRA ŁAGODNA TRADYCYJNA KAWA ZIARN 1 KG","Kawa ziarnista Astra Łagodna 1 kg","1 op. (1 kg)",{"$f":"IF('Załącznik 7 - F.O. Zad 6-10'!$V$57,VLOOKUP(C54,'Załącznik 7 - F.O. Zad 6-10'!$C$52:$G$210,5,0),0)","v":0},1,0,null,null,null,null,1,0]
[null,34,"DUNI KUBEK PAPIER BIAŁY 210ML OPK50","Kubek papierowy do gorących i zminych napojów 210 ml","1 op. (50 szt.)",{"$f":"IF('Załącznik 7 - F.O. Zad 6-10'!$V$57,VLOOKUP(C55,'Załącznik 7 - F.O. Zad 6-10'!$C$52:$G$210,5,0),0)","v":0},20,0,null,null,20,0]
[null,35,"EDUSCHO CAFFE CREMA KAWA ZIARNISTA 1KG","Kawa ziarnista EDUSCHO Caffe Crema, 1 kg","1 op. ( 1 kg.)",{"$f":"IF('Załącznik 7 - F.O. Zad 6-10'!$V$57,VLOOKUP(C56,'Załącznik 7 - F.O. Zad 6-10'!$C$52:$G$210,5,0),0)","v":0},5,0,null,null,2,0,2,0,null,null,1,0]
[null,36,"JACOBS BARISTA AMERICANO KAWA ROZPU 155G","Kawa rozpuszczalna JACOBS Barista Americano 155 g","1 op. (słoik 155g)",{"$f":"IF('Załącznik 7 - F.O. Zad 6-10'!$V$57,VLOOKUP(C57,'Załącznik 7 - F.O. Zad 6-10'!$C$52:$G$210,5,0),0)","v":0},2,0,null,null,2,0]
[null,37,"JACOBS CRONAT GOLD KAWA MIELONA 500G","Kawa mielona JACOBS Cronat Gold, 500 g","1 op. (500 g.)",{"$f":"IF('Załącznik 7 - F.O. Zad 6-10'!$V$57,VLOOKUP(C58,'Załącznik 7 - F.O. Zad 6-10'!$C$52:$G$210,5,0),0)","v":0},21,0,2,0,6,0,13,0]
[null,38,"JACOBS CRONAT GOLD KAWA ROZPUSZCZ 200G","Kawa rozpuszczalna JACOBS Cronat Gold, 200 g","1 op.( 200 g.)",{"$f":"IF('Załącznik 7 - F.O. Zad 6-10'!$V$57,VLOOKUP(C59,'Załącznik 7 - F.O. Zad 6-10'!$C$52:$G$210,5,0),0)","v":0},17,0,2,0,6,0,9,0]
[null,39,"JACOBS GOLD CREMA KAWA ROZPUSZCZ 200G","Kawa rozpuszczalna JACOBS Crema Gold, 200 g","1 op.( 200 g.)",{"$f":"IF('Załącznik 7 - F.O. Zad 6-10'!$V$57,VLOOKUP(C60,'Załącznik 7 - F.O. Zad 6-10'!$C$52:$G$210,5,0),0)","v":0},17,0,null,null,6,0,11,0]
[null,40,"JACOBS KRONUNG KAWA MIELONA 250G","Kawa mielona JACOBS Kronung, 250 g","1 op. (250 g.)",{"$f":"IF('Załącznik 7 - F.O. Zad 6-10'!$V$57,VLOOKUP(C61,'Załącznik 7 - F.O. Zad 6-10'!$C$52:$G$210,5,0),0)","v":0},15,0,null,null,4,0,11,0]
[null,41,"JACOBS KRONUNG KAWA ROZPUSZCZALNA 200G","Kawa rozpuszczalna JACOBS Kronung, 200 g","1 op.( 200 g.)",{"$f":"IF('Załącznik 7 - F.O. Zad 6-10'!$V$57,VLOOKUP(C62,'Załącznik 7 - F.O. Zad 6-10'!$C$52:$G$210,5,0),0)","v":0},23,0,null,null,8,0,15,0]
[null,42,"KUBEK PLASTIK 200ML BIAŁE OPK100","Kubek plastikowy do zimnych napojów 200 ml Biały","1 op. (100 szt.)",{"$f":"IF('Załącznik 7 - F.O. Zad 6-10'!$V$57,VLOOKUP(C63,'Załącznik 7 - F.O. Zad 6-10'!$C$52:$G$210,5,0),0)","v":0},20,0,null,null,20,0]
[null,43,"LAVAZZA CREMA AROMA KAWA ZIARNISTA 1KG","Kawa ziarnista LAVAZZA Crema Aroma, 1 kg","1 op. (1 kg)",{"$f":"IF('Załącznik 7 - F.O. Zad 6-10'!$V$57,VLOOKUP(C64,'Załącznik 7 - F.O. Zad 6-10'!$C$52:$G$210,5,0),0)","v":0},29,0,null,null,12,0,15,0,2,{"$f":"O64*F64","v":0}]
[null,44,"LAVAZZA PRONTOCREMA GRANDE AROMA ZIA 1KG","Kawa ziarnista LAVAZZA Pronto crema Grande Aroma 1 kg","1 op. (1 kg)",{"$f":"IF('Załącznik 7 - F.O. Zad 6-10'!$V$57,VLOOKUP(C65,'Załącznik 7 - F.O. Zad 6-10'!$C$52:$G$210,5,0),0)","v":0},15,0,null,null,6,0,8,0,1,0]
[null,45,"LAVAZZA QUALITA ORO KAWA MIELONA 250G","Kawa mielona LAVAZZA Qualita Oro, 250 g","1 op. (250 g)",{"$f":"IF('Załącznik 7 - F.O. Zad 6-10'!$V$57,VLOOKUP(C66,'Załącznik 7 - F.O. Zad 6-10'!$C$52:$G$210,5,0),0)","v":0},4,0,null,null,4,0]
[null,46,"LAVAZZA QUALITA ORO KAWA ZIARNISTA 1 KG","Kawa ziarnista LAVAZZA Qualita Oro, 1 kg","1 op. (1 kg)",{"$f":"IF('Załącznik 7 - F.O. Zad 6-10'!$V$57,VLOOKUP(C67,'Załącznik 7 - F.O. Zad 6-10'!$C$52:$G$210,5,0),0)","v":0},68,0,null,null,24,0,43,0,1,0]
[null,47,"LAVAZZA QUALITA ROSSA KAWA ZIARNISTA 1KG","Kawa ziarnista LAVAZZA Qualita Rossa, 1 kg","1 op. (1 kg)",{"$f":"IF('Załącznik 7 - F.O. Zad 6-10'!$V$57,VLOOKUP(C68,'Załącznik 7 - F.O. Zad 6-10'!$C$52:$G$210,5,0),0)","v":0},50,0,null,null,12,0,38,0]
[null,48,"NESCAFE SENSAZIONE CREME KAWA ROZP 200G","Kawa rozpuszczalna NESCAFÉ Sensazione Creme, 200 g","1 op.( 200 g.)",{"$f":"IF('Załącznik 7 - F.O. Zad 6-10'!$V$57,VLOOKUP(C69,'Załącznik 7 - F.O. Zad 6-10'!$C$52:$G$210,5,0),0)","v":0},28,0,null,null,8,0,20,0]
[null,49,"TCHIBO EXCLUSIVE KAWA MIELONA 250G","Kawa mielona TCHIBO Exclusive, 250 g","1 op. (250 g)",{"$f":"IF('Załącznik 7 - F.O. Zad 6-10'!$V$57,VLOOKUP(C70,'Załącznik 7 - F.O. Zad 6-10'!$C$52:$G$210,5,0),0)","v":0},9,0,null,null,4,0,5,0]
[null,50,"TCHIBO FAMILY KAWA MIELONA 250G","Kawa mielona TCHIBO Family, 250 g","1 op. (250 g)",{"$f":"IF('Załącznik 7 - F.O. Zad 6-10'!$V$57,VLOOKUP(C71,'Załącznik 7 - F.O. Zad 6-10'!$C$52:$G$210,5,0),0)","v":0},4,0,null,null,4,0]
[null,51,"TCHIBO FAMILY KAWA ROZPUSZCZALNA 200G","Kawa rozpuszczalna TCHIBO Family, 200 g","1 op. (200 g)",{"$f":"IF('Załącznik 7 - F.O. Zad 6-10'!$V$57,VLOOKUP(C72,'Załącznik 7 - F.O. Zad 6-10'!$C$52:$G$210,5,0),0)","v":0},6,0,null,null,6,0]
[null,52,"TCHIBO PROFESSIONAL CREMA ZIARNISTA 1KG","Kawa ziarnista TCHIBO Profesional  Crema  1 kg ","1 op. (1 kg)",{"$f":"IF('Załącznik 7 - F.O. Zad 6-10'!$V$57,VLOOKUP(C73,'Załącznik 7 - F.O. Zad 6-10'!$C$52:$G$210,5,0),0)","v":0},5,0,null,null,4,0,null,null,null,null,1,0]
[null,53,"GOSTYŃ MLEKO SKONDENS NIESŁODZONE 500G","Mleko zagęszczone GOSTYŃ 7,5% niesłodzone, 500 g","1 op. ( 1 karton 500 g)",{"$f":"IF('Załącznik 7 - F.O. Zad 6-10'!$V$57,VLOOKUP(C74,'Załącznik 7 - F.O. Zad 6-10'!$C$52:$G$210,5,0),0)","v":0},35,0,null,null,4,0,31,0]
[null,54,"ŁACIATA ŚMIETANKA UHT 12% 500ML","Śmietanka do kawy ŁACIATA 12%, 500 ml","1 op. (500 ml)",{"$f":"IF('Załącznik 7 - F.O. Zad 6-10'!$V$57,VLOOKUP(C75,'Załącznik 7 - F.O. Zad 6-10'!$C$52:$G$210,5,0),0)","v":0},4,0,null,null,4,0]
[null,55,"ŁACIATA ŚMIETANKA W KUBECZKACH OPK10X10G","Śmietanka do kawy ŁACIATA 10%, 10 kubeczków x 10 g","1 op. (10 kubeczków)",{"$f":"IF('Załącznik 7 - F.O. Zad 6-10'!$V$57,VLOOKUP(C76,'Załącznik 7 - F.O. Zad 6-10'!$C$52:$G$210,5,0),0)","v":0},52,0,null,null,12,0,40,0]
[null,56,"ŁACIATE MLEKO UHT 2% 0,5L","Mleko ŁACIATE UHT 2,0%, 0,5 l","1 op. (500 ml)",{"$f":"IF('Załącznik 7 - F.O. Zad 6-10'!$V$57,VLOOKUP(C77,'Załącznik 7 - F.O. Zad 6-10'!$C$52:$G$210,5,0),0)","v":0},38,0,null,null,12,0,26,0]
[null,57,"ŁACIATE MLEKO UHT 2% 1L","Mleko ŁACIATE UHT 2,0%, 1 l","1 op. (1 l)",{"$f":"IF('Załącznik 7 - F.O. Zad 6-10'!$V$57,VLOOKUP(C78,'Załącznik 7 - F.O. Zad 6-10'!$C$52:$G$210,5,0),0)","v":0},19,0,null,null,8,0,10,0,null,null,1,0]
[null,58,"ŁACIATE MLEKO UHT 3,2% 0,5L","Mleko ŁACIATE UHT 3,2%, 0,5 l","1 op. (500 ml)",{"$f":"IF('Załącznik 7 - F.O. Zad 6-10'!$V$57,VLOOKUP(C79,'Załącznik 7 - F.O. Zad 6-10'!$C$52:$G$210,5,0),0)","v":0},13,0,null,null,12,0,null,null,null,null,1,0]
[null,59,"ŁACIATE MLEKO UHT 3,2% 1L","Mleko ŁACIATE UHT 3,2%, 1 l","1 op. (1 l)",{"$f":"IF('Załącznik 7 - F.O. Zad 6-10'!$V$57,VLOOKUP(C80,'Załącznik 7 - F.O. Zad 6-10'!$C$52:$G$210,5,0),0)","v":0},199,0,null,null,8,0,190,{"$f":"M80*F80","v":0},null,null,1,{"$f":"Q80*F80","v":0}]
[null,60,"ŁACIATE MLEKO ZAGĘSZCZONE 7,5% 0,5L","Mleko zagęszczone ŁACIATE UHT 7,5%, 0,5 l","1 op. (500 ml)",{"$f":"IF('Załącznik 7 - F.O. Zad 6-10'!$V$57,VLOOKUP(C81,'Załącznik 7 - F.O. Zad 6-10'!$C$52:$G$210,5,0),0)","v":0},{"$f":"I81+K81+M81+O81+Q81","v":5},{"$f":"G81*F81","v":0},null,null,4,{"$f":"K81*F81","v":0},null,null,null,null,1,0]
[null,61,"ZAMBROWSKIE MLEKO UHT 3,2% 1L","Mleko ZAMBROWSKIE UHT 3,2 %, 1 l","1 op. (1 l)",{"$f":"IF('Załącznik 7 - F.O. Zad 6-10'!$V$57,VLOOKUP(C82,'Załącznik 7 - F.O. Zad 6-10'!$C$52:$G$210,5,0),0)","v":0},1,0,null,null,null,null,null,null,null,null,1,0]
[null,62,"BAKALLAND BAKALIE STUDENCKI MIX 200G","Cukierki Mieszanka bakaliowa BAKALLAND Studencki Mix, 200 g","1 op (200 g)",{"$f":"IF('Załącznik 7 - F.O. Zad 6-10'!$V$57,VLOOKUP(C83,'Załącznik 7 - F.O. Zad 6-10'!$C$52:$G$210,5,0),0)","v":0},14,0,null,null,12,0,2,0]
[null,63,"BAKALLAND MIGDAŁY 300G","Migdały BAKALLAND, 300 g","1 op. (300 g)",{"$f":"IF('Załącznik 7 - F.O. Zad 6-10'!$V$57,VLOOKUP(C84,'Załącznik 7 - F.O. Zad 6-10'!$C$52:$G$210,5,0),0)","v":0},15,0,null,null,12,0,3,0]
[null,64,"BAKALLAND ORZECHY NERKOWCA 300G","Orzechy nerkowca BAKALLAND, 300 g","1 op. (300 g)",{"$f":"IF('Załącznik 7 - F.O. Zad 6-10'!$V$57,VLOOKUP(C85,'Załącznik 7 - F.O. Zad 6-10'!$C$52:$G$210,5,0),0)","v":0},15,0,null,null,12,0,3,0]
[null,65,"BELVITA CIASTKA KAKAOWE 300G","Ciastka BELVITA, kakaowe, 300 g, 24 ciasteczka","1 op. (300 g)",{"$f":"IF('Załącznik 7 - F.O. Zad 6-10'!$V$57,VLOOKUP(C86,'Załącznik 7 - F.O. Zad 6-10'!$C$52:$G$210,5,0),0)","v":0},12,0,null,null,12,0]
[null,66,"BELVITA CIASTKA MUSLI+OWOCE 300G","Ciastka BELVITA Musli z owocami, 24 ciasteczka pakowane po 4 sztuki, 300 g","1 op. (300 g)",{"$f":"IF('Załącznik 7 - F.O. Zad 6-10'!$V$57,VLOOKUP(C87,'Załącznik 7 - F.O. Zad 6-10'!$C$52:$G$210,5,0),0)","v":0},6,0,null,null,6,0]
[null,67,"CISOWIANKA WODA GAZOWANA 0,5L OPK12","Woda mineralna CISOWIANKA gazowana, zgrzewka 12 butelek x 0,5 l","1 op. (12 butelek)",{"$f":"IF('Załącznik 7 - F.O. Zad 6-10'!$V$57,VLOOKUP(C88,'Załącznik 7 - F.O. Zad 6-10'!$C$52:$G$210,5,0),0)","v":0},45,0,null,null,6,0,38,0,null,null,1,0]
[null,68,"DELICJE SZAMPAŃSKIE MALINA 147G","Ciastka DELICJE Szampańskie malinowe, 147 g","1 op. (147 g)",{"$f":"IF('Załącznik 7 - F.O. Zad 6-10'!$V$57,VLOOKUP(C89,'Załącznik 7 - F.O. Zad 6-10'!$C$52:$G$210,5,0),0)","v":0},67,0,null,null,24,0,42,0,null,null,1,0]
[null,69,"DELICJE SZAMPAŃSKIE POMARAŃCZA 147G","Ciastka DELICJE Szampańskie pomarańczowe, 147 g","1 op. (147 g)",{"$f":"IF('Załącznik 7 - F.O. Zad 6-10'!$V$57,VLOOKUP(C90,'Załącznik 7 - F.O. Zad 6-10'!$C$52:$G$210,5,0),0)","v":0},41,0,null,null,24,0,16,0,null,null,1,0]
[null,70,"DELICJE SZAMPAŃSKIE WIŚNIA 147G","Ciastka DELICJE Szampańskie wiśniowe, 147 g","1 op. (147 g)",{"$f":"IF('Załącznik 7 - F.O. Zad 6-10'!$V$57,VLOOKUP(C91,'Załącznik 7 - F.O. Zad 6-10'!$C$52:$G$210,5,0),0)","v":0},37,0,null,null,24,0,12,0,null,null,1,0]
[null,71,"DELICJE SZAMPAŃSKIE WIŚNIOWE 294G","Ciastka DELICJE Szampańskie wiśniowe, podwójne opakowanie, 294 g","1 op. ( 294 g)",{"$f":"IF('Załącznik 7 - F.O. Zad 6-10'!$V$57,VLOOKUP(C92,'Załącznik 7 - F.O. Zad 6-10'!$C$52:$G$210,5,0),0)","v":0},45,0,null,null,12,0,32,0,null,null,1,0]
[null,72,"FERRERO RAFAELLO 230 G","Praliny RAFFAELLO, 230 g","1 op.(  230 g.)",{"$f":"IF('Załącznik 7 - F.O. Zad 6-10'!$V$57,VLOOKUP(C93,'Załącznik 7 - F.O. Zad 6-10'!$C$52:$G$210,5,0),0)","v":0},45,0,null,null,12,0,33,0]
[null,73,"FERRERO RAFFAELLO PRALINY 230G","Praliny RAFFAELLO, 230 g","2 op.(  230 g.)",{"$f":"IF('Załącznik 7 - F.O. Zad 6-10'!$V$57,VLOOKUP(C94,'Załącznik 7 - F.O. Zad 6-10'!$C$52:$G$210,5,0),0)","v":0},6,0,null,null,6,0]
[null,74,"Ferrero Rocher Praliny 200g","Czekoladki FERRERO ROCHER, 200 g","3 op.(  200 g.)",{"$f":"IF('Załącznik 7 - F.O. Zad 6-10'!$V$57,VLOOKUP(C95,'Załącznik 7 - F.O. Zad 6-10'!$C$52:$G$210,5,0),0)","v":0},32,0,null,null,18,0,14,0]
[null,75,"GOPLANA TOFFINO CHOCO 1KG","Cukierki Goplana Toffino Choco Toffi mleczne z kremem czekoladowym 1 kg","1 op. ( 1 kg.)",{"$f":"IF('Załącznik 7 - F.O. Zad 6-10'!$V$57,VLOOKUP(C96,'Załącznik 7 - F.O. Zad 6-10'!$C$52:$G$210,5,0),0)","v":0},16,0,null,null,16,0]
[null,76,"HIT MARKIZY CZEKOLADOWE 220G","Ciastka BAHLSEN HIT czekoladowe, 220 g","1 op.(  220 g)",{"$f":"IF('Załącznik 7 - F.O. Zad 6-10'!$V$57,VLOOKUP(C97,'Załącznik 7 - F.O. Zad 6-10'!$C$52:$G$210,5,0),0)","v":0},10,0,null,null,8,0,2,0]
[null,77,"JUTRZENKA JEŻYKI CAFE CIASTKA 140G","Ciasta JEŻYKI Cafe, 140 g","1 op. (140 g)",{"$f":"IF('Załącznik 7 - F.O. Zad 6-10'!$V$57,VLOOKUP(C98,'Załącznik 7 - F.O. Zad 6-10'!$C$52:$G$210,5,0),0)","v":0},17,0,null,null,12,0,5,0]
[null,78,"JUTRZENKA JEŻYKI CIASTKA 140G","Ciasta JEŻYKI Classic, 140 g","1 op. (140 g)",{"$f":"IF('Załącznik 7 - F.O. Zad 6-10'!$V$57,VLOOKUP(C99,'Załącznik 7 - F.O. Zad 6-10'!$C$52:$G$210,5,0),0)","v":0},60,0,null,null,12,0,48,0]
[null,79,"JUTRZENKA WAFLE FAMILIJNE ŚMIET-KAK 180G","Wafle FAMILIJNE śmietankowo-kakaowe, 180 g","1 op. (180 g)",{"$f":"IF('Załącznik 7 - F.O. Zad 6-10'!$V$57,VLOOKUP(C100,'Załącznik 7 - F.O. Zad 6-10'!$C$52:$G$210,5,0),0)","v":0},49,0,null,null,6,0,43,0]
[null,80,"ŁAKOTKI DESEROWE Z CUKREM 168G","Ciastka SAN ŁAKOTKI deserowe z cukrem, 168 g","1 op. (168 g)",{"$f":"IF('Załącznik 7 - F.O. Zad 6-10'!$V$57,VLOOKUP(C101,'Załącznik 7 - F.O. Zad 6-10'!$C$52:$G$210,5,0),0)","v":0},38,0,null,null,6,0,32,0]
[null,81,"ŁAKOTKI KAKAOWE 168G","Ciastka SAN ŁAKOTKI kakaowe, 168 g","1 op. (168 g)",{"$f":"IF('Załącznik 7 - F.O. Zad 6-10'!$V$57,VLOOKUP(C102,'Załącznik 7 - F.O. Zad 6-10'!$C$52:$G$210,5,0),0)","v":0},6,0,null,null,6,0]
[null,82,"ŁAKOTKI KOKOSOWE 168G","Ciastka SAN ŁAKOTKI kokosowe, 168 g","1 op. (168 g)",{"$f":"IF('Załącznik 7 - F.O. Zad 6-10'!$V$57,VLOOKUP(C103,'Załącznik 7 - F.O. Zad 6-10'!$C$52:$G$210,5,0),0)","v":0},19,0,null,null,12,0,7,0]
[null,83,"MERCI CZEKOLADKI 400 G","Czekoladki MERCI, 400 g","1 op.(400 g.)",{"$f":"IF('Załącznik 7 - F.O. Zad 6-10'!$V$57,VLOOKUP(C104,'Załącznik 7 - F.O. Zad 6-10'!$C$52:$G$210,5,0),0)","v":0},18,0,null,null,12,0,6,0]
[null,84,"MILKA CHOCO GRAINS CIASTKA 126 G","Ciastka MILKA Chocograins, 126 g","1 op.(126 g.)",{"$f":"IF('Załącznik 7 - F.O. Zad 6-10'!$V$57,VLOOKUP(C105,'Załącznik 7 - F.O. Zad 6-10'!$C$52:$G$210,5,0),0)","v":0},12,0,null,null,12,0]
[null,85,"MILKA CHOCOWAFER CIASTKA 150G","Wafle MILKA ChocoWafer, 150 g","1 op.(150g.)",{"$f":"IF('Załącznik 7 - F.O. Zad 6-10'!$V$57,VLOOKUP(C106,'Załącznik 7 - F.O. Zad 6-10'!$C$52:$G$210,5,0),0)","v":0},19,0,null,null,12,0,7,0]
[null,86,"MILKA MOMENTS CZEKOL MIX 11X97G","Praliny MILKA Moments Mix, 11 czekoladek","1 op. (11 sztuk)",{"$f":"IF('Załącznik 7 - F.O. Zad 6-10'!$V$57,VLOOKUP(C107,'Załącznik 7 - F.O. Zad 6-10'!$C$52:$G$210,5,0),0)","v":0},12,0,null,null,12,0]
[null,87,"MILKA MOMENTS TOFF/ORZECH 11x97G","Praliny MILKA Moments Toffee Wholenut, 11 czekoladek","1 op. (11 sztuk)",{"$f":"IF('Załącznik 7 - F.O. Zad 6-10'!$V$57,VLOOKUP(C108,'Załącznik 7 - F.O. Zad 6-10'!$C$52:$G$210,5,0),0)","v":0},12,0,null,null,12,0]
[null,88,"MILKA PIEGUSKI CZEKOLADA ORZECHY 135G","Ciastka MILKA Pieguski, czekolada i orzechy, 135 g","1 op. (135 g)",{"$f":"IF('Załącznik 7 - F.O. Zad 6-10'!$V$57,VLOOKUP(C109,'Załącznik 7 - F.O. Zad 6-10'!$C$52:$G$210,5,0),0)","v":0},42,0,null,null,10,0,32,0]
[null,89,"MILKA SINGLES CZEKOLADKI 138G","Czekoladki MILKA Singles, 32 czekoladki pakowane osobno"," 1 op. (32 szt.)",{"$f":"IF('Załącznik 7 - F.O. Zad 6-10'!$V$57,VLOOKUP(C110,'Załącznik 7 - F.O. Zad 6-10'!$C$52:$G$210,5,0),0)","v":0},10,0,null,null,null,null,10,0]
[null,90,"NESPRESSO CZEKOLADKI BLOND 200G","Czekoladki NESPRESSO blond, 200 g","1 op ( 200 g.)",{"$f":"IF('Załącznik 7 - F.O. Zad 6-10'!$V$57,VLOOKUP(C111,'Załącznik 7 - F.O. Zad 6-10'!$C$52:$G$210,5,0),0)","v":0},4,0,null,null,4,0]
[null,91,"NESPRESSO CZEKOLADKI MILK 200G","Czekoladki NESPRESSO mleczne, 200 g","1 op  ( 200 g.)",{"$f":"IF('Załącznik 7 - F.O. Zad 6-10'!$V$57,VLOOKUP(C112,'Załącznik 7 - F.O. Zad 6-10'!$C$52:$G$210,5,0),0)","v":0},9,0,null,null,4,0,5,0]
[null,92,"PASTYLKI MIĘTOWEW CZEKOLADZIE WAWEL","Cukierki Pastylka miętowa WAWEL, 1 kg","1 op. (1 kg)",{"$f":"IF('Załącznik 7 - F.O. Zad 6-10'!$V$57,VLOOKUP(C113,'Załącznik 7 - F.O. Zad 6-10'!$C$52:$G$210,5,0),0)","v":0},9,0,null,null,8,0,1,0]
[null,93,"SOLIDARNOŚĆ ŚLIWKA NALECZOWSKA 1KG","CukierkiŚliwka Nałęczowska SOLIDARNOŚĆ, 1 kg","2 op. (1 kg)",{"$f":"IF('Załącznik 7 - F.O. Zad 6-10'!$V$57,VLOOKUP(C114,'Załącznik 7 - F.O. Zad 6-10'!$C$52:$G$210,5,0),0)","v":0},29,0,null,null,16,0,13,0]
[null,94,"TAGO CIASTECZKA KORZENNE 4,8G OPK125 ","Ciastka TAGO korzenne, 125 ciasteczek po 4,8 g","1 op. (125 szt.)",{"$f":"IF('Załącznik 7 - F.O. Zad 6-10'!$V$57,VLOOKUP(C115,'Załącznik 7 - F.O. Zad 6-10'!$C$52:$G$210,5,0),0)","v":0},8,0,null,null,8,0]
[null,95,"TAGO OWSIANE DE LUX CIASTECZKA 210G","Ciastka TAGO Owsiane de Lux, 210 g","1 op. (210 g)",{"$f":"IF('Załącznik 7 - F.O. Zad 6-10'!$V$57,VLOOKUP(C116,'Załącznik 7 - F.O. Zad 6-10'!$C$52:$G$210,5,0),0)","v":0},8,0,null,null,8,0]
[null,96,"TAGO PRECLE MAŚLANE 158 G","Francuskie precle z masłem TAGO, 158 g","1 op. ( 158 g)",{"$f":"IF('Załącznik 7 - F.O. Zad 6-10'!$V$57,VLOOKUP(C117,'Załącznik 7 - F.O. Zad 6-10'!$C$52:$G$210,5,0),0)","v":0},10,0,null,null,8,0,2,0]
[null,97,"WAWEL MICHAŁKI 1 KG","Cukierki WAWEL Michałki Klasyczne 300 g","1 op. (300 g)",{"$f":"IF('Załącznik 7 - F.O. Zad 6-10'!$V$57,VLOOKUP(C118,'Załącznik 7 - F.O. Zad 6-10'!$C$52:$G$210,5,0),0)","v":0},34,0,null,null,12,0,22,0]
[null,98,"WAWEL MICHAŁKI CLASSIC 300G","Cukierki WAWEL Michałki Klasyczne 300 g","1 op. (300 g)",{"$f":"IF('Załącznik 7 - F.O. Zad 6-10'!$V$57,VLOOKUP(C119,'Załącznik 7 - F.O. Zad 6-10'!$C$52:$G$210,5,0),0)","v":0},4,0,null,null,4,0]
[null,99,"WAWEL MIESZANKA KRAKOWSKA 1 KG","Cukierki Mieszanka krakowska WAWEL, 1 kg","1 op. (1 kg)",{"$f":"IF('Załącznik 7 - F.O. Zad 6-10'!$V$57,VLOOKUP(C120,'Załącznik 7 - F.O. Zad 6-10'!$C$52:$G$210,5,0),0)","v":0},8,0,null,null,6,0,2,0]
[null,100,"WAWEL TRUFLE 1 KG","Cukierki WAWEL Trufle","1 op. (1 kg)",{"$f":"IF('Załącznik 7 - F.O. Zad 6-10'!$V$57,VLOOKUP(C121,'Załącznik 7 - F.O. Zad 6-10'!$C$52:$G$210,5,0),0)","v":0},20,0,null,null,6,0,14,0]
[null,101,"WEDEL AMERYKANKI KLASYCZNE 125 G","Ciastka AMERYKANKI, klasyczne, 126 g","1 op. (126 g)",{"$f":"IF('Załącznik 7 - F.O. Zad 6-10'!$V$57,VLOOKUP(C122,'Załącznik 7 - F.O. Zad 6-10'!$C$52:$G$210,5,0),0)","v":0},8,0,null,null,8,0]
[null,102,"WEDEL MIESZANKA CUKIERKI DISPLAY 3KG","Cukierki MIESZANKA WEDLOWSKA Classic, 3 kg w formie dyspensera","1 op. (3 kg)",{"$f":"IF('Załącznik 7 - F.O. Zad 6-10'!$V$57,VLOOKUP(C123,'Załącznik 7 - F.O. Zad 6-10'!$C$52:$G$210,5,0),0)","v":0},13,0,null,null,8,0,5,0]
[null,103,"WEDEL PTASIE MLECZKO WANILIOWE 360G","Ptasie mleczko WEDEL, waniliowe, 360 g","1 op.( 360 g.)",{"$f":"IF('Załącznik 7 - F.O. Zad 6-10'!$V$57,VLOOKUP(C124,'Załącznik 7 - F.O. Zad 6-10'!$C$52:$G$210,5,0),0)","v":0},8,0,null,null,4,0,4,0]
[null,104,"WEDEL WAFLE TORCIKOWE MINI ORZECHOWE 160","Wafle Torcikowe WEDEL MINI orzechowe, 160 g","1 op. ( 160 g)",{"$f":"IF('Załącznik 7 - F.O. Zad 6-10'!$V$57,VLOOKUP(C125,'Załącznik 7 - F.O. Zad 6-10'!$C$52:$G$210,5,0),0)","v":0},6,0,null,null,6,0]
[null,105,"BAKALLAND MIGDAŁY SOLONE 90G","Migdały lekko solone BAKALLAND, 90 g","1 op. (90 g)",{"$f":"IF('Załącznik 7 - F.O. Zad 6-10'!$V$57,VLOOKUP(C126,'Załącznik 7 - F.O. Zad 6-10'!$C$52:$G$210,5,0),0)","v":0},28,0,null,null,24,0,4,0]
[null,106,"BAKALLAND ORZECHY LASKOWE 300G","Orzechy laskowe BAKALLAND, 300 g","1 op. (300 g)",{"$f":"IF('Załącznik 7 - F.O. Zad 6-10'!$V$57,VLOOKUP(C127,'Załącznik 7 - F.O. Zad 6-10'!$C$52:$G$210,5,0),0)","v":0},16,0,null,null,12,0,4,0]
[null,107,"BAKALLAND ORZECHY NERKOWCA SOLONE 70G","Orzechy nerkowca  solone BAKALLAND, 70 g","1 op. (70 g)",{"$f":"IF('Załącznik 7 - F.O. Zad 6-10'!$V$57,VLOOKUP(C128,'Załącznik 7 - F.O. Zad 6-10'!$C$52:$G$210,5,0),0)","v":0},28,0,null,null,24,0,4,0]
[null,108,"BAKALLAND ORZECHY WŁOSKIE 300G","Orzechy włoskie BAKALLAND, 300 g","1 op. (300 g)",{"$f":"IF('Załącznik 7 - F.O. Zad 6-10'!$V$57,VLOOKUP(C129,'Załącznik 7 - F.O. Zad 6-10'!$C$52:$G$210,5,0),0)","v":0},24,0,null,null,24,0]
[null,109,"LAJKONIK PALUSZKI 200G","Paluszki LAJKONIK solone, 200 g","1 op. (200 g)",{"$f":"IF('Załącznik 7 - F.O. Zad 6-10'!$V$57,VLOOKUP(C130,'Załącznik 7 - F.O. Zad 6-10'!$C$52:$G$210,5,0),0)","v":0},28,0,null,null,4,0,24,0]
[null,110,"CAPPY NEKTAR MULTIWIT PET 0,33L OPK12 ","Nektar multiwitamina CAPPY, 12 butelek x 0,33 l","1 op. (12 butelek)",{"$f":"IF('Załącznik 7 - F.O. Zad 6-10'!$V$57,VLOOKUP(C131,'Załącznik 7 - F.O. Zad 6-10'!$C$52:$G$210,5,0),0)","v":0},12,0,null,null,12,0]
[null,111,"CAPPY SOK POMARAŃCZOWY PET 0,33L OPK12","Sok pomarańczowy CAPPY, 12 butelek x 0,33 l","1 op. (12 butelek)",{"$f":"IF('Załącznik 7 - F.O. Zad 6-10'!$V$57,VLOOKUP(C132,'Załącznik 7 - F.O. Zad 6-10'!$C$52:$G$210,5,0),0)","v":0},18,0,1,0,12,0,5,0]
[null,112,"CHAMPION SOK CYTRYNOWY OPK10X7,5G","Zagęszczony sok cytrynowy CHAMPION, 10 kubeczków x 7,5 g","1 op. (10 kubeczków)",{"$f":"IF('Załącznik 7 - F.O. Zad 6-10'!$V$57,VLOOKUP(C133,'Załącznik 7 - F.O. Zad 6-10'!$C$52:$G$210,5,0),0)","v":0},6,0,null,null,6,0]
[null,113,"COCA-COLA BUTELKA PET 0,5L OPK18 ","Napój gazowany COCA-COLA, zgrzewka 18 butelek x 0,5 l","1 op. (18 butelek)",{"$f":"IF('Załącznik 7 - F.O. Zad 6-10'!$V$57,VLOOKUP(C134,'Załącznik 7 - F.O. Zad 6-10'!$C$52:$G$210,5,0),0)","v":0},12,0,null,null,12,0]
[null,114,"COCA-COLA ZERO BUTELKA PET 0,5L OPK12","Napój gazowany COCA-COLA Zero, 12 butelek x 0,5 l","1 op. (12 butelek)",{"$f":"IF('Załącznik 7 - F.O. Zad 6-10'!$V$57,VLOOKUP(C135,'Załącznik 7 - F.O. Zad 6-10'!$C$52:$G$210,5,0),0)","v":0},12,0,null,null,12,0]
[null,115,"FORTUNA NEKTAR CZ.PORZECZKA 0,3L OPK15","Nektar czarna porzeczka FORTUNA, 15 butelek x 0,3 l","1 op. (15 butelek)",{"$f":"IF('Załącznik 7 - F.O. Zad 6-10'!$V$57,VLOOKUP(C136,'Załącznik 7 - F.O. Zad 6-10'!$C$52:$G$210,5,0),0)","v":0},12,0,null,null,12,0]
[null,116,"FORTUNA SOK MULTIWITAMINA 0,3 L OPK15","Sok multiwitamina FORTUNA, 15 butelek x 0,3 l","1 op. (15 butelek)",{"$f":"IF('Załącznik 7 - F.O. Zad 6-10'!$V$57,VLOOKUP(C137,'Załącznik 7 - F.O. Zad 6-10'!$C$52:$G$210,5,0),0)","v":0},17,0,null,null,12,0,5,0]
[null,117,"FORTUNA SOK POMARAŃCZOWY 0,3L OPK15 ","Sok pomarańczowy FORTUNA, 15 butelek x 0,3 l","1 op. (15 butelek)",{"$f":"IF('Załącznik 7 - F.O. Zad 6-10'!$V$57,VLOOKUP(C138,'Załącznik 7 - F.O. Zad 6-10'!$C$52:$G$210,5,0),0)","v":0},12,0,null,null,12,0]
[null,118,"FORTUNA SOK POMIDOROWY 0,3L OPK15","Sok pomidorowy FORTUNA, 15 butelek x 0,3 l","1 op. (15 butelek)",{"$f":"IF('Załącznik 7 - F.O. Zad 6-10'!$V$57,VLOOKUP(C139,'Załącznik 7 - F.O. Zad 6-10'!$C$52:$G$210,5,0),0)","v":0},2,0,null,null,2,0]
[null,119,"TARCZYN NEKTAR CZ.PORZECZKA 0,3L OPK15","Nektar czarna porzeczka TARCZYN, 15 butelek x 0,3 l","1 op. (15 butelek)",{"$f":"IF('Załącznik 7 - F.O. Zad 6-10'!$V$57,VLOOKUP(C140,'Załącznik 7 - F.O. Zad 6-10'!$C$52:$G$210,5,0),0)","v":0},7,0,null,null,6,0,null,null,null,null,1,0]
[null,120,"TARCZYN NEKTAR GREJPFRUT 0,3L OPK15","Nektar czerwony grejpfrut TARCZYN, zgrzewka 15 butelek x 0,3 l","1 op. (15 butelek)",{"$f":"IF('Załącznik 7 - F.O. Zad 6-10'!$V$57,VLOOKUP(C141,'Załącznik 7 - F.O. Zad 6-10'!$C$52:$G$210,5,0),0)","v":0},7,0,null,null,6,0,null,null,null,null,1,{"$f":"Q141*F141","v":0}]
[null,121,"TARCZYN SOK JABŁKOWY 0,3L OPK15","Sok jabłkowy TARCZYN, 15 butelek x 0,3 l","1 op. (15 butelek)",{"$f":"IF('Załącznik 7 - F.O. Zad 6-10'!$V$57,VLOOKUP(C142,'Załącznik 7 - F.O. Zad 6-10'!$C$52:$G$210,5,0),0)","v":0},{"$f":"I142+K142+M142+O142+Q142","v":12},{"$f":"G142*F142","v":0},null,null,6,{"$f":"K142*F142","v":0},5,{"$f":"M142*F142","v":0},null,null,1,0]
[null,122,"TARCZYN SOK POMARAŃCZOWY 0,3L OPK15","Sok pomarańczowy TARCZYN, 15 butelek x 0,3 l","1 op. (15 butelek)",{"$f":"IF('Załącznik 7 - F.O. Zad 6-10'!$V$57,VLOOKUP(C143,'Załącznik 7 - F.O. Zad 6-10'!$C$52:$G$210,5,0),0)","v":0},7,0,null,null,6,0,null,null,null,null,1,0]
[null,123,"TARCZYN SOK POMIDOROWY 300ML OPK15 ","Sok pomidorowy TARCZYN, zgrzewka 15 butelek x 0,3 l","1 op. (15 butelek)",{"$f":"IF('Załącznik 7 - F.O. Zad 6-10'!$V$57,VLOOKUP(C144,'Załącznik 7 - F.O. Zad 6-10'!$C$52:$G$210,5,0),0)","v":0},7,0,null,null,6,0,null,null,null,null,1,0]
[null,124,"TYMBARK JABŁKO SOK 100% 300ML OPK12","Sok TYMBARK jabłko 100%, 12 butelek x 300 ml","1 op. (12 butelek)",{"$f":"IF('Załącznik 7 - F.O. Zad 6-10'!$V$57,VLOOKUP(C145,'Załącznik 7 - F.O. Zad 6-10'!$C$52:$G$210,5,0),0)","v":0},7,0,null,null,6,0,null,null,null,null,1,0]
[null,125,"TYMBARK POMARAŃCZ SOK 100% 300ML OPK12","Sok TYMBARK pomarańcza 100%, 12 butelek x 300 ml","1 op. (12 butelek)",{"$f":"IF('Załącznik 7 - F.O. Zad 6-10'!$V$57,VLOOKUP(C146,'Załącznik 7 - F.O. Zad 6-10'!$C$52:$G$210,5,0),0)","v":0},7,0,null,null,6,0,null,null,null,null,1,0]
[null,126,"TYMBARK VITAMINI BAN/MAR/JAB 300ML OPK12","Sok TYMBARK Vitamini banan, marchewka, jabłko, 12 butelek x 300 ml","1 op. (12 butelek)",{"$f":"IF('Załącznik 7 - F.O. Zad 6-10'!$V$57,VLOOKUP(C147,'Załącznik 7 - F.O. Zad 6-10'!$C$52:$G$210,5,0),0)","v":0},7,0,null,null,6,0,null,null,null,null,1,0]
[null,127,"CISOWIANKA LEKKOGAZOWANA WODA 0,5L  OPK12 ","Woda mineralna CISOWIANKA lekko gazowana, zgrzewka 12 butelek x 0,5 l","1 op. (12 butelek)",{"$f":"IF('Załącznik 7 - F.O. Zad 6-10'!$V$57,VLOOKUP(C148,'Załącznik 7 - F.O. Zad 6-10'!$C$52:$G$210,5,0),0)","v":0},30,0,4,0,12,0,14,0]
[null,128,"CISOWIANKA PERLAGE GAZ SZKŁO 300ML  OPK24 ","Woda mineralna CISOWIANKA Perlage gazowana, zgrzewka 24 butelki x 300 ml","1 op. (24 butelki)",{"$f":"IF('Załącznik 7 - F.O. Zad 6-10'!$V$57,VLOOKUP(C149,'Załącznik 7 - F.O. Zad 6-10'!$C$52:$G$210,5,0),0)","v":0},6,0,null,null,6,0]
[null,129,"CISOWIANKA WODA GAZOWANA 1,5L OPK6","Woda mineralna CISOWIANKA gazowana, zgrzewka 6 butelek x 1,5 l","1 op. (6 butelek)",{"$f":"IF('Załącznik 7 - F.O. Zad 6-10'!$V$57,VLOOKUP(C150,'Załącznik 7 - F.O. Zad 6-10'!$C$52:$G$210,5,0),0)","v":0},11,0,10,0,null,null,1,0]
[null,130,"CISOWIANKA WODA NIEGAZ SZKŁO 300ML OPK24","Woda mineralna CISOWIANKA niegazowana szklane butelki x 300 ml","1 op. (24 butelki)",{"$f":"IF('Załącznik 7 - F.O. Zad 6-10'!$V$57,VLOOKUP(C151,'Załącznik 7 - F.O. Zad 6-10'!$C$52:$G$210,5,0),0)","v":0},12,0,null,null,12,0]
[null,131,"CISOWIANKA WODA NIEGAZOWANA 0,5L OPK12 ","Woda mineralna CISOWIANKA niegazowana, zgrzewka 12 butelek x 0,5 l","1 op. (12 butelek)",{"$f":"IF('Załącznik 7 - F.O. Zad 6-10'!$V$57,VLOOKUP(C152,'Załącznik 7 - F.O. Zad 6-10'!$C$52:$G$210,5,0),0)","v":0},93,0,5,0,32,0,56,0]
[null,132,"CISOWIANKA WODA NIEGAZOWANA 1,5L OPK6","Woda mineralna CISOWIANKA niegazowana, zgrzewka 6 butelek x 1,5 l","1 op. (6 butelek)",{"$f":"IF('Załącznik 7 - F.O. Zad 6-10'!$V$57,VLOOKUP(C153,'Załącznik 7 - F.O. Zad 6-10'!$C$52:$G$210,5,0),0)","v":0},10,0,10,0]
[null,133,"CISOWIANKA WODA SPORT NIEGAZ 0,7L OPK8","Woda mineralna CISOWIANKA Sport niegazowana, zgrzewka 8 butelek x 0,7 l","1 op. (8 butelek)",{"$f":"IF('Załącznik 7 - F.O. Zad 6-10'!$V$57,VLOOKUP(C154,'Załącznik 7 - F.O. Zad 6-10'!$C$52:$G$210,5,0),0)","v":0},6,0,null,null,6,0]
[null,134,"KINGA PIENINSKA WODA GAZOWANA 0,5L OPK12","Woda mineralna KINGA PIENIŃSKA gazowana 0,5 l","1 op. (12 butelek)",{"$f":"IF('Załącznik 7 - F.O. Zad 6-10'!$V$57,VLOOKUP(C155,'Załącznik 7 - F.O. Zad 6-10'!$C$52:$G$210,5,0),0)","v":0},28,0,null,null,24,0,4,0]
[null,135,"KINGA PIENINSKA WODA NIEGAZOW 0,5L OPK12","Woda mineralna KINGA PIENIŃSKA niegazowana, zgrzewka 12 butelek x 0,5 l","1 op. (12 butelek)",{"$f":"IF('Załącznik 7 - F.O. Zad 6-10'!$V$57,VLOOKUP(C156,'Załącznik 7 - F.O. Zad 6-10'!$C$52:$G$210,5,0),0)","v":0},31,0,null,null,24,0,7,0]
[null,136,"KROPLA BESKIDU WODA GAZ 0,5L OPK12","Woda mineralna KROPLA BESKIDU gazowana, zgrzewka 12 butelek x 0,5 l","1 op. (12 butelek)",{"$f":"IF('Załącznik 7 - F.O. Zad 6-10'!$V$57,VLOOKUP(C157,'Załącznik 7 - F.O. Zad 6-10'!$C$52:$G$210,5,0),0)","v":0},46,0,2,0,24,0,20,0]
[null,137,"KROPLA BESKIDU WODA GAZ 1,5L OPK6","Woda mineralna KROPLA BESKIDU gazowana, zgrzewka 6 butelek x 1,5 l","1 op. (6 butelek)",{"$f":"IF('Załącznik 7 - F.O. Zad 6-10'!$V$57,VLOOKUP(C158,'Załącznik 7 - F.O. Zad 6-10'!$C$52:$G$210,5,0),0)","v":0},2,0,2,0]
[null,138,"KROPLA BESKIDU WODA NIEGAZ 0,5L  OPK12","Woda mineralna KROPLA BESKIDU niegazowana, zgrzewka 12 butelek x 0,5 l","1 op. (12 butelek)",{"$f":"IF('Załącznik 7 - F.O. Zad 6-10'!$V$57,VLOOKUP(C159,'Załącznik 7 - F.O. Zad 6-10'!$C$52:$G$210,5,0),0)","v":0},52,0,1,0,24,0,27,0]
[null,139,"KROPLA BESKIDU WODA NIEGAZ 1,5L OPK6","Woda mineralna KROPLA BESKIDU niegazowana, zgrzewka 6 butelek x 1,5 l","1 op. (6 butelek)",{"$f":"IF('Załącznik 7 - F.O. Zad 6-10'!$V$57,VLOOKUP(C160,'Załącznik 7 - F.O. Zad 6-10'!$C$52:$G$210,5,0),0)","v":0},10,0,null,null,null,null,10,0]
[null,140,"NAŁĘCZOWIANKA WODA NIEGAZ 0,5L OPK12","Woda mineralna NAŁĘCZOWIANKA niegazowana, zgrzewka 12 butelek x 0,5 l","1 op. (12 butelek)",{"$f":"IF('Załącznik 7 - F.O. Zad 6-10'!$V$57,VLOOKUP(C161,'Załącznik 7 - F.O. Zad 6-10'!$C$52:$G$210,5,0),0)","v":0},64,0,1,0,24,0,39,0]
[null,141,"NAŁĘCZOWIANKA WODA NIEGAZ 1,5L OPK6","Woda mineralna NAŁĘCZOWIANKA niegazowana, zgrzewka 6 butelek x 1,5 l","1 op. (6 butelek)",{"$f":"IF('Załącznik 7 - F.O. Zad 6-10'!$V$57,VLOOKUP(C162,'Załącznik 7 - F.O. Zad 6-10'!$C$52:$G$210,5,0),0)","v":0},1,0,1,0]
[null,142,"NESTLE PURE LIFE WODA GAZ 1,5L OPK6","Woda źródlana NESTLÉ Pure Life gazowana, zgrzewka 6 butelek x 1,5 l","1 op. (6 butelek)",{"$f":"IF('Załącznik 7 - F.O. Zad 6-10'!$V$57,VLOOKUP(C163,'Załącznik 7 - F.O. Zad 6-10'!$C$52:$G$210,5,0),0)","v":0},3,0,null,null,null,null,3,0]
[null,143,"NESTLE PURE LIFE WODA NIEGAZ 0,5L OPK12","Woda źródlana NESTLÉ Pure Life niegazowana, zgrzewka 12 butelek x 0,5 l","1 op. (12 butelek)",{"$f":"IF('Załącznik 7 - F.O. Zad 6-10'!$V$57,VLOOKUP(C164,'Załącznik 7 - F.O. Zad 6-10'!$C$52:$G$210,5,0),0)","v":0},2,0,null,null,null,null,2,0]
[null,144,"NESTLE PURE LIFE WODA NIEGAZ 1,5L OPK6","Woda źródlana NESTLÉ Pure Life niegazowana, zgrzewka 6 butelek x 1,5 l","1 op. (6 butelek)",{"$f":"IF('Załącznik 7 - F.O. Zad 6-10'!$V$57,VLOOKUP(C165,'Załącznik 7 - F.O. Zad 6-10'!$C$52:$G$210,5,0),0)","v":0},5,0,5,0]
[null,145,"ŻYWIEC ZDRÓJ WODA GAZOWANA 0.5L OPK24","Woda źródlana ŻYWIOŁ od ŻYWIEC ZDRÓJ gazowana, 24 butelki x 0,5 l","1 op. (24 butelki)",{"$f":"IF('Załącznik 7 - F.O. Zad 6-10'!$V$57,VLOOKUP(C166,'Załącznik 7 - F.O. Zad 6-10'!$C$52:$G$210,5,0),0)","v":0},16,0,null,null,12,0,4,0]
[null,146,"ŻYWIEC ZDRÓJ WODA GAZOWANA 1,5L OPK6","Woda źródlana ŻYWIOŁ od ŻYWIEC ZDRÓJ gazowana, zgrzewka 6 butelek x 1,5 l","1 op. ( 6 butelek)",{"$f":"IF('Załącznik 7 - F.O. Zad 6-10'!$V$57,VLOOKUP(C167,'Załącznik 7 - F.O. Zad 6-10'!$C$52:$G$210,5,0),0)","v":0},3,0,null,null,null,null,null,null,null,null,3,0]
[null,147,"ŻYWIEC ZDRÓJ WODA NIEGAZOWANA 0.5L OPK24 ","Woda źródlana ŻYWIEC ZDRÓJ niegazowana, 24 butelki x 0,5 l","1 op. (24 butelki)",{"$f":"IF('Załącznik 7 - F.O. Zad 6-10'!$V$57,VLOOKUP(C168,'Załącznik 7 - F.O. Zad 6-10'!$C$52:$G$210,5,0),0)","v":0},35,0,null,null,24,0,8,0,null,null,3,0]
[null,148,"ŻYWIEC ZDRÓJ WODA NIEGAZOWANA 1,5L  OPK6 ","Woda źródlana ŻYWIEC ZDRÓJ niegazowana, zgrzewka 6 butelek x 1,5 l","1 op. (6 butelek)",{"$f":"IF('Załącznik 7 - F.O. Zad 6-10'!$V$57,VLOOKUP(C169,'Załącznik 7 - F.O. Zad 6-10'!$C$52:$G$210,5,0),0)","v":0},3,0,null,null,null,null,3,0]
[null,null,null,null,null,null,{"$f":"SUM(G22:G169)","v":2841},null,{"$f":"SUM(I22:I169)","v":59},null,{"$f":"SUM(K22:K169)","v":1327},null,{"$f":"SUM(M22:M169)","v":1401},null,{"$f":"SUM(O22:O169)","v":4},null,{"$f":"SUM(Q22:Q169)","v":50}]
[null,null,null,null,null,null,null,null,"ŁĄCZNA CENA NETTO DLA ENEA Centrum Sp. z o.o. ",{"$f":"SUM(J22:J169)","v":0},"ŁĄCZNA CENA NETTO DLA ENEA Ciepło sp. z o.o. (Centrala)",{"$f":"SUM(L22:L169)","v":0},"ŁĄCZNA CENA NETTO DLA ENEA Ciepło Sp. z o.o. (Oddział)",{"$f":"SUM(N22:N169)","v":0},"ŁĄCZNA CENA NETTO DLA ENEA Logistyka sp. z.o.o.",{"$f":"SUM(P22:P169)","v":0},"ŁĄCZNA CENA NETTO DLA ENEA Trading Sp. z o.o.",{"$f":"SUM(R22:R169)","v":0}]
[]
[]
[]
[]
[null,null,"miejscowość i data",null,null,"Pieczęć imienna i podpis przedstawiciela(i) Wykonawcy"]

{"sheet":"Załącznik 11-F.O. dla Zadania 9","index":7,"n_rows":186,"n_cols":18,"rows_kept":186,"cut":false,"hidden":false,"merged":[[18,1,18,2],[184,2,184,3],[184,4,184,7],[185,5,185,7],[2,1,2,7],[4,1,4,7],[8,1,8,7],[11,1,11,7],[14,1,14,7],[16,1,16,7]]}
[null,"Oznaczenie sprawy:  1400/DW00/ZU/KZ/2021/0000074365"]
[]
[null,"ZAŁĄCZNIK NR 11 - FORMULARZ OFERTY DLA ZADANIA 9 - DOSTAWA ARTYKUŁÓW SPOŻYWCZYCH: WARSZAWA + ŚWIERŻE GÓRNE + WOJ. MAZOWIECKIE."]
[]
[]
[null,null,"(pieczęć wykonawcy)"]
[]
[null,"Ja, niżej podpisany (My niżej podpisani):"]
[]
[]
[null,"działając w imieniu i na rzecz:"]
[]
[]
[null,"Składam(y) ofertę na wykonanie zamówienia, którego przedmiotem jest:"]
[null,"Dostawa artykułów biurowych, spożywczych i higienicznych dla spółek GK ENEA"]
[]
[null,"ZADANIE 9 - Dostawa artykułów spożywczych: Warszawa + Świerże Górne + woj. Mazowieckie"]
[]
[null,"ŁĄCZNA CENA NETTO OFERTY DLA ZADANIA 9:",null,{"$f":"SUM(H22:H179)","v":0}]
[]
[null,"LP","Nazwa produktu","Opis szczegółowy","Jednostka ","cena jednostkowa netto","Ilość","Wartość","ENEA Enea Centrum Sp. z o.o. - Szacowana ilość","ŁĄCZNA CENA NETTO DLA ENEA Centrum Sp. z o.o. ","ENEA Innowacje sp. z o.o. - Szacowana ilość","ŁĄCZNA CENA NETTO DLA ENEA Innowacje sp. z o.o. ","ENEA Nowa Energia Sp. z o.o. - Szacowana ilość","ŁĄCZNA CENA NETTO DLA ENEA Nowa Energia Sp. z o.o. ","ENEA S.A. - Szacowana ilość","ŁĄCZNA CENA NETTO DLA ENEA S.A.","ENEA Trading Sp. z o.o. - Szacowana ilość","ŁĄCZNA CENA NETTO DLA ENEA Trading  Sp. z o.o. "]
[null,1,"DIAMANT CUKIER BIAŁY KOSTKA 1KG","Cukier biały DIAMANT w kostkach, 1 kg","1 op. ( 1 kg.)",{"$f":"IF('Załącznik 7 - F.O. Zad 6-10'!$V$58,VLOOKUP(C22,'Załącznik 7 - F.O. Zad 6-10'!$C$52:$G$210,5,0),0)","v":0},{"$f":"I22+K22+M22+O22+Q22","v":30},{"$f":"G22*F22","v":0},1,{"$f":"I22*F22","v":0},9,{"$f":"K22*F22","v":0},null,null,null,null,20,{"$f":"Q22*F22","v":0}]
[null,2,"DIAMANT CUKIER BIAŁY W SASZET OPK100X5G","Cukier biały DIAMANT, saszetki 100 sztuk x 5 g","1 op. (100 sztuk)",{"$f":"IF('Załącznik 7 - F.O. Zad 6-10'!$V$58,VLOOKUP(C23,'Załącznik 7 - F.O. Zad 6-10'!$C$52:$G$210,5,0),0)","v":0},{"$f":"I23+K23+M23+O23+Q23","v":29},{"$f":"G23*F23","v":0},null,null,9,{"$f":"K23*F23","v":0},null,null,null,null,20,0]
[null,3,"DIAMANT CUKIER DRY DEMERARA SYPKI 0,5KG","Cukier trzcinowy DIAMANT Dry Demerara, sypki, 500 g","1 op. ( 500 g)",{"$f":"IF('Załącznik 7 - F.O. Zad 6-10'!$V$58,VLOOKUP(C24,'Załącznik 7 - F.O. Zad 6-10'!$C$52:$G$210,5,0),0)","v":0},24,0,1,{"$f":"I24*F24","v":0},9,0,null,null,14,{"$f":"O24*F24","v":0}]
[null,4,"DIAMANT CUKIER KRYSZTAŁ BIAŁY 1KG","Cukier biały DIAMANT sypki, 1 kg","1 op.( 1 kg.)",{"$f":"IF('Załącznik 7 - F.O. Zad 6-10'!$V$58,VLOOKUP(C25,'Załącznik 7 - F.O. Zad 6-10'!$C$52:$G$210,5,0),0)","v":0},92,0,23,0,9,0,10,{"$f":"M25*F25","v":0},null,null,50,0]
[null,5,"AHMAD HERBATA EARL GREY OPK100","Herbata czarna AHMAD Earl Grey, 100 torebek","1 op. (100 torobek)",{"$f":"IF('Załącznik 7 - F.O. Zad 6-10'!$V$58,VLOOKUP(C26,'Załącznik 7 - F.O. Zad 6-10'!$C$52:$G$210,5,0),0)","v":0},13,0,2,0,9,0,2,0]
[null,6,"BIG-ACTIVE PURE CEYLON HERBATA OPK100","Herbata czarna BIG-ACTIVE Pure Ceylon, 100 torebek","1 op. (100 torobek)",{"$f":"IF('Załącznik 7 - F.O. Zad 6-10'!$V$58,VLOOKUP(C27,'Załącznik 7 - F.O. Zad 6-10'!$C$52:$G$210,5,0),0)","v":0},16,0,5,0,9,0,2,0]
[null,7,"DILMAH CEYLON GOLD HERBATA 200G OPK100","Herbata czarna DILMAH Ceylon Gold, 100 torebek","1 op. (100 torobek)",{"$f":"IF('Załącznik 7 - F.O. Zad 6-10'!$V$58,VLOOKUP(C28,'Załącznik 7 - F.O. Zad 6-10'!$C$52:$G$210,5,0),0)","v":0},17,0,8,0,9,0]
[null,8,"DILMAH EARL GREY HERBATA LIŚCIASTA 125G","Herbata czarna liściasta DILMAH Earl Grey, 125 g","1 op. ( 125 g)",{"$f":"IF('Załącznik 7 - F.O. Zad 6-10'!$V$58,VLOOKUP(C29,'Załącznik 7 - F.O. Zad 6-10'!$C$52:$G$210,5,0),0)","v":0},10,0,null,null,9,0,null,null,1,0]
[null,9,"HERBAPOL BREAKFAST HERB MIĘTOWA OPK20 ","Herbata miętowa HERBAPOL Breakfast, 20 kopert","1 op.(  20 torebek)",{"$f":"IF('Załącznik 7 - F.O. Zad 6-10'!$V$58,VLOOKUP(C30,'Załącznik 7 - F.O. Zad 6-10'!$C$52:$G$210,5,0),0)","v":0},9,0,null,null,9,0]
[null,10,"HERBAPOL HERBATA MALINOWA OPK20","Herbata owocowa HERBAPOL Herbaciany Ogród malinowa, 20 torebek","1 op.(  20 torebek)",{"$f":"IF('Załącznik 7 - F.O. Zad 6-10'!$V$58,VLOOKUP(C31,'Załącznik 7 - F.O. Zad 6-10'!$C$52:$G$210,5,0),0)","v":0},15,0,null,null,9,0,2,0,4,0]
[null,11,"HERBAPOL PROSTO Z LASU OPK20","Herbata owocowa HERBAPOL Herbaciany Ogród, Prosto z lasu, 20 torebek","1 op.(  20 torebek)",{"$f":"IF('Załącznik 7 - F.O. Zad 6-10'!$V$58,VLOOKUP(C32,'Załącznik 7 - F.O. Zad 6-10'!$C$52:$G$210,5,0),0)","v":0},9,0,null,null,9,0]
[null,12,"HERBAPOL ZIELONA HERBATA OPK20","Herbata zielona HERBAPOL, 20 torebek bez zawieszki","1 op.(  20 torebek)",{"$f":"IF('Załącznik 7 - F.O. Zad 6-10'!$V$58,VLOOKUP(C33,'Załącznik 7 - F.O. Zad 6-10'!$C$52:$G$210,5,0),0)","v":0},15,0,6,0,9,0]
[null,13,"Herbata zielona Lipton Piramidki","Herbata zielona LIPTON  20 torebek piramidek","1 op.(  20 torebek)",{"$f":"IF('Załącznik 7 - F.O. Zad 6-10'!$V$58,VLOOKUP(C34,'Załącznik 7 - F.O. Zad 6-10'!$C$52:$G$210,5,0),0)","v":0},12,0,null,null,9,0,3,0]
[null,14,"IRVING BIAŁ POZIOMK/MANDAR HERBATA OPK20","Harbata biała IRVING poziomkowa z mandarynką, 20 kopert","1 op.(  20 torebek)",{"$f":"IF('Załącznik 7 - F.O. Zad 6-10'!$V$58,VLOOKUP(C35,'Załącznik 7 - F.O. Zad 6-10'!$C$52:$G$210,5,0),0)","v":0},11,0,null,null,9,0,2,0]
[null,15,"IRVING HERBATA CLASSIC OPK100","Herbata czarna IRVING Classic, 100 torebek","1 op.(  100 torebek)",{"$f":"IF('Załącznik 7 - F.O. Zad 6-10'!$V$58,VLOOKUP(C36,'Załącznik 7 - F.O. Zad 6-10'!$C$52:$G$210,5,0),0)","v":0},14,0,5,0,9,0]
[null,16,"LIPTON EARL GREY HERBATA OPK100","Herbata czarna LIPTON Earl Grey, 100 torebek","1 op. (100 torebek)",{"$f":"IF('Załącznik 7 - F.O. Zad 6-10'!$V$58,VLOOKUP(C37,'Załącznik 7 - F.O. Zad 6-10'!$C$52:$G$210,5,0),0)","v":0},54,0,5,0,9,0,null,null,null,null,40,0]
[null,17,"LIPTON MELISA/WIŚNIA HERBATAOPK20","Herbata ziołowa LIPTON Melisa z wiśnią, 20 torebek","1 op. (20 torebek)",{"$f":"IF('Załącznik 7 - F.O. Zad 6-10'!$V$58,VLOOKUP(C38,'Załącznik 7 - F.O. Zad 6-10'!$C$52:$G$210,5,0),0)","v":0},56,0,2,0,9,0,null,null,5,0,40,0]
[null,18,"LIPTON PYRAMID CYTRYNOWA Z MELISĄ OPK20","Herbata czarna LIPTON cytrynowa z melisą, 20 torebek piramidek","1 op. (20 torebek)",{"$f":"IF('Załącznik 7 - F.O. Zad 6-10'!$V$58,VLOOKUP(C39,'Załącznik 7 - F.O. Zad 6-10'!$C$52:$G$210,5,0),0)","v":0},63,0,2,0,9,0,null,null,12,0,40,0]
[null,19,"LIPTON PYRAMID FOREST FRUIT","Herbata owocowa LIPTON owoce leśne, 20 torebek piramidek","1 op. (20 torebek)",{"$f":"IF('Załącznik 7 - F.O. Zad 6-10'!$V$58,VLOOKUP(C40,'Załącznik 7 - F.O. Zad 6-10'!$C$52:$G$210,5,0),0)","v":0},49,0,null,null,9,0,null,null,null,null,40,0]
[null,20,"LIPTON YELLOW LABEL HERBATA  OPK100","Herbata czarna LIPTON Yellow Label, 100 torebek","1 op. (100 torebek)",{"$f":"IF('Załącznik 7 - F.O. Zad 6-10'!$V$58,VLOOKUP(C41,'Załącznik 7 - F.O. Zad 6-10'!$C$52:$G$210,5,0),0)","v":0},70,0,15,0,9,0,5,0,1,0,40,0]
[null,21,"LIPTON YELLOW LABEL HERBATA  OPK50","Herbata czarna LIPTON Yellow Label, 50 torebek","1 op. (50 torebek)",{"$f":"IF('Załącznik 7 - F.O. Zad 6-10'!$V$58,VLOOKUP(C42,'Załącznik 7 - F.O. Zad 6-10'!$C$52:$G$210,5,0),0)","v":0},24,0,15,0,9,0]
[null,22,"LIPTON ZIELONA CITRUS HERBATA OPK25","Herbata zielona LIPTON cytrusowa, 25 torebek","1 op. (25 torebek)",{"$f":"IF('Załącznik 7 - F.O. Zad 6-10'!$V$58,VLOOKUP(C43,'Załącznik 7 - F.O. Zad 6-10'!$C$52:$G$210,5,0),0)","v":0},61,0,null,null,9,0,null,null,12,0,40,0]
[null,23,"LIPTON ZIELONA MIĘTOWA HERBATA OPK25 ","Herbata zielona LIPTON miętowa, 25 torebek","1 op. (25 torebek)",{"$f":"IF('Załącznik 7 - F.O. Zad 6-10'!$V$58,VLOOKUP(C44,'Załącznik 7 - F.O. Zad 6-10'!$C$52:$G$210,5,0),0)","v":0},51,0,null,null,9,0,null,null,2,0,40,0]
[null,24,"TEEKANNE BLACK CURRANT HERBATA OPK20","Herbata owocowa TEEKANNE World of Fruits, Black Currant, 20 kopert","1 op. (20 torebek)",{"$f":"IF('Załącznik 7 - F.O. Zad 6-10'!$V$58,VLOOKUP(C45,'Załącznik 7 - F.O. Zad 6-10'!$C$52:$G$210,5,0),0)","v":0},49,0,null,null,9,0,null,null,null,null,40,0]
[null,25,"TEEKANNE EARL GREY HERBATA  OPK100","Herbata czarna TEEKANNE Earl Grey, 100 torebek","1 op. (100 torebek)",{"$f":"IF('Załącznik 7 - F.O. Zad 6-10'!$V$58,VLOOKUP(C46,'Załącznik 7 - F.O. Zad 6-10'!$C$52:$G$210,5,0),0)","v":0},49,0,null,null,9,0,null,null,null,null,40,0]
[null,26,"TEEKANNE WORLD OF FRUITS ZESTAW OPK30","Zestaw herbat owocowych TEEKANNE World of Fruits, 30 kopert","1 op. (30 torebek)",{"$f":"IF('Załącznik 7 - F.O. Zad 6-10'!$V$58,VLOOKUP(C47,'Załącznik 7 - F.O. Zad 6-10'!$C$52:$G$210,5,0),0)","v":0},53,0,2,0,9,0,2,0,null,null,40,0]
[null,27,"TEEKANNE ZIELON OPUNCJA HERBATA OPK20 ","Herbata zielona TEEKANNE z opuncją, 20 kopert","1 op. (20 torebek)",{"$f":"IF('Załącznik 7 - F.O. Zad 6-10'!$V$58,VLOOKUP(C48,'Załącznik 7 - F.O. Zad 6-10'!$C$52:$G$210,5,0),0)","v":0},71,0,2,0,9,0,null,null,null,null,60,0]
[null,28,"VITAX HERBATA MELISA I POMARAŃCZA OPK20","Herbata owocowa VITAX Inspirations melisa & pomarańcza, 20 torebek","1 op. (20 torebek)",{"$f":"IF('Załącznik 7 - F.O. Zad 6-10'!$V$58,VLOOKUP(C49,'Załącznik 7 - F.O. Zad 6-10'!$C$52:$G$210,5,0),0)","v":0},38,0,9,0,9,0,null,null,null,null,20,0]
[null,29,"VITAX HERBATA ZIOŁOWA MELISA OPK20","Herbata ziołowa VITAX melisa, 20 okrągłych torebek bez zawieszki","1 op. (20 torebek)",{"$f":"IF('Załącznik 7 - F.O. Zad 6-10'!$V$58,VLOOKUP(C50,'Załącznik 7 - F.O. Zad 6-10'!$C$52:$G$210,5,0),0)","v":0},33,0,4,0,9,0,null,null,null,null,20,0]
[null,30,"VITAX HERBATA ZIOŁOWA MIĘTA OPK20","Herbata ziołowa VITAX mięta, 20 okrągłych torebek bez zawieszki","1 op. (20 torebek)",{"$f":"IF('Załącznik 7 - F.O. Zad 6-10'!$V$58,VLOOKUP(C51,'Załącznik 7 - F.O. Zad 6-10'!$C$52:$G$210,5,0),0)","v":0},54,0,5,0,9,0,null,null,null,null,40,0]
[null,31,"VITAX HERBATA ŻURAWINA I MALINA OPK20","Herbata owocowa VITAX Inspirations żurawina & malina, 20 torebek","1 op. (20 torebek)",{"$f":"IF('Załącznik 7 - F.O. Zad 6-10'!$V$58,VLOOKUP(C52,'Załącznik 7 - F.O. Zad 6-10'!$C$52:$G$210,5,0),0)","v":0},66,0,10,0,9,0,null,null,7,0,40,0]
[null,32,"VITAX NAPAR RUMIANEK OPK20","Herbata ziołowa VITAX rumianek, 20 kwadratowych torebek bez zawieszki","1 op. (20 torebek)",{"$f":"IF('Załącznik 7 - F.O. Zad 6-10'!$V$58,VLOOKUP(C53,'Załącznik 7 - F.O. Zad 6-10'!$C$52:$G$210,5,0),0)","v":0},41,0,2,0,9,0,null,null,null,null,30,0]
[null,33,"ASTRA ŁAGODNA TRADYCYJNA KAWA MIEL 250 G","Kawa ziarnista Astra Łagodna 250 g","1 op. (250 g)",{"$f":"IF('Załącznik 7 - F.O. Zad 6-10'!$V$58,VLOOKUP(C54,'Załącznik 7 - F.O. Zad 6-10'!$C$52:$G$210,5,0),0)","v":0},15,0,6,0,9,0]
[null,34,"ASTRA ŁAGODNA TRADYCYJNA KAWA ZIARN 1 KG","Kawa ziarnista Astra Łagodna 1 kg","1 op. (1 kg)",{"$f":"IF('Załącznik 7 - F.O. Zad 6-10'!$V$58,VLOOKUP(C55,'Załącznik 7 - F.O. Zad 6-10'!$C$52:$G$210,5,0),0)","v":0},11,0,2,0,9,0]
[null,35,"DUNI KUBEK PAPIER BIAŁY 210ML OPK50","Kubek papierowy do gorących i zminych napojów 210 ml","1 op. (50 szt.)",{"$f":"IF('Załącznik 7 - F.O. Zad 6-10'!$V$58,VLOOKUP(C56,'Załącznik 7 - F.O. Zad 6-10'!$C$52:$G$210,5,0),0)","v":0},10,0,1,0,9,0]
[null,36,"EDUSCHO CAFFE CREMA KAWA ZIARNISTA 1KG","Kawa ziarnista EDUSCHO Caffe Crema, 1 kg","1 op. ( 1 kg.)",{"$f":"IF('Załącznik 7 - F.O. Zad 6-10'!$V$58,VLOOKUP(C57,'Załącznik 7 - F.O. Zad 6-10'!$C$52:$G$210,5,0),0)","v":0},65,0,6,0,9,0,null,null,null,null,50,0]
[null,37,"ESPRESSO KARMELOWE OPK50 NNSA 8868","Kawa w kapsułkach NESPRESSO ESPRESSO CARAMEL, 50 szt. (box)","1 op. (50 szt.)",{"$f":"IF('Załącznik 7 - F.O. Zad 6-10'!$V$58,VLOOKUP(C58,'Załącznik 7 - F.O. Zad 6-10'!$C$52:$G$210,5,0),0)","v":0},19,0,null,null,9,0,null,null,10,0]
[null,38,"ESPRESSO WANILIOWE OPK50 NNSA 8869","Kawa w kapsułkach NESPRESSO ESPRESSO VANILLA, 50 szt. (box)","2 op. (50 szt.)",{"$f":"IF('Załącznik 7 - F.O. Zad 6-10'!$V$58,VLOOKUP(C59,'Załącznik 7 - F.O. Zad 6-10'!$C$52:$G$210,5,0),0)","v":0},20,0,null,null,9,0,null,null,11,0]
[null,39,"INKA KAWA ZBOŻOWA 200G","Kawa zbożowa INKA, puszka 200 g","1 op.( 200 g.)",{"$f":"IF('Załącznik 7 - F.O. Zad 6-10'!$V$58,VLOOKUP(C60,'Załącznik 7 - F.O. Zad 6-10'!$C$52:$G$210,5,0),0)","v":0},15,0,6,0,9,0]
[null,40,"JACOBS BARISTA AMERICANO KAWA ROZPU 155G","Kawa rozpuszczalna JACOBS Barista Americano 155 g","1 op. (słoik 155g)",{"$f":"IF('Załącznik 7 - F.O. Zad 6-10'!$V$58,VLOOKUP(C61,'Załącznik 7 - F.O. Zad 6-10'!$C$52:$G$210,5,0),0)","v":0},10,0,null,null,9,0,null,null,1,0]
[null,41,"JACOBS CRONAT GOLD KAWA MIELONA 500G","Kawa mielona JACOBS Cronat Gold, 500 g","1 op. (500 g.)",{"$f":"IF('Załącznik 7 - F.O. Zad 6-10'!$V$58,VLOOKUP(C62,'Załącznik 7 - F.O. Zad 6-10'!$C$52:$G$210,5,0),0)","v":0},14,0,5,0,9,0]
[null,42,"JACOBS CRONAT GOLD KAWA ROZPUSZCZ 200G","Kawa rozpuszczalna JACOBS Cronat Gold, 200 g","1 op.( 200 g.)",{"$f":"IF('Załącznik 7 - F.O. Zad 6-10'!$V$58,VLOOKUP(C63,'Załącznik 7 - F.O. Zad 6-10'!$C$52:$G$210,5,0),0)","v":0},30,0,21,0,9,0]
[null,43,"JACOBS GOLD CREMA KAWA ROZPUSZCZ 200G","Kawa rozpuszczalna JACOBS Crema Gold, 200 g","1 op.( 200 g.)",{"$f":"IF('Załącznik 7 - F.O. Zad 6-10'!$V$58,VLOOKUP(C64,'Załącznik 7 - F.O. Zad 6-10'!$C$52:$G$210,5,0),0)","v":0},14,0,5,0,9,0]
[null,44,"JACOBS KRONUNG KAWA MIELONA 250G","Kawa mielona JACOBS Kronung, 250 g","1 op. (250 g.)",{"$f":"IF('Załącznik 7 - F.O. Zad 6-10'!$V$58,VLOOKUP(C65,'Załącznik 7 - F.O. Zad 6-10'!$C$52:$G$210,5,0),0)","v":0},11,0,2,0,9,0]
[null,45,"JACOBS KRONUNG KAWA ROZPUSZCZALNA 200G","Kawa rozpuszczalna JACOBS Kronung, 200 g","1 op.( 200 g.)",{"$f":"IF('Załącznik 7 - F.O. Zad 6-10'!$V$58,VLOOKUP(C66,'Załącznik 7 - F.O. Zad 6-10'!$C$52:$G$210,5,0),0)","v":0},21,0,11,0,9,0,null,null,1,0]
[null,46,"KUBEK PAPIEROWY 110ML OPK50 ","Kubek papierowy do gorących napojów 110 ml","1 op. (50 szt.)",{"$f":"IF('Załącznik 7 - F.O. Zad 6-10'!$V$58,VLOOKUP(C67,'Załącznik 7 - F.O. Zad 6-10'!$C$52:$G$210,5,0),0)","v":0},10,0,1,0,9,0]
[null,47,"KUBEK PAPIEROWY 360ML OPK35","Kubek papierowy do gorących napojów 360 ml","1 op. (35 szt.)",{"$f":"IF('Załącznik 7 - F.O. Zad 6-10'!$V$58,VLOOKUP(C68,'Załącznik 7 - F.O. Zad 6-10'!$C$52:$G$210,5,0),0)","v":0},10,0,1,0,9,0]
[null,48,"KUBEK PLASTIK 200ML BIAŁE OPK100","Kubek plastikowy do zimnych napojów 200 ml Biały","1 op. (100 szt.)",{"$f":"IF('Załącznik 7 - F.O. Zad 6-10'!$V$58,VLOOKUP(C69,'Załącznik 7 - F.O. Zad 6-10'!$C$52:$G$210,5,0),0)","v":0},10,0,1,0,9,0]
[null,49,"LAVAZZA CREMA AROMA KAWA ZIARNISTA 1KG","Kawa ziarnista LAVAZZA Crema Aroma, 1 kg","1 op. (1 kg)",{"$f":"IF('Załącznik 7 - F.O. Zad 6-10'!$V$58,VLOOKUP(C70,'Załącznik 7 - F.O. Zad 6-10'!$C$52:$G$210,5,0),0)","v":0},23,0,14,0,9,0]
[null,50,"LAVAZZA PRONTOCREMA GRANDE AROMA ZIA 1KG","Kawa ziarnista LAVAZZA Pronto crema Grande Aroma 1 kg","1 op. (1 kg)",{"$f":"IF('Załącznik 7 - F.O. Zad 6-10'!$V$58,VLOOKUP(C71,'Załącznik 7 - F.O. Zad 6-10'!$C$52:$G$210,5,0),0)","v":0},9,0,null,null,9,0]
[null,51,"LAVAZZA QUALITA ORO KAWA MIELONA 250G","Kawa mielona LAVAZZA Qualita Oro, 250 g","1 op. (250 g)",{"$f":"IF('Załącznik 7 - F.O. Zad 6-10'!$V$58,VLOOKUP(C72,'Załącznik 7 - F.O. Zad 6-10'!$C$52:$G$210,5,0),0)","v":0},20,0,11,0,9,0]
[null,52,"LAVAZZA QUALITA ORO KAWA ZIARNISTA 1 KG","Kawa ziarnista LAVAZZA Qualita Oro, 1 kg","1 op. (1 kg)",{"$f":"IF('Załącznik 7 - F.O. Zad 6-10'!$V$58,VLOOKUP(C73,'Załącznik 7 - F.O. Zad 6-10'!$C$52:$G$210,5,0),0)","v":0},49,0,40,0,9,0]
[null,53,"LAVAZZA QUALITA ROSSA KAWA ZIARNISTA 1KG","Kawa ziarnista LAVAZZA Qualita Rossa, 1 kg","1 op. (1 kg)",{"$f":"IF('Załącznik 7 - F.O. Zad 6-10'!$V$58,VLOOKUP(C74,'Załącznik 7 - F.O. Zad 6-10'!$C$52:$G$210,5,0),0)","v":0},24,0,15,0,9,0]
[null,54,"NESCAFE SENSAZIONE CREME KAWA ROZP 200G","Kawa rozpuszczalna NESCAFÉ Sensazione Creme, 200 g","1 op.( 200 g.)",{"$f":"IF('Załącznik 7 - F.O. Zad 6-10'!$V$58,VLOOKUP(C75,'Załącznik 7 - F.O. Zad 6-10'!$C$52:$G$210,5,0),0)","v":0},14,0,5,0,9,0]
[null,55,"TCHIBO EXCLUSIVE KAWA MIELONA 250G","Kawa mielona TCHIBO Exclusive, 250 g","1 op. (250 g)",{"$f":"IF('Załącznik 7 - F.O. Zad 6-10'!$V$58,VLOOKUP(C76,'Załącznik 7 - F.O. Zad 6-10'!$C$52:$G$210,5,0),0)","v":0},9,0,null,null,9,0]
[null,56,"TCHIBO FAMILY KAWA MIELONA 250G","Kawa mielona TCHIBO Family, 250 g","1 op. (250 g)",{"$f":"IF('Załącznik 7 - F.O. Zad 6-10'!$V$58,VLOOKUP(C77,'Załącznik 7 - F.O. Zad 6-10'!$C$52:$G$210,5,0),0)","v":0},14,0,5,0,9,0]
[null,57,"TCHIBO FAMILY KAWA ROZPUSZCZALNA 200G","Kawa rozpuszczalna TCHIBO Family, 200 g","1 op. (200 g)",{"$f":"IF('Załącznik 7 - F.O. Zad 6-10'!$V$58,VLOOKUP(C78,'Załącznik 7 - F.O. Zad 6-10'!$C$52:$G$210,5,0),0)","v":0},24,0,5,0,9,0,null,null,null,null,10,0]
[null,58,"TCHIBO PROFESSIONAL CREMA ZIARNISTA 1KG","Kawa ziarnista TCHIBO Profesional  Crema  1 kg ","1 op. (1 kg)",{"$f":"IF('Załącznik 7 - F.O. Zad 6-10'!$V$58,VLOOKUP(C79,'Załącznik 7 - F.O. Zad 6-10'!$C$52:$G$210,5,0),0)","v":0},54,0,5,0,9,0,null,null,null,null,40,0]
[null,59,"GOSTYŃ MLEKO SKONDENS NIESŁODZONE 500G","Mleko zagęszczone GOSTYŃ 7,5% niesłodzone, 500 g","1 op. ( 1 karton 500 g)",{"$f":"IF('Załącznik 7 - F.O. Zad 6-10'!$V$58,VLOOKUP(C80,'Załącznik 7 - F.O. Zad 6-10'!$C$52:$G$210,5,0),0)","v":0},70,0,1,0,9,0,60,0]
[null,60,"ŁACIATA ŚMIETANKA UHT 12% 500ML","Śmietanka do kawy ŁACIATA 12%, 500 ml","1 op. (500 ml)",{"$f":"IF('Załącznik 7 - F.O. Zad 6-10'!$V$58,VLOOKUP(C81,'Załącznik 7 - F.O. Zad 6-10'!$C$52:$G$210,5,0),0)","v":0},20,0,1,0,9,0,10,0]
[null,61,"ŁACIATA ŚMIETANKA W KUBECZKACH OPK10X10G","Śmietanka do kawy ŁACIATA 10%, 10 kubeczków x 10 g","1 op. (10 kubeczków)",{"$f":"IF('Załącznik 7 - F.O. Zad 6-10'!$V$58,VLOOKUP(C82,'Załącznik 7 - F.O. Zad 6-10'!$C$52:$G$210,5,0),0)","v":0},19,0,10,0,9,0]
[null,62,"ŁACIATE MLEKO UHT 2% 0,5L","Mleko ŁACIATE UHT 2,0%, 0,5 l","1 op. (500 ml)",{"$f":"IF('Załącznik 7 - F.O. Zad 6-10'!$V$58,VLOOKUP(C83,'Załącznik 7 - F.O. Zad 6-10'!$C$52:$G$210,5,0),0)","v":0},96,0,5,0,9,0,null,null,82,0]
[null,63,"ŁACIATE MLEKO UHT 2% 1L","Mleko ŁACIATE UHT 2,0%, 1 l","1 op. (1 l)",{"$f":"IF('Załącznik 7 - F.O. Zad 6-10'!$V$58,VLOOKUP(C84,'Załącznik 7 - F.O. Zad 6-10'!$C$52:$G$210,5,0),0)","v":0},102,0,5,0,9,0,null,null,48,0,40,0]
[null,64,"ŁACIATE MLEKO UHT 3,2% 0,5L","Mleko ŁACIATE UHT 3,2%, 0,5 l","1 op. (500 ml)",{"$f":"IF('Załącznik 7 - F.O. Zad 6-10'!$V$58,VLOOKUP(C85,'Załącznik 7 - F.O. Zad 6-10'!$C$52:$G$210,5,0),0)","v":0},168,0,5,0,9,0,null,null,114,0,40,0]
[null,65,"ŁACIATE MLEKO UHT 3,2% 1L","Mleko ŁACIATE UHT 3,2%, 1 l","1 op. (1 l)",{"$f":"IF('Załącznik 7 - F.O. Zad 6-10'!$V$58,VLOOKUP(C86,'Załącznik 7 - F.O. Zad 6-10'!$C$52:$G$210,5,0),0)","v":0},137,0,22,0,9,0,null,null,66,{"$f":"O86*F86","v":0},40,{"$f":"Q86*F86","v":0}]
[null,66,"ŁACIATE MLEKO ZAGĘSZCZONE 7,5% 0,5L","Mleko zagęszczone ŁACIATE UHT 7,5%, 0,5 l","1 op. (500 ml)",{"$f":"IF('Załącznik 7 - F.O. Zad 6-10'!$V$58,VLOOKUP(C87,'Załącznik 7 - F.O. Zad 6-10'!$C$52:$G$210,5,0),0)","v":0},{"$f":"I87+K87+M87+O87+Q87","v":50},{"$f":"G87*F87","v":0},1,0,9,{"$f":"K87*F87","v":0},null,null,null,null,40,0]
[null,67,"MLEKOVITA BEZ LAKTOZY UHT WYDOJONE 1,5%","Mleko WYDOJONE UHT, bez laktozy 1,5%, 1 l","1 op. (1 l)",{"$f":"IF('Załącznik 7 - F.O. Zad 6-10'!$V$58,VLOOKUP(C88,'Załącznik 7 - F.O. Zad 6-10'!$C$52:$G$210,5,0),0)","v":0},9,0,null,null,9,0]
[null,68,"MLEKOVITA BEZ LAKTOZY UHT WYDOJONE 3,2%","Mleko WYDOJONE UHT, bez laktozy, 3,2%, 1 l","1 op. (1 l)",{"$f":"IF('Załącznik 7 - F.O. Zad 6-10'!$V$58,VLOOKUP(C89,'Załącznik 7 - F.O. Zad 6-10'!$C$52:$G$210,5,0),0)","v":0},9,0,null,null,9,0]
[null,69,"ZAMBROWSKIE MLEKO UHT 3,2% 1L","Mleko ZAMBROWSKIE UHT 3,2 %, 1 l","1 op. (1 l)",{"$f":"IF('Załącznik 7 - F.O. Zad 6-10'!$V$58,VLOOKUP(C90,'Załącznik 7 - F.O. Zad 6-10'!$C$52:$G$210,5,0),0)","v":0},49,0,null,null,9,0,null,null,null,null,40,0]
[null,70,"BAKALLAND BAKALIE STUDENCKI MIX 200G","Cukierki Mieszanka bakaliowa BAKALLAND Studencki Mix, 200 g","1 op (200 g)",{"$f":"IF('Załącznik 7 - F.O. Zad 6-10'!$V$58,VLOOKUP(C91,'Załącznik 7 - F.O. Zad 6-10'!$C$52:$G$210,5,0),0)","v":0},53,0,null,null,9,0,5,{"$f":"M91*F91","v":0},39,0]
[null,71,"BAKALLAND MIGDAŁY 300G","Migdały BAKALLAND, 300 g","1 op. (300 g)",{"$f":"IF('Załącznik 7 - F.O. Zad 6-10'!$V$58,VLOOKUP(C92,'Załącznik 7 - F.O. Zad 6-10'!$C$52:$G$210,5,0),0)","v":0},34,0,null,null,9,0,null,null,25,0]
[null,72,"BAKALLAND ORZECHY NERKOWCA 300G","Orzechy nerkowca BAKALLAND, 300 g","1 op. (300 g)",{"$f":"IF('Załącznik 7 - F.O. Zad 6-10'!$V$58,VLOOKUP(C93,'Załącznik 7 - F.O. Zad 6-10'!$C$52:$G$210,5,0),0)","v":0},40,0,null,null,9,0,null,null,31,0]
[null,73,"BELVITA CIASTKA KAKAOWE 300G","Ciastka BELVITA, kakaowe, 300 g, 24 ciasteczka","1 op. (300 g)",{"$f":"IF('Załącznik 7 - F.O. Zad 6-10'!$V$58,VLOOKUP(C94,'Załącznik 7 - F.O. Zad 6-10'!$C$52:$G$210,5,0),0)","v":0},19,0,null,null,9,0,2,0,8,0]
[null,74,"BELVITA CIASTKA MUSLI+OWOCE 300G","Ciastka BELVITA Musli z owocami, 24 ciasteczka pakowane po 4 sztuki, 300 g","1 op. (300 g)",{"$f":"IF('Załącznik 7 - F.O. Zad 6-10'!$V$58,VLOOKUP(C95,'Załącznik 7 - F.O. Zad 6-10'!$C$52:$G$210,5,0),0)","v":0},9,0,null,null,9,0]
[null,75,"CISOWIANKA WODA GAZOWANA 0,5L OPK12","Woda mineralna CISOWIANKA gazowana, zgrzewka 12 butelek x 0,5 l","1 op. (12 butelek)",{"$f":"IF('Załącznik 7 - F.O. Zad 6-10'!$V$58,VLOOKUP(C96,'Załącznik 7 - F.O. Zad 6-10'!$C$52:$G$210,5,0),0)","v":0},114,0,60,0,9,0,null,null,5,0,40,0]
[null,76,"DELICJE SZAMPAŃSKIE MALINA 147G","Ciastka DELICJE Szampańskie malinowe, 147 g","1 op. (147 g)",{"$f":"IF('Załącznik 7 - F.O. Zad 6-10'!$V$58,VLOOKUP(C97,'Załącznik 7 - F.O. Zad 6-10'!$C$52:$G$210,5,0),0)","v":0},64,0,null,null,9,0,15,0,null,null,40,0]
[null,77,"DELICJE SZAMPAŃSKIE POMARAŃCZA 147G","Ciastka DELICJE Szampańskie pomarańczowe, 147 g","1 op. (147 g)",{"$f":"IF('Załącznik 7 - F.O. Zad 6-10'!$V$58,VLOOKUP(C98,'Załącznik 7 - F.O. Zad 6-10'!$C$52:$G$210,5,0),0)","v":0},67,0,null,null,9,0,10,0,8,0,40,0]
[null,78,"DELICJE SZAMPAŃSKIE WIŚNIA 147G","Ciastka DELICJE Szampańskie wiśniowe, 147 g","1 op. (147 g)",{"$f":"IF('Załącznik 7 - F.O. Zad 6-10'!$V$58,VLOOKUP(C99,'Załącznik 7 - F.O. Zad 6-10'!$C$52:$G$210,5,0),0)","v":0},65,0,null,null,9,0,15,0,1,0,40,0]
[null,79,"DELICJE SZAMPAŃSKIE WIŚNIOWE 294G","Ciastka DELICJE Szampańskie wiśniowe, podwójne opakowanie, 294 g","1 op. ( 294 g)",{"$f":"IF('Załącznik 7 - F.O. Zad 6-10'!$V$58,VLOOKUP(C100,'Załącznik 7 - F.O. Zad 6-10'!$C$52:$G$210,5,0),0)","v":0},55,0,null,null,9,0,6,0,null,null,40,0]
[null,80,"FERRERO RAFAELLO 230 G","Praliny RAFFAELLO, 230 g","1 op.(  230 g.)",{"$f":"IF('Załącznik 7 - F.O. Zad 6-10'!$V$58,VLOOKUP(C101,'Załącznik 7 - F.O. Zad 6-10'!$C$52:$G$210,5,0),0)","v":0},14,0,null,null,9,0,5,0]
[null,81,"FERRERO RAFFAELLO PRALINY 230G","Praliny RAFFAELLO, 230 g","2 op.(  230 g.)",{"$f":"IF('Załącznik 7 - F.O. Zad 6-10'!$V$58,VLOOKUP(C102,'Załącznik 7 - F.O. Zad 6-10'!$C$52:$G$210,5,0),0)","v":0},9,0,null,null,9,0]
[null,82,"Ferrero Rocher Praliny 200g","Czekoladki FERRERO ROCHER, 200 g","3 op.(  200 g.)",{"$f":"IF('Załącznik 7 - F.O. Zad 6-10'!$V$58,VLOOKUP(C103,'Załącznik 7 - F.O. Zad 6-10'!$C$52:$G$210,5,0),0)","v":0},49,0,null,null,9,0,null,null,40,0]
[null,83,"GOPLANA TOFFINO CHOCO 1KG","Cukierki Goplana Toffino Choco Toffi mleczne z kremem czekoladowym 1 kg","1 op. ( 1 kg.)",{"$f":"IF('Załącznik 7 - F.O. Zad 6-10'!$V$58,VLOOKUP(C104,'Załącznik 7 - F.O. Zad 6-10'!$C$52:$G$210,5,0),0)","v":0},9,0,null,null,9,0]
[null,84,"HIT MARKIZY CZEKOLADOWE 220G","Ciastka BAHLSEN HIT czekoladowe, 220 g","1 op.(  220 g)",{"$f":"IF('Załącznik 7 - F.O. Zad 6-10'!$V$58,VLOOKUP(C105,'Załącznik 7 - F.O. Zad 6-10'!$C$52:$G$210,5,0),0)","v":0},9,0,null,null,9,0]
[null,85,"JUTRZENKA JEŻYKI CAFE CIASTKA 140G","Ciasta JEŻYKI Cafe, 140 g","1 op. (140 g)",{"$f":"IF('Załącznik 7 - F.O. Zad 6-10'!$V$58,VLOOKUP(C106,'Załącznik 7 - F.O. Zad 6-10'!$C$52:$G$210,5,0),0)","v":0},29,0,null,null,9,0,15,0,5,0]
[null,86,"JUTRZENKA JEŻYKI CIASTKA 140G","Ciasta JEŻYKI Classic, 140 g","1 op. (140 g)",{"$f":"IF('Załącznik 7 - F.O. Zad 6-10'!$V$58,VLOOKUP(C107,'Załącznik 7 - F.O. Zad 6-10'!$C$52:$G$210,5,0),0)","v":0},32,0,2,0,9,0,15,0,6,0]
[null,87,"JUTRZENKA WAFLE FAMILIJNE ŚMIET-KAK 180G","Wafle FAMILIJNE śmietankowo-kakaowe, 180 g","1 op. (180 g)",{"$f":"IF('Załącznik 7 - F.O. Zad 6-10'!$V$58,VLOOKUP(C108,'Załącznik 7 - F.O. Zad 6-10'!$C$52:$G$210,5,0),0)","v":0},20,0,1,0,9,0,10,0]
[null,88,"ŁAKOTKI DESEROWE Z CUKREM 168G","Ciastka SAN ŁAKOTKI deserowe z cukrem, 168 g","1 op. (168 g)",{"$f":"IF('Załącznik 7 - F.O. Zad 6-10'!$V$58,VLOOKUP(C109,'Załącznik 7 - F.O. Zad 6-10'!$C$52:$G$210,5,0),0)","v":0},19,0,null,null,9,0,10,0]
[null,89,"ŁAKOTKI KAKAOWE 168G","Ciastka SAN ŁAKOTKI kakaowe, 168 g","1 op. (168 g)",{"$f":"IF('Załącznik 7 - F.O. Zad 6-10'!$V$58,VLOOKUP(C110,'Załącznik 7 - F.O. Zad 6-10'!$C$52:$G$210,5,0),0)","v":0},19,0,null,null,9,0,10,0]
[null,90,"ŁAKOTKI KOKOSOWE 168G","Ciastka SAN ŁAKOTKI kokosowe, 168 g","1 op. (168 g)",{"$f":"IF('Załącznik 7 - F.O. Zad 6-10'!$V$58,VLOOKUP(C111,'Załącznik 7 - F.O. Zad 6-10'!$C$52:$G$210,5,0),0)","v":0},24,0,null,null,9,0,10,0,5,0]
[null,91,"MERCI CZEKOLADKI 400 G","Czekoladki MERCI, 400 g","1 op.(400 g.)",{"$f":"IF('Załącznik 7 - F.O. Zad 6-10'!$V$58,VLOOKUP(C112,'Załącznik 7 - F.O. Zad 6-10'!$C$52:$G$210,5,0),0)","v":0},25,0,null,null,9,0,4,0,12,0]
[null,92,"MILKA CHOCO GRAINS CIASTKA 126 G","Ciastka MILKA Chocograins, 126 g","1 op.(126 g.)",{"$f":"IF('Załącznik 7 - F.O. Zad 6-10'!$V$58,VLOOKUP(C113,'Załącznik 7 - F.O. Zad 6-10'!$C$52:$G$210,5,0),0)","v":0},19,0,null,null,9,0,10,0]
[null,93,"MILKA CHOCOWAFER CIASTKA 150G","Wafle MILKA ChocoWafer, 150 g","1 op.(150g.)",{"$f":"IF('Załącznik 7 - F.O. Zad 6-10'!$V$58,VLOOKUP(C114,'Załącznik 7 - F.O. Zad 6-10'!$C$52:$G$210,5,0),0)","v":0},9,0,null,null,9,0]
[null,94,"MILKA MOMENTS CZEKOL MIX 11X97G","Praliny MILKA Moments Mix, 11 czekoladek","1 op. (11 sztuk)",{"$f":"IF('Załącznik 7 - F.O. Zad 6-10'!$V$58,VLOOKUP(C115,'Załącznik 7 - F.O. Zad 6-10'!$C$52:$G$210,5,0),0)","v":0},9,0,null,null,9,0]
[null,95,"MILKA MOMENTS TOFF/ORZECH 11x97G","Praliny MILKA Moments Toffee Wholenut, 11 czekoladek","1 op. (11 sztuk)",{"$f":"IF('Załącznik 7 - F.O. Zad 6-10'!$V$58,VLOOKUP(C116,'Załącznik 7 - F.O. Zad 6-10'!$C$52:$G$210,5,0),0)","v":0},9,0,null,null,9,0]
[null,96,"MILKA PIEGUSKI CZEKOLADA ORZECHY 135G","Ciastka MILKA Pieguski, czekolada i orzechy, 135 g","1 op. (135 g)",{"$f":"IF('Załącznik 7 - F.O. Zad 6-10'!$V$58,VLOOKUP(C117,'Załącznik 7 - F.O. Zad 6-10'!$C$52:$G$210,5,0),0)","v":0},34,0,null,null,9,0,25,0]
[null,97,"MILKA SINGLES CZEKOLADKI 138G","Czekoladki MILKA Singles, 32 czekoladki pakowane osobno"," 1 op. (32 szt.)",{"$f":"IF('Załącznik 7 - F.O. Zad 6-10'!$V$58,VLOOKUP(C118,'Załącznik 7 - F.O. Zad 6-10'!$C$52:$G$210,5,0),0)","v":0},13,0,null,null,9,0,null,null,4,0]
[null,98,"NESPRESSO CZEKOLADKI BLOND 200G","Czekoladki NESPRESSO blond, 200 g","1 op ( 200 g.)",{"$f":"IF('Załącznik 7 - F.O. Zad 6-10'!$V$58,VLOOKUP(C119,'Załącznik 7 - F.O. Zad 6-10'!$C$52:$G$210,5,0),0)","v":0},9,0,null,null,9,0]
[null,99,"NESPRESSO CZEKOLADKI MILK 200G","Czekoladki NESPRESSO mleczne, 200 g","1 op  ( 200 g.)",{"$f":"IF('Załącznik 7 - F.O. Zad 6-10'!$V$58,VLOOKUP(C120,'Załącznik 7 - F.O. Zad 6-10'!$C$52:$G$210,5,0),0)","v":0},9,0,null,null,9,0]
[null,100,"PASTYLKI MIĘTOWEW CZEKOLADZIE WAWEL","Cukierki Pastylka miętowa WAWEL, 1 kg","1 op. (1 kg)",{"$f":"IF('Załącznik 7 - F.O. Zad 6-10'!$V$58,VLOOKUP(C121,'Załącznik 7 - F.O. Zad 6-10'!$C$52:$G$210,5,0),0)","v":0},9,0,null,null,9,0]
[null,101,"SOLIDARNOŚĆ ŚLIWKA NALECZOWSKA 1KG","CukierkiŚliwka Nałęczowska SOLIDARNOŚĆ, 1 kg","2 op. (1 kg)",{"$f":"IF('Załącznik 7 - F.O. Zad 6-10'!$V$58,VLOOKUP(C122,'Załącznik 7 - F.O. Zad 6-10'!$C$52:$G$210,5,0),0)","v":0},35,0,null,null,9,0,null,null,6,0,20,0]
[null,102,"TAGO CIASTECZKA KORZENNE 4,8G OPK125 ","Ciastka TAGO korzenne, 125 ciasteczek po 4,8 g","1 op. (125 szt.)",{"$f":"IF('Załącznik 7 - F.O. Zad 6-10'!$V$58,VLOOKUP(C123,'Załącznik 7 - F.O. Zad 6-10'!$C$52:$G$210,5,0),0)","v":0},9,0,null,null,9,0]
[null,103,"TAGO OWSIANE DE LUX CIASTECZKA 210G","Ciastka TAGO Owsiane de Lux, 210 g","1 op. (210 g)",{"$f":"IF('Załącznik 7 - F.O. Zad 6-10'!$V$58,VLOOKUP(C124,'Załącznik 7 - F.O. Zad 6-10'!$C$52:$G$210,5,0),0)","v":0},59,0,null,null,9,0,10,0,null,null,40,0]
[null,104,"TAGO PRECLE MAŚLANE 158 G","Francuskie precle z masłem TAGO, 158 g","1 op. ( 158 g)",{"$f":"IF('Załącznik 7 - F.O. Zad 6-10'!$V$58,VLOOKUP(C125,'Załącznik 7 - F.O. Zad 6-10'!$C$52:$G$210,5,0),0)","v":0},9,0,null,null,9,0]
[null,105,"WAWEL MICHAŁKI 1 KG","Cukierki WAWEL Michałki Klasyczne 300 g","1 op. (300 g)",{"$f":"IF('Załącznik 7 - F.O. Zad 6-10'!$V$58,VLOOKUP(C126,'Załącznik 7 - F.O. Zad 6-10'!$C$52:$G$210,5,0),0)","v":0},12,0,null,null,9,0,null,null,3,0]
[null,106,"WAWEL MICHAŁKI CLASSIC 300G","Cukierki WAWEL Michałki Klasyczne 300 g","1 op. (300 g)",{"$f":"IF('Załącznik 7 - F.O. Zad 6-10'!$V$58,VLOOKUP(C127,'Załącznik 7 - F.O. Zad 6-10'!$C$52:$G$210,5,0),0)","v":0},9,0,null,null,9,0]
[null,107,"WAWEL MIESZANKA KRAKOWSKA 1 KG","Cukierki Mieszanka krakowska WAWEL, 1 kg","1 op. (1 kg)",{"$f":"IF('Załącznik 7 - F.O. Zad 6-10'!$V$58,VLOOKUP(C128,'Załącznik 7 - F.O. Zad 6-10'!$C$52:$G$210,5,0),0)","v":0},11,0,null,null,9,0,2,0]
[null,108,"WAWEL TRUFLE 1 KG","Cukierki WAWEL Trufle","1 op. (1 kg)",{"$f":"IF('Załącznik 7 - F.O. Zad 6-10'!$V$58,VLOOKUP(C129,'Załącznik 7 - F.O. Zad 6-10'!$C$52:$G$210,5,0),0)","v":0},11,0,null,null,9,0,2,0]
[null,109,"WEDEL AMERYKANKI KLASYCZNE 125 G","Ciastka AMERYKANKI, klasyczne, 126 g","1 op. (126 g)",{"$f":"IF('Załącznik 7 - F.O. Zad 6-10'!$V$58,VLOOKUP(C130,'Załącznik 7 - F.O. Zad 6-10'!$C$52:$G$210,5,0),0)","v":0},54,0,null,null,9,0,5,0,null,null,40,0]
[null,110,"WEDEL MIESZANKA CUKIERKI DISPLAY 3KG","Cukierki MIESZANKA WEDLOWSKA Classic, 3 kg w formie dyspensera","1 op. (3 kg)",{"$f":"IF('Załącznik 7 - F.O. Zad 6-10'!$V$58,VLOOKUP(C131,'Załącznik 7 - F.O. Zad 6-10'!$C$52:$G$210,5,0),0)","v":0},9,0,null,null,9,0]
[null,111,"WEDEL PTASIE MLECZKO WANILIOWE 360G","Ptasie mleczko WEDEL, waniliowe, 360 g","1 op.( 360 g.)",{"$f":"IF('Załącznik 7 - F.O. Zad 6-10'!$V$58,VLOOKUP(C132,'Załącznik 7 - F.O. Zad 6-10'!$C$52:$G$210,5,0),0)","v":0},13,0,null,null,9,0,4,0]
[null,112,"WEDEL WAFLE TORCIKOWE MINI ORZECHOWE 160","Wafle Torcikowe WEDEL MINI orzechowe, 160 g","1 op. ( 160 g)",{"$f":"IF('Załącznik 7 - F.O. Zad 6-10'!$V$58,VLOOKUP(C133,'Załącznik 7 - F.O. Zad 6-10'!$C$52:$G$210,5,0),0)","v":0},9,0,null,null,9,0]
[null,113,"BAKALLAND MIGDAŁY SOLONE 90G","Migdały lekko solone BAKALLAND, 90 g","1 op. (90 g)",{"$f":"IF('Załącznik 7 - F.O. Zad 6-10'!$V$58,VLOOKUP(C134,'Załącznik 7 - F.O. Zad 6-10'!$C$52:$G$210,5,0),0)","v":0},19,0,null,null,9,0,null,null,10,0]
[null,114,"BAKALLAND ORZECHY LASKOWE 300G","Orzechy laskowe BAKALLAND, 300 g","1 op. (300 g)",{"$f":"IF('Załącznik 7 - F.O. Zad 6-10'!$V$58,VLOOKUP(C135,'Załącznik 7 - F.O. Zad 6-10'!$C$52:$G$210,5,0),0)","v":0},23,0,null,null,9,0,null,null,14,0]
[null,115,"BAKALLAND ORZECHY NERKOWCA SOLONE 70G","Orzechy nerkowca  solone BAKALLAND, 70 g","1 op. (70 g)",{"$f":"IF('Załącznik 7 - F.O. Zad 6-10'!$V$58,VLOOKUP(C136,'Załącznik 7 - F.O. Zad 6-10'!$C$52:$G$210,5,0),0)","v":0},26,0,null,null,9,0,null,null,17,0]
[null,116,"BAKALLAND ORZECHY WŁOSKIE 300G","Orzechy włoskie BAKALLAND, 300 g","1 op. (300 g)",{"$f":"IF('Załącznik 7 - F.O. Zad 6-10'!$V$58,VLOOKUP(C137,'Załącznik 7 - F.O. Zad 6-10'!$C$52:$G$210,5,0),0)","v":0},9,0,null,null,9,0]
[null,117,"LAJKONIK PALUSZKI 200G","Paluszki LAJKONIK solone, 200 g","1 op. (200 g)",{"$f":"IF('Załącznik 7 - F.O. Zad 6-10'!$V$58,VLOOKUP(C138,'Załącznik 7 - F.O. Zad 6-10'!$C$52:$G$210,5,0),0)","v":0},79,0,null,null,9,0,10,0,21,0,39,0]
[null,118,"CAPPY NEKTAR MULTIWIT PET 0,33L OPK12 ","Nektar multiwitamina CAPPY, 12 butelek x 0,33 l","1 op. (12 butelek)",{"$f":"IF('Załącznik 7 - F.O. Zad 6-10'!$V$58,VLOOKUP(C139,'Załącznik 7 - F.O. Zad 6-10'!$C$52:$G$210,5,0),0)","v":0},24,0,3,0,9,0,null,null,12,0]
[null,119,"CAPPY SOK POMARAŃCZOWY PET 0,33L OPK12","Sok pomarańczowy CAPPY, 12 butelek x 0,33 l","1 op. (12 butelek)",{"$f":"IF('Załącznik 7 - F.O. Zad 6-10'!$V$58,VLOOKUP(C140,'Załącznik 7 - F.O. Zad 6-10'!$C$52:$G$210,5,0),0)","v":0},32,0,3,0,9,0,null,null,20,0]
[null,120,"CHAMPION SOK CYTRYNOWY OPK10X7,5G","Zagęszczony sok cytrynowy CHAMPION, 10 kubeczków x 7,5 g","1 op. (10 kubeczków)",{"$f":"IF('Załącznik 7 - F.O. Zad 6-10'!$V$58,VLOOKUP(C141,'Załącznik 7 - F.O. Zad 6-10'!$C$52:$G$210,5,0),0)","v":0},9,0,null,null,9,0]
[null,121,"COCA-COLA BUTELKA PET 0,5L OPK18 ","Napój gazowany COCA-COLA, zgrzewka 18 butelek x 0,5 l","1 op. (18 butelek)",{"$f":"IF('Załącznik 7 - F.O. Zad 6-10'!$V$58,VLOOKUP(C142,'Załącznik 7 - F.O. Zad 6-10'!$C$52:$G$210,5,0),0)","v":0},12,0,1,0,9,0,null,null,2,0]
[null,122,"COCA-COLA PUSZKA 0,33L OPK24","Napój gazowany COCA-COLA, 24 puszki x 0,33 l","1 op. (24 puszki 0,33 l)",{"$f":"IF('Załącznik 7 - F.O. Zad 6-10'!$V$58,VLOOKUP(C143,'Załącznik 7 - F.O. Zad 6-10'!$C$52:$G$210,5,0),0)","v":0},26,0,1,0,9,0,null,null,16,0]
[null,123,"COCA-COLA ZERO BUTELKA PET 0,5L OPK12","Napój gazowany COCA-COLA Zero, 12 butelek x 0,5 l","1 op. (12 butelek)",{"$f":"IF('Załącznik 7 - F.O. Zad 6-10'!$V$58,VLOOKUP(C144,'Załącznik 7 - F.O. Zad 6-10'!$C$52:$G$210,5,0),0)","v":0},13,0,1,0,9,0,null,null,3,0]
[null,124,"FORTUNA NEKTAR CZ.PORZECZKA 0,3L OPK15","Nektar czarna porzeczka FORTUNA, 15 butelek x 0,3 l","1 op. (15 butelek)",{"$f":"IF('Załącznik 7 - F.O. Zad 6-10'!$V$58,VLOOKUP(C145,'Załącznik 7 - F.O. Zad 6-10'!$C$52:$G$210,5,0),0)","v":0},14,0,2,0,9,0,3,0]
[null,125,"FORTUNA SOK MULTIWITAMINA 0,3 L OPK15","Sok multiwitamina FORTUNA, 15 butelek x 0,3 l","1 op. (15 butelek)",{"$f":"IF('Załącznik 7 - F.O. Zad 6-10'!$V$58,VLOOKUP(C146,'Załącznik 7 - F.O. Zad 6-10'!$C$52:$G$210,5,0),0)","v":0},29,0,null,null,9,0,null,null,20,0]
[null,126,"FORTUNA SOK POMARAŃCZOWY 0,3L OPK15 ","Sok pomarańczowy FORTUNA, 15 butelek x 0,3 l","1 op. (15 butelek)",{"$f":"IF('Załącznik 7 - F.O. Zad 6-10'!$V$58,VLOOKUP(C147,'Załącznik 7 - F.O. Zad 6-10'!$C$52:$G$210,5,0),0)","v":0},14,0,null,null,9,0,5,0]
[null,127,"FORTUNA SOK POMIDOROWY 0,3L OPK15","Sok pomidorowy FORTUNA, 15 butelek x 0,3 l","1 op. (15 butelek)",{"$f":"IF('Załącznik 7 - F.O. Zad 6-10'!$V$58,VLOOKUP(C148,'Załącznik 7 - F.O. Zad 6-10'!$C$52:$G$210,5,0),0)","v":0},30,0,3,0,9,0,3,0,15,0]
[null,128,"TARCZYN NEKTAR CZ.PORZECZKA 0,3L OPK15","Nektar czarna porzeczka TARCZYN, 15 butelek x 0,3 l","1 op. (15 butelek)",{"$f":"IF('Załącznik 7 - F.O. Zad 6-10'!$V$58,VLOOKUP(C149,'Załącznik 7 - F.O. Zad 6-10'!$C$52:$G$210,5,0),0)","v":0},35,0,null,null,9,0,null,null,1,0,25,0]
[null,129,"TARCZYN NEKTAR GREJPFRUT 0,3L OPK15","Nektar czerwony grejpfrut TARCZYN, zgrzewka 15 butelek x 0,3 l","1 op. (15 butelek)",{"$f":"IF('Załącznik 7 - F.O. Zad 6-10'!$V$58,VLOOKUP(C150,'Załącznik 7 - F.O. Zad 6-10'!$C$52:$G$210,5,0),0)","v":0},26,0,null,null,9,0,null,null,2,{"$f":"O150*F150","v":0},15,{"$f":"Q150*F150","v":0}]
[null,130,"TARCZYN SOK JABŁKOWY 0,3L OPK15","Sok jabłkowy TARCZYN, 15 butelek x 0,3 l","1 op. (15 butelek)",{"$f":"IF('Załącznik 7 - F.O. Zad 6-10'!$V$58,VLOOKUP(C151,'Załącznik 7 - F.O. Zad 6-10'!$C$52:$G$210,5,0),0)","v":0},{"$f":"I151+K151+M151+O151+Q151","v":36},{"$f":"G151*F151","v":0},null,null,9,{"$f":"K151*F151","v":0},null,null,12,0,15,0]
[null,131,"TARCZYN SOK POMARAŃCZOWY 0,3L OPK15","Sok pomarańczowy TARCZYN, 15 butelek x 0,3 l","1 op. (15 butelek)",{"$f":"IF('Załącznik 7 - F.O. Zad 6-10'!$V$58,VLOOKUP(C152,'Załącznik 7 - F.O. Zad 6-10'!$C$52:$G$210,5,0),0)","v":0},26,0,null,null,9,0,null,null,2,0,15,0]
[null,132,"TARCZYN SOK POMIDOROWY 300ML OPK15 ","Sok pomidorowy TARCZYN, zgrzewka 15 butelek x 0,3 l","1 op. (15 butelek)",{"$f":"IF('Załącznik 7 - F.O. Zad 6-10'!$V$58,VLOOKUP(C153,'Załącznik 7 - F.O. Zad 6-10'!$C$52:$G$210,5,0),0)","v":0},59,0,3,0,9,0,null,null,17,0,30,0]
[null,133,"TYMBARK JABŁKO SOK 100% 300ML OPK12","Sok TYMBARK jabłko 100%, 12 butelek x 300 ml","1 op. (12 butelek)",{"$f":"IF('Załącznik 7 - F.O. Zad 6-10'!$V$58,VLOOKUP(C154,'Załącznik 7 - F.O. Zad 6-10'!$C$52:$G$210,5,0),0)","v":0},46,0,null,null,9,0,5,{"$f":"M154*F154","v":0},2,0,30,0]
[null,134,"TYMBARK POMARAŃCZ SOK 100% 300ML OPK12","Sok TYMBARK pomarańcza 100%, 12 butelek x 300 ml","1 op. (12 butelek)",{"$f":"IF('Załącznik 7 - F.O. Zad 6-10'!$V$58,VLOOKUP(C155,'Załącznik 7 - F.O. Zad 6-10'!$C$52:$G$210,5,0),0)","v":0},45,0,null,null,9,0,4,0,2,0,30,0]
[null,135,"TYMBARK POMIDOR SOK 100% 300ML OPK12","Sok TYMBARK pomidor 100%, 12 butelek x 300 ml","1 op. (12 butelek)",{"$f":"IF('Załącznik 7 - F.O. Zad 6-10'!$V$58,VLOOKUP(C156,'Załącznik 7 - F.O. Zad 6-10'!$C$52:$G$210,5,0),0)","v":0},32,0,null,null,9,0,null,null,3,0,20,0]
[null,136,"TYMBARK VITAMINI BAN/MAR/JAB 300ML OPK12","Sok TYMBARK Vitamini banan, marchewka, jabłko, 12 butelek x 300 ml","1 op. (12 butelek)",{"$f":"IF('Załącznik 7 - F.O. Zad 6-10'!$V$58,VLOOKUP(C157,'Załącznik 7 - F.O. Zad 6-10'!$C$52:$G$210,5,0),0)","v":0},62,0,null,null,9,0,null,null,23,0,30,0]
[null,137,"CISOWIANKA LEKKOGAZOWANA WODA 0,5L  OPK12 ","Woda mineralna CISOWIANKA lekko gazowana, zgrzewka 12 butelek x 0,5 l","1 op. (12 butelek)",{"$f":"IF('Załącznik 7 - F.O. Zad 6-10'!$V$58,VLOOKUP(C158,'Załącznik 7 - F.O. Zad 6-10'!$C$52:$G$210,5,0),0)","v":0},78,0,65,0,9,0,null,null,4,0]
[null,138,"CISOWIANKA PERLAGE GAZ SZKŁO 300ML  OPK24 ","Woda mineralna CISOWIANKA Perlage gazowana, zgrzewka 24 butelki x 300 ml","1 op. (24 butelki)",{"$f":"IF('Załącznik 7 - F.O. Zad 6-10'!$V$58,VLOOKUP(C159,'Załącznik 7 - F.O. Zad 6-10'!$C$52:$G$210,5,0),0)","v":0},43,0,4,0,9,0,null,null,30,0]
[null,139,"CISOWIANKA WODA GAZOWANA 1,5L OPK6","Woda mineralna CISOWIANKA gazowana, zgrzewka 6 butelek x 1,5 l","1 op. (6 butelek)",{"$f":"IF('Załącznik 7 - F.O. Zad 6-10'!$V$58,VLOOKUP(C160,'Załącznik 7 - F.O. Zad 6-10'!$C$52:$G$210,5,0),0)","v":0},64,0,55,0,9,0]
[null,140,"CISOWIANKA WODA NIEGAZ SZKŁO 300ML OPK24","Woda mineralna CISOWIANKA niegazowana szklane butelki x 300 ml","1 op. (24 butelki)",{"$f":"IF('Załącznik 7 - F.O. Zad 6-10'!$V$58,VLOOKUP(C161,'Załącznik 7 - F.O. Zad 6-10'!$C$52:$G$210,5,0),0)","v":0},50,0,null,null,9,0,null,null,41,0]
[null,141,"CISOWIANKA WODA NIEGAZOWANA 0,5L OPK12 ","Woda mineralna CISOWIANKA niegazowana, zgrzewka 12 butelek x 0,5 l","1 op. (12 butelek)",{"$f":"IF('Załącznik 7 - F.O. Zad 6-10'!$V$58,VLOOKUP(C162,'Załącznik 7 - F.O. Zad 6-10'!$C$52:$G$210,5,0),0)","v":0},170,0,140,0,9,0,null,null,21,0]
[null,142,"CISOWIANKA WODA NIEGAZOWANA 1,5L OPK6","Woda mineralna CISOWIANKA niegazowana, zgrzewka 6 butelek x 1,5 l","1 op. (6 butelek)",{"$f":"IF('Załącznik 7 - F.O. Zad 6-10'!$V$58,VLOOKUP(C163,'Załącznik 7 - F.O. Zad 6-10'!$C$52:$G$210,5,0),0)","v":0},147,0,135,0,9,0,null,null,3,0]
[null,143,"CISOWIANKA WODA SPORT NIEGAZ 0,7L OPK8","Woda mineralna CISOWIANKA Sport niegazowana, zgrzewka 8 butelek x 0,7 l","1 op. (8 butelek)",{"$f":"IF('Załącznik 7 - F.O. Zad 6-10'!$V$58,VLOOKUP(C164,'Załącznik 7 - F.O. Zad 6-10'!$C$52:$G$210,5,0),0)","v":0},14,0,5,0,9,0]
[null,144,"KINGA PIENINSKA WODA GAZOWANA 0,5L OPK12","Woda mineralna KINGA PIENIŃSKA gazowana 0,5 l","1 op. (12 butelek)",{"$f":"IF('Załącznik 7 - F.O. Zad 6-10'!$V$58,VLOOKUP(C165,'Załącznik 7 - F.O. Zad 6-10'!$C$52:$G$210,5,0),0)","v":0},34,0,25,0,9,0]
[null,145,"KINGA PIENINSKA WODA NIEGAZOW 0,5L OPK12","Woda mineralna KINGA PIENIŃSKA niegazowana, zgrzewka 12 butelek x 0,5 l","1 op. (12 butelek)",{"$f":"IF('Załącznik 7 - F.O. Zad 6-10'!$V$58,VLOOKUP(C166,'Załącznik 7 - F.O. Zad 6-10'!$C$52:$G$210,5,0),0)","v":0},39,0,30,0,9,0]
[null,146,"KROPLA BESKIDU WODA GAZ 0,5L OPK12","Woda mineralna KROPLA BESKIDU gazowana, zgrzewka 12 butelek x 0,5 l","1 op. (12 butelek)",{"$f":"IF('Załącznik 7 - F.O. Zad 6-10'!$V$58,VLOOKUP(C167,'Załącznik 7 - F.O. Zad 6-10'!$C$52:$G$210,5,0),0)","v":0},79,0,70,0,9,0]
[null,147,"KROPLA BESKIDU WODA GAZ 1,5L OPK6","Woda mineralna KROPLA BESKIDU gazowana, zgrzewka 6 butelek x 1,5 l","1 op. (6 butelek)",{"$f":"IF('Załącznik 7 - F.O. Zad 6-10'!$V$58,VLOOKUP(C168,'Załącznik 7 - F.O. Zad 6-10'!$C$52:$G$210,5,0),0)","v":0},14,0,5,0,9,0]
[null,148,"KROPLA BESKIDU WODA NIEGAZ 0,5L  OPK12","Woda mineralna KROPLA BESKIDU niegazowana, zgrzewka 12 butelek x 0,5 l","1 op. (12 butelek)",{"$f":"IF('Załącznik 7 - F.O. Zad 6-10'!$V$58,VLOOKUP(C169,'Załącznik 7 - F.O. Zad 6-10'!$C$52:$G$210,5,0),0)","v":0},79,0,70,0,9,0]
[null,149,"KROPLA BESKIDU WODA NIEGAZ 1,5L OPK6","Woda mineralna KROPLA BESKIDU niegazowana, zgrzewka 6 butelek x 1,5 l","1 op. (6 butelek)",{"$f":"IF('Załącznik 7 - F.O. Zad 6-10'!$V$58,VLOOKUP(C170,'Załącznik 7 - F.O. Zad 6-10'!$C$52:$G$210,5,0),0)","v":0},14,0,5,0,9,0]
[null,150,"NAŁĘCZOWIANKA WODA NIEGAZ 0,5L OPK12","Woda mineralna NAŁĘCZOWIANKA niegazowana, zgrzewka 12 butelek x 0,5 l","1 op. (12 butelek)",{"$f":"IF('Załącznik 7 - F.O. Zad 6-10'!$V$58,VLOOKUP(C171,'Załącznik 7 - F.O. Zad 6-10'!$C$52:$G$210,5,0),0)","v":0},234,0,225,0,9,0]
[null,151,"NAŁĘCZOWIANKA WODA NIEGAZ 1,5L OPK6","Woda mineralna NAŁĘCZOWIANKA niegazowana, zgrzewka 6 butelek x 1,5 l","1 op. (6 butelek)",{"$f":"IF('Załącznik 7 - F.O. Zad 6-10'!$V$58,VLOOKUP(C172,'Załącznik 7 - F.O. Zad 6-10'!$C$52:$G$210,5,0),0)","v":0},37,0,25,0,9,0,null,null,3,0]
[null,152,"NESTLE PURE LIFE WODA GAZ 1,5L OPK6","Woda źródlana NESTLÉ Pure Life gazowana, zgrzewka 6 butelek x 1,5 l","1 op. (6 butelek)",{"$f":"IF('Załącznik 7 - F.O. Zad 6-10'!$V$58,VLOOKUP(C173,'Załącznik 7 - F.O. Zad 6-10'!$C$52:$G$210,5,0),0)","v":0},11,0,2,0,9,0]
[null,153,"NESTLE PURE LIFE WODA NIEGAZ 0,5L OPK12","Woda źródlana NESTLÉ Pure Life niegazowana, zgrzewka 12 butelek x 0,5 l","1 op. (12 butelek)",{"$f":"IF('Załącznik 7 - F.O. Zad 6-10'!$V$58,VLOOKUP(C174,'Załącznik 7 - F.O. Zad 6-10'!$C$52:$G$210,5,0),0)","v":0},40,0,30,0,10,0]
[null,154,"NESTLE PURE LIFE WODA NIEGAZ 1,5L OPK6","Woda źródlana NESTLÉ Pure Life niegazowana, zgrzewka 6 butelek x 1,5 l","1 op. (6 butelek)",{"$f":"IF('Załącznik 7 - F.O. Zad 6-10'!$V$58,VLOOKUP(C175,'Załącznik 7 - F.O. Zad 6-10'!$C$52:$G$210,5,0),0)","v":0},19,0,10,0,9,0]
[null,155,"ŻYWIEC ZDRÓJ WODA GAZOWANA 0.5L OPK24","Woda źródlana ŻYWIOŁ od ŻYWIEC ZDRÓJ gazowana, 24 butelki x 0,5 l","1 op. (24 butelki)",{"$f":"IF('Załącznik 7 - F.O. Zad 6-10'!$V$58,VLOOKUP(C176,'Załącznik 7 - F.O. Zad 6-10'!$C$52:$G$210,5,0),0)","v":0},24,0,15,0,9,0]
[null,156,"ŻYWIEC ZDRÓJ WODA GAZOWANA 1,5L OPK6","Woda źródlana ŻYWIOŁ od ŻYWIEC ZDRÓJ gazowana, zgrzewka 6 butelek x 1,5 l","1 op. ( 6 butelek)",{"$f":"IF('Załącznik 7 - F.O. Zad 6-10'!$V$58,VLOOKUP(C177,'Załącznik 7 - F.O. Zad 6-10'!$C$52:$G$210,5,0),0)","v":0},53,0,15,0,9,0,null,null,null,null,29,0]
[null,157,"ŻYWIEC ZDRÓJ WODA NIEGAZOWANA 0.5L OPK24 ","Woda źródlana ŻYWIEC ZDRÓJ niegazowana, 24 butelki x 0,5 l","1 op. (24 butelki)",{"$f":"IF('Załącznik 7 - F.O. Zad 6-10'!$V$58,VLOOKUP(C178,'Załącznik 7 - F.O. Zad 6-10'!$C$52:$G$210,5,0),0)","v":0},82,0,40,0,12,0,null,null,null,null,30,0]
[null,158,"ŻYWIEC ZDRÓJ WODA NIEGAZOWANA 1,5L  OPK6 ","Woda źródlana ŻYWIEC ZDRÓJ niegazowana, zgrzewka 6 butelek x 1,5 l","1 op. (6 butelek)",{"$f":"IF('Załącznik 7 - F.O. Zad 6-10'!$V$58,VLOOKUP(C179,'Załącznik 7 - F.O. Zad 6-10'!$C$52:$G$210,5,0),0)","v":0},57,0,45,{"$f":"I179*F179","v":0},12,0]
[null,null,null,null,null,null,{"$f":"SUM(G22:G179)","v":5698},null,{"$f":"SUM(I22:I179)","v":1438},null,{"$f":"SUM(K22:K179)","v":1429},null,{"$f":"SUM(M22:M179)","v":318},null,{"$f":"SUM(O22:O179)","v":905},null,{"$f":"SUM(Q22:Q179)","v":1608}]
[null,null,null,null,null,null,null,null,"ŁĄCZNA CENA NETTO DLA ENEA Centrum Sp. z o.o. ",{"$f":"SUM(J22:J179)","v":0},"ŁĄCZNA CENA NETTO DLA ENEA Innowacje sp. z o.o.",{"$f":"SUM(L22:L179)","v":0},"ŁĄCZNA CENA NETTO DLA ENEA Nowa Energia Sp. z o.o.",{"$f":"SUM(N22:N179)","v":0},"ŁĄCZNA CENA NETTO DLA ENEA S.A.",{"$f":"SUM(P22:P179)","v":0},"ŁĄCZNA CENA NETTO DLA ENEA Trading Sp. z o.o.",{"$f":"SUM(R22:R179)","v":0}]
[]
[]
[]
[]
[null,null,"miejscowość i data",null,null,"Pieczęć imienna i podpis przedstawiciela(i) Wykonawcy"]

{"sheet":"Załącznik12-F.O. dla Zadania 10","index":8,"n_rows":186,"n_cols":18,"rows_kept":186,"cut":false,"hidden":false,"merged":[[18,1,18,2],[184,2,184,3],[184,4,184,7],[185,5,185,7],[2,1,2,7],[4,1,4,7],[8,1,8,7],[11,1,11,7],[14,1,14,7],[16,1,16,7]]}
[null,"Oznaczenie sprawy:  1400/DW00/ZU/KZ/2021/0000074365"]
[]
[null,"ZAŁĄCZNIK NR 12 - FORMULARZ OFERTY DLA ZADANIA 10 - DOSTAWA ARTYKUŁÓW SPOŻYWCZYCH: POŁANIEC."]
[]
[]
[null,null,"(pieczęć wykonawcy)"]
[]
[null,"Ja, niżej podpisany (My niżej podpisani):"]
[]
[]
[null,"działając w imieniu i na rzecz:"]
[]
[]
[null,"Składam(y) ofertę na wykonanie zamówienia, którego przedmiotem jest:"]
[null,"Dostawa artykułów biurowych, spożywczych i higienicznych dla spółek GK ENEA"]
[]
[null,"ZADANIE 10 - Dostawa artykułów spożywczych: Połaniec "]
[]
[null,"ŁĄCZNA CENA NETTO OFERTY DLA ZADANIA 10:",null,{"$f":"SUM(H22:H179)","v":0}]
[]
[null,"LP","Nazwa produktu","Opis szczegółowy","Jednostka ","cena jednostkowa netto","Ilość","Wartość","ENEA Bioenergia Sp. z o.o. - Szacowana ilość","ŁĄCZNA CENA NETTO DLA ENEA Bioenergia Sp. z o.o. ","ENEA Centrum sp. z o.o. - Szacowana ilość","ŁĄCZNA CENA NETTO DLA ENEA Centrum sp. z o.o. ","ENEA Elektrownia Połaniec Sp. z o.o. - Szacowana ilość","ŁĄCZNA CENA NETTO DLA ENEA Elektrownia Połaniec Sp. z o.o. ","ENEA Połaniec Serwis Sp. z o.o. - Szacowana ilość","ŁĄCZNA CENA NETTO DLA ENEA Połaniec Serwis Sp. z o.o. ","ENEA Trading Sp. z o.o. - Szacowana ilość","ŁĄCZNA CENA NETTO DLA ENEA Trading Sp. z o.o. "]
[null,1,"DIAMANT CUKIER BIAŁY KOSTKA 1KG","Cukier biały DIAMANT w kostkach, 1 kg","1 op. ( 1 kg.)",{"$f":"IF('Załącznik 7 - F.O. Zad 6-10'!$V$59,VLOOKUP(C22,'Załącznik 7 - F.O. Zad 6-10'!$C$52:$G$210,5,0),0)","v":0},{"$f":"I22+K22+M22+O22+Q22","v":28},{"$f":"G22*F22","v":0},10,{"$f":"I22*F22","v":0},1,{"$f":"K22*F22","v":0},10,{"$f":"M22*F22","v":0},2,{"$f":"O22*F22","v":0},5,{"$f":"Q22*F22","v":0}]
[null,2,"DIAMANT CUKIER BIAŁY W SASZET OPK100X5G","Cukier biały DIAMANT, saszetki 100 sztuk x 5 g","1 op. (100 sztuk)",{"$f":"IF('Załącznik 7 - F.O. Zad 6-10'!$V$59,VLOOKUP(C23,'Załącznik 7 - F.O. Zad 6-10'!$C$52:$G$210,5,0),0)","v":0},{"$f":"I23+K23+M23+O23+Q23","v":27},{"$f":"G23*F23","v":0},22,{"$f":"I23*F23","v":0},null,null,null,null,null,null,5,0]
[null,3,"DIAMANT CUKIER DRY DEMERARA SYPKI 0,5KG","Cukier trzcinowy DIAMANT Dry Demerara, sypki, 500 g","1 op. ( 500 g)",{"$f":"IF('Załącznik 7 - F.O. Zad 6-10'!$V$59,VLOOKUP(C24,'Załącznik 7 - F.O. Zad 6-10'!$C$52:$G$210,5,0),0)","v":0},3,0,2,0,1,{"$f":"K24*F24","v":0}]
[null,4,"DIAMANT CUKIER KRYSZTAŁ BIAŁY 1KG","Cukier biały DIAMANT sypki, 1 kg","1 op.( 1 kg.)",{"$f":"IF('Załącznik 7 - F.O. Zad 6-10'!$V$59,VLOOKUP(C25,'Załącznik 7 - F.O. Zad 6-10'!$C$52:$G$210,5,0),0)","v":0},47,0,1,0,6,0,30,{"$f":"M25*F25","v":0},null,null,10,0]
[null,5,"AHMAD HERBATA EARL GREY OPK100","Herbata czarna AHMAD Earl Grey, 100 torebek","1 op. (100 torobek)",{"$f":"IF('Załącznik 7 - F.O. Zad 6-10'!$V$59,VLOOKUP(C26,'Załącznik 7 - F.O. Zad 6-10'!$C$52:$G$210,5,0),0)","v":0},62,0,10,0,2,0,50,0]
[null,6,"BIG-ACTIVE PURE CEYLON HERBATA OPK100","Herbata czarna BIG-ACTIVE Pure Ceylon, 100 torebek","1 op. (100 torobek)",{"$f":"IF('Załącznik 7 - F.O. Zad 6-10'!$V$59,VLOOKUP(C27,'Załącznik 7 - F.O. Zad 6-10'!$C$52:$G$210,5,0),0)","v":0},4,0,1,0,3,0]
[null,7,"DILMAH CEYLON GOLD HERBATA 200G OPK100","Herbata czarna DILMAH Ceylon Gold, 100 torebek","1 op. (100 torobek)",{"$f":"IF('Załącznik 7 - F.O. Zad 6-10'!$V$59,VLOOKUP(C28,'Załącznik 7 - F.O. Zad 6-10'!$C$52:$G$210,5,0),0)","v":0},10,0,5,0,5,0]
[null,8,"DILMAH EARL GREY HERBATA LIŚCIASTA 125G","Herbata czarna liściasta DILMAH Earl Grey, 125 g","1 op. ( 125 g)",{"$f":"IF('Załącznik 7 - F.O. Zad 6-10'!$V$59,VLOOKUP(C29,'Załącznik 7 - F.O. Zad 6-10'!$C$52:$G$210,5,0),0)","v":0},5,0,5,0]
[null,9,"HERBAPOL BREAKFAST HERB MIĘTOWA OPK20 ","Herbata miętowa HERBAPOL Breakfast, 20 kopert","1 op.(  20 torebek)",{"$f":"IF('Załącznik 7 - F.O. Zad 6-10'!$V$59,VLOOKUP(C30,'Załącznik 7 - F.O. Zad 6-10'!$C$52:$G$210,5,0),0)","v":0},5,0,5,0]
[null,10,"HERBAPOL HERBATA MALINOWA OPK20","Herbata owocowa HERBAPOL Herbaciany Ogród malinowa, 20 torebek","1 op.(  20 torebek)",{"$f":"IF('Załącznik 7 - F.O. Zad 6-10'!$V$59,VLOOKUP(C31,'Załącznik 7 - F.O. Zad 6-10'!$C$52:$G$210,5,0),0)","v":0},5,0,5,0]
[null,11,"HERBAPOL PROSTO Z LASU OPK20","Herbata owocowa HERBAPOL Herbaciany Ogród, Prosto z lasu, 20 torebek","1 op.(  20 torebek)",{"$f":"IF('Załącznik 7 - F.O. Zad 6-10'!$V$59,VLOOKUP(C32,'Załącznik 7 - F.O. Zad 6-10'!$C$52:$G$210,5,0),0)","v":0},2,0,2,0]
[null,12,"HERBAPOL ZIELONA HERBATA OPK20","Herbata zielona HERBAPOL, 20 torebek bez zawieszki","1 op.(  20 torebek)",{"$f":"IF('Załącznik 7 - F.O. Zad 6-10'!$V$59,VLOOKUP(C33,'Załącznik 7 - F.O. Zad 6-10'!$C$52:$G$210,5,0),0)","v":0},3,0,3,0]
[null,13,"Herbata zielona Lipton Piramidki","Herbata zielona LIPTON  20 torebek piramidek","1 op.(  20 torebek)",{"$f":"IF('Załącznik 7 - F.O. Zad 6-10'!$V$59,VLOOKUP(C34,'Załącznik 7 - F.O. Zad 6-10'!$C$52:$G$210,5,0),0)","v":0},3,0,3,0]
[null,14,"IRVING BIAŁ POZIOMK/MANDAR HERBATA OPK20","Harbata biała IRVING poziomkowa z mandarynką, 20 kopert","1 op.(  20 torebek)",{"$f":"IF('Załącznik 7 - F.O. Zad 6-10'!$V$59,VLOOKUP(C35,'Załącznik 7 - F.O. Zad 6-10'!$C$52:$G$210,5,0),0)","v":0},3,0,3,0]
[null,15,"IRVING HERBATA CLASSIC OPK100","Herbata czarna IRVING Classic, 100 torebek","1 op.(  100 torebek)",{"$f":"IF('Załącznik 7 - F.O. Zad 6-10'!$V$59,VLOOKUP(C36,'Załącznik 7 - F.O. Zad 6-10'!$C$52:$G$210,5,0),0)","v":0},6,0,1,0,5,0]
[null,16,"LIPTON EARL GREY HERBATA OPK100","Herbata czarna LIPTON Earl Grey, 100 torebek","1 op. (100 torebek)",{"$f":"IF('Załącznik 7 - F.O. Zad 6-10'!$V$59,VLOOKUP(C37,'Załącznik 7 - F.O. Zad 6-10'!$C$52:$G$210,5,0),0)","v":0},15,0,3,0,5,0,null,null,2,{"$f":"O37*F37","v":0},5,0]
[null,17,"LIPTON MELISA/WIŚNIA HERBATAOPK20","Herbata ziołowa LIPTON Melisa z wiśnią, 20 torebek","1 op. (20 torebek)",{"$f":"IF('Załącznik 7 - F.O. Zad 6-10'!$V$59,VLOOKUP(C38,'Załącznik 7 - F.O. Zad 6-10'!$C$52:$G$210,5,0),0)","v":0},9,0,2,0,2,0,null,null,null,null,5,0]
[null,18,"LIPTON PYRAMID CYTRYNOWA Z MELISĄ OPK20","Herbata czarna LIPTON cytrynowa z melisą, 20 torebek piramidek","1 op. (20 torebek)",{"$f":"IF('Załącznik 7 - F.O. Zad 6-10'!$V$59,VLOOKUP(C39,'Załącznik 7 - F.O. Zad 6-10'!$C$52:$G$210,5,0),0)","v":0},37,0,10,0,2,0,20,0,null,null,5,0]
[null,19,"LIPTON PYRAMID FOREST FRUIT","Herbata owocowa LIPTON owoce leśne, 20 torebek piramidek","1 op. (20 torebek)",{"$f":"IF('Załącznik 7 - F.O. Zad 6-10'!$V$59,VLOOKUP(C40,'Załącznik 7 - F.O. Zad 6-10'!$C$52:$G$210,5,0),0)","v":0},7,0,2,0,null,null,null,null,null,null,5,0]
[null,20,"LIPTON YELLOW LABEL HERBATA  OPK100","Herbata czarna LIPTON Yellow Label, 100 torebek","1 op. (100 torebek)",{"$f":"IF('Załącznik 7 - F.O. Zad 6-10'!$V$59,VLOOKUP(C41,'Załącznik 7 - F.O. Zad 6-10'!$C$52:$G$210,5,0),0)","v":0},12,0,2,0,null,null,5,0,null,null,5,0]
[null,21,"LIPTON YELLOW LABEL HERBATA  OPK50","Herbata czarna LIPTON Yellow Label, 50 torebek","1 op. (50 torebek)",{"$f":"IF('Załącznik 7 - F.O. Zad 6-10'!$V$59,VLOOKUP(C42,'Załącznik 7 - F.O. Zad 6-10'!$C$52:$G$210,5,0),0)","v":0},2,0,2,0]
[null,22,"LIPTON ZIELONA CITRUS HERBATA OPK25","Herbata zielona LIPTON cytrusowa, 25 torebek","1 op. (25 torebek)",{"$f":"IF('Załącznik 7 - F.O. Zad 6-10'!$V$59,VLOOKUP(C43,'Załącznik 7 - F.O. Zad 6-10'!$C$52:$G$210,5,0),0)","v":0},7,0,2,0,null,null,null,null,null,null,5,0]
[null,23,"LIPTON ZIELONA MIĘTOWA HERBATA OPK25 ","Herbata zielona LIPTON miętowa, 25 torebek","1 op. (25 torebek)",{"$f":"IF('Załącznik 7 - F.O. Zad 6-10'!$V$59,VLOOKUP(C44,'Załącznik 7 - F.O. Zad 6-10'!$C$52:$G$210,5,0),0)","v":0},13,0,2,0,6,0,null,null,null,null,5,0]
[null,24,"TEEKANNE BLACK CURRANT HERBATA OPK20","Herbata owocowa TEEKANNE World of Fruits, Black Currant, 20 kopert","1 op. (20 torebek)",{"$f":"IF('Załącznik 7 - F.O. Zad 6-10'!$V$59,VLOOKUP(C45,'Załącznik 7 - F.O. Zad 6-10'!$C$52:$G$210,5,0),0)","v":0},36,0,1,0,null,null,30,0,null,null,5,0]
[null,25,"TEEKANNE EARL GREY HERBATA  OPK100","Herbata czarna TEEKANNE Earl Grey, 100 torebek","1 op. (100 torebek)",{"$f":"IF('Załącznik 7 - F.O. Zad 6-10'!$V$59,VLOOKUP(C46,'Załącznik 7 - F.O. Zad 6-10'!$C$52:$G$210,5,0),0)","v":0},57,0,2,0,null,null,50,0,null,null,5,0]
[null,26,"TEEKANNE WORLD OF FRUITS ZESTAW OPK30","Zestaw herbat owocowych TEEKANNE World of Fruits, 30 kopert","1 op. (30 torebek)",{"$f":"IF('Załącznik 7 - F.O. Zad 6-10'!$V$59,VLOOKUP(C47,'Załącznik 7 - F.O. Zad 6-10'!$C$52:$G$210,5,0),0)","v":0},47,0,1,0,null,null,40,0,1,0,5,0]
[null,27,"TEEKANNE ZIELON OPUNCJA HERBATA OPK20 ","Herbata zielona TEEKANNE z opuncją, 20 kopert","1 op. (20 torebek)",{"$f":"IF('Załącznik 7 - F.O. Zad 6-10'!$V$59,VLOOKUP(C48,'Załącznik 7 - F.O. Zad 6-10'!$C$52:$G$210,5,0),0)","v":0},52,0,2,0,null,null,40,0,null,null,10,0]
[null,28,"VITAX HERBATA MELISA I POMARAŃCZA OPK20","Herbata owocowa VITAX Inspirations melisa & pomarańcza, 20 torebek","1 op. (20 torebek)",{"$f":"IF('Załącznik 7 - F.O. Zad 6-10'!$V$59,VLOOKUP(C49,'Załącznik 7 - F.O. Zad 6-10'!$C$52:$G$210,5,0),0)","v":0},17,0,2,0,10,0,null,null,null,null,5,0]
[null,29,"VITAX HERBATA ZIOŁOWA MELISA OPK20","Herbata ziołowa VITAX melisa, 20 okrągłych torebek bez zawieszki","1 op. (20 torebek)",{"$f":"IF('Załącznik 7 - F.O. Zad 6-10'!$V$59,VLOOKUP(C50,'Załącznik 7 - F.O. Zad 6-10'!$C$52:$G$210,5,0),0)","v":0},30,0,1,0,4,0,20,0,null,null,5,0]
[null,30,"VITAX HERBATA ZIOŁOWA MIĘTA OPK20","Herbata ziołowa VITAX mięta, 20 okrągłych torebek bez zawieszki","1 op. (20 torebek)",{"$f":"IF('Załącznik 7 - F.O. Zad 6-10'!$V$59,VLOOKUP(C51,'Załącznik 7 - F.O. Zad 6-10'!$C$52:$G$210,5,0),0)","v":0},46,0,2,0,4,0,30,0,null,null,10,0]
[null,31,"VITAX HERBATA ŻURAWINA I MALINA OPK20","Herbata owocowa VITAX Inspirations żurawina & malina, 20 torebek","1 op. (20 torebek)",{"$f":"IF('Załącznik 7 - F.O. Zad 6-10'!$V$59,VLOOKUP(C52,'Załącznik 7 - F.O. Zad 6-10'!$C$52:$G$210,5,0),0)","v":0},37,0,1,0,6,0,20,0,null,null,10,0]
[null,32,"VITAX NAPAR RUMIANEK OPK20","Herbata ziołowa VITAX rumianek, 20 kwadratowych torebek bez zawieszki","1 op. (20 torebek)",{"$f":"IF('Załącznik 7 - F.O. Zad 6-10'!$V$59,VLOOKUP(C53,'Załącznik 7 - F.O. Zad 6-10'!$C$52:$G$210,5,0),0)","v":0},33,0,1,0,2,0,20,0,null,null,10,0]
[null,33,"ASTRA ŁAGODNA TRADYCYJNA KAWA MIEL 250 G","Kawa ziarnista Astra Łagodna 250 g","1 op. (250 g)",{"$f":"IF('Załącznik 7 - F.O. Zad 6-10'!$V$59,VLOOKUP(C54,'Załącznik 7 - F.O. Zad 6-10'!$C$52:$G$210,5,0),0)","v":0},18,0,4,0,14,0]
[null,34,"ASTRA ŁAGODNA TRADYCYJNA KAWA ZIARN 1 KG","Kawa ziarnista Astra Łagodna 1 kg","1 op. (1 kg)",{"$f":"IF('Załącznik 7 - F.O. Zad 6-10'!$V$59,VLOOKUP(C55,'Załącznik 7 - F.O. Zad 6-10'!$C$52:$G$210,5,0),0)","v":0},85,0,2,0,3,0,80,0]
[null,35,"DUNI KUBEK PAPIER BIAŁY 210ML OPK50","Kubek papierowy do gorących i zminych napojów 210 ml","1 op. (50 szt.)",{"$f":"IF('Załącznik 7 - F.O. Zad 6-10'!$V$59,VLOOKUP(C56,'Załącznik 7 - F.O. Zad 6-10'!$C$52:$G$210,5,0),0)","v":0},2,0,1,0,1,0]
[null,36,"EDUSCHO CAFFE CREMA KAWA ZIARNISTA 1KG","Kawa ziarnista EDUSCHO Caffe Crema, 1 kg","1 op. ( 1 kg.)",{"$f":"IF('Załącznik 7 - F.O. Zad 6-10'!$V$59,VLOOKUP(C57,'Załącznik 7 - F.O. Zad 6-10'!$C$52:$G$210,5,0),0)","v":0},26,0,1,0,null,null,20,0,null,null,5,0]
[null,37,"ESPRESSO KARMELOWE OPK50 NNSA 8868","Kawa w kapsułkach NESPRESSO ESPRESSO CARAMEL, 50 szt. (box)","1 op. (50 szt.)",{"$f":"IF('Załącznik 7 - F.O. Zad 6-10'!$V$59,VLOOKUP(C58,'Załącznik 7 - F.O. Zad 6-10'!$C$52:$G$210,5,0),0)","v":0},1,0,1,0]
[null,38,"ESPRESSO WANILIOWE OPK50 NNSA 8869","Kawa w kapsułkach NESPRESSO ESPRESSO VANILLA, 50 szt. (box)","2 op. (50 szt.)",{"$f":"IF('Załącznik 7 - F.O. Zad 6-10'!$V$59,VLOOKUP(C59,'Załącznik 7 - F.O. Zad 6-10'!$C$52:$G$210,5,0),0)","v":0},5,0,5,0]
[null,39,"INKA KAWA ZBOŻOWA 200G","Kawa zbożowa INKA, puszka 200 g","1 op.( 200 g.)",{"$f":"IF('Załącznik 7 - F.O. Zad 6-10'!$V$59,VLOOKUP(C60,'Załącznik 7 - F.O. Zad 6-10'!$C$52:$G$210,5,0),0)","v":0},9,0,7,0,2,0]
[null,40,"JACOBS BARISTA AMERICANO KAWA ROZPU 155G","Kawa rozpuszczalna JACOBS Barista Americano 155 g","1 op. (słoik 155g)",{"$f":"IF('Załącznik 7 - F.O. Zad 6-10'!$V$59,VLOOKUP(C61,'Załącznik 7 - F.O. Zad 6-10'!$C$52:$G$210,5,0),0)","v":0},5,0,5,0]
[null,41,"JACOBS CRONAT GOLD KAWA MIELONA 500G","Kawa mielona JACOBS Cronat Gold, 500 g","1 op. (500 g.)",{"$f":"IF('Załącznik 7 - F.O. Zad 6-10'!$V$59,VLOOKUP(C62,'Załącznik 7 - F.O. Zad 6-10'!$C$52:$G$210,5,0),0)","v":0},13,0,7,0,3,0,null,null,3,0]
[null,42,"JACOBS CRONAT GOLD KAWA ROZPUSZCZ 200G","Kawa rozpuszczalna JACOBS Cronat Gold, 200 g","1 op.( 200 g.)",{"$f":"IF('Załącznik 7 - F.O. Zad 6-10'!$V$59,VLOOKUP(C63,'Załącznik 7 - F.O. Zad 6-10'!$C$52:$G$210,5,0),0)","v":0},9,0,1,0,5,0,null,null,3,0]
[null,43,"JACOBS GOLD CREMA KAWA ROZPUSZCZ 200G","Kawa rozpuszczalna JACOBS Crema Gold, 200 g","1 op.( 200 g.)",{"$f":"IF('Załącznik 7 - F.O. Zad 6-10'!$V$59,VLOOKUP(C64,'Załącznik 7 - F.O. Zad 6-10'!$C$52:$G$210,5,0),0)","v":0},6,0,1,0,5,0]
[null,44,"JACOBS KRONUNG KAWA MIELONA 250G","Kawa mielona JACOBS Kronung, 250 g","1 op. (250 g.)",{"$f":"IF('Załącznik 7 - F.O. Zad 6-10'!$V$59,VLOOKUP(C65,'Załącznik 7 - F.O. Zad 6-10'!$C$52:$G$210,5,0),0)","v":0},3,0,1,0,2,0]
[null,45,"JACOBS KRONUNG KAWA ROZPUSZCZALNA 200G","Kawa rozpuszczalna JACOBS Kronung, 200 g","1 op.( 200 g.)",{"$f":"IF('Załącznik 7 - F.O. Zad 6-10'!$V$59,VLOOKUP(C66,'Załącznik 7 - F.O. Zad 6-10'!$C$52:$G$210,5,0),0)","v":0},1,0,1,0]
[null,46,"KUBEK PAPIEROWY 110ML OPK50 ","Kubek papierowy do gorących napojów 110 ml","1 op. (50 szt.)",{"$f":"IF('Załącznik 7 - F.O. Zad 6-10'!$V$59,VLOOKUP(C67,'Załącznik 7 - F.O. Zad 6-10'!$C$52:$G$210,5,0),0)","v":0},2,0,1,0,1,0]
[null,47,"KUBEK PAPIEROWY 360ML OPK35","Kubek papierowy do gorących napojów 360 ml","1 op. (35 szt.)",{"$f":"IF('Załącznik 7 - F.O. Zad 6-10'!$V$59,VLOOKUP(C68,'Załącznik 7 - F.O. Zad 6-10'!$C$52:$G$210,5,0),0)","v":0},7,0,6,0,1,0]
[null,48,"KUBEK PLASTIK 200ML BIAŁE OPK100","Kubek plastikowy do zimnych napojów 200 ml Biały","1 op. (100 szt.)",{"$f":"IF('Załącznik 7 - F.O. Zad 6-10'!$V$59,VLOOKUP(C69,'Załącznik 7 - F.O. Zad 6-10'!$C$52:$G$210,5,0),0)","v":0},22,0,1,0,1,0,null,null,20,0]
[null,49,"LAVAZZA CREMA AROMA KAWA ZIARNISTA 1KG","Kawa ziarnista LAVAZZA Crema Aroma, 1 kg","1 op. (1 kg)",{"$f":"IF('Załącznik 7 - F.O. Zad 6-10'!$V$59,VLOOKUP(C70,'Załącznik 7 - F.O. Zad 6-10'!$C$52:$G$210,5,0),0)","v":0},41,0,7,0,24,0,10,0]
[null,50,"LAVAZZA PRONTOCREMA GRANDE AROMA ZIA 1KG","Kawa ziarnista LAVAZZA Pronto crema Grande Aroma 1 kg","1 op. (1 kg)",{"$f":"IF('Załącznik 7 - F.O. Zad 6-10'!$V$59,VLOOKUP(C71,'Załącznik 7 - F.O. Zad 6-10'!$C$52:$G$210,5,0),0)","v":0},3,0,1,0,2,0]
[null,51,"LAVAZZA QUALITA ORO KAWA MIELONA 250G","Kawa mielona LAVAZZA Qualita Oro, 250 g","1 op. (250 g)",{"$f":"IF('Załącznik 7 - F.O. Zad 6-10'!$V$59,VLOOKUP(C72,'Załącznik 7 - F.O. Zad 6-10'!$C$52:$G$210,5,0),0)","v":0},7,0,7,0]
[null,52,"LAVAZZA QUALITA ORO KAWA ZIARNISTA 1 KG","Kawa ziarnista LAVAZZA Qualita Oro, 1 kg","1 op. (1 kg)",{"$f":"IF('Załącznik 7 - F.O. Zad 6-10'!$V$59,VLOOKUP(C73,'Załącznik 7 - F.O. Zad 6-10'!$C$52:$G$210,5,0),0)","v":0},12,0,5,0,7,0]
[null,53,"LAVAZZA QUALITA ROSSA KAWA ZIARNISTA 1KG","Kawa ziarnista LAVAZZA Qualita Rossa, 1 kg","1 op. (1 kg)",{"$f":"IF('Załącznik 7 - F.O. Zad 6-10'!$V$59,VLOOKUP(C74,'Załącznik 7 - F.O. Zad 6-10'!$C$52:$G$210,5,0),0)","v":0},46,0,1,0,15,0,30,0]
[null,54,"NESCAFE SENSAZIONE CREME KAWA ROZP 200G","Kawa rozpuszczalna NESCAFÉ Sensazione Creme, 200 g","1 op.( 200 g.)",{"$f":"IF('Załącznik 7 - F.O. Zad 6-10'!$V$59,VLOOKUP(C75,'Załącznik 7 - F.O. Zad 6-10'!$C$52:$G$210,5,0),0)","v":0},6,0,1,0,5,0]
[null,55,"TCHIBO EXCLUSIVE KAWA MIELONA 250G","Kawa mielona TCHIBO Exclusive, 250 g","1 op. (250 g)",{"$f":"IF('Załącznik 7 - F.O. Zad 6-10'!$V$59,VLOOKUP(C76,'Załącznik 7 - F.O. Zad 6-10'!$C$52:$G$210,5,0),0)","v":0},1,0,1,0]
[null,56,"TCHIBO FAMILY KAWA MIELONA 250G","Kawa mielona TCHIBO Family, 250 g","1 op. (250 g)",{"$f":"IF('Załącznik 7 - F.O. Zad 6-10'!$V$59,VLOOKUP(C77,'Załącznik 7 - F.O. Zad 6-10'!$C$52:$G$210,5,0),0)","v":0},6,0,1,0,null,null,5,0]
[null,57,"TCHIBO FAMILY KAWA ROZPUSZCZALNA 200G","Kawa rozpuszczalna TCHIBO Family, 200 g","1 op. (200 g)",{"$f":"IF('Załącznik 7 - F.O. Zad 6-10'!$V$59,VLOOKUP(C78,'Załącznik 7 - F.O. Zad 6-10'!$C$52:$G$210,5,0),0)","v":0},1,0,1,0]
[null,58,"TCHIBO PROFESSIONAL CREMA ZIARNISTA 1KG","Kawa ziarnista TCHIBO Profesional  Crema  1 kg ","1 op. (1 kg)",{"$f":"IF('Załącznik 7 - F.O. Zad 6-10'!$V$59,VLOOKUP(C79,'Załącznik 7 - F.O. Zad 6-10'!$C$52:$G$210,5,0),0)","v":0},1,0,1,0]
[null,59,"GOSTYŃ MLEKO SKONDENS NIESŁODZONE 500G","Mleko zagęszczone GOSTYŃ 7,5% niesłodzone, 500 g","1 op. ( 1 karton 500 g)",{"$f":"IF('Załącznik 7 - F.O. Zad 6-10'!$V$59,VLOOKUP(C80,'Załącznik 7 - F.O. Zad 6-10'!$C$52:$G$210,5,0),0)","v":0},51,0,20,0,1,0,30,0]
[null,60,"ŁACIATA ŚMIETANKA UHT 12% 500ML","Śmietanka do kawy ŁACIATA 12%, 500 ml","1 op. (500 ml)",{"$f":"IF('Załącznik 7 - F.O. Zad 6-10'!$V$59,VLOOKUP(C81,'Załącznik 7 - F.O. Zad 6-10'!$C$52:$G$210,5,0),0)","v":0},26,0,5,0,1,0,20,0]
[null,61,"ŁACIATA ŚMIETANKA W KUBECZKACH OPK10X10G","Śmietanka do kawy ŁACIATA 10%, 10 kubeczków x 10 g","1 op. (10 kubeczków)",{"$f":"IF('Załącznik 7 - F.O. Zad 6-10'!$V$59,VLOOKUP(C82,'Załącznik 7 - F.O. Zad 6-10'!$C$52:$G$210,5,0),0)","v":0},31,0,18,0,3,0,null,null,10,0]
[null,62,"ŁACIATE MLEKO UHT 2% 0,5L","Mleko ŁACIATE UHT 2,0%, 0,5 l","1 op. (500 ml)",{"$f":"IF('Załącznik 7 - F.O. Zad 6-10'!$V$59,VLOOKUP(C83,'Załącznik 7 - F.O. Zad 6-10'!$C$52:$G$210,5,0),0)","v":0},45,0,20,0,5,0,20,0]
[null,63,"ŁACIATE MLEKO UHT 2% 1L","Mleko ŁACIATE UHT 2,0%, 1 l","1 op. (1 l)",{"$f":"IF('Załącznik 7 - F.O. Zad 6-10'!$V$59,VLOOKUP(C84,'Załącznik 7 - F.O. Zad 6-10'!$C$52:$G$210,5,0),0)","v":0},33,0,4,0,10,0,15,0,null,null,4,0]
[null,64,"ŁACIATE MLEKO UHT 3,2% 0,5L","Mleko ŁACIATE UHT 3,2%, 0,5 l","1 op. (500 ml)",{"$f":"IF('Załącznik 7 - F.O. Zad 6-10'!$V$59,VLOOKUP(C85,'Załącznik 7 - F.O. Zad 6-10'!$C$52:$G$210,5,0),0)","v":0},109,0,100,0,5,0,null,null,null,null,4,0]
[null,65,"ŁACIATE MLEKO UHT 3,2% 1L","Mleko ŁACIATE UHT 3,2%, 1 l","1 op. (1 l)",{"$f":"IF('Załącznik 7 - F.O. Zad 6-10'!$V$59,VLOOKUP(C86,'Załącznik 7 - F.O. Zad 6-10'!$C$52:$G$210,5,0),0)","v":0},144,0,100,0,30,0,10,0,null,null,4,{"$f":"Q86*F86","v":0}]
[null,66,"ŁACIATE MLEKO ZAGĘSZCZONE 7,5% 0,5L","Mleko zagęszczone ŁACIATE UHT 7,5%, 0,5 l","1 op. (500 ml)",{"$f":"IF('Załącznik 7 - F.O. Zad 6-10'!$V$59,VLOOKUP(C87,'Załącznik 7 - F.O. Zad 6-10'!$C$52:$G$210,5,0),0)","v":0},{"$f":"I87+K87+M87+O87+Q87","v":5},{"$f":"G87*F87","v":0},null,null,1,{"$f":"K87*F87","v":0},null,null,null,null,4,0]
[null,67,"MLEKOVITA BEZ LAKTOZY UHT WYDOJONE 1,5%","Mleko WYDOJONE UHT, bez laktozy 1,5%, 1 l","1 op. (1 l)",{"$f":"IF('Załącznik 7 - F.O. Zad 6-10'!$V$59,VLOOKUP(C88,'Załącznik 7 - F.O. Zad 6-10'!$C$52:$G$210,5,0),0)","v":0},3,0,3,0]
[null,68,"MLEKOVITA BEZ LAKTOZY UHT WYDOJONE 3,2%","Mleko WYDOJONE UHT, bez laktozy, 3,2%, 1 l","1 op. (1 l)",{"$f":"IF('Załącznik 7 - F.O. Zad 6-10'!$V$59,VLOOKUP(C89,'Załącznik 7 - F.O. Zad 6-10'!$C$52:$G$210,5,0),0)","v":0},12,0,2,0,null,null,10,0]
[null,69,"ZAMBROWSKIE MLEKO UHT 3,2% 1L","Mleko ZAMBROWSKIE UHT 3,2 %, 1 l","1 op. (1 l)",{"$f":"IF('Załącznik 7 - F.O. Zad 6-10'!$V$59,VLOOKUP(C90,'Załącznik 7 - F.O. Zad 6-10'!$C$52:$G$210,5,0),0)","v":0},9,0,5,0,null,null,null,null,null,null,4,0]
[null,70,"BAKALLAND BAKALIE STUDENCKI MIX 200G","Cukierki Mieszanka bakaliowa BAKALLAND Studencki Mix, 200 g","1 op (200 g)",{"$f":"IF('Załącznik 7 - F.O. Zad 6-10'!$V$59,VLOOKUP(C91,'Załącznik 7 - F.O. Zad 6-10'!$C$52:$G$210,5,0),0)","v":0},12,0,2,0,null,null,10,0]
[null,71,"BAKALLAND MIGDAŁY 300G","Migdały BAKALLAND, 300 g","1 op. (300 g)",{"$f":"IF('Załącznik 7 - F.O. Zad 6-10'!$V$59,VLOOKUP(C92,'Załącznik 7 - F.O. Zad 6-10'!$C$52:$G$210,5,0),0)","v":0},2,0,2,0]
[null,72,"BAKALLAND ORZECHY NERKOWCA 300G","Orzechy nerkowca BAKALLAND, 300 g","1 op. (300 g)",{"$f":"IF('Załącznik 7 - F.O. Zad 6-10'!$V$59,VLOOKUP(C93,'Załącznik 7 - F.O. Zad 6-10'!$C$52:$G$210,5,0),0)","v":0},20,0,10,0,null,null,10,0]
[null,73,"BELVITA CIASTKA KAKAOWE 300G","Ciastka BELVITA, kakaowe, 300 g, 24 ciasteczka","1 op. (300 g)",{"$f":"IF('Załącznik 7 - F.O. Zad 6-10'!$V$59,VLOOKUP(C94,'Załącznik 7 - F.O. Zad 6-10'!$C$52:$G$210,5,0),0)","v":0},10,0,10,0]
[null,74,"BELVITA CIASTKA MUSLI+OWOCE 300G","Ciastka BELVITA Musli z owocami, 24 ciasteczka pakowane po 4 sztuki, 300 g","1 op. (300 g)",{"$f":"IF('Załącznik 7 - F.O. Zad 6-10'!$V$59,VLOOKUP(C95,'Załącznik 7 - F.O. Zad 6-10'!$C$52:$G$210,5,0),0)","v":0},10,0,10,0]
[null,75,"CISOWIANKA WODA GAZOWANA 0,5L OPK12","Woda mineralna CISOWIANKA gazowana, zgrzewka 12 butelek x 0,5 l","1 op. (12 butelek)",{"$f":"IF('Załącznik 7 - F.O. Zad 6-10'!$V$59,VLOOKUP(C96,'Załącznik 7 - F.O. Zad 6-10'!$C$52:$G$210,5,0),0)","v":0},19,0,10,0,5,0,null,null,null,null,4,0]
[null,76,"DELICJE SZAMPAŃSKIE MALINA 147G","Ciastka DELICJE Szampańskie malinowe, 147 g","1 op. (147 g)",{"$f":"IF('Załącznik 7 - F.O. Zad 6-10'!$V$59,VLOOKUP(C97,'Załącznik 7 - F.O. Zad 6-10'!$C$52:$G$210,5,0),0)","v":0},6,0,2,0,null,null,null,null,null,null,4,0]
[null,77,"DELICJE SZAMPAŃSKIE POMARAŃCZA 147G","Ciastka DELICJE Szampańskie pomarańczowe, 147 g","1 op. (147 g)",{"$f":"IF('Załącznik 7 - F.O. Zad 6-10'!$V$59,VLOOKUP(C98,'Załącznik 7 - F.O. Zad 6-10'!$C$52:$G$210,5,0),0)","v":0},6,0,2,0,null,null,null,null,null,null,4,0]
[null,78,"DELICJE SZAMPAŃSKIE WIŚNIA 147G","Ciastka DELICJE Szampańskie wiśniowe, 147 g","1 op. (147 g)",{"$f":"IF('Załącznik 7 - F.O. Zad 6-10'!$V$59,VLOOKUP(C99,'Załącznik 7 - F.O. Zad 6-10'!$C$52:$G$210,5,0),0)","v":0},6,0,2,0,null,null,null,null,null,null,4,0]
[null,79,"DELICJE SZAMPAŃSKIE WIŚNIOWE 294G","Ciastka DELICJE Szampańskie wiśniowe, podwójne opakowanie, 294 g","1 op. ( 294 g)",{"$f":"IF('Załącznik 7 - F.O. Zad 6-10'!$V$59,VLOOKUP(C100,'Załącznik 7 - F.O. Zad 6-10'!$C$52:$G$210,5,0),0)","v":0},14,0,10,0,null,null,null,null,null,null,4,0]
[null,80,"FERRERO RAFAELLO 230 G","Praliny RAFFAELLO, 230 g","1 op.(  230 g.)",{"$f":"IF('Załącznik 7 - F.O. Zad 6-10'!$V$59,VLOOKUP(C101,'Załącznik 7 - F.O. Zad 6-10'!$C$52:$G$210,5,0),0)","v":0},102,0,2,0,null,null,100,0]
[null,81,"FERRERO RAFFAELLO PRALINY 230G","Praliny RAFFAELLO, 230 g","2 op.(  230 g.)",{"$f":"IF('Załącznik 7 - F.O. Zad 6-10'!$V$59,VLOOKUP(C102,'Załącznik 7 - F.O. Zad 6-10'!$C$52:$G$210,5,0),0)","v":0},2,0,2,0]
[null,82,"Ferrero Rocher Praliny 200g","Czekoladki FERRERO ROCHER, 200 g","3 op.(  200 g.)",{"$f":"IF('Załącznik 7 - F.O. Zad 6-10'!$V$59,VLOOKUP(C103,'Załącznik 7 - F.O. Zad 6-10'!$C$52:$G$210,5,0),0)","v":0},2,0,2,0]
[null,83,"GOPLANA TOFFINO CHOCO 1KG","Cukierki Goplana Toffino Choco Toffi mleczne z kremem czekoladowym 1 kg","1 op. ( 1 kg.)",{"$f":"IF('Załącznik 7 - F.O. Zad 6-10'!$V$59,VLOOKUP(C104,'Załącznik 7 - F.O. Zad 6-10'!$C$52:$G$210,5,0),0)","v":0},2,0,2,0]
[null,84,"HIT MARKIZY CZEKOLADOWE 220G","Ciastka BAHLSEN HIT czekoladowe, 220 g","1 op.(  220 g)",{"$f":"IF('Załącznik 7 - F.O. Zad 6-10'!$V$59,VLOOKUP(C105,'Załącznik 7 - F.O. Zad 6-10'!$C$52:$G$210,5,0),0)","v":0},5,0,5,0]
[null,85,"JUTRZENKA JEŻYKI CAFE CIASTKA 140G","Ciasta JEŻYKI Cafe, 140 g","1 op. (140 g)",{"$f":"IF('Załącznik 7 - F.O. Zad 6-10'!$V$59,VLOOKUP(C106,'Załącznik 7 - F.O. Zad 6-10'!$C$52:$G$210,5,0),0)","v":0},2,0,2,0]
[null,86,"JUTRZENKA JEŻYKI CIASTKA 140G","Ciasta JEŻYKI Classic, 140 g","1 op. (140 g)",{"$f":"IF('Załącznik 7 - F.O. Zad 6-10'!$V$59,VLOOKUP(C107,'Załącznik 7 - F.O. Zad 6-10'!$C$52:$G$210,5,0),0)","v":0},4,0,2,0,2,0]
[null,87,"JUTRZENKA WAFLE FAMILIJNE ŚMIET-KAK 180G","Wafle FAMILIJNE śmietankowo-kakaowe, 180 g","1 op. (180 g)",{"$f":"IF('Załącznik 7 - F.O. Zad 6-10'!$V$59,VLOOKUP(C108,'Załącznik 7 - F.O. Zad 6-10'!$C$52:$G$210,5,0),0)","v":0},3,0,2,0,1,0]
[null,88,"ŁAKOTKI DESEROWE Z CUKREM 168G","Ciastka SAN ŁAKOTKI deserowe z cukrem, 168 g","1 op. (168 g)",{"$f":"IF('Załącznik 7 - F.O. Zad 6-10'!$V$59,VLOOKUP(C109,'Załącznik 7 - F.O. Zad 6-10'!$C$52:$G$210,5,0),0)","v":0},2,0,2,0]
[null,89,"ŁAKOTKI KAKAOWE 168G","Ciastka SAN ŁAKOTKI kakaowe, 168 g","1 op. (168 g)",{"$f":"IF('Załącznik 7 - F.O. Zad 6-10'!$V$59,VLOOKUP(C110,'Załącznik 7 - F.O. Zad 6-10'!$C$52:$G$210,5,0),0)","v":0},2,0,2,0]
[null,90,"ŁAKOTKI KOKOSOWE 168G","Ciastka SAN ŁAKOTKI kokosowe, 168 g","1 op. (168 g)",{"$f":"IF('Załącznik 7 - F.O. Zad 6-10'!$V$59,VLOOKUP(C111,'Załącznik 7 - F.O. Zad 6-10'!$C$52:$G$210,5,0),0)","v":0},2,0,2,0]
[null,91,"MERCI CZEKOLADKI 400 G","Czekoladki MERCI, 400 g","1 op.(400 g.)",{"$f":"IF('Załącznik 7 - F.O. Zad 6-10'!$V$59,VLOOKUP(C112,'Załącznik 7 - F.O. Zad 6-10'!$C$52:$G$210,5,0),0)","v":0},2,0,2,0]
[null,92,"MILKA CHOCO GRAINS CIASTKA 126 G","Ciastka MILKA Chocograins, 126 g","1 op.(126 g.)",{"$f":"IF('Załącznik 7 - F.O. Zad 6-10'!$V$59,VLOOKUP(C113,'Załącznik 7 - F.O. Zad 6-10'!$C$52:$G$210,5,0),0)","v":0},2,0,2,0]
[null,93,"MILKA CHOCOWAFER CIASTKA 150G","Wafle MILKA ChocoWafer, 150 g","1 op.(150g.)",{"$f":"IF('Załącznik 7 - F.O. Zad 6-10'!$V$59,VLOOKUP(C114,'Załącznik 7 - F.O. Zad 6-10'!$C$52:$G$210,5,0),0)","v":0},2,0,2,0]
[null,94,"MILKA MOMENTS CZEKOL MIX 11X97G","Praliny MILKA Moments Mix, 11 czekoladek","1 op. (11 sztuk)",{"$f":"IF('Załącznik 7 - F.O. Zad 6-10'!$V$59,VLOOKUP(C115,'Załącznik 7 - F.O. Zad 6-10'!$C$52:$G$210,5,0),0)","v":0},2,0,2,0]
[null,95,"MILKA MOMENTS TOFF/ORZECH 11x97G","Praliny MILKA Moments Toffee Wholenut, 11 czekoladek","1 op. (11 sztuk)",{"$f":"IF('Załącznik 7 - F.O. Zad 6-10'!$V$59,VLOOKUP(C116,'Załącznik 7 - F.O. Zad 6-10'!$C$52:$G$210,5,0),0)","v":0},2,0,2,0]
[null,96,"MILKA PIEGUSKI CZEKOLADA ORZECHY 135G","Ciastka MILKA Pieguski, czekolada i orzechy, 135 g","1 op. (135 g)",{"$f":"IF('Załącznik 7 - F.O. Zad 6-10'!$V$59,VLOOKUP(C117,'Załącznik 7 - F.O. Zad 6-10'!$C$52:$G$210,5,0),0)","v":0},2,0,2,0]
[null,97,"MILKA SINGLES CZEKOLADKI 138G","Czekoladki MILKA Singles, 32 czekoladki pakowane osobno"," 1 op. (32 szt.)",{"$f":"IF('Załącznik 7 - F.O. Zad 6-10'!$V$59,VLOOKUP(C118,'Załącznik 7 - F.O. Zad 6-10'!$C$52:$G$210,5,0),0)","v":0},2,0,2,0]
[null,98,"NESPRESSO CZEKOLADKI BLOND 200G","Czekoladki NESPRESSO blond, 200 g","1 op ( 200 g.)",{"$f":"IF('Załącznik 7 - F.O. Zad 6-10'!$V$59,VLOOKUP(C119,'Załącznik 7 - F.O. Zad 6-10'!$C$52:$G$210,5,0),0)","v":0},5,0,5,0]
[null,99,"NESPRESSO CZEKOLADKI MILK 200G","Czekoladki NESPRESSO mleczne, 200 g","1 op  ( 200 g.)",{"$f":"IF('Załącznik 7 - F.O. Zad 6-10'!$V$59,VLOOKUP(C120,'Załącznik 7 - F.O. Zad 6-10'!$C$52:$G$210,5,0),0)","v":0},2,0,2,0]
[null,100,"PASTYLKI MIĘTOWEW CZEKOLADZIE WAWEL","Cukierki Pastylka miętowa WAWEL, 1 kg","1 op. (1 kg)",{"$f":"IF('Załącznik 7 - F.O. Zad 6-10'!$V$59,VLOOKUP(C121,'Załącznik 7 - F.O. Zad 6-10'!$C$52:$G$210,5,0),0)","v":0},17,0,2,0,null,null,15,0]
[null,101,"SOLIDARNOŚĆ ŚLIWKA NALECZOWSKA 1KG","CukierkiŚliwka Nałęczowska SOLIDARNOŚĆ, 1 kg","2 op. (1 kg)",{"$f":"IF('Załącznik 7 - F.O. Zad 6-10'!$V$59,VLOOKUP(C122,'Załącznik 7 - F.O. Zad 6-10'!$C$52:$G$210,5,0),0)","v":0},32,0,2,0,null,null,30,0]
[null,102,"TAGO CIASTECZKA KORZENNE 4,8G OPK125 ","Ciastka TAGO korzenne, 125 ciasteczek po 4,8 g","1 op. (125 szt.)",{"$f":"IF('Załącznik 7 - F.O. Zad 6-10'!$V$59,VLOOKUP(C123,'Załącznik 7 - F.O. Zad 6-10'!$C$52:$G$210,5,0),0)","v":0},22,0,2,0,null,null,20,0]
[null,103,"TAGO OWSIANE DE LUX CIASTECZKA 210G","Ciastka TAGO Owsiane de Lux, 210 g","1 op. (210 g)",{"$f":"IF('Załącznik 7 - F.O. Zad 6-10'!$V$59,VLOOKUP(C124,'Załącznik 7 - F.O. Zad 6-10'!$C$52:$G$210,5,0),0)","v":0},5,0,2,0,null,null,3,0]
[null,104,"TAGO PRECLE MAŚLANE 158 G","Francuskie precle z masłem TAGO, 158 g","1 op. ( 158 g)",{"$f":"IF('Załącznik 7 - F.O. Zad 6-10'!$V$59,VLOOKUP(C125,'Załącznik 7 - F.O. Zad 6-10'!$C$52:$G$210,5,0),0)","v":0},2,0,2,0]
[null,105,"WAWEL MICHAŁKI 1 KG","Cukierki WAWEL Michałki Klasyczne 300 g","1 op. (300 g)",{"$f":"IF('Załącznik 7 - F.O. Zad 6-10'!$V$59,VLOOKUP(C126,'Załącznik 7 - F.O. Zad 6-10'!$C$52:$G$210,5,0),0)","v":0},12,0,2,0,null,null,10,0]
[null,106,"WAWEL MICHAŁKI CLASSIC 300G","Cukierki WAWEL Michałki Klasyczne 300 g","1 op. (300 g)",{"$f":"IF('Załącznik 7 - F.O. Zad 6-10'!$V$59,VLOOKUP(C127,'Załącznik 7 - F.O. Zad 6-10'!$C$52:$G$210,5,0),0)","v":0},2,0,2,0]
[null,107,"WAWEL MIESZANKA KRAKOWSKA 1 KG","Cukierki Mieszanka krakowska WAWEL, 1 kg","1 op. (1 kg)",{"$f":"IF('Załącznik 7 - F.O. Zad 6-10'!$V$59,VLOOKUP(C128,'Załącznik 7 - F.O. Zad 6-10'!$C$52:$G$210,5,0),0)","v":0},2,0,2,0]
[null,108,"WAWEL TRUFLE 1 KG","Cukierki WAWEL Trufle","1 op. (1 kg)",{"$f":"IF('Załącznik 7 - F.O. Zad 6-10'!$V$59,VLOOKUP(C129,'Załącznik 7 - F.O. Zad 6-10'!$C$52:$G$210,5,0),0)","v":0},2,0,2,0]
[null,109,"WEDEL AMERYKANKI KLASYCZNE 125 G","Ciastka AMERYKANKI, klasyczne, 126 g","1 op. (126 g)",{"$f":"IF('Załącznik 7 - F.O. Zad 6-10'!$V$59,VLOOKUP(C130,'Załącznik 7 - F.O. Zad 6-10'!$C$52:$G$210,5,0),0)","v":0},2,0,2,0]
[null,110,"WEDEL MIESZANKA CUKIERKI DISPLAY 3KG","Cukierki MIESZANKA WEDLOWSKA Classic, 3 kg w formie dyspensera","1 op. (3 kg)",{"$f":"IF('Załącznik 7 - F.O. Zad 6-10'!$V$59,VLOOKUP(C131,'Załącznik 7 - F.O. Zad 6-10'!$C$52:$G$210,5,0),0)","v":0},4,0,2,0,null,null,2,0]
[null,111,"WEDEL PTASIE MLECZKO WANILIOWE 360G","Ptasie mleczko WEDEL, waniliowe, 360 g","1 op.( 360 g.)",{"$f":"IF('Załącznik 7 - F.O. Zad 6-10'!$V$59,VLOOKUP(C132,'Załącznik 7 - F.O. Zad 6-10'!$C$52:$G$210,5,0),0)","v":0},2,0,2,0]
[null,112,"WEDEL WAFLE TORCIKOWE MINI ORZECHOWE 160","Wafle Torcikowe WEDEL MINI orzechowe, 160 g","1 op. ( 160 g)",{"$f":"IF('Załącznik 7 - F.O. Zad 6-10'!$V$59,VLOOKUP(C133,'Załącznik 7 - F.O. Zad 6-10'!$C$52:$G$210,5,0),0)","v":0},22,0,2,0,null,null,20,0]
[null,113,"BAKALLAND MIGDAŁY SOLONE 90G","Migdały lekko solone BAKALLAND, 90 g","1 op. (90 g)",{"$f":"IF('Załącznik 7 - F.O. Zad 6-10'!$V$59,VLOOKUP(C134,'Załącznik 7 - F.O. Zad 6-10'!$C$52:$G$210,5,0),0)","v":0},2,0,2,0]
[null,114,"BAKALLAND ORZECHY LASKOWE 300G","Orzechy laskowe BAKALLAND, 300 g","1 op. (300 g)",{"$f":"IF('Załącznik 7 - F.O. Zad 6-10'!$V$59,VLOOKUP(C135,'Załącznik 7 - F.O. Zad 6-10'!$C$52:$G$210,5,0),0)","v":0},2,0,2,0]
[null,115,"BAKALLAND ORZECHY NERKOWCA SOLONE 70G","Orzechy nerkowca  solone BAKALLAND, 70 g","1 op. (70 g)",{"$f":"IF('Załącznik 7 - F.O. Zad 6-10'!$V$59,VLOOKUP(C136,'Załącznik 7 - F.O. Zad 6-10'!$C$52:$G$210,5,0),0)","v":0},2,0,2,0]
[null,116,"BAKALLAND ORZECHY WŁOSKIE 300G","Orzechy włoskie BAKALLAND, 300 g","1 op. (300 g)",{"$f":"IF('Załącznik 7 - F.O. Zad 6-10'!$V$59,VLOOKUP(C137,'Załącznik 7 - F.O. Zad 6-10'!$C$52:$G$210,5,0),0)","v":0},1,0,1,0]
[null,117,"LAJKONIK PALUSZKI 200G","Paluszki LAJKONIK solone, 200 g","1 op. (200 g)",{"$f":"IF('Załącznik 7 - F.O. Zad 6-10'!$V$59,VLOOKUP(C138,'Załącznik 7 - F.O. Zad 6-10'!$C$52:$G$210,5,0),0)","v":0},52,0,10,0,null,null,40,0,2,{"$f":"O138*F138","v":0}]
[null,118,"CAPPY NEKTAR MULTIWIT PET 0,33L OPK12 ","Nektar multiwitamina CAPPY, 12 butelek x 0,33 l","1 op. (12 butelek)",{"$f":"IF('Załącznik 7 - F.O. Zad 6-10'!$V$59,VLOOKUP(C139,'Załącznik 7 - F.O. Zad 6-10'!$C$52:$G$210,5,0),0)","v":0},53,0,10,0,3,0,40,0]
[null,119,"CAPPY SOK POMARAŃCZOWY PET 0,33L OPK12","Sok pomarańczowy CAPPY, 12 butelek x 0,33 l","1 op. (12 butelek)",{"$f":"IF('Załącznik 7 - F.O. Zad 6-10'!$V$59,VLOOKUP(C140,'Załącznik 7 - F.O. Zad 6-10'!$C$52:$G$210,5,0),0)","v":0},5,0,1,0,3,0,null,null,1,0]
[null,120,"CHAMPION SOK CYTRYNOWY OPK10X7,5G","Zagęszczony sok cytrynowy CHAMPION, 10 kubeczków x 7,5 g","1 op. (10 kubeczków)",{"$f":"IF('Załącznik 7 - F.O. Zad 6-10'!$V$59,VLOOKUP(C141,'Załącznik 7 - F.O. Zad 6-10'!$C$52:$G$210,5,0),0)","v":0},10,0,5,0,null,null,null,null,5,0]
[null,121,"COCA-COLA BUTELKA PET 0,5L OPK18 ","Napój gazowany COCA-COLA, zgrzewka 18 butelek x 0,5 l","1 op. (18 butelek)",{"$f":"IF('Załącznik 7 - F.O. Zad 6-10'!$V$59,VLOOKUP(C142,'Załącznik 7 - F.O. Zad 6-10'!$C$52:$G$210,5,0),0)","v":0},2,0,1,0,1,0]
[null,122,"COCA-COLA PUSZKA 0,33L OPK24","Napój gazowany COCA-COLA, 24 puszki x 0,33 l","1 op. (24 puszki 0,33 l)",{"$f":"IF('Załącznik 7 - F.O. Zad 6-10'!$V$59,VLOOKUP(C143,'Załącznik 7 - F.O. Zad 6-10'!$C$52:$G$210,5,0),0)","v":0},6,0,5,0,1,0]
[null,123,"COCA-COLA ZERO BUTELKA PET 0,5L OPK12","Napój gazowany COCA-COLA Zero, 12 butelek x 0,5 l","1 op. (12 butelek)",{"$f":"IF('Załącznik 7 - F.O. Zad 6-10'!$V$59,VLOOKUP(C144,'Załącznik 7 - F.O. Zad 6-10'!$C$52:$G$210,5,0),0)","v":0},14,0,13,0,1,0]
[null,124,"FORTUNA NEKTAR CZ.PORZECZKA 0,3L OPK15","Nektar czarna porzeczka FORTUNA, 15 butelek x 0,3 l","1 op. (15 butelek)",{"$f":"IF('Załącznik 7 - F.O. Zad 6-10'!$V$59,VLOOKUP(C145,'Załącznik 7 - F.O. Zad 6-10'!$C$52:$G$210,5,0),0)","v":0},2,0,1,0,1,0]
[null,125,"FORTUNA SOK MULTIWITAMINA 0,3 L OPK15","Sok multiwitamina FORTUNA, 15 butelek x 0,3 l","1 op. (15 butelek)",{"$f":"IF('Załącznik 7 - F.O. Zad 6-10'!$V$59,VLOOKUP(C146,'Załącznik 7 - F.O. Zad 6-10'!$C$52:$G$210,5,0),0)","v":0},15,0,5,0,null,null,10,0]
[null,126,"FORTUNA SOK POMARAŃCZOWY 0,3L OPK15 ","Sok pomarańczowy FORTUNA, 15 butelek x 0,3 l","1 op. (15 butelek)",{"$f":"IF('Załącznik 7 - F.O. Zad 6-10'!$V$59,VLOOKUP(C147,'Załącznik 7 - F.O. Zad 6-10'!$C$52:$G$210,5,0),0)","v":0},1,0,1,0]
[null,127,"FORTUNA SOK POMIDOROWY 0,3L OPK15","Sok pomidorowy FORTUNA, 15 butelek x 0,3 l","1 op. (15 butelek)",{"$f":"IF('Załącznik 7 - F.O. Zad 6-10'!$V$59,VLOOKUP(C148,'Załącznik 7 - F.O. Zad 6-10'!$C$52:$G$210,5,0),0)","v":0},16,0,1,0,null,null,15,0]
[null,128,"TARCZYN NEKTAR CZ.PORZECZKA 0,3L OPK15","Nektar czarna porzeczka TARCZYN, 15 butelek x 0,3 l","1 op. (15 butelek)",{"$f":"IF('Załącznik 7 - F.O. Zad 6-10'!$V$59,VLOOKUP(C149,'Załącznik 7 - F.O. Zad 6-10'!$C$52:$G$210,5,0),0)","v":0},18,0,1,0,null,null,10,0,3,0,4,0]
[null,129,"TARCZYN NEKTAR GREJPFRUT 0,3L OPK15","Nektar czerwony grejpfrut TARCZYN, zgrzewka 15 butelek x 0,3 l","1 op. (15 butelek)",{"$f":"IF('Załącznik 7 - F.O. Zad 6-10'!$V$59,VLOOKUP(C150,'Załącznik 7 - F.O. Zad 6-10'!$C$52:$G$210,5,0),0)","v":0},15,0,1,0,null,null,10,0,null,null,4,{"$f":"Q150*F150","v":0}]
[null,130,"TARCZYN SOK JABŁKOWY 0,3L OPK15","Sok jabłkowy TARCZYN, 15 butelek x 0,3 l","1 op. (15 butelek)",{"$f":"IF('Załącznik 7 - F.O. Zad 6-10'!$V$59,VLOOKUP(C151,'Załącznik 7 - F.O. Zad 6-10'!$C$52:$G$210,5,0),0)","v":0},{"$f":"I151+K151+M151+O151+Q151","v":38},{"$f":"G151*F151","v":0},1,0,null,null,30,0,3,{"$f":"O151*F151","v":0},4,0]
[null,131,"TARCZYN SOK POMARAŃCZOWY 0,3L OPK15","Sok pomarańczowy TARCZYN, 15 butelek x 0,3 l","1 op. (15 butelek)",{"$f":"IF('Załącznik 7 - F.O. Zad 6-10'!$V$59,VLOOKUP(C152,'Załącznik 7 - F.O. Zad 6-10'!$C$52:$G$210,5,0),0)","v":0},34,0,10,0,null,null,20,0,null,null,4,0]
[null,132,"TARCZYN SOK POMIDOROWY 300ML OPK15 ","Sok pomidorowy TARCZYN, zgrzewka 15 butelek x 0,3 l","1 op. (15 butelek)",{"$f":"IF('Załącznik 7 - F.O. Zad 6-10'!$V$59,VLOOKUP(C153,'Załącznik 7 - F.O. Zad 6-10'!$C$52:$G$210,5,0),0)","v":0},24,0,10,0,null,null,10,0,null,null,4,0]
[null,133,"TYMBARK JABŁKO SOK 100% 300ML OPK12","Sok TYMBARK jabłko 100%, 12 butelek x 300 ml","1 op. (12 butelek)",{"$f":"IF('Załącznik 7 - F.O. Zad 6-10'!$V$59,VLOOKUP(C154,'Załącznik 7 - F.O. Zad 6-10'!$C$52:$G$210,5,0),0)","v":0},14,0,10,0,null,null,null,null,null,null,4,0]
[null,134,"TYMBARK POMARAŃCZ SOK 100% 300ML OPK12","Sok TYMBARK pomarańcza 100%, 12 butelek x 300 ml","1 op. (12 butelek)",{"$f":"IF('Załącznik 7 - F.O. Zad 6-10'!$V$59,VLOOKUP(C155,'Załącznik 7 - F.O. Zad 6-10'!$C$52:$G$210,5,0),0)","v":0},14,0,10,0,null,null,null,null,null,null,4,0]
[null,135,"TYMBARK POMIDOR SOK 100% 300ML OPK12","Sok TYMBARK pomidor 100%, 12 butelek x 300 ml","1 op. (12 butelek)",{"$f":"IF('Załącznik 7 - F.O. Zad 6-10'!$V$59,VLOOKUP(C156,'Załącznik 7 - F.O. Zad 6-10'!$C$52:$G$210,5,0),0)","v":0},10,0,10,0]
[null,136,"TYMBARK VITAMINI BAN/MAR/JAB 300ML OPK12","Sok TYMBARK Vitamini banan, marchewka, jabłko, 12 butelek x 300 ml","1 op. (12 butelek)",{"$f":"IF('Załącznik 7 - F.O. Zad 6-10'!$V$59,VLOOKUP(C157,'Załącznik 7 - F.O. Zad 6-10'!$C$52:$G$210,5,0),0)","v":0},14,0,10,0,null,null,null,null,null,null,4,0]
[null,137,"CISOWIANKA LEKKOGAZOWANA WODA 0,5L  OPK12 ","Woda mineralna CISOWIANKA lekko gazowana, zgrzewka 12 butelek x 0,5 l","1 op. (12 butelek)",{"$f":"IF('Załącznik 7 - F.O. Zad 6-10'!$V$59,VLOOKUP(C158,'Załącznik 7 - F.O. Zad 6-10'!$C$52:$G$210,5,0),0)","v":0},10,0,5,0,5,{"$f":"K158*F158","v":0}]
[null,138,"CISOWIANKA PERLAGE GAZ SZKŁO 300ML  OPK24 ","Woda mineralna CISOWIANKA Perlage gazowana, zgrzewka 24 butelki x 300 ml","1 op. (24 butelki)",{"$f":"IF('Załącznik 7 - F.O. Zad 6-10'!$V$59,VLOOKUP(C159,'Załącznik 7 - F.O. Zad 6-10'!$C$52:$G$210,5,0),0)","v":0},38,0,10,0,null,null,20,0,8,0]
[null,139,"CISOWIANKA WODA GAZOWANA 1,5L OPK6","Woda mineralna CISOWIANKA gazowana, zgrzewka 6 butelek x 1,5 l","1 op. (6 butelek)",{"$f":"IF('Załącznik 7 - F.O. Zad 6-10'!$V$59,VLOOKUP(C160,'Załącznik 7 - F.O. Zad 6-10'!$C$52:$G$210,5,0),0)","v":0},35,0,5,0,30,0]
[null,140,"CISOWIANKA WODA NIEGAZ SZKŁO 300ML OPK24","Woda mineralna CISOWIANKA niegazowana szklane butelki x 300 ml","1 op. (24 butelki)",{"$f":"IF('Załącznik 7 - F.O. Zad 6-10'!$V$59,VLOOKUP(C161,'Załącznik 7 - F.O. Zad 6-10'!$C$52:$G$210,5,0),0)","v":0},13,0,5,0,null,null,null,null,8,0]
[null,141,"CISOWIANKA WODA NIEGAZOWANA 0,5L OPK12 ","Woda mineralna CISOWIANKA niegazowana, zgrzewka 12 butelek x 0,5 l","1 op. (12 butelek)",{"$f":"IF('Załącznik 7 - F.O. Zad 6-10'!$V$59,VLOOKUP(C162,'Załącznik 7 - F.O. Zad 6-10'!$C$52:$G$210,5,0),0)","v":0},40,0,5,0,15,0,20,0]
[null,142,"CISOWIANKA WODA NIEGAZOWANA 1,5L OPK6","Woda mineralna CISOWIANKA niegazowana, zgrzewka 6 butelek x 1,5 l","1 op. (6 butelek)",{"$f":"IF('Załącznik 7 - F.O. Zad 6-10'!$V$59,VLOOKUP(C163,'Załącznik 7 - F.O. Zad 6-10'!$C$52:$G$210,5,0),0)","v":0},40,0,5,0,35,0]
[null,143,"CISOWIANKA WODA SPORT NIEGAZ 0,7L OPK8","Woda mineralna CISOWIANKA Sport niegazowana, zgrzewka 8 butelek x 0,7 l","1 op. (8 butelek)",{"$f":"IF('Załącznik 7 - F.O. Zad 6-10'!$V$59,VLOOKUP(C164,'Załącznik 7 - F.O. Zad 6-10'!$C$52:$G$210,5,0),0)","v":0},10,0,5,0,5,0]
[null,144,"KINGA PIENINSKA WODA GAZOWANA 0,5L OPK12","Woda mineralna KINGA PIENIŃSKA gazowana 0,5 l","1 op. (12 butelek)",{"$f":"IF('Załącznik 7 - F.O. Zad 6-10'!$V$59,VLOOKUP(C165,'Załącznik 7 - F.O. Zad 6-10'!$C$52:$G$210,5,0),0)","v":0},5,0,5,0]
[null,145,"KINGA PIENINSKA WODA NIEGAZOW 0,5L OPK12","Woda mineralna KINGA PIENIŃSKA niegazowana, zgrzewka 12 butelek x 0,5 l","1 op. (12 butelek)",{"$f":"IF('Załącznik 7 - F.O. Zad 6-10'!$V$59,VLOOKUP(C166,'Załącznik 7 - F.O. Zad 6-10'!$C$52:$G$210,5,0),0)","v":0},40,0,5,0,15,0,20,0]
[null,146,"KROPLA BESKIDU WODA GAZ 0,5L OPK12","Woda mineralna KROPLA BESKIDU gazowana, zgrzewka 12 butelek x 0,5 l","1 op. (12 butelek)",{"$f":"IF('Załącznik 7 - F.O. Zad 6-10'!$V$59,VLOOKUP(C167,'Załącznik 7 - F.O. Zad 6-10'!$C$52:$G$210,5,0),0)","v":0},205,0,5,0,170,0,30,0]
[null,147,"KROPLA BESKIDU WODA GAZ 1,5L OPK6","Woda mineralna KROPLA BESKIDU gazowana, zgrzewka 6 butelek x 1,5 l","1 op. (6 butelek)",{"$f":"IF('Załącznik 7 - F.O. Zad 6-10'!$V$59,VLOOKUP(C168,'Załącznik 7 - F.O. Zad 6-10'!$C$52:$G$210,5,0),0)","v":0},13,0,8,0,5,0]
[null,148,"KROPLA BESKIDU WODA NIEGAZ 0,5L  OPK12","Woda mineralna KROPLA BESKIDU niegazowana, zgrzewka 12 butelek x 0,5 l","1 op. (12 butelek)",{"$f":"IF('Załącznik 7 - F.O. Zad 6-10'!$V$59,VLOOKUP(C169,'Załącznik 7 - F.O. Zad 6-10'!$C$52:$G$210,5,0),0)","v":0},12,0,6,0,6,0]
[null,149,"KROPLA BESKIDU WODA NIEGAZ 1,5L OPK6","Woda mineralna KROPLA BESKIDU niegazowana, zgrzewka 6 butelek x 1,5 l","1 op. (6 butelek)",{"$f":"IF('Załącznik 7 - F.O. Zad 6-10'!$V$59,VLOOKUP(C170,'Załącznik 7 - F.O. Zad 6-10'!$C$52:$G$210,5,0),0)","v":0},40,0,5,0,5,0,30,0]
[null,150,"NAŁĘCZOWIANKA WODA NIEGAZ 0,5L OPK12","Woda mineralna NAŁĘCZOWIANKA niegazowana, zgrzewka 12 butelek x 0,5 l","1 op. (12 butelek)",{"$f":"IF('Załącznik 7 - F.O. Zad 6-10'!$V$59,VLOOKUP(C171,'Załącznik 7 - F.O. Zad 6-10'!$C$52:$G$210,5,0),0)","v":0},20,0,5,0,15,0]
[null,151,"NAŁĘCZOWIANKA WODA NIEGAZ 1,5L OPK6","Woda mineralna NAŁĘCZOWIANKA niegazowana, zgrzewka 6 butelek x 1,5 l","1 op. (6 butelek)",{"$f":"IF('Załącznik 7 - F.O. Zad 6-10'!$V$59,VLOOKUP(C172,'Załącznik 7 - F.O. Zad 6-10'!$C$52:$G$210,5,0),0)","v":0},21,0,5,0,6,0,10,0]
[null,152,"NESTLE PURE LIFE WODA GAZ 1,5L OPK6","Woda źródlana NESTLÉ Pure Life gazowana, zgrzewka 6 butelek x 1,5 l","1 op. (6 butelek)",{"$f":"IF('Załącznik 7 - F.O. Zad 6-10'!$V$59,VLOOKUP(C173,'Załącznik 7 - F.O. Zad 6-10'!$C$52:$G$210,5,0),0)","v":0},55,0,5,0,null,null,50,0]
[null,153,"NESTLE PURE LIFE WODA NIEGAZ 0,5L OPK12","Woda źródlana NESTLÉ Pure Life niegazowana, zgrzewka 12 butelek x 0,5 l","1 op. (12 butelek)",{"$f":"IF('Załącznik 7 - F.O. Zad 6-10'!$V$59,VLOOKUP(C174,'Załącznik 7 - F.O. Zad 6-10'!$C$52:$G$210,5,0),0)","v":0},5,0,5,0]
[null,154,"NESTLE PURE LIFE WODA NIEGAZ 1,5L OPK6","Woda źródlana NESTLÉ Pure Life niegazowana, zgrzewka 6 butelek x 1,5 l","1 op. (6 butelek)",{"$f":"IF('Załącznik 7 - F.O. Zad 6-10'!$V$59,VLOOKUP(C175,'Załącznik 7 - F.O. Zad 6-10'!$C$52:$G$210,5,0),0)","v":0},25,0,5,0,5,0,15,0]
[null,155,"ŻYWIEC ZDRÓJ WODA GAZOWANA 0.5L OPK24","Woda źródlana ŻYWIOŁ od ŻYWIEC ZDRÓJ gazowana, 24 butelki x 0,5 l","1 op. (24 butelki)",{"$f":"IF('Załącznik 7 - F.O. Zad 6-10'!$V$59,VLOOKUP(C176,'Załącznik 7 - F.O. Zad 6-10'!$C$52:$G$210,5,0),0)","v":0},57,0,5,0,2,0,50,0]
[null,156,"ŻYWIEC ZDRÓJ WODA GAZOWANA 1,5L OPK6","Woda źródlana ŻYWIOŁ od ŻYWIEC ZDRÓJ gazowana, zgrzewka 6 butelek x 1,5 l","1 op. ( 6 butelek)",{"$f":"IF('Załącznik 7 - F.O. Zad 6-10'!$V$59,VLOOKUP(C177,'Załącznik 7 - F.O. Zad 6-10'!$C$52:$G$210,5,0),0)","v":0},26,0,10,0,7,0,5,0,null,null,4,0]
[null,157,"ŻYWIEC ZDRÓJ WODA NIEGAZOWANA 0.5L OPK24 ","Woda źródlana ŻYWIEC ZDRÓJ niegazowana, 24 butelki x 0,5 l","1 op. (24 butelki)",{"$f":"IF('Załącznik 7 - F.O. Zad 6-10'!$V$59,VLOOKUP(C178,'Załącznik 7 - F.O. Zad 6-10'!$C$52:$G$210,5,0),0)","v":0},19,0,10,0,5,0,null,null,null,null,4,0]
[null,158,"ŻYWIEC ZDRÓJ WODA NIEGAZOWANA 1,5L  OPK6 ","Woda źródlana ŻYWIEC ZDRÓJ niegazowana, zgrzewka 6 butelek x 1,5 l","1 op. (6 butelek)",{"$f":"IF('Załącznik 7 - F.O. Zad 6-10'!$V$59,VLOOKUP(C179,'Załącznik 7 - F.O. Zad 6-10'!$C$52:$G$210,5,0),0)","v":0},52,0,50,{"$f":"I179*F179","v":0},2,0]
[null,null,null,null,null,null,{"$f":"SUM(G22:G179)","v":3001},null,{"$f":"SUM(I22:I179)","v":893},null,{"$f":"SUM(K22:K179)","v":562},null,{"$f":"SUM(M22:M179)","v":1270},null,{"$f":"SUM(O22:O179)","v":71},null,{"$f":"SUM(Q22:Q179)","v":205}]
[null,null,null,null,null,null,null,null,"ŁĄCZNA CENA NETTO DLA ENEA Bioenergia Sp. z o.o. ",{"$f":"SUM(J22:J179)","v":0},"ŁĄCZNA CENA NETTO DLA ENEA Centrum sp. z o.o.",{"$f":"SUM(L22:L179)","v":0},"ŁĄCZNA CENA NETTO DLA ENEA Elektrownia Połaniec sp. z.o.o.",{"$f":"SUM(N22:N179)","v":0},"ŁĄCZNA CENA NETTO DLA ENEA Połaniec Serwis Sp. z o.o.",{"$f":"SUM(P22:P179)","v":0},"ŁĄCZNA CENA NETTO DLA ENEA Trading Sp. z o.o.",{"$f":"SUM(R22:R179)","v":0}]
[]
[]
[]
[]
[null,null,"miejscowość i data",null,null,"Pieczęć imienna i podpis przedstawiciela(i) Wykonawcy"]

{"sheet":"zad1","index":9,"n_rows":13,"n_cols":10,"rows_kept":13,"cut":false,"hidden":true,"merged":[[0,6,0,7]]}
[{"$f":"'Załącznik 7 - F.O. Zad 6-10'!D19","v":"Wykonawca nie składa oferty"},null,null,null,null,null,"jeżeli \"naście\""]
[null,null,"0-5","6-9","0-5","6-9","0-5","6-9","dodatek","sumuj te ciągi"]
[{"$f":"INT(A$1/10000000)","v":{"$error":"#VALUE!"}},null,{"$f":"IF(AND(A3>=0,A3<=5),1,0)","v":{"$error":"#VALUE!"}},{"$f":"IF(AND(A3>=6,A3<=9),1,0)","v":{"$error":"#VALUE!"}},{"$f":"IF(A3=0,\"\",IF(A3=1,IF(A4=0,\"dziesięć milionów \",\"\"),IF(A3=2,\"dwadzieścia \",IF(A3=3,\"trzydzieści \",IF(A3=4,\"czterdzieści \",IF(A3=5,\"pięćdziesiąt \",\"\"))))))","v":{"$error":"#VALUE!"}},{"$f":"IF(A3=6,\"sześćdziesiąt \",IF(A3=7,\"siedemdziesiąt \",IF(A3=8,\"osiemdziesiąt \",IF(A3=9,\"dziewięćdziesiąt \",\"\"))))","v":{"$error":"#VALUE!"}},null,null,null,{"$f":"IF(C3,E3&I3,IF(D3,F3&I3,\"\"))","v":{"$error":"#VALUE!"}}]
[{"$f":"INT(A$1/1000000)-A3*10","v":{"$error":"#VALUE!"}},null,{"$error":"#VALUE!"},{"$error":"#VALUE!"},{"$f":"IF(A4=0,IF(AND(A3<>0,A3<>1),\"milionów \",\"\"),IF(A4=1,IF(A3=0,\"jeden milion \",\"jeden milionów \"),IF(A4=2,\"dwa miliony \",IF(A4=3,\"trzy miliony \",IF(A4=4,\"cztery miliony \",IF(A4=5,\"pięć milionów \",\"\"))))))","v":{"$error":"#VALUE!"}},{"$f":"IF(A4=6,\"sześć milionów \",IF(A4=7,\"siedem milionów \",IF(A4=8,\"osiem milionów \",IF(A4=9,\"dziewięć milionów \",\"\"))))","v":{"$error":"#VALUE!"}},{"$f":"IF(A4=0,\"\",IF(A4=1,\"jedenaście milionów \",IF(A4=2,\"dwanaście milionów \",IF(A4=3,\"trzynaście milionów \",IF(A4=4,\"czternaście milionów \",IF(A4=5,\"piętnaście milionów \",\"\"))))))","v":{"$error":"#VALUE!"}},{"$f":"IF(A4=6,\"szesnaście milionów \",IF(A4=7,\"siedemnaście milionów \",IF(A4=8,\"osiemnaście milionów \",IF(A4=9,\"dziewiętnaście milionów \",\"\"))))","v":{"$error":"#VALUE!"}},null,{"$f":"IF(A3=1,IF(C4,G4,IF(D4,H4)),IF(C4,E4,IF(D4,F4,\"\")))","v":{"$error":"#VALUE!"}}]
[{"$f":"INT(A$1/100000)-10*A4-100*A3","v":{"$error":"#VALUE!"}},null,{"$error":"#VALUE!"},{"$error":"#VALUE!"},{"$f":"IF(A5=0,\"\",IF(A5=1,\"sto \",IF(A5=2,\"dwieście \",IF(A5=3,\"trzysta \",IF(A5=4,\"czterysta \",IF(A5=5,\"pięćset \",\"\"))))))","v":{"$error":"#VALUE!"}},{"$f":"IF(A5=6,\"sześćset \",IF(A5=7,\"siedemset \",IF(A5=8,\"osiemset \",IF(A5=9,\"dziewięćset \",\"\"))))","v":{"$error":"#VALUE!"}},null,null,null,{"$f":"IF(C5,E5&I5,IF(D5,F5&I5,\"\"))","v":{"$error":"#VALUE!"}}]
[{"$f":"INT(A$1/10000)-10*A5-100*A4-1000*A3","v":{"$error":"#VALUE!"}},null,{"$error":"#VALUE!"},{"$error":"#VALUE!"},{"$f":"IF(A6=0,\"\",IF(A6=1,IF(A7=0,\"dziesięć tysięcy \",\"\"),IF(A6=2,\"dwadzieścia \",IF(A6=3,\"trzydzieści \",IF(A6=4,\"czterdzieści \",IF(A6=5,\"pięćdziesiąt \",\"\"))))))","v":{"$error":"#VALUE!"}},{"$f":"IF(A6=6,\"sześćdziesiąt \",IF(A6=7,\"siedemdziesiąt \",IF(A6=8,\"osiemdziesiąt \",IF(A6=9,\"dziewięćdziesiąt \",\"\"))))","v":{"$error":"#VALUE!"}},null,null,null,{"$f":"IF(C6,E6&I6,IF(D6,F6&I6,\"\"))","v":{"$error":"#VALUE!"}}]
[{"$f":"INT(A$1/1000)-10*A6-100*A5-1000*A4-10000*A3","v":{"$error":"#VALUE!"}},null,{"$error":"#VALUE!"},{"$error":"#VALUE!"},{"$f":"IF(A7=0,IF(OR(AND(A6<>0,A6<>1),AND(A5<>0,A6=0)),\"tysięcy \",\"\"),IF(A7=1,IF(AND(A5=0,A6=0),\"jeden tysiąc \",\"jeden tysięcy \"),IF(A7=2,\"dwa tysiące \",IF(A7=3,\"trzy tysiące \",IF(A7=4,\"cztery tysiące \",IF(A7=5,\"pięć tysięcy \",\"\"))))))","v":{"$error":"#VALUE!"}},{"$f":"IF(A7=6,\"sześć tysięcy \",IF(A7=7,\"siedem tysięcy \",IF(A7=8,\"osiem tysięcy \",IF(A7=9,\"dziewięć tysięcy \",\"\"))))","v":{"$error":"#VALUE!"}},{"$f":"IF(A7=0,\"\",IF(A7=1,\"jedenaście tysięcy \",IF(A7=2,\"dwanaście tysięcy \",IF(A7=3,\"trzynaście tysięcy \",IF(A7=4,\"czternaście tysięcy \",IF(A7=5,\"piętnaście tysięcy \",\"\"))))))","v":{"$error":"#VALUE!"}},{"$f":"IF(A7=6,\"szesnaście tysięcy \",IF(A7=7,\"siedemnaście tysięcy \",IF(A7=8,\"osiemnaście tysięcy \",IF(A7=9,\"dziewiętnaście tysięcy \",\"\"))))","v":{"$error":"#VALUE!"}},null,{"$f":"IF(A6=1,IF(C7,G7,IF(D7,H7)),IF(C7,E7,IF(D7,F7,\"\")))","v":{"$error":"#VALUE!"}}]
[{"$f":"INT(A$1/100)-10*A7-100*A6-1000*A5-10000*A4-100000*A3","v":{"$error":"#VALUE!"}},null,{"$error":"#VALUE!"},{"$error":"#VALUE!"},{"$f":"IF(A8=0,\"\",IF(A8=1,\"sto \",IF(A8=2,\"dwieście \",IF(A8=3,\"trzysta \",IF(A8=4,\"czterysta \",IF(A8=5,\"pięćset \",\"\"))))))","v":{"$error":"#VALUE!"}},{"$f":"IF(A8=6,\"sześćset \",IF(A8=7,\"siedemset \",IF(A8=8,\"osiemset \",IF(A8=9,\"dziewięćset \",\"\"))))","v":{"$error":"#VALUE!"}},null,null,null,{"$f":"IF(C8,E8&I8,IF(D8,F8&I8,\"\"))","v":{"$error":"#VALUE!"}}]
[{"$f":"INT(A$1/10)-10*A8-100*A7-1000*A6-10000*A5-100000*A4-1000000*A3","v":{"$error":"#VALUE!"}},null,{"$error":"#VALUE!"},{"$error":"#VALUE!"},{"$f":"IF(A9=0,\"\",IF(A9=1,IF(A10=0,\"dziesięć \",\"\"),IF(A9=2,\"dwadzieścia \",IF(A9=3,\"trzydzieści \",IF(A9=4,\"czterdzieści \",IF(A9=5,\"pięćdziesiąt \",\"\"))))))","v":{"$error":"#VALUE!"}},{"$f":"IF(A9=6,\"sześćdziesiąt \",IF(A9=7,\"siedemdziesiąt \",IF(A9=8,\"osiemdziesiąt \",IF(A9=9,\"dziewięćdziesiąt \",\"\"))))","v":{"$error":"#VALUE!"}},null,null,null,{"$f":"IF(C9,E9&I9,IF(D9,F9&I9,\"\"))","v":{"$error":"#VALUE!"}}]
[{"$f":"INT(A$1)-10*A9-100*A8-1000*A7-10000*A6-100000*A5-1000000*A4-10000000*A3","v":{"$error":"#VALUE!"}},null,{"$error":"#VALUE!"},{"$error":"#VALUE!"},{"$f":"IF(A10=0,\"\",IF(A10=1,\"jeden \",IF(A10=2,\"dwa \",IF(A10=3,\"trzy \",IF(A10=4,\"cztery \",IF(A10=5,\"pięć \",\"\"))))))","v":{"$error":"#VALUE!"}},{"$f":"IF(A10=6,\"sześć \",IF(A10=7,\"siedem \",IF(A10=8,\"osiem \",IF(A10=9,\"dziewięć \",\"\"))))","v":{"$error":"#VALUE!"}},{"$f":"IF(A10=0,\"\",IF(A10=1,\"jedenaście \",IF(A10=2,\"dwanaście \",IF(A10=3,\"trzynaście \",IF(A10=4,\"czternaście \",IF(A10=5,\"piętnaście \",\"\"))))))","v":{"$error":"#VALUE!"}},{"$f":"IF(A10=6,\"szesnaście \",IF(A10=7,\"siedemnaście \",IF(A10=8,\"osiemnaście \",IF(A10=9,\"dziewiętnaście \",\"\"))))","v":{"$error":"#VALUE!"}},null,{"$f":"IF(A9=1,IF(C10,G10,IF(D10,H10)),IF(C10,E10,IF(D10,F10,\"\")))","v":{"$error":"#VALUE!"}}]
[{"$f":"ROUND((A1-TRUNC(A1,0))*100,0)","v":{"$error":"#VALUE!"}},null,null,null,null,null,null,null,null,{"$f":"\"zł \"&TEXT(A11,\"00\")&\"/100\"","v":{"$error":"#VALUE!"}}]
[null,null,null,null,"Słownie:"]
[{"$f":"TRUNC(A1,1)","v":{"$error":"#VALUE!"}},null,null,null,{"$f":"J3&J4&J5&J6&J7&J8&J9&J10&J11","v":{"$error":"#VALUE!"}}]

{"sheet":"zad2","index":10,"n_rows":13,"n_cols":10,"rows_kept":13,"cut":false,"hidden":true,"merged":[[0,6,0,7]]}
[{"$f":"'Załącznik 7 - F.O. Zad 6-10'!D22","v":"Wykonawca nie składa oferty"},null,null,null,null,null,"jeżeli \"naście\""]
[null,null,"0-5","6-9","0-5","6-9","0-5","6-9","dodatek","sumuj te ciągi"]
[{"$f":"INT(A$1/10000000)","v":{"$error":"#VALUE!"}},null,{"$f":"IF(AND(A3>=0,A3<=5),1,0)","v":{"$error":"#VALUE!"}},{"$f":"IF(AND(A3>=6,A3<=9),1,0)","v":{"$error":"#VALUE!"}},{"$f":"IF(A3=0,\"\",IF(A3=1,IF(A4=0,\"dziesięć milionów \",\"\"),IF(A3=2,\"dwadzieścia \",IF(A3=3,\"trzydzieści \",IF(A3=4,\"czterdzieści \",IF(A3=5,\"pięćdziesiąt \",\"\"))))))","v":{"$error":"#VALUE!"}},{"$f":"IF(A3=6,\"sześćdziesiąt \",IF(A3=7,\"siedemdziesiąt \",IF(A3=8,\"osiemdziesiąt \",IF(A3=9,\"dziewięćdziesiąt \",\"\"))))","v":{"$error":"#VALUE!"}},null,null,null,{"$f":"IF(C3,E3&I3,IF(D3,F3&I3,\"\"))","v":{"$error":"#VALUE!"}}]
[{"$f":"INT(A$1/1000000)-A3*10","v":{"$error":"#VALUE!"}},null,{"$error":"#VALUE!"},{"$error":"#VALUE!"},{"$f":"IF(A4=0,IF(AND(A3<>0,A3<>1),\"milionów \",\"\"),IF(A4=1,IF(A3=0,\"jeden milion \",\"jeden milionów \"),IF(A4=2,\"dwa miliony \",IF(A4=3,\"trzy miliony \",IF(A4=4,\"cztery miliony \",IF(A4=5,\"pięć milionów \",\"\"))))))","v":{"$error":"#VALUE!"}},{"$f":"IF(A4=6,\"sześć milionów \",IF(A4=7,\"siedem milionów \",IF(A4=8,\"osiem milionów \",IF(A4=9,\"dziewięć milionów \",\"\"))))","v":{"$error":"#VALUE!"}},{"$f":"IF(A4=0,\"\",IF(A4=1,\"jedenaście milionów \",IF(A4=2,\"dwanaście milionów \",IF(A4=3,\"trzynaście milionów \",IF(A4=4,\"czternaście milionów \",IF(A4=5,\"piętnaście milionów \",\"\"))))))","v":{"$error":"#VALUE!"}},{"$f":"IF(A4=6,\"szesnaście milionów \",IF(A4=7,\"siedemnaście milionów \",IF(A4=8,\"osiemnaście milionów \",IF(A4=9,\"dziewiętnaście milionów \",\"\"))))","v":{"$error":"#VALUE!"}},null,{"$f":"IF(A3=1,IF(C4,G4,IF(D4,H4)),IF(C4,E4,IF(D4,F4,\"\")))","v":{"$error":"#VALUE!"}}]
[{"$f":"INT(A$1/100000)-10*A4-100*A3","v":{"$error":"#VALUE!"}},null,{"$error":"#VALUE!"},{"$error":"#VALUE!"},{"$f":"IF(A5=0,\"\",IF(A5=1,\"sto \",IF(A5=2,\"dwieście \",IF(A5=3,\"trzysta \",IF(A5=4,\"czterysta \",IF(A5=5,\"pięćset \",\"\"))))))","v":{"$error":"#VALUE!"}},{"$f":"IF(A5=6,\"sześćset \",IF(A5=7,\"siedemset \",IF(A5=8,\"osiemset \",IF(A5=9,\"dziewięćset \",\"\"))))","v":{"$error":"#VALUE!"}},null,null,null,{"$f":"IF(C5,E5&I5,IF(D5,F5&I5,\"\"))","v":{"$error":"#VALUE!"}}]
[{"$f":"INT(A$1/10000)-10*A5-100*A4-1000*A3","v":{"$error":"#VALUE!"}},null,{"$error":"#VALUE!"},{"$error":"#VALUE!"},{"$f":"IF(A6=0,\"\",IF(A6=1,IF(A7=0,\"dziesięć tysięcy \",\"\"),IF(A6=2,\"dwadzieścia \",IF(A6=3,\"trzydzieści \",IF(A6=4,\"czterdzieści \",IF(A6=5,\"pięćdziesiąt \",\"\"))))))","v":{"$error":"#VALUE!"}},{"$f":"IF(A6=6,\"sześćdziesiąt \",IF(A6=7,\"siedemdziesiąt \",IF(A6=8,\"osiemdziesiąt \",IF(A6=9,\"dziewięćdziesiąt \",\"\"))))","v":{"$error":"#VALUE!"}},null,null,null,{"$f":"IF(C6,E6&I6,IF(D6,F6&I6,\"\"))","v":{"$error":"#VALUE!"}}]
[{"$f":"INT(A$1/1000)-10*A6-100*A5-1000*A4-10000*A3","v":{"$error":"#VALUE!"}},null,{"$error":"#VALUE!"},{"$error":"#VALUE!"},{"$f":"IF(A7=0,IF(OR(AND(A6<>0,A6<>1),AND(A5<>0,A6=0)),\"tysięcy \",\"\"),IF(A7=1,IF(AND(A5=0,A6=0),\"jeden tysiąc \",\"jeden tysięcy \"),IF(A7=2,\"dwa tysiące \",IF(A7=3,\"trzy tysiące \",IF(A7=4,\"cztery tysiące \",IF(A7=5,\"pięć tysięcy \",\"\"))))))","v":{"$error":"#VALUE!"}},{"$f":"IF(A7=6,\"sześć tysięcy \",IF(A7=7,\"siedem tysięcy \",IF(A7=8,\"osiem tysięcy \",IF(A7=9,\"dziewięć tysięcy \",\"\"))))","v":{"$error":"#VALUE!"}},{"$f":"IF(A7=0,\"\",IF(A7=1,\"jedenaście tysięcy \",IF(A7=2,\"dwanaście tysięcy \",IF(A7=3,\"trzynaście tysięcy \",IF(A7=4,\"czternaście tysięcy \",IF(A7=5,\"piętnaście tysięcy \",\"\"))))))","v":{"$error":"#VALUE!"}},{"$f":"IF(A7=6,\"szesnaście tysięcy \",IF(A7=7,\"siedemnaście tysięcy \",IF(A7=8,\"osiemnaście tysięcy \",IF(A7=9,\"dziewiętnaście tysięcy \",\"\"))))","v":{"$error":"#VALUE!"}},null,{"$f":"IF(A6=1,IF(C7,G7,IF(D7,H7)),IF(C7,E7,IF(D7,F7,\"\")))","v":{"$error":"#VALUE!"}}]
[{"$f":"INT(A$1/100)-10*A7-100*A6-1000*A5-10000*A4-100000*A3","v":{"$error":"#VALUE!"}},null,{"$error":"#VALUE!"},{"$error":"#VALUE!"},{"$f":"IF(A8=0,\"\",IF(A8=1,\"sto \",IF(A8=2,\"dwieście \",IF(A8=3,\"trzysta \",IF(A8=4,\"czterysta \",IF(A8=5,\"pięćset \",\"\"))))))","v":{"$error":"#VALUE!"}},{"$f":"IF(A8=6,\"sześćset \",IF(A8=7,\"siedemset \",IF(A8=8,\"osiemset \",IF(A8=9,\"dziewięćset \",\"\"))))","v":{"$error":"#VALUE!"}},null,null,null,{"$f":"IF(C8,E8&I8,IF(D8,F8&I8,\"\"))","v":{"$error":"#VALUE!"}}]
[{"$f":"INT(A$1/10)-10*A8-100*A7-1000*A6-10000*A5-100000*A4-1000000*A3","v":{"$error":"#VALUE!"}},null,{"$error":"#VALUE!"},{"$error":"#VALUE!"},{"$f":"IF(A9=0,\"\",IF(A9=1,IF(A10=0,\"dziesięć \",\"\"),IF(A9=2,\"dwadzieścia \",IF(A9=3,\"trzydzieści \",IF(A9=4,\"czterdzieści \",IF(A9=5,\"pięćdziesiąt \",\"\"))))))","v":{"$error":"#VALUE!"}},{"$f":"IF(A9=6,\"sześćdziesiąt \",IF(A9=7,\"siedemdziesiąt \",IF(A9=8,\"osiemdziesiąt \",IF(A9=9,\"dziewięćdziesiąt \",\"\"))))","v":{"$error":"#VALUE!"}},null,null,null,{"$f":"IF(C9,E9&I9,IF(D9,F9&I9,\"\"))","v":{"$error":"#VALUE!"}}]
[{"$f":"INT(A$1)-10*A9-100*A8-1000*A7-10000*A6-100000*A5-1000000*A4-10000000*A3","v":{"$error":"#VALUE!"}},null,{"$error":"#VALUE!"},{"$error":"#VALUE!"},{"$f":"IF(A10=0,\"\",IF(A10=1,\"jeden \",IF(A10=2,\"dwa \",IF(A10=3,\"trzy \",IF(A10=4,\"cztery \",IF(A10=5,\"pięć \",\"\"))))))","v":{"$error":"#VALUE!"}},{"$f":"IF(A10=6,\"sześć \",IF(A10=7,\"siedem \",IF(A10=8,\"osiem \",IF(A10=9,\"dziewięć \",\"\"))))","v":{"$error":"#VALUE!"}},{"$f":"IF(A10=0,\"\",IF(A10=1,\"jedenaście \",IF(A10=2,\"dwanaście \",IF(A10=3,\"trzynaście \",IF(A10=4,\"czternaście \",IF(A10=5,\"piętnaście \",\"\"))))))","v":{"$error":"#VALUE!"}},{"$f":"IF(A10=6,\"szesnaście \",IF(A10=7,\"siedemnaście \",IF(A10=8,\"osiemnaście \",IF(A10=9,\"dziewiętnaście \",\"\"))))","v":{"$error":"#VALUE!"}},null,{"$f":"IF(A9=1,IF(C10,G10,IF(D10,H10)),IF(C10,E10,IF(D10,F10,\"\")))","v":{"$error":"#VALUE!"}}]
[{"$f":"ROUND((A1-TRUNC(A1,0))*100,0)","v":{"$error":"#VALUE!"}},null,null,null,null,null,null,null,null,{"$f":"\"zł \"&TEXT(A11,\"00\")&\"/100\"","v":{"$error":"#VALUE!"}}]
[null,null,null,null,"Słownie:"]
[{"$f":"TRUNC(A1,1)","v":{"$error":"#VALUE!"}},null,null,null,{"$f":"J3&J4&J5&J6&J7&J8&J9&J10&J11","v":{"$error":"#VALUE!"}}]

{"sheet":"zad3","index":11,"n_rows":13,"n_cols":10,"rows_kept":13,"cut":false,"hidden":true,"merged":[[0,6,0,7]]}
[{"$f":"'Załącznik 7 - F.O. Zad 6-10'!D25","v":"Wykonawca nie składa oferty"},null,null,null,null,null,"jeżeli \"naście\""]
[null,null,"0-5","6-9","0-5","6-9","0-5","6-9","dodatek","sumuj te ciągi"]
[{"$f":"INT(A$1/10000000)","v":{"$error":"#VALUE!"}},null,{"$f":"IF(AND(A3>=0,A3<=5),1,0)","v":{"$error":"#VALUE!"}},{"$f":"IF(AND(A3>=6,A3<=9),1,0)","v":{"$error":"#VALUE!"}},{"$f":"IF(A3=0,\"\",IF(A3=1,IF(A4=0,\"dziesięć milionów \",\"\"),IF(A3=2,\"dwadzieścia \",IF(A3=3,\"trzydzieści \",IF(A3=4,\"czterdzieści \",IF(A3=5,\"pięćdziesiąt \",\"\"))))))","v":{"$error":"#VALUE!"}},{"$f":"IF(A3=6,\"sześćdziesiąt \",IF(A3=7,\"siedemdziesiąt \",IF(A3=8,\"osiemdziesiąt \",IF(A3=9,\"dziewięćdziesiąt \",\"\"))))","v":{"$error":"#VALUE!"}},null,null,null,{"$f":"IF(C3,E3&I3,IF(D3,F3&I3,\"\"))","v":{"$error":"#VALUE!"}}]
[{"$f":"INT(A$1/1000000)-A3*10","v":{"$error":"#VALUE!"}},null,{"$error":"#VALUE!"},{"$error":"#VALUE!"},{"$f":"IF(A4=0,IF(AND(A3<>0,A3<>1),\"milionów \",\"\"),IF(A4=1,IF(A3=0,\"jeden milion \",\"jeden milionów \"),IF(A4=2,\"dwa miliony \",IF(A4=3,\"trzy miliony \",IF(A4=4,\"cztery miliony \",IF(A4=5,\"pięć milionów \",\"\"))))))","v":{"$error":"#VALUE!"}},{"$f":"IF(A4=6,\"sześć milionów \",IF(A4=7,\"siedem milionów \",IF(A4=8,\"osiem milionów \",IF(A4=9,\"dziewięć milionów \",\"\"))))","v":{"$error":"#VALUE!"}},{"$f":"IF(A4=0,\"\",IF(A4=1,\"jedenaście milionów \",IF(A4=2,\"dwanaście milionów \",IF(A4=3,\"trzynaście milionów \",IF(A4=4,\"czternaście milionów \",IF(A4=5,\"piętnaście milionów \",\"\"))))))","v":{"$error":"#VALUE!"}},{"$f":"IF(A4=6,\"szesnaście milionów \",IF(A4=7,\"siedemnaście milionów \",IF(A4=8,\"osiemnaście milionów \",IF(A4=9,\"dziewiętnaście milionów \",\"\"))))","v":{"$error":"#VALUE!"}},null,{"$f":"IF(A3=1,IF(C4,G4,IF(D4,H4)),IF(C4,E4,IF(D4,F4,\"\")))","v":{"$error":"#VALUE!"}}]
[{"$f":"INT(A$1/100000)-10*A4-100*A3","v":{"$error":"#VALUE!"}},null,{"$error":"#VALUE!"},{"$error":"#VALUE!"},{"$f":"IF(A5=0,\"\",IF(A5=1,\"sto \",IF(A5=2,\"dwieście \",IF(A5=3,\"trzysta \",IF(A5=4,\"czterysta \",IF(A5=5,\"pięćset \",\"\"))))))","v":{"$error":"#VALUE!"}},{"$f":"IF(A5=6,\"sześćset \",IF(A5=7,\"siedemset \",IF(A5=8,\"osiemset \",IF(A5=9,\"dziewięćset \",\"\"))))","v":{"$error":"#VALUE!"}},null,null,null,{"$f":"IF(C5,E5&I5,IF(D5,F5&I5,\"\"))","v":{"$error":"#VALUE!"}}]
[{"$f":"INT(A$1/10000)-10*A5-100*A4-1000*A3","v":{"$error":"#VALUE!"}},null,{"$error":"#VALUE!"},{"$error":"#VALUE!"},{"$f":"IF(A6=0,\"\",IF(A6=1,IF(A7=0,\"dziesięć tysięcy \",\"\"),IF(A6=2,\"dwadzieścia \",IF(A6=3,\"trzydzieści \",IF(A6=4,\"czterdzieści \",IF(A6=5,\"pięćdziesiąt \",\"\"))))))","v":{"$error":"#VALUE!"}},{"$f":"IF(A6=6,\"sześćdziesiąt \",IF(A6=7,\"siedemdziesiąt \",IF(A6=8,\"osiemdziesiąt \",IF(A6=9,\"dziewięćdziesiąt \",\"\"))))","v":{"$error":"#VALUE!"}},null,null,null,{"$f":"IF(C6,E6&I6,IF(D6,F6&I6,\"\"))","v":{"$error":"#VALUE!"}}]
[{"$f":"INT(A$1/1000)-10*A6-100*A5-1000*A4-10000*A3","v":{"$error":"#VALUE!"}},null,{"$error":"#VALUE!"},{"$error":"#VALUE!"},{"$f":"IF(A7=0,IF(OR(AND(A6<>0,A6<>1),AND(A5<>0,A6=0)),\"tysięcy \",\"\"),IF(A7=1,IF(AND(A5=0,A6=0),\"jeden tysiąc \",\"jeden tysięcy \"),IF(A7=2,\"dwa tysiące \",IF(A7=3,\"trzy tysiące \",IF(A7=4,\"cztery tysiące \",IF(A7=5,\"pięć tysięcy \",\"\"))))))","v":{"$error":"#VALUE!"}},{"$f":"IF(A7=6,\"sześć tysięcy \",IF(A7=7,\"siedem tysięcy \",IF(A7=8,\"osiem tysięcy \",IF(A7=9,\"dziewięć tysięcy \",\"\"))))","v":{"$error":"#VALUE!"}},{"$f":"IF(A7=0,\"\",IF(A7=1,\"jedenaście tysięcy \",IF(A7=2,\"dwanaście tysięcy \",IF(A7=3,\"trzynaście tysięcy \",IF(A7=4,\"czternaście tysięcy \",IF(A7=5,\"piętnaście tysięcy \",\"\"))))))","v":{"$error":"#VALUE!"}},{"$f":"IF(A7=6,\"szesnaście tysięcy \",IF(A7=7,\"siedemnaście tysięcy \",IF(A7=8,\"osiemnaście tysięcy \",IF(A7=9,\"dziewiętnaście tysięcy \",\"\"))))","v":{"$error":"#VALUE!"}},null,{"$f":"IF(A6=1,IF(C7,G7,IF(D7,H7)),IF(C7,E7,IF(D7,F7,\"\")))","v":{"$error":"#VALUE!"}}]
[{"$f":"INT(A$1/100)-10*A7-100*A6-1000*A5-10000*A4-100000*A3","v":{"$error":"#VALUE!"}},null,{"$error":"#VALUE!"},{"$error":"#VALUE!"},{"$f":"IF(A8=0,\"\",IF(A8=1,\"sto \",IF(A8=2,\"dwieście \",IF(A8=3,\"trzysta \",IF(A8=4,\"czterysta \",IF(A8=5,\"pięćset \",\"\"))))))","v":{"$error":"#VALUE!"}},{"$f":"IF(A8=6,\"sześćset \",IF(A8=7,\"siedemset \",IF(A8=8,\"osiemset \",IF(A8=9,\"dziewięćset \",\"\"))))","v":{"$error":"#VALUE!"}},null,null,null,{"$f":"IF(C8,E8&I8,IF(D8,F8&I8,\"\"))","v":{"$error":"#VALUE!"}}]
[{"$f":"INT(A$1/10)-10*A8-100*A7-1000*A6-10000*A5-100000*A4-1000000*A3","v":{"$error":"#VALUE!"}},null,{"$error":"#VALUE!"},{"$error":"#VALUE!"},{"$f":"IF(A9=0,\"\",IF(A9=1,IF(A10=0,\"dziesięć \",\"\"),IF(A9=2,\"dwadzieścia \",IF(A9=3,\"trzydzieści \",IF(A9=4,\"czterdzieści \",IF(A9=5,\"pięćdziesiąt \",\"\"))))))","v":{"$error":"#VALUE!"}},{"$f":"IF(A9=6,\"sześćdziesiąt \",IF(A9=7,\"siedemdziesiąt \",IF(A9=8,\"osiemdziesiąt \",IF(A9=9,\"dziewięćdziesiąt \",\"\"))))","v":{"$error":"#VALUE!"}},null,null,null,{"$f":"IF(C9,E9&I9,IF(D9,F9&I9,\"\"))","v":{"$error":"#VALUE!"}}]
[{"$f":"INT(A$1)-10*A9-100*A8-1000*A7-10000*A6-100000*A5-1000000*A4-10000000*A3","v":{"$error":"#VALUE!"}},null,{"$error":"#VALUE!"},{"$error":"#VALUE!"},{"$f":"IF(A10=0,\"\",IF(A10=1,\"jeden \",IF(A10=2,\"dwa \",IF(A10=3,\"trzy \",IF(A10=4,\"cztery \",IF(A10=5,\"pięć \",\"\"))))))","v":{"$error":"#VALUE!"}},{"$f":"IF(A10=6,\"sześć \",IF(A10=7,\"siedem \",IF(A10=8,\"osiem \",IF(A10=9,\"dziewięć \",\"\"))))","v":{"$error":"#VALUE!"}},{"$f":"IF(A10=0,\"\",IF(A10=1,\"jedenaście \",IF(A10=2,\"dwanaście \",IF(A10=3,\"trzynaście \",IF(A10=4,\"czternaście \",IF(A10=5,\"piętnaście \",\"\"))))))","v":{"$error":"#VALUE!"}},{"$f":"IF(A10=6,\"szesnaście \",IF(A10=7,\"siedemnaście \",IF(A10=8,\"osiemnaście \",IF(A10=9,\"dziewiętnaście \",\"\"))))","v":{"$error":"#VALUE!"}},null,{"$f":"IF(A9=1,IF(C10,G10,IF(D10,H10)),IF(C10,E10,IF(D10,F10,\"\")))","v":{"$error":"#VALUE!"}}]
[{"$f":"ROUND((A1-TRUNC(A1,0))*100,0)","v":{"$error":"#VALUE!"}},null,null,null,null,null,null,null,null,{"$f":"\"zł \"&TEXT(A11,\"00\")&\"/100\"","v":{"$error":"#VALUE!"}}]
[null,null,null,null,"Słownie:"]
[{"$f":"TRUNC(A1,1)","v":{"$error":"#VALUE!"}},null,null,null,{"$f":"J3&J4&J5&J6&J7&J8&J9&J10&J11","v":{"$error":"#VALUE!"}}]

{"sheet":"zad4","index":12,"n_rows":13,"n_cols":10,"rows_kept":13,"cut":false,"hidden":true,"merged":[[0,6,0,7]]}
[{"$f":"'Załącznik 7 - F.O. Zad 6-10'!D28","v":"Wykonawca nie składa oferty"},null,null,null,null,null,"jeżeli \"naście\""]
[null,null,"0-5","6-9","0-5","6-9","0-5","6-9","dodatek","sumuj te ciągi"]
[{"$f":"INT(A$1/10000000)","v":{"$error":"#VALUE!"}},null,{"$f":"IF(AND(A3>=0,A3<=5),1,0)","v":{"$error":"#VALUE!"}},{"$f":"IF(AND(A3>=6,A3<=9),1,0)","v":{"$error":"#VALUE!"}},{"$f":"IF(A3=0,\"\",IF(A3=1,IF(A4=0,\"dziesięć milionów \",\"\"),IF(A3=2,\"dwadzieścia \",IF(A3=3,\"trzydzieści \",IF(A3=4,\"czterdzieści \",IF(A3=5,\"pięćdziesiąt \",\"\"))))))","v":{"$error":"#VALUE!"}},{"$f":"IF(A3=6,\"sześćdziesiąt \",IF(A3=7,\"siedemdziesiąt \",IF(A3=8,\"osiemdziesiąt \",IF(A3=9,\"dziewięćdziesiąt \",\"\"))))","v":{"$error":"#VALUE!"}},null,null,null,{"$f":"IF(C3,E3&I3,IF(D3,F3&I3,\"\"))","v":{"$error":"#VALUE!"}}]
[{"$f":"INT(A$1/1000000)-A3*10","v":{"$error":"#VALUE!"}},null,{"$error":"#VALUE!"},{"$error":"#VALUE!"},{"$f":"IF(A4=0,IF(AND(A3<>0,A3<>1),\"milionów \",\"\"),IF(A4=1,IF(A3=0,\"jeden milion \",\"jeden milionów \"),IF(A4=2,\"dwa miliony \",IF(A4=3,\"trzy miliony \",IF(A4=4,\"cztery miliony \",IF(A4=5,\"pięć milionów \",\"\"))))))","v":{"$error":"#VALUE!"}},{"$f":"IF(A4=6,\"sześć milionów \",IF(A4=7,\"siedem milionów \",IF(A4=8,\"osiem milionów \",IF(A4=9,\"dziewięć milionów \",\"\"))))","v":{"$error":"#VALUE!"}},{"$f":"IF(A4=0,\"\",IF(A4=1,\"jedenaście milionów \",IF(A4=2,\"dwanaście milionów \",IF(A4=3,\"trzynaście milionów \",IF(A4=4,\"czternaście milionów \",IF(A4=5,\"piętnaście milionów \",\"\"))))))","v":{"$error":"#VALUE!"}},{"$f":"IF(A4=6,\"szesnaście milionów \",IF(A4=7,\"siedemnaście milionów \",IF(A4=8,\"osiemnaście milionów \",IF(A4=9,\"dziewiętnaście milionów \",\"\"))))","v":{"$error":"#VALUE!"}},null,{"$f":"IF(A3=1,IF(C4,G4,IF(D4,H4)),IF(C4,E4,IF(D4,F4,\"\")))","v":{"$error":"#VALUE!"}}]
[{"$f":"INT(A$1/100000)-10*A4-100*A3","v":{"$error":"#VALUE!"}},null,{"$error":"#VALUE!"},{"$error":"#VALUE!"},{"$f":"IF(A5=0,\"\",IF(A5=1,\"sto \",IF(A5=2,\"dwieście \",IF(A5=3,\"trzysta \",IF(A5=4,\"czterysta \",IF(A5=5,\"pięćset \",\"\"))))))","v":{"$error":"#VALUE!"}},{"$f":"IF(A5=6,\"sześćset \",IF(A5=7,\"siedemset \",IF(A5=8,\"osiemset \",IF(A5=9,\"dziewięćset \",\"\"))))","v":{"$error":"#VALUE!"}},null,null,null,{"$f":"IF(C5,E5&I5,IF(D5,F5&I5,\"\"))","v":{"$error":"#VALUE!"}}]
[{"$f":"INT(A$1/10000)-10*A5-100*A4-1000*A3","v":{"$error":"#VALUE!"}},null,{"$error":"#VALUE!"},{"$error":"#VALUE!"},{"$f":"IF(A6=0,\"\",IF(A6=1,IF(A7=0,\"dziesięć tysięcy \",\"\"),IF(A6=2,\"dwadzieścia \",IF(A6=3,\"trzydzieści \",IF(A6=4,\"czterdzieści \",IF(A6=5,\"pięćdziesiąt \",\"\"))))))","v":{"$error":"#VALUE!"}},{"$f":"IF(A6=6,\"sześćdziesiąt \",IF(A6=7,\"siedemdziesiąt \",IF(A6=8,\"osiemdziesiąt \",IF(A6=9,\"dziewięćdziesiąt \",\"\"))))","v":{"$error":"#VALUE!"}},null,null,null,{"$f":"IF(C6,E6&I6,IF(D6,F6&I6,\"\"))","v":{"$error":"#VALUE!"}}]
[{"$f":"INT(A$1/1000)-10*A6-100*A5-1000*A4-10000*A3","v":{"$error":"#VALUE!"}},null,{"$error":"#VALUE!"},{"$error":"#VALUE!"},{"$f":"IF(A7=0,IF(OR(AND(A6<>0,A6<>1),AND(A5<>0,A6=0)),\"tysięcy \",\"\"),IF(A7=1,IF(AND(A5=0,A6=0),\"jeden tysiąc \",\"jeden tysięcy \"),IF(A7=2,\"dwa tysiące \",IF(A7=3,\"trzy tysiące \",IF(A7=4,\"cztery tysiące \",IF(A7=5,\"pięć tysięcy \",\"\"))))))","v":{"$error":"#VALUE!"}},{"$f":"IF(A7=6,\"sześć tysięcy \",IF(A7=7,\"siedem tysięcy \",IF(A7=8,\"osiem tysięcy \",IF(A7=9,\"dziewięć tysięcy \",\"\"))))","v":{"$error":"#VALUE!"}},{"$f":"IF(A7=0,\"\",IF(A7=1,\"jedenaście tysięcy \",IF(A7=2,\"dwanaście tysięcy \",IF(A7=3,\"trzynaście tysięcy \",IF(A7=4,\"czternaście tysięcy \",IF(A7=5,\"piętnaście tysięcy \",\"\"))))))","v":{"$error":"#VALUE!"}},{"$f":"IF(A7=6,\"szesnaście tysięcy \",IF(A7=7,\"siedemnaście tysięcy \",IF(A7=8,\"osiemnaście tysięcy \",IF(A7=9,\"dziewiętnaście tysięcy \",\"\"))))","v":{"$error":"#VALUE!"}},null,{"$f":"IF(A6=1,IF(C7,G7,IF(D7,H7)),IF(C7,E7,IF(D7,F7,\"\")))","v":{"$error":"#VALUE!"}}]
[{"$f":"INT(A$1/100)-10*A7-100*A6-1000*A5-10000*A4-100000*A3","v":{"$error":"#VALUE!"}},null,{"$error":"#VALUE!"},{"$error":"#VALUE!"},{"$f":"IF(A8=0,\"\",IF(A8=1,\"sto \",IF(A8=2,\"dwieście \",IF(A8=3,\"trzysta \",IF(A8=4,\"czterysta \",IF(A8=5,\"pięćset \",\"\"))))))","v":{"$error":"#VALUE!"}},{"$f":"IF(A8=6,\"sześćset \",IF(A8=7,\"siedemset \",IF(A8=8,\"osiemset \",IF(A8=9,\"dziewięćset \",\"\"))))","v":{"$error":"#VALUE!"}},null,null,null,{"$f":"IF(C8,E8&I8,IF(D8,F8&I8,\"\"))","v":{"$error":"#VALUE!"}}]
[{"$f":"INT(A$1/10)-10*A8-100*A7-1000*A6-10000*A5-100000*A4-1000000*A3","v":{"$error":"#VALUE!"}},null,{"$error":"#VALUE!"},{"$error":"#VALUE!"},{"$f":"IF(A9=0,\"\",IF(A9=1,IF(A10=0,\"dziesięć \",\"\"),IF(A9=2,\"dwadzieścia \",IF(A9=3,\"trzydzieści \",IF(A9=4,\"czterdzieści \",IF(A9=5,\"pięćdziesiąt \",\"\"))))))","v":{"$error":"#VALUE!"}},{"$f":"IF(A9=6,\"sześćdziesiąt \",IF(A9=7,\"siedemdziesiąt \",IF(A9=8,\"osiemdziesiąt \",IF(A9=9,\"dziewięćdziesiąt \",\"\"))))","v":{"$error":"#VALUE!"}},null,null,null,{"$f":"IF(C9,E9&I9,IF(D9,F9&I9,\"\"))","v":{"$error":"#VALUE!"}}]
[{"$f":"INT(A$1)-10*A9-100*A8-1000*A7-10000*A6-100000*A5-1000000*A4-10000000*A3","v":{"$error":"#VALUE!"}},null,{"$error":"#VALUE!"},{"$error":"#VALUE!"},{"$f":"IF(A10=0,\"\",IF(A10=1,\"jeden \",IF(A10=2,\"dwa \",IF(A10=3,\"trzy \",IF(A10=4,\"cztery \",IF(A10=5,\"pięć \",\"\"))))))","v":{"$error":"#VALUE!"}},{"$f":"IF(A10=6,\"sześć \",IF(A10=7,\"siedem \",IF(A10=8,\"osiem \",IF(A10=9,\"dziewięć \",\"\"))))","v":{"$error":"#VALUE!"}},{"$f":"IF(A10=0,\"\",IF(A10=1,\"jedenaście \",IF(A10=2,\"dwanaście \",IF(A10=3,\"trzynaście \",IF(A10=4,\"czternaście \",IF(A10=5,\"piętnaście \",\"\"))))))","v":{"$error":"#VALUE!"}},{"$f":"IF(A10=6,\"szesnaście \",IF(A10=7,\"siedemnaście \",IF(A10=8,\"osiemnaście \",IF(A10=9,\"dziewiętnaście \",\"\"))))","v":{"$error":"#VALUE!"}},null,{"$f":"IF(A9=1,IF(C10,G10,IF(D10,H10)),IF(C10,E10,IF(D10,F10,\"\")))","v":{"$error":"#VALUE!"}}]
[{"$f":"ROUND((A1-TRUNC(A1,0))*100,0)","v":{"$error":"#VALUE!"}},null,null,null,null,null,null,null,null,{"$f":"\"zł \"&TEXT(A11,\"00\")&\"/100\"","v":{"$error":"#VALUE!"}}]
[null,null,null,null,"Słownie:"]
[{"$f":"TRUNC(A1,1)","v":{"$error":"#VALUE!"}},null,null,null,{"$f":"J3&J4&J5&J6&J7&J8&J9&J10&J11","v":{"$error":"#VALUE!"}}]

{"sheet":"zad5","index":13,"n_rows":13,"n_cols":10,"rows_kept":13,"cut":false,"hidden":true,"merged":[[0,6,0,7]]}
[{"$f":"'Załącznik 7 - F.O. Zad 6-10'!D31","v":"Wykonawca nie składa oferty"},null,null,null,null,null,"jeżeli \"naście\""]
[null,null,"0-5","6-9","0-5","6-9","0-5","6-9","dodatek","sumuj te ciągi"]
[{"$f":"INT(A$1/10000000)","v":{"$error":"#VALUE!"}},null,{"$f":"IF(AND(A3>=0,A3<=5),1,0)","v":{"$error":"#VALUE!"}},{"$f":"IF(AND(A3>=6,A3<=9),1,0)","v":{"$error":"#VALUE!"}},{"$f":"IF(A3=0,\"\",IF(A3=1,IF(A4=0,\"dziesięć milionów \",\"\"),IF(A3=2,\"dwadzieścia \",IF(A3=3,\"trzydzieści \",IF(A3=4,\"czterdzieści \",IF(A3=5,\"pięćdziesiąt \",\"\"))))))","v":{"$error":"#VALUE!"}},{"$f":"IF(A3=6,\"sześćdziesiąt \",IF(A3=7,\"siedemdziesiąt \",IF(A3=8,\"osiemdziesiąt \",IF(A3=9,\"dziewięćdziesiąt \",\"\"))))","v":{"$error":"#VALUE!"}},null,null,null,{"$f":"IF(C3,E3&I3,IF(D3,F3&I3,\"\"))","v":{"$error":"#VALUE!"}}]
[{"$f":"INT(A$1/1000000)-A3*10","v":{"$error":"#VALUE!"}},null,{"$error":"#VALUE!"},{"$error":"#VALUE!"},{"$f":"IF(A4=0,IF(AND(A3<>0,A3<>1),\"milionów \",\"\"),IF(A4=1,IF(A3=0,\"jeden milion \",\"jeden milionów \"),IF(A4=2,\"dwa miliony \",IF(A4=3,\"trzy miliony \",IF(A4=4,\"cztery miliony \",IF(A4=5,\"pięć milionów \",\"\"))))))","v":{"$error":"#VALUE!"}},{"$f":"IF(A4=6,\"sześć milionów \",IF(A4=7,\"siedem milionów \",IF(A4=8,\"osiem milionów \",IF(A4=9,\"dziewięć milionów \",\"\"))))","v":{"$error":"#VALUE!"}},{"$f":"IF(A4=0,\"\",IF(A4=1,\"jedenaście milionów \",IF(A4=2,\"dwanaście milionów \",IF(A4=3,\"trzynaście milionów \",IF(A4=4,\"czternaście milionów \",IF(A4=5,\"piętnaście milionów \",\"\"))))))","v":{"$error":"#VALUE!"}},{"$f":"IF(A4=6,\"szesnaście milionów \",IF(A4=7,\"siedemnaście milionów \",IF(A4=8,\"osiemnaście milionów \",IF(A4=9,\"dziewiętnaście milionów \",\"\"))))","v":{"$error":"#VALUE!"}},null,{"$f":"IF(A3=1,IF(C4,G4,IF(D4,H4)),IF(C4,E4,IF(D4,F4,\"\")))","v":{"$error":"#VALUE!"}}]
[{"$f":"INT(A$1/100000)-10*A4-100*A3","v":{"$error":"#VALUE!"}},null,{"$error":"#VALUE!"},{"$error":"#VALUE!"},{"$f":"IF(A5=0,\"\",IF(A5=1,\"sto \",IF(A5=2,\"dwieście \",IF(A5=3,\"trzysta \",IF(A5=4,\"czterysta \",IF(A5=5,\"pięćset \",\"\"))))))","v":{"$error":"#VALUE!"}},{"$f":"IF(A5=6,\"sześćset \",IF(A5=7,\"siedemset \",IF(A5=8,\"osiemset \",IF(A5=9,\"dziewięćset \",\"\"))))","v":{"$error":"#VALUE!"}},null,null,null,{"$f":"IF(C5,E5&I5,IF(D5,F5&I5,\"\"))","v":{"$error":"#VALUE!"}}]
[{"$f":"INT(A$1/10000)-10*A5-100*A4-1000*A3","v":{"$error":"#VALUE!"}},null,{"$error":"#VALUE!"},{"$error":"#VALUE!"},{"$f":"IF(A6=0,\"\",IF(A6=1,IF(A7=0,\"dziesięć tysięcy \",\"\"),IF(A6=2,\"dwadzieścia \",IF(A6=3,\"trzydzieści \",IF(A6=4,\"czterdzieści \",IF(A6=5,\"pięćdziesiąt \",\"\"))))))","v":{"$error":"#VALUE!"}},{"$f":"IF(A6=6,\"sześćdziesiąt \",IF(A6=7,\"siedemdziesiąt \",IF(A6=8,\"osiemdziesiąt \",IF(A6=9,\"dziewięćdziesiąt \",\"\"))))","v":{"$error":"#VALUE!"}},null,null,null,{"$f":"IF(C6,E6&I6,IF(D6,F6&I6,\"\"))","v":{"$error":"#VALUE!"}}]
[{"$f":"INT(A$1/1000)-10*A6-100*A5-1000*A4-10000*A3","v":{"$error":"#VALUE!"}},null,{"$error":"#VALUE!"},{"$error":"#VALUE!"},{"$f":"IF(A7=0,IF(OR(AND(A6<>0,A6<>1),AND(A5<>0,A6=0)),\"tysięcy \",\"\"),IF(A7=1,IF(AND(A5=0,A6=0),\"jeden tysiąc \",\"jeden tysięcy \"),IF(A7=2,\"dwa tysiące \",IF(A7=3,\"trzy tysiące \",IF(A7=4,\"cztery tysiące \",IF(A7=5,\"pięć tysięcy \",\"\"))))))","v":{"$error":"#VALUE!"}},{"$f":"IF(A7=6,\"sześć tysięcy \",IF(A7=7,\"siedem tysięcy \",IF(A7=8,\"osiem tysięcy \",IF(A7=9,\"dziewięć tysięcy \",\"\"))))","v":{"$error":"#VALUE!"}},{"$f":"IF(A7=0,\"\",IF(A7=1,\"jedenaście tysięcy \",IF(A7=2,\"dwanaście tysięcy \",IF(A7=3,\"trzynaście tysięcy \",IF(A7=4,\"czternaście tysięcy \",IF(A7=5,\"piętnaście tysięcy \",\"\"))))))","v":{"$error":"#VALUE!"}},{"$f":"IF(A7=6,\"szesnaście tysięcy \",IF(A7=7,\"siedemnaście tysięcy \",IF(A7=8,\"osiemnaście tysięcy \",IF(A7=9,\"dziewiętnaście tysięcy \",\"\"))))","v":{"$error":"#VALUE!"}},null,{"$f":"IF(A6=1,IF(C7,G7,IF(D7,H7)),IF(C7,E7,IF(D7,F7,\"\")))","v":{"$error":"#VALUE!"}}]
[{"$f":"INT(A$1/100)-10*A7-100*A6-1000*A5-10000*A4-100000*A3","v":{"$error":"#VALUE!"}},null,{"$error":"#VALUE!"},{"$error":"#VALUE!"},{"$f":"IF(A8=0,\"\",IF(A8=1,\"sto \",IF(A8=2,\"dwieście \",IF(A8=3,\"trzysta \",IF(A8=4,\"czterysta \",IF(A8=5,\"pięćset \",\"\"))))))","v":{"$error":"#VALUE!"}},{"$f":"IF(A8=6,\"sześćset \",IF(A8=7,\"siedemset \",IF(A8=8,\"osiemset \",IF(A8=9,\"dziewięćset \",\"\"))))","v":{"$error":"#VALUE!"}},null,null,null,{"$f":"IF(C8,E8&I8,IF(D8,F8&I8,\"\"))","v":{"$error":"#VALUE!"}}]
[{"$f":"INT(A$1/10)-10*A8-100*A7-1000*A6-10000*A5-100000*A4-1000000*A3","v":{"$error":"#VALUE!"}},null,{"$error":"#VALUE!"},{"$error":"#VALUE!"},{"$f":"IF(A9=0,\"\",IF(A9=1,IF(A10=0,\"dziesięć \",\"\"),IF(A9=2,\"dwadzieścia \",IF(A9=3,\"trzydzieści \",IF(A9=4,\"czterdzieści \",IF(A9=5,\"pięćdziesiąt \",\"\"))))))","v":{"$error":"#VALUE!"}},{"$f":"IF(A9=6,\"sześćdziesiąt \",IF(A9=7,\"siedemdziesiąt \",IF(A9=8,\"osiemdziesiąt \",IF(A9=9,\"dziewięćdziesiąt \",\"\"))))","v":{"$error":"#VALUE!"}},null,null,null,{"$f":"IF(C9,E9&I9,IF(D9,F9&I9,\"\"))","v":{"$error":"#VALUE!"}}]
[{"$f":"INT(A$1)-10*A9-100*A8-1000*A7-10000*A6-100000*A5-1000000*A4-10000000*A3","v":{"$error":"#VALUE!"}},null,{"$error":"#VALUE!"},{"$error":"#VALUE!"},{"$f":"IF(A10=0,\"\",IF(A10=1,\"jeden \",IF(A10=2,\"dwa \",IF(A10=3,\"trzy \",IF(A10=4,\"cztery \",IF(A10=5,\"pięć \",\"\"))))))","v":{"$error":"#VALUE!"}},{"$f":"IF(A10=6,\"sześć \",IF(A10=7,\"siedem \",IF(A10=8,\"osiem \",IF(A10=9,\"dziewięć \",\"\"))))","v":{"$error":"#VALUE!"}},{"$f":"IF(A10=0,\"\",IF(A10=1,\"jedenaście \",IF(A10=2,\"dwanaście \",IF(A10=3,\"trzynaście \",IF(A10=4,\"czternaście \",IF(A10=5,\"piętnaście \",\"\"))))))","v":{"$error":"#VALUE!"}},{"$f":"IF(A10=6,\"szesnaście \",IF(A10=7,\"siedemnaście \",IF(A10=8,\"osiemnaście \",IF(A10=9,\"dziewiętnaście \",\"\"))))","v":{"$error":"#VALUE!"}},null,{"$f":"IF(A9=1,IF(C10,G10,IF(D10,H10)),IF(C10,E10,IF(D10,F10,\"\")))","v":{"$error":"#VALUE!"}}]
[{"$f":"ROUND((A1-TRUNC(A1,0))*100,0)","v":{"$error":"#VALUE!"}},null,null,null,null,null,null,null,null,{"$f":"\"zł \"&TEXT(A11,\"00\")&\"/100\"","v":{"$error":"#VALUE!"}}]
[null,null,null,null,"Słownie:"]
[{"$f":"TRUNC(A1,1)","v":{"$error":"#VALUE!"}},null,null,null,{"$f":"J3&J4&J5&J6&J7&J8&J9&J10&J11","v":{"$error":"#VALUE!"}}]

{"sheet":"zad6","index":14,"n_rows":13,"n_cols":10,"rows_kept":13,"cut":false,"hidden":true,"merged":[[0,6,0,7]]}
[{"$f":"'Załącznik 7 - F.O. Zad 6-10'!D34","v":0},null,null,null,null,null,"jeżeli \"naście\""]
[null,null,"0-5","6-9","0-5","6-9","0-5","6-9","dodatek","sumuj te ciągi"]
[{"$f":"INT(A$1/10000000)","v":0},null,{"$f":"IF(AND(A3>=0,A3<=5),1,0)","v":1},{"$f":"IF(AND(A3>=6,A3<=9),1,0)","v":0},{"$f":"IF(A3=0,\"\",IF(A3=1,IF(A4=0,\"dziesięć milionów \",\"\"),IF(A3=2,\"dwadzieścia \",IF(A3=3,\"trzydzieści \",IF(A3=4,\"czterdzieści \",IF(A3=5,\"pięćdziesiąt \",\"\"))))))","v":""},{"$f":"IF(A3=6,\"sześćdziesiąt \",IF(A3=7,\"siedemdziesiąt \",IF(A3=8,\"osiemdziesiąt \",IF(A3=9,\"dziewięćdziesiąt \",\"\"))))","v":""},null,null,null,{"$f":"IF(C3,E3&I3,IF(D3,F3&I3,\"\"))","v":""}]
[{"$f":"INT(A$1/1000000)-A3*10","v":0},null,1,0,{"$f":"IF(A4=0,IF(AND(A3<>0,A3<>1),\"milionów \",\"\"),IF(A4=1,IF(A3=0,\"jeden milion \",\"jeden milionów \"),IF(A4=2,\"dwa miliony \",IF(A4=3,\"trzy miliony \",IF(A4=4,\"cztery miliony \",IF(A4=5,\"pięć milionów \",\"\"))))))","v":""},{"$f":"IF(A4=6,\"sześć milionów \",IF(A4=7,\"siedem milionów \",IF(A4=8,\"osiem milionów \",IF(A4=9,\"dziewięć milionów \",\"\"))))","v":""},{"$f":"IF(A4=0,\"\",IF(A4=1,\"jedenaście milionów \",IF(A4=2,\"dwanaście milionów \",IF(A4=3,\"trzynaście milionów \",IF(A4=4,\"czternaście milionów \",IF(A4=5,\"piętnaście milionów \",\"\"))))))","v":""},{"$f":"IF(A4=6,\"szesnaście milionów \",IF(A4=7,\"siedemnaście milionów \",IF(A4=8,\"osiemnaście milionów \",IF(A4=9,\"dziewiętnaście milionów \",\"\"))))","v":""},null,{"$f":"IF(A3=1,IF(C4,G4,IF(D4,H4)),IF(C4,E4,IF(D4,F4,\"\")))","v":""}]
[{"$f":"INT(A$1/100000)-10*A4-100*A3","v":0},null,1,0,{"$f":"IF(A5=0,\"\",IF(A5=1,\"sto \",IF(A5=2,\"dwieście \",IF(A5=3,\"trzysta \",IF(A5=4,\"czterysta \",IF(A5=5,\"pięćset \",\"\"))))))","v":""},{"$f":"IF(A5=6,\"sześćset \",IF(A5=7,\"siedemset \",IF(A5=8,\"osiemset \",IF(A5=9,\"dziewięćset \",\"\"))))","v":""},null,null,null,{"$f":"IF(C5,E5&I5,IF(D5,F5&I5,\"\"))","v":""}]
[{"$f":"INT(A$1/10000)-10*A5-100*A4-1000*A3","v":0},null,1,0,{"$f":"IF(A6=0,\"\",IF(A6=1,IF(A7=0,\"dziesięć tysięcy \",\"\"),IF(A6=2,\"dwadzieścia \",IF(A6=3,\"trzydzieści \",IF(A6=4,\"czterdzieści \",IF(A6=5,\"pięćdziesiąt \",\"\"))))))","v":""},{"$f":"IF(A6=6,\"sześćdziesiąt \",IF(A6=7,\"siedemdziesiąt \",IF(A6=8,\"osiemdziesiąt \",IF(A6=9,\"dziewięćdziesiąt \",\"\"))))","v":""},null,null,null,{"$f":"IF(C6,E6&I6,IF(D6,F6&I6,\"\"))","v":""}]
[{"$f":"INT(A$1/1000)-10*A6-100*A5-1000*A4-10000*A3","v":0},null,1,0,{"$f":"IF(A7=0,IF(OR(AND(A6<>0,A6<>1),AND(A5<>0,A6=0)),\"tysięcy \",\"\"),IF(A7=1,IF(AND(A5=0,A6=0),\"jeden tysiąc \",\"jeden tysięcy \"),IF(A7=2,\"dwa tysiące \",IF(A7=3,\"trzy tysiące \",IF(A7=4,\"cztery tysiące \",IF(A7=5,\"pięć tysięcy \",\"\"))))))","v":""},{"$f":"IF(A7=6,\"sześć tysięcy \",IF(A7=7,\"siedem tysięcy \",IF(A7=8,\"osiem tysięcy \",IF(A7=9,\"dziewięć tysięcy \",\"\"))))","v":""},{"$f":"IF(A7=0,\"\",IF(A7=1,\"jedenaście tysięcy \",IF(A7=2,\"dwanaście tysięcy \",IF(A7=3,\"trzynaście tysięcy \",IF(A7=4,\"czternaście tysięcy \",IF(A7=5,\"piętnaście tysięcy \",\"\"))))))","v":""},{"$f":"IF(A7=6,\"szesnaście tysięcy \",IF(A7=7,\"siedemnaście tysięcy \",IF(A7=8,\"osiemnaście tysięcy \",IF(A7=9,\"dziewiętnaście tysięcy \",\"\"))))","v":""},null,{"$f":"IF(A6=1,IF(C7,G7,IF(D7,H7)),IF(C7,E7,IF(D7,F7,\"\")))","v":""}]
[{"$f":"INT(A$1/100)-10*A7-100*A6-1000*A5-10000*A4-100000*A3","v":0},null,1,0,{"$f":"IF(A8=0,\"\",IF(A8=1,\"sto \",IF(A8=2,\"dwieście \",IF(A8=3,\"trzysta \",IF(A8=4,\"czterysta \",IF(A8=5,\"pięćset \",\"\"))))))","v":""},{"$f":"IF(A8=6,\"sześćset \",IF(A8=7,\"siedemset \",IF(A8=8,\"osiemset \",IF(A8=9,\"dziewięćset \",\"\"))))","v":""},null,null,null,{"$f":"IF(C8,E8&I8,IF(D8,F8&I8,\"\"))","v":""}]
[{"$f":"INT(A$1/10)-10*A8-100*A7-1000*A6-10000*A5-100000*A4-1000000*A3","v":0},null,1,0,{"$f":"IF(A9=0,\"\",IF(A9=1,IF(A10=0,\"dziesięć \",\"\"),IF(A9=2,\"dwadzieścia \",IF(A9=3,\"trzydzieści \",IF(A9=4,\"czterdzieści \",IF(A9=5,\"pięćdziesiąt \",\"\"))))))","v":""},{"$f":"IF(A9=6,\"sześćdziesiąt \",IF(A9=7,\"siedemdziesiąt \",IF(A9=8,\"osiemdziesiąt \",IF(A9=9,\"dziewięćdziesiąt \",\"\"))))","v":""},null,null,null,{"$f":"IF(C9,E9&I9,IF(D9,F9&I9,\"\"))","v":""}]
[{"$f":"INT(A$1)-10*A9-100*A8-1000*A7-10000*A6-100000*A5-1000000*A4-10000000*A3","v":0},null,1,0,{"$f":"IF(A10=0,\"\",IF(A10=1,\"jeden \",IF(A10=2,\"dwa \",IF(A10=3,\"trzy \",IF(A10=4,\"cztery \",IF(A10=5,\"pięć \",\"\"))))))","v":""},{"$f":"IF(A10=6,\"sześć \",IF(A10=7,\"siedem \",IF(A10=8,\"osiem \",IF(A10=9,\"dziewięć \",\"\"))))","v":""},{"$f":"IF(A10=0,\"\",IF(A10=1,\"jedenaście \",IF(A10=2,\"dwanaście \",IF(A10=3,\"trzynaście \",IF(A10=4,\"czternaście \",IF(A10=5,\"piętnaście \",\"\"))))))","v":""},{"$f":"IF(A10=6,\"szesnaście \",IF(A10=7,\"siedemnaście \",IF(A10=8,\"osiemnaście \",IF(A10=9,\"dziewiętnaście \",\"\"))))","v":""},null,{"$f":"IF(A9=1,IF(C10,G10,IF(D10,H10)),IF(C10,E10,IF(D10,F10,\"\")))","v":""}]
[{"$f":"ROUND((A1-TRUNC(A1,0))*100,0)","v":0},null,null,null,null,null,null,null,null,{"$f":"\"zł \"&TEXT(A11,\"00\")&\"/100\"","v":"zł 00/100"}]
[null,null,null,null,"Słownie:"]
[{"$f":"TRUNC(A1,1)","v":0},null,null,null,{"$f":"J3&J4&J5&J6&J7&J8&J9&J10&J11","v":"zł 00/100"}]

{"sheet":"zad7","index":15,"n_rows":13,"n_cols":10,"rows_kept":13,"cut":false,"hidden":true,"merged":[[0,6,0,7]]}
[{"$f":"'Załącznik 7 - F.O. Zad 6-10'!D37","v":0},null,null,null,null,null,"jeżeli \"naście\""]
[null,null,"0-5","6-9","0-5","6-9","0-5","6-9","dodatek","sumuj te ciągi"]
[{"$f":"INT(A$1/10000000)","v":0},null,{"$f":"IF(AND(A3>=0,A3<=5),1,0)","v":1},{"$f":"IF(AND(A3>=6,A3<=9),1,0)","v":0},{"$f":"IF(A3=0,\"\",IF(A3=1,IF(A4=0,\"dziesięć milionów \",\"\"),IF(A3=2,\"dwadzieścia \",IF(A3=3,\"trzydzieści \",IF(A3=4,\"czterdzieści \",IF(A3=5,\"pięćdziesiąt \",\"\"))))))","v":""},{"$f":"IF(A3=6,\"sześćdziesiąt \",IF(A3=7,\"siedemdziesiąt \",IF(A3=8,\"osiemdziesiąt \",IF(A3=9,\"dziewięćdziesiąt \",\"\"))))","v":""},null,null,null,{"$f":"IF(C3,E3&I3,IF(D3,F3&I3,\"\"))","v":""}]
[{"$f":"INT(A$1/1000000)-A3*10","v":0},null,1,0,{"$f":"IF(A4=0,IF(AND(A3<>0,A3<>1),\"milionów \",\"\"),IF(A4=1,IF(A3=0,\"jeden milion \",\"jeden milionów \"),IF(A4=2,\"dwa miliony \",IF(A4=3,\"trzy miliony \",IF(A4=4,\"cztery miliony \",IF(A4=5,\"pięć milionów \",\"\"))))))","v":""},{"$f":"IF(A4=6,\"sześć milionów \",IF(A4=7,\"siedem milionów \",IF(A4=8,\"osiem milionów \",IF(A4=9,\"dziewięć milionów \",\"\"))))","v":""},{"$f":"IF(A4=0,\"\",IF(A4=1,\"jedenaście milionów \",IF(A4=2,\"dwanaście milionów \",IF(A4=3,\"trzynaście milionów \",IF(A4=4,\"czternaście milionów \",IF(A4=5,\"piętnaście milionów \",\"\"))))))","v":""},{"$f":"IF(A4=6,\"szesnaście milionów \",IF(A4=7,\"siedemnaście milionów \",IF(A4=8,\"osiemnaście milionów \",IF(A4=9,\"dziewiętnaście milionów \",\"\"))))","v":""},null,{"$f":"IF(A3=1,IF(C4,G4,IF(D4,H4)),IF(C4,E4,IF(D4,F4,\"\")))","v":""}]
[{"$f":"INT(A$1/100000)-10*A4-100*A3","v":0},null,1,0,{"$f":"IF(A5=0,\"\",IF(A5=1,\"sto \",IF(A5=2,\"dwieście \",IF(A5=3,\"trzysta \",IF(A5=4,\"czterysta \",IF(A5=5,\"pięćset \",\"\"))))))","v":""},{"$f":"IF(A5=6,\"sześćset \",IF(A5=7,\"siedemset \",IF(A5=8,\"osiemset \",IF(A5=9,\"dziewięćset \",\"\"))))","v":""},null,null,null,{"$f":"IF(C5,E5&I5,IF(D5,F5&I5,\"\"))","v":""}]
[{"$f":"INT(A$1/10000)-10*A5-100*A4-1000*A3","v":0},null,1,0,{"$f":"IF(A6=0,\"\",IF(A6=1,IF(A7=0,\"dziesięć tysięcy \",\"\"),IF(A6=2,\"dwadzieścia \",IF(A6=3,\"trzydzieści \",IF(A6=4,\"czterdzieści \",IF(A6=5,\"pięćdziesiąt \",\"\"))))))","v":""},{"$f":"IF(A6=6,\"sześćdziesiąt \",IF(A6=7,\"siedemdziesiąt \",IF(A6=8,\"osiemdziesiąt \",IF(A6=9,\"dziewięćdziesiąt \",\"\"))))","v":""},null,null,null,{"$f":"IF(C6,E6&I6,IF(D6,F6&I6,\"\"))","v":""}]
[{"$f":"INT(A$1/1000)-10*A6-100*A5-1000*A4-10000*A3","v":0},null,1,0,{"$f":"IF(A7=0,IF(OR(AND(A6<>0,A6<>1),AND(A5<>0,A6=0)),\"tysięcy \",\"\"),IF(A7=1,IF(AND(A5=0,A6=0),\"jeden tysiąc \",\"jeden tysięcy \"),IF(A7=2,\"dwa tysiące \",IF(A7=3,\"trzy tysiące \",IF(A7=4,\"cztery tysiące \",IF(A7=5,\"pięć tysięcy \",\"\"))))))","v":""},{"$f":"IF(A7=6,\"sześć tysięcy \",IF(A7=7,\"siedem tysięcy \",IF(A7=8,\"osiem tysięcy \",IF(A7=9,\"dziewięć tysięcy \",\"\"))))","v":""},{"$f":"IF(A7=0,\"\",IF(A7=1,\"jedenaście tysięcy \",IF(A7=2,\"dwanaście tysięcy \",IF(A7=3,\"trzynaście tysięcy \",IF(A7=4,\"czternaście tysięcy \",IF(A7=5,\"piętnaście tysięcy \",\"\"))))))","v":""},{"$f":"IF(A7=6,\"szesnaście tysięcy \",IF(A7=7,\"siedemnaście tysięcy \",IF(A7=8,\"osiemnaście tysięcy \",IF(A7=9,\"dziewiętnaście tysięcy \",\"\"))))","v":""},null,{"$f":"IF(A6=1,IF(C7,G7,IF(D7,H7)),IF(C7,E7,IF(D7,F7,\"\")))","v":""}]
[{"$f":"INT(A$1/100)-10*A7-100*A6-1000*A5-10000*A4-100000*A3","v":0},null,1,0,{"$f":"IF(A8=0,\"\",IF(A8=1,\"sto \",IF(A8=2,\"dwieście \",IF(A8=3,\"trzysta \",IF(A8=4,\"czterysta \",IF(A8=5,\"pięćset \",\"\"))))))","v":""},{"$f":"IF(A8=6,\"sześćset \",IF(A8=7,\"siedemset \",IF(A8=8,\"osiemset \",IF(A8=9,\"dziewięćset \",\"\"))))","v":""},null,null,null,{"$f":"IF(C8,E8&I8,IF(D8,F8&I8,\"\"))","v":""}]
[{"$f":"INT(A$1/10)-10*A8-100*A7-1000*A6-10000*A5-100000*A4-1000000*A3","v":0},null,1,0,{"$f":"IF(A9=0,\"\",IF(A9=1,IF(A10=0,\"dziesięć \",\"\"),IF(A9=2,\"dwadzieścia \",IF(A9=3,\"trzydzieści \",IF(A9=4,\"czterdzieści \",IF(A9=5,\"pięćdziesiąt \",\"\"))))))","v":""},{"$f":"IF(A9=6,\"sześćdziesiąt \",IF(A9=7,\"siedemdziesiąt \",IF(A9=8,\"osiemdziesiąt \",IF(A9=9,\"dziewięćdziesiąt \",\"\"))))","v":""},null,null,null,{"$f":"IF(C9,E9&I9,IF(D9,F9&I9,\"\"))","v":""}]
[{"$f":"INT(A$1)-10*A9-100*A8-1000*A7-10000*A6-100000*A5-1000000*A4-10000000*A3","v":0},null,1,0,{"$f":"IF(A10=0,\"\",IF(A10=1,\"jeden \",IF(A10=2,\"dwa \",IF(A10=3,\"trzy \",IF(A10=4,\"cztery \",IF(A10=5,\"pięć \",\"\"))))))","v":""},{"$f":"IF(A10=6,\"sześć \",IF(A10=7,\"siedem \",IF(A10=8,\"osiem \",IF(A10=9,\"dziewięć \",\"\"))))","v":""},{"$f":"IF(A10=0,\"\",IF(A10=1,\"jedenaście \",IF(A10=2,\"dwanaście \",IF(A10=3,\"trzynaście \",IF(A10=4,\"czternaście \",IF(A10=5,\"piętnaście \",\"\"))))))","v":""},{"$f":"IF(A10=6,\"szesnaście \",IF(A10=7,\"siedemnaście \",IF(A10=8,\"osiemnaście \",IF(A10=9,\"dziewiętnaście \",\"\"))))","v":""},null,{"$f":"IF(A9=1,IF(C10,G10,IF(D10,H10)),IF(C10,E10,IF(D10,F10,\"\")))","v":""}]
[{"$f":"ROUND((A1-TRUNC(A1,0))*100,0)","v":0},null,null,null,null,null,null,null,null,{"$f":"\"zł \"&TEXT(A11,\"00\")&\"/100\"","v":"zł 00/100"}]
[null,null,null,null,"Słownie:"]
[{"$f":"TRUNC(A1,1)","v":0},null,null,null,{"$f":"J3&J4&J5&J6&J7&J8&J9&J10&J11","v":"zł 00/100"}]